Workbook

Sheet Dashboard
B1: Excel Users Salary Survey Analysis | V1: ? | AJ1: By Jean-Marc Voyer
B3: Random facts from the study | V3: Average salary by Continent by Job Type, Experience, Daily usage of Excel
B5: • | C5: =+Calculations!CU3 -> 651 | E5: =+Calculations!CV3 -> Participants in the world with less then 2 years of experience. | V5: Choose Continent : | AA5: North America | AH5: Continent Average | AL5: =+Calculations!J47 -> 74937.96153
B6: • | C6: =+Calculations!CU4 -> 11.8% | E6: =+Calculations!CV4 -> Participants working as Consultant have more then 24 years of experience. | V6: Experience | Z6: From : | AA6: 0 | AC6: To : | AE6: 99 | AH6: World Average | AL6: =+Calculations!I47 -> 50744.55009
B7: • | C7: =+Calculations!CU5 -> 55353 $ | E7: =+Calculations!CV5 -> Average salary of participants with more then 5 years of experience. | V7: Choose Excel usage : | AA7: 1 or 2 hours a day
B8: • | C8: =+Calculations!CU6 -> 68.5% | E8: =+Calculations!CV6 -> Participants working as Specialist have less then 10 years of experience.
B9: • | C9: =+Calculations!CU7 -> 43571 $ | E9: =+Calculations!CV7 -> Average salary of participants using Excel more then 8 hours a day.
B11: Top 5 countries by…
B13: # | D13: Country | H13: Average Salary | M13: Experience | P13: Nb of responses
B14: =+Calculations!BL8 -> 1 | C14: =+Calculations!BM8 -> USA | F14: =+Calculations!BN8 -> 72738.12966 | L14: =+Calculations!BO8 -> 10.2920354 | P14: =+Calculations!BP8 -> 617 | S14: =IF(P14<WarningResponse,"*","") -> 
B15: =+Calculations!BL9 -> 2 | C15: =+Calculations!BM9 -> India | F15: =+Calculations!BN9 -> 13529.43089 | L15: =+Calculations!BO9 -> 6.46918239 | P15: =+Calculations!BP9 -> 565 | S15: =IF(P15<WarningResponse,"*","") -> 
B16: =+Calculations!BL10 -> 3 | C16: =+Calculations!BM10 -> UK | F16: =+Calculations!BN10 -> 67240.73011 | L16: =+Calculations!BO10 -> 10.38288288 | P16: =+Calculations!BP10 -> 154
B17: =+Calculations!BL11 -> 4 | C17: =+Calculations!BM11 -> Australia | F17: =+Calculations!BN11 -> 92857.62985 | L17: =+Calculations!BO11 -> 10.26 | P17: =+Calculations!BP11 -> 81
B18: =+Calculations!BL12 -> 5 | C18: =+Calculations!BM12 -> Canada | F18: =+Calculations!BN12 -> 89799.52684 | L18: =+Calculations!BO12 -> 8.75 | P18: =+Calculations!BP12 -> 58
B19: * Note : Less then 10 responses for this country. Use data with diligence.
B20: Average salary by… | L20: choose : | M20: Years of experience with Excel
V24: Salary boxplot | AK24: Legend :
V26: Choose Continent #1 | AA26: Asia | AK26: Q1 | AL26: Q2 | AM26: Q3 | AN26: Q4
V27: Choose Continent #2 | AA27: North America | AK27: Q1 | AL27: Q2 | AM27: Q3 | AN27: Q4
B32: Proportion of participants by… | L32: choose : | M32: Daily usage of Excel in hours

Sheet mapping
B1: Mapping Sheet | G1: Source: Xrates on 6/21/2012 | H1: and xe.com | N1: Added data >>> | R1: Continent Mapping | U1: List of countries by GDP (PPP) per capita | AB1: Liste of Job types | AD1: List of clean Country
R2: http://www.worldatlas.com/cntycont.htm | U2: PPP : Purchasing Power Parity | AB2: (sorted filtered list from Data) | AD2: (sorted filtered list from Data)
N3: Clean Continent | P3: Clean PPP | R3: modified cells | U3: http://en.wikipedia.org/wiki/List_of_countries_by_GDP_(PPP)_per_capita
B4: Currency Mapping | L4: Country Mapping | P4: NA = 1 | U4: International Monetary Fund (2010-11) | AB4: List Job Types | AD4: List Clean Country | AF4: Continent | AH4: How many hours of a day you work on Excel | AI4: Min | AJ4: Max | AL4: Lists for Graph
B5: Currency | C5: in USD | G5: Value of 1 American Dollar | L5: Actual | M5: Mapping | N5: Continent | O5: PPP Factor | P5: Clean PPP | R5: Country | S5: Continent | V5: Ref = USA : | W5: 48387 | AB5: Accountant | AD5: Albania | AF5: Asia | AH5: * | AI5: -1 | AJ5: 99 | AL5: Years of experience with Excel
B6: USD | C6: 1 | G6: Argentine Peso | H6: 4.49273 | I6: ARS | L6: USA | M6: USA | N6: =VLOOKUP(tblCountries[[#This Row],[Mapping]],tblContinent[#All],2,0) -> North Amer. | O6: =VLOOKUP(tblCountries[[#This Row],[Mapping]],tblPPP[],3,0) -> 1 | P6: =IFERROR(tblCountries[[#This Row],[PPP Factor]],1) -> 1 | R6: Afghanistan | S6: Asia | U6: Country | V6: Intl $ | W6: PPP Ratio Vs US | AB6: Analyst | AD6: Arabian Gulf | AF6: Europe | AH6: Excel ?!? What Excel? | AI6: 1 | AJ6: 1 | AL6: Daily usage of Excel in hours
B7: EUR | C7: =1/INDEX($H$6:$H$66,MATCH(tblXrate[[#This Row],[Currency]],$I$6:$I$66,0)) -> 1.270399439 | G7: Australian Dollar | H7: 0.980479 | I7: AUD | L7: India | M7: India | N7: =VLOOKUP(tblCountries[[#This Row],[Mapping]],tblContinent[#All],2,0) -> Asia | O7: =VLOOKUP(tblCountries[[#This Row],[Mapping]],tblPPP[],3,0) -> 13.09880888 | P7: =IFERROR(tblCountries[[#This Row],[PPP Factor]],1) -> 13.09880888 | R7: Albania | S7: Europe | U7: Afghanistan | V7: 956 | W7: =$W$5/V7 -> 50.61401674 | AB7: Consultant | AD7: Argentina | AF7: Africa | AH7: 1 or 2 hours a day | AI7: 2 | AJ7: 2
B8: PKR | C8: =1/INDEX($H$6:$H$66,MATCH(tblXrate[[#This Row],[Currency]],$I$6:$I$66,0)) -> 0.01061408872 | G8: Botswana Pula | H8: 7.65697 | I8: BWP | L8: UK | M8: UK | N8: =VLOOKUP(tblCountries[[#This Row],[Mapping]],tblContinent[#All],2,0) -> Europe | O8: =VLOOKUP(tblCountries[[#This Row],[Mapping]],tblPPP[],3,0) -> 1.340731505 | P8: =IFERROR(tblCountries[[#This Row],[PPP Factor]],1) -> 1.340731505 | R8: Algeria | S8: Africa | U8: Albania | V8: 7741 | W8: 6.250742798 | AB8: Controller | AD8: Armenia | AF8: North Amer. | AH8: 2 to 3 hours per day | AI8: 3 | AJ8: 3
B9: INR | C9: =1/INDEX($H$6:$H$66,MATCH(tblXrate[[#This Row],[Currency]],$I$6:$I$66,0)) -> 0.01780791669 | G9: Brazilian Real | H9: 2.02314 | I9: BRL | L9: Australia | M9: Australia | N9: =VLOOKUP(tblCountries[[#This Row],[Mapping]],tblContinent[#All],2,0) -> Oceania | O9: =VLOOKUP(tblCountries[[#This Row],[Mapping]],tblPPP[],3,0) -> 1.202639559 | P9: =IFERROR(tblCountries[[#This Row],[PPP Factor]],1) -> 1.202639559 | R9: Andorra | S9: Europe | U9: Algeria | V9: 7333 | W9: 6.598527206 | AB9: CXO or Top Mgmt. | AD9: Aruba | AF9: South Amer. | AH9: 4 to 6 hours a day | AI9: 4 | AJ9: 4
B10: GBP | C10: =1/INDEX($H$6:$H$66,MATCH(tblXrate[[#This Row],[Currency]],$I$6:$I$66,0)) -> 1.576178272 | G10: British Pound | H10: 0.634446 | I10: GBP | L10: Canada | M10: Canada | N10: =VLOOKUP(tblCountries[[#This Row],[Mapping]],tblContinent[#All],2,0) -> North Amer. | O10: =VLOOKUP(tblCountries[[#This Row],[Mapping]],tblPPP[],3,0) -> 1.193532473 | P10: =IFERROR(tblCountries[[#This Row],[PPP Factor]],1) -> 1.193532473 | R10: Angola | S10: Africa | U10: Angola | V10: 5895 | W10: 8.208142494 | AB10: Engineer | AD10: Asia | AF10: Oceania | AH10: All the 8 hours baby, all the 8! | AI10: 5 | AJ10: 5
B11: AUD | C11: =1/INDEX($H$6:$H$66,MATCH(tblXrate[[#This Row],[Currency]],$I$6:$I$66,0)) -> 1.019909656 | G11: Brunei dollar | H11: 1.2687 | I11: BND | L11: Pakistan | M11: Pakistan | N11: =VLOOKUP(tblCountries[[#This Row],[Mapping]],tblContinent[#All],2,0) -> Asia | O11: =VLOOKUP(tblCountries[[#This Row],[Mapping]],tblPPP[],3,0) -> 17.36167922 | P11: =IFERROR(tblCountries[[#This Row],[PPP Factor]],1) -> 17.36167922 | R11: Antigua and Barbuda | S11: North Amer. | U11: Antigua and Barbuda | V11: 17981 | W11: 2.691007174 | AB11: Manager | AD11: Australia
B12: CAD | C12: =1/INDEX($H$6:$H$66,MATCH(tblXrate[[#This Row],[Currency]],$I$6:$I$66,0)) -> 0.983361523 | G12: Bulgarian Lev | H12: 1.53952 | I12: BGN | L12: South Africa | M12: South Africa | N12: =VLOOKUP(tblCountries[[#This Row],[Mapping]],tblContinent[#All],2,0) -> Africa | O12: =VLOOKUP(tblCountries[[#This Row],[Mapping]],tblPPP[],3,0) -> 4.409641848 | P12: =IFERROR(tblCountries[[#This Row],[PPP Factor]],1) -> 4.409641848 | R12: Argentina | S12: South Amer. | U12: Argentina | V12: 17516 | W12: 2.762445764 | AB12: Misc. | AD12: Austria
B13: PHP | C13: =1/INDEX($H$6:$H$66,MATCH(tblXrate[[#This Row],[Currency]],$I$6:$I$66,0)) -> 0.02370505226 | G13: Canadian Dollar | H13: 1.01692 | I13: CAD | L13: Germany | M13: Germany | N13: =VLOOKUP(tblCountries[[#This Row],[Mapping]],tblContinent[#All],2,0) -> Europe | O13: =VLOOKUP(tblCountries[[#This Row],[Mapping]],tblPPP[],3,0) -> 1.276802913 | P13: =IFERROR(tblCountries[[#This Row],[PPP Factor]],1) -> 1.276802913 | R13: Armenia | S13: Europe | U13: Armenia | V13: 5384 | W13: 8.98718425 | AB13: Reporting | AD13: Azerbaijan
B14: AED | C14: =1/INDEX($H$6:$H$66,MATCH(tblXrate[[#This Row],[Currency]],$I$6:$I$66,0)) -> 0.2722192127 | G14: Chilean Peso | H14: 497.268 | I14: CLP | L14: UAE | M14: UAE | N14: =VLOOKUP(tblCountries[[#This Row],[Mapping]],tblContinent[#All],2,0) -> Asia | O14: =VLOOKUP(tblCountries[[#This Row],[Mapping]],tblPPP[],3,0) -> 1.004755181 | P14: =IFERROR(tblCountries[[#This Row],[PPP Factor]],1) -> 1.004755181 | R14: Australia | S14: Oceania | U14: Australia | V14: 40234 | W14: 1.202639559 | AB14: Specialist | AD14: Baltic | AF14: Continent (full)
B15: MXN | C15: =1/INDEX($H$6:$H$66,MATCH(tblXrate[[#This Row],[Currency]],$I$6:$I$66,0)) -> 0.07304655257 | G15: Chinese Yuan | H15: 6.36091 | I15: CNY | L15: Brazil | M15: Brazil | N15: =VLOOKUP(tblCountries[[#This Row],[Mapping]],tblContinent[#All],2,0) -> South Amer. | O15: =VLOOKUP(tblCountries[[#This Row],[Mapping]],tblPPP[],3,0) -> 4.111394341 | P15: =IFERROR(tblCountries[[#This Row],[PPP Factor]],1) -> 4.111394341 | R15: Austria | S15: Europe | U15: Austria | V15: 41822 | W15: 1.156974798 | AD15: Bangladesh | AF15: Asia
B16: SEK | C16: =1/INDEX($H$6:$H$66,MATCH(tblXrate[[#This Row],[Currency]],$I$6:$I$66,0)) -> 0.1436552504 | G16: Colombian Peso | H16: 1769.79 | I16: COP | L16: Netherlands | M16: Netherlands | N16: =VLOOKUP(tblCountries[[#This Row],[Mapping]],tblContinent[#All],2,0) -> Europe | O16: =VLOOKUP(tblCountries[[#This Row],[Mapping]],tblPPP[],3,0) -> 1.147073466 | P16: =IFERROR(tblCountries[[#This Row],[PPP Factor]],1) -> 1.147073466 | R16: Azerbaijan | S16: Europe | U16: Azerbaijan | V16: 10202 | W16: 4.74289355 | AD16: Belgium | AF16: Europe
B17: BDT | C17: =1/INDEX($H$6:$H$66,MATCH(tblXrate[[#This Row],[Currency]],$I$6:$I$66,0)) -> 0.01222084534 | G17: Croatian Kuna | H17: 5.93671 | I17: HRK | L17: Singapore | M17: Singapore | N17: =VLOOKUP(tblCountries[[#This Row],[Mapping]],tblContinent[#All],2,0) -> Asia | O17: =VLOOKUP(tblCountries[[#This Row],[Mapping]],tblPPP[],3,0) -> 0.8103532013 | P17: =IFERROR(tblCountries[[#This Row],[PPP Factor]],1) -> 0.8103532013 | R17: Bahamas | S17: North Amer. | U17: Bahamas, The | V17: 30959 | W17: 1.562938079 | AD17: Bermuda | AF17: Africa
B18: COSTARICAN | C18: =1/INDEX($H$6:$H$66,MATCH(tblXrate[[#This Row],[Currency]],$I$6:$I$66,0)) -> 0.002007830539 | G18: Danish Krone | H18: 5.85123 | I18: DKK | L18: Philippines | M18: Philippines | N18: =VLOOKUP(tblCountries[[#This Row],[Mapping]],tblContinent[#All],2,0) -> Asia | O18: =VLOOKUP(tblCountries[[#This Row],[Mapping]],tblPPP[],3,0) -> 11.87994108 | P18: =IFERROR(tblCountries[[#This Row],[PPP Factor]],1) -> 11.87994108 | R18: Bahrain | S18: Asia | U18: Bahrain | V18: 27556 | W18: 1.755951517 | AD18: Bhutan | AF18: North America
B19: ZAR | C19: =1/INDEX($H$6:$H$66,MATCH(tblXrate[[#This Row],[Currency]],$I$6:$I$66,0)) -> 0.1219217799 | G19: Euro | H19: 0.787154 | I19: EUR | L19: Portugal | M19: Portugal | N19: =VLOOKUP(tblCountries[[#This Row],[Mapping]],tblContinent[#All],2,0) -> Europe | O19: =VLOOKUP(tblCountries[[#This Row],[Mapping]],tblPPP[],3,0) -> 2.071272634 | P19: =IFERROR(tblCountries[[#This Row],[PPP Factor]],1) -> 2.071272634 | R19: Bangladesh | S19: Asia | U19: Bangladesh | V19: 1693 | W19: 28.58062611 | AD19: Bolivia | AF19: South America
B20: NZD | C20: =1/INDEX($H$6:$H$66,MATCH(tblXrate[[#This Row],[Currency]],$I$6:$I$66,0)) -> 0.7975880936 | G20: Hong Kong Dollar | H20: 7.75889 | I20: HKD | L20: Spain | M20: Spain | N20: =VLOOKUP(tblCountries[[#This Row],[Mapping]],tblContinent[#All],2,0) -> Europe | O20: =VLOOKUP(tblCountries[[#This Row],[Mapping]],tblPPP[],3,0) -> 1.579932084 | P20: =IFERROR(tblCountries[[#This Row],[PPP Factor]],1) -> 1.579932084 | R20: Barbados | S20: North Amer. | U20: Barbados | V20: 23417 | W20: 2.066319341 | AD20: Brazil | AF20: Oceania
B21: CNY | C21: =1/INDEX($H$6:$H$66,MATCH(tblXrate[[#This Row],[Currency]],$I$6:$I$66,0)) -> 0.1572102105 | G21: Hungarian Forint | H21: 225.874 | I21: HUF | L21: New Zealand | M21: New Zealand | N21: =VLOOKUP(tblCountries[[#This Row],[Mapping]],tblContinent[#All],2,0) -> Oceania | O21: =VLOOKUP(tblCountries[[#This Row],[Mapping]],tblPPP[],3,0) -> 1.748843429 | P21: =IFERROR(tblCountries[[#This Row],[PPP Factor]],1) -> 1.748843429 | R21: Belarus | S21: Europe | U21: Belarus | V21: 15028 | W21: 3.219789726 | AD21: Bulgaria
B22: EGYPT | C22: =1/INDEX($H$6:$H$66,MATCH(tblXrate[[#This Row],[Currency]],$I$6:$I$66,0)) -> 0.1652619402 | G22: Iceland Krona | H22: 124.697 | I22: ISK | L22: Russia | M22: Russia | N22: =VLOOKUP(tblCountries[[#This Row],[Mapping]],tblContinent[#All],2,0) -> Asia | O22: =VLOOKUP(tblCountries[[#This Row],[Mapping]],tblPPP[],3,0) -> 2.891192639 | P22: =IFERROR(tblCountries[[#This Row],[PPP Factor]],1) -> 2.891192639 | R22: Belgium | S22: Europe | U22: Belgium | V22: 37737 | W22: 1.282216392 | AD22: Cambodia
B23: NAIRA | C23: =1/INDEX($H$6:$H$66,MATCH(tblXrate[[#This Row],[Currency]],$I$6:$I$66,0)) -> 0.006163328197 | G23: Indian Rupee | H23: 56.1548 | I23: INR | L23: Saudi Arabia | M23: Saudi Arabia | N23: =VLOOKUP(tblCountries[[#This Row],[Mapping]],tblContinent[#All],2,0) -> Asia | O23: =VLOOKUP(tblCountries[[#This Row],[Mapping]],tblPPP[],3,0) -> 1.996410447 | P23: =IFERROR(tblCountries[[#This Row],[PPP Factor]],1) -> 1.996410447 | R23: Belize | S23: North Amer. | U23: Belize | V23: 8264 | W23: 5.855154889 | AD23: Canada
B24: AED | C24: =1/INDEX($H$6:$H$66,MATCH(tblXrate[[#This Row],[Currency]],$I$6:$I$66,0)) -> 0.2722192127 | G24: Indonesian Rupiah | H24: 9443.81 | I24: IDR | L24: Mexico | M24: Mexico | N24: =VLOOKUP(tblCountries[[#This Row],[Mapping]],tblContinent[#All],2,0) -> North Amer. | O24: =VLOOKUP(tblCountries[[#This Row],[Mapping]],tblPPP[],3,0) -> 3.311909651 | P24: =IFERROR(tblCountries[[#This Row],[PPP Factor]],1) -> 3.311909651 | R24: Benin | S24: Africa | U24: Benin | V24: 1481 | W24: 32.67184335 | AD24: CEE
B25: BRL | C25: =1/INDEX($H$6:$H$66,MATCH(tblXrate[[#This Row],[Currency]],$I$6:$I$66,0)) -> 0.4942811669 | G25: Israeli New Shekel | H25: 3.86721 | I25: ILS | L25: Indonesia | M25: Indonesia | N25: =VLOOKUP(tblCountries[[#This Row],[Mapping]],tblContinent[#All],2,0) -> Asia | O25: =VLOOKUP(tblCountries[[#This Row],[Mapping]],tblPPP[],3,0) -> 10.3701243 | P25: =IFERROR(tblCountries[[#This Row],[PPP Factor]],1) -> 10.3701243 | R25: Bhutan | S25: Asia | U25: Bhutan | V25: 6112 | W25: 7.916721204 | AD25: Central America
B26: RON | C26: =1/INDEX($H$6:$H$66,MATCH(tblXrate[[#This Row],[Currency]],$I$6:$I$66,0)) -> 0.2846132391 | G26: Japanese Yen | H26: 78.9043 | I26: JPY | L26: Norway | M26: Norway | N26: =VLOOKUP(tblCountries[[#This Row],[Mapping]],tblContinent[#All],2,0) -> Europe | O26: =VLOOKUP(tblCountries[[#This Row],[Mapping]],tblPPP[],3,0) -> 0.9049204242 | P26: =IFERROR(tblCountries[[#This Row],[PPP Factor]],1) -> 0.9049204242 | R26: Bolivia | S26: South Amer. | U26: Bolivia | V26: 4789 | W26: 10.10377949 | AD26: China
B27: USD | C27: 1 | G27: Kazakhstani Tenge | H27: 148.88 | I27: KZT | L27: malaysia | M27: Malaysia | N27: =VLOOKUP(tblCountries[[#This Row],[Mapping]],tblContinent[#All],2,0) -> Asia | O27: =VLOOKUP(tblCountries[[#This Row],[Mapping]],tblPPP[],3,0) -> 3.108106372 | P27: =IFERROR(tblCountries[[#This Row],[PPP Factor]],1) -> 3.108106372 | R27: Bosnia and Herzegovina | S27: Europe | U27: Bosnia and Herzegovina | V27: 8133 | W27: 5.949465142 | AD27: Colombia
B28: MYR | C28: =1/INDEX($H$6:$H$66,MATCH(tblXrate[[#This Row],[Currency]],$I$6:$I$66,0)) -> 0.3168005677 | G28: Kuwaiti Dinar | H28: 0.2794 | I28: KWD | L28: The Netherlands | M28: Netherlands | N28: =VLOOKUP(tblCountries[[#This Row],[Mapping]],tblContinent[#All],2,0) -> Europe | O28: =VLOOKUP(tblCountries[[#This Row],[Mapping]],tblPPP[],3,0) -> 1.147073466 | P28: =IFERROR(tblCountries[[#This Row],[PPP Factor]],1) -> 1.147073466 | R28: Botswana | S28: Africa | U28: Botswana | V28: 16030 | W28: 3.01852776 | AD28: Costa Rica
B29: LKR | C29: =1/INDEX($H$6:$H$66,MATCH(tblXrate[[#This Row],[Currency]],$I$6:$I$66,0)) -> 0.007524058176 | G29: Latvian Lat | H29: 0.548489 | I29: LVL | L29: Romania | M29: Romania | N29: =VLOOKUP(tblCountries[[#This Row],[Mapping]],tblContinent[#All],2,0) -> Europe | O29: =VLOOKUP(tblCountries[[#This Row],[Mapping]],tblPPP[],3,0) -> 3.878406541 | P29: =IFERROR(tblCountries[[#This Row],[PPP Factor]],1) -> 3.878406541 | R29: Brazil | S29: South Amer. | U29: Brazil | V29: 11769 | W29: 4.111394341 | AD29: Croatia
B30: SGD | C30: =1/INDEX($H$6:$H$66,MATCH(tblXrate[[#This Row],[Currency]],$I$6:$I$66,0)) -> 0.7888239424 | G30: Libyan Dinar | H30: 1.9324 | I30: LYD | L30: Poland | M30: Poland | N30: =VLOOKUP(tblCountries[[#This Row],[Mapping]],tblContinent[#All],2,0) -> Europe | O30: =VLOOKUP(tblCountries[[#This Row],[Mapping]],tblPPP[],3,0) -> 2.379610505 | P30: =IFERROR(tblCountries[[#This Row],[PPP Factor]],1) -> 2.379610505 | R30: Brunei | S30: Asia | U30: Brunei | V30: 49384 | W30: 0.9798112749 | AD30: Czech Republic
B31: GBP | C31: =1/INDEX($H$6:$H$66,MATCH(tblXrate[[#This Row],[Currency]],$I$6:$I$66,0)) -> 1.576178272 | G31: Lithuanian Litas | H31: 2.71788 | I31: LTL | L31: italy | M31: italy | N31: =VLOOKUP(tblCountries[[#This Row],[Mapping]],tblContinent[#All],2,0) -> Europe | O31: =VLOOKUP(tblCountries[[#This Row],[Mapping]],tblPPP[],3,0) -> 1.588333771 | P31: =IFERROR(tblCountries[[#This Row],[PPP Factor]],1) -> 1.588333771 | R31: Bulgaria | S31: Europe | U31: Bulgaria | V31: 13597 | W31: 3.558652644 | AD31: Denmark
B32: DOP | C32: =1/INDEX($H$6:$H$66,MATCH(tblXrate[[#This Row],[Currency]],$I$6:$I$66,0)) -> 0.02567394095 | G32: Malaysian Ringgit | H32: 3.15656 | I32: MYR | L32: Hungary | M32: Hungary | N32: =VLOOKUP(tblCountries[[#This Row],[Mapping]],tblContinent[#All],2,0) -> Europe | O32: =VLOOKUP(tblCountries[[#This Row],[Mapping]],tblPPP[],3,0) -> 2.469858609 | P32: =IFERROR(tblCountries[[#This Row],[PPP Factor]],1) -> 2.469858609 | R32: Burkina | S32: Africa | U32: Burkina Faso | V32: 1466 | W32: 33.00613915 | AD32: Dominican Republic
B33: PLN | C33: =1/INDEX($H$6:$H$66,MATCH(tblXrate[[#This Row],[Currency]],$I$6:$I$66,0)) -> 0.3003147298 | G33: Mauritius Rupee | H33: 30.7159 | I33: MUR | L33: Denmark | M33: Denmark | N33: =VLOOKUP(tblCountries[[#This Row],[Mapping]],tblContinent[#All],2,0) -> Europe | O33: =VLOOKUP(tblCountries[[#This Row],[Mapping]],tblPPP[],3,0) -> 1.302406331 | P33: =IFERROR(tblCountries[[#This Row],[PPP Factor]],1) -> 1.302406331 | R33: Burma (Myanmar) | S33: Asia | U33: Burma | V33: 1325 | W33: 36.51849057 | AD33: Dubai
B34: KENYA | C34: =1/INDEX($H$6:$H$66,MATCH(tblXrate[[#This Row],[Currency]],$I$6:$I$66,0)) -> 0.0119760479 | G34: Mexican Peso | H34: 13.6899 | I34: MXN | L34: Ireland | M34: Ireland | N34: =VLOOKUP(tblCountries[[#This Row],[Mapping]],tblContinent[#All],2,0) -> Europe | O34: =VLOOKUP(tblCountries[[#This Row],[Mapping]],tblPPP[],3,0) -> 1.220691743 | P34: =IFERROR(tblCountries[[#This Row],[PPP Factor]],1) -> 1.220691743 | R34: Burundi | S34: Africa | U34: Burundi | V34: 615 | W34: 78.67804878 | AD34: Egypt
B35: DKK | C35: =1/INDEX($H$6:$H$66,MATCH(tblXrate[[#This Row],[Currency]],$I$6:$I$66,0)) -> 0.1709042372 | G35: Nepalese Rupee | H35: 89.65 | I35: NPR | L35: Israel | M35: Israel | N35: =VLOOKUP(tblCountries[[#This Row],[Mapping]],tblContinent[#All],2,0) -> Asia | O35: =VLOOKUP(tblCountries[[#This Row],[Mapping]],tblPPP[],3,0) -> 1.562130751 | P35: =IFERROR(tblCountries[[#This Row],[PPP Factor]],1) -> 1.562130751 | R35: Cambodia | S35: Asia | U35: Cambodia | V35: 2216 | W35: 21.83528881 | AD35: Estonia
B36: IDR | C36: =1/INDEX($H$6:$H$66,MATCH(tblXrate[[#This Row],[Currency]],$I$6:$I$66,0)) -> 0.0001058894662 | G36: New Zealand Dollar | H36: 1.25378 | I36: NZD | L36: France | M36: France | N36: =VLOOKUP(tblCountries[[#This Row],[Mapping]],tblContinent[#All],2,0) -> Europe | O36: =VLOOKUP(tblCountries[[#This Row],[Mapping]],tblPPP[],3,0) -> 1.376351121 | P36: =IFERROR(tblCountries[[#This Row],[PPP Factor]],1) -> 1.376351121 | R36: Cameroon | S36: Africa | U36: Cameroon | V36: 2257 | W36: 21.43863536 | AD36: Ethiopia
B37: MONGOLIAN | C37: =1/INDEX($H$6:$H$66,MATCH(tblXrate[[#This Row],[Currency]],$I$6:$I$66,0)) -> 0.000756429652 | G37: Norwegian Kroner | H37: 5.90838 | I37: NOK | L37: Colombia | M37: Colombia | N37: =VLOOKUP(tblCountries[[#This Row],[Mapping]],tblContinent[#All],2,0) -> South Amer. | O37: =VLOOKUP(tblCountries[[#This Row],[Mapping]],tblPPP[],3,0) -> 4.721143526 | P37: =IFERROR(tblCountries[[#This Row],[PPP Factor]],1) -> 4.721143526 | R37: Canada | S37: North Amer. | U37: Canada | V37: 40541 | W37: 1.193532473 | AD37: Europe
B38: JPY | C38: =1/INDEX($H$6:$H$66,MATCH(tblXrate[[#This Row],[Currency]],$I$6:$I$66,0)) -> 0.01267358053 | G38: Omani Rial | H38: 0.3845 | I38: OMR | L38: Switzerland | M38: Switzerland | N38: =VLOOKUP(tblCountries[[#This Row],[Mapping]],tblContinent[#All],2,0) -> Europe | O38: =VLOOKUP(tblCountries[[#This Row],[Mapping]],tblPPP[],3,0) -> 1.115679041 | P38: =IFERROR(tblCountries[[#This Row],[PPP Factor]],1) -> 1.115679041 | R38: Cape Verde | S38: Africa | U38: Cape Verde | V38: 3947 | W38: 12.25918419 | AD38: Finland
B39: SAR | C39: =1/INDEX($H$6:$H$66,MATCH(tblXrate[[#This Row],[Currency]],$I$6:$I$66,0)) -> 0.2666666667 | G39: Pakistan Rupee | H39: 94.2144 | I39: PKR | L39: Sri Lanka | M39: Sri Lanka | N39: =VLOOKUP(tblCountries[[#This Row],[Mapping]],tblContinent[#All],2,0) -> Asia | O39: =VLOOKUP(tblCountries[[#This Row],[Mapping]],tblPPP[],3,0) -> 8.527846317 | P39: =IFERROR(tblCountries[[#This Row],[PPP Factor]],1) -> 8.527846317 | R39: Central African Republic | S39: Africa | U39: Central African Republic | V39: 768 | W39: =$W$5/V39 -> 63.00390625 | AD39: France
B40: MAD | C40: =1/INDEX($H$6:$H$66,MATCH(tblXrate[[#This Row],[Currency]],$I$6:$I$66,0)) -> 0.1145475372 | G40: Philippine Peso | H40: 42.1851 | I40: PHP | L40: Belgium | M40: Belgium | N40: =VLOOKUP(tblCountries[[#This Row],[Mapping]],tblContinent[#All],2,0) -> Europe | O40: =VLOOKUP(tblCountries[[#This Row],[Mapping]],tblPPP[],3,0) -> 1.282216392 | P40: =IFERROR(tblCountries[[#This Row],[PPP Factor]],1) -> 1.282216392 | R40: Chad | S40: Africa | U40: Chad | V40: 1865 | W40: 25.94477212 | AD40: Germany
B41: MUR | C41: =1/INDEX($H$6:$H$66,MATCH(tblXrate[[#This Row],[Currency]],$I$6:$I$66,0)) -> 0.03255642843 | G41: Qatari Rial | H41: 3.64 | I41: QAR | L41: Dubai | M41: Dubai | N41: =VLOOKUP(tblCountries[[#This Row],[Mapping]],tblContinent[#All],2,0) -> Asia | O41: =VLOOKUP(tblCountries[[#This Row],[Mapping]],tblPPP[],3,0) ->  | P41: =IFERROR(tblCountries[[#This Row],[PPP Factor]],1) -> 1 | R41: Chile | S41: South Amer. | U41: Chile | V41: 17222 | W41: 2.809603995 | AD41: Ghana
B42: NOK | C42: =1/INDEX($H$6:$H$66,MATCH(tblXrate[[#This Row],[Currency]],$I$6:$I$66,0)) -> 0.1692511314 | G42: Romanian Leu | H42: 3.51354 | I42: RON | L42: Ukraine | M42: Ukraine | N42: =VLOOKUP(tblCountries[[#This Row],[Mapping]],tblContinent[#All],2,0) -> Europe | O42: =VLOOKUP(tblCountries[[#This Row],[Mapping]],tblPPP[],3,0) -> 6.689755288 | P42: =IFERROR(tblCountries[[#This Row],[PPP Factor]],1) -> 6.689755288 | R42: China | S42: Asia | U42: China | V42: 8382 | W42: 5.772727273 | AD42: Greece
B43: CHF | C43: =1/INDEX($H$6:$H$66,MATCH(tblXrate[[#This Row],[Currency]],$I$6:$I$66,0)) -> 1.057873062 | G43: Russian Ruble | H43: 32.5458 | I43: RUB | L43: Kuwait | M43: Kuwait | N43: =VLOOKUP(tblCountries[[#This Row],[Mapping]],tblContinent[#All],2,0) -> Asia | O43: =VLOOKUP(tblCountries[[#This Row],[Mapping]],tblPPP[],3,0) -> 1.160610204 | P43: =IFERROR(tblCountries[[#This Row],[PPP Factor]],1) -> 1.160610204 | R43: Colombia | S43: South Amer. | U43: Colombia | V43: 10249 | W43: 4.721143526 | AD43: Guyana
B44: ETB | C44: =1/INDEX($H$6:$H$66,MATCH(tblXrate[[#This Row],[Currency]],$I$6:$I$66,0)) -> 0.05656108597 | G44: Saudi Riyal | H44: 3.75 | I44: SAR | L44: iran | M44: iran | N44: =VLOOKUP(tblCountries[[#This Row],[Mapping]],tblContinent[#All],2,0) -> Asia | O44: =VLOOKUP(tblCountries[[#This Row],[Mapping]],tblPPP[],3,0) -> 3.706963916 | P44: =IFERROR(tblCountries[[#This Row],[PPP Factor]],1) -> 3.706963916 | R44: Comoros | S44: Africa | U44: Comoros | V44: 1232 | W44: 39.27516234 | AD44: Hong Kong
G45: Singapore Dollar | H45: 1.26771 | I45: SGD | L45: Qatar | M45: Qatar | N45: =VLOOKUP(tblCountries[[#This Row],[Mapping]],tblContinent[#All],2,0) -> Asia | O45: =VLOOKUP(tblCountries[[#This Row],[Mapping]],tblPPP[],3,0) -> 0.4700368165 | P45: =IFERROR(tblCountries[[#This Row],[PPP Factor]],1) -> 0.4700368165 | R45: Congo | S45: Africa | U45: Congo, Democratic Republic of the | V45: 348 | W45: 139.0431034 | AD45: Hungary
G46: South African Rand | H46: 8.20198 | I46: ZAR | L46: Nigeria | M46: Nigeria | N46: =VLOOKUP(tblCountries[[#This Row],[Mapping]],tblContinent[#All],2,0) -> Africa | O46: =VLOOKUP(tblCountries[[#This Row],[Mapping]],tblPPP[],3,0) -> 18.76920093 | P46: =IFERROR(tblCountries[[#This Row],[PPP Factor]],1) -> 18.76920093 | R46: Congo, Democratic Republic of | S46: Africa | U46: Congo, Republic of the | V46: 4589 | W46: 10.54412726 | AD46: Iceland
G47: South Korean Won | H47: 1151.09 | I47: KRW | L47: Finland | M47: Finland | N47: =VLOOKUP(tblCountries[[#This Row],[Mapping]],tblContinent[#All],2,0) -> Europe | O47: =VLOOKUP(tblCountries[[#This Row],[Mapping]],tblPPP[],3,0) -> 1.335329507 | P47: =IFERROR(tblCountries[[#This Row],[PPP Factor]],1) -> 1.335329507 | R47: Costa Rica | S47: North Amer. | U47: Costa Rica | V47: 11927 | W47: 4.056929655 | AD47: India
G48: Sri Lanka Rupee | H48: 132.907 | I48: LKR | L48: Europe | M48: Europe | N48: =VLOOKUP(tblCountries[[#This Row],[Mapping]],tblContinent[#All],2,0) -> Europe | O48: =VLOOKUP(tblCountries[[#This Row],[Mapping]],tblPPP[],3,0) ->  | P48: =IFERROR(tblCountries[[#This Row],[PPP Factor]],1) -> 1 | R48: Croatia | S48: Europe | U48: Côte d'Ivoire | V48: 1590 | W48: 30.43207547 | AD48: Indonesia
G49: Swedish Krona | H49: 6.96111 | I49: SEK | L49: Japan | M49: Japan | N49: =VLOOKUP(tblCountries[[#This Row],[Mapping]],tblContinent[#All],2,0) -> Asia | O49: =VLOOKUP(tblCountries[[#This Row],[Mapping]],tblPPP[],3,0) -> 1.39283247 | P49: =IFERROR(tblCountries[[#This Row],[PPP Factor]],1) -> 1.39283247 | R49: Cuba | S49: North Amer. | U49: Croatia | V49: 18192 | W49: 2.659795515 | AD49: Iran
G50: Swiss Franc | H50: 0.945293 | I50: CHF | L50: Brasil | M50: Brazil | N50: =VLOOKUP(tblCountries[[#This Row],[Mapping]],tblContinent[#All],2,0) -> South Amer. | O50: =VLOOKUP(tblCountries[[#This Row],[Mapping]],tblPPP[],3,0) -> 4.111394341 | P50: =IFERROR(tblCountries[[#This Row],[PPP Factor]],1) -> 4.111394341 | R50: Cyprus | S50: Europe | U50: Cyprus | V50: 29074 | W50: 1.664270482 | AD50: Ireland
G51: Taiwan Dollar | H51: 29.8594 | I51: TWD | L51: nz | M51: New Zealand | N51: =VLOOKUP(tblCountries[[#This Row],[Mapping]],tblContinent[#All],2,0) -> Oceania | O51: =VLOOKUP(tblCountries[[#This Row],[Mapping]],tblPPP[],3,0) -> 1.748843429 | P51: =IFERROR(tblCountries[[#This Row],[PPP Factor]],1) -> 1.748843429 | R51: Czech Republic | S51: Europe | U51: Czech Republic | V51: 27062 | W51: 1.788005321 | AD51: Israel
G52: Thai Baht | H52: 31.5003 | I52: THB | L52: Greece | M52: Greece | N52: =VLOOKUP(tblCountries[[#This Row],[Mapping]],tblContinent[#All],2,0) -> Europe | O52: =VLOOKUP(tblCountries[[#This Row],[Mapping]],tblPPP[],3,0) -> 1.84022971 | P52: =IFERROR(tblCountries[[#This Row],[PPP Factor]],1) -> 1.84022971 | R52: Denmark | S52: Europe | U52: Denmark | V52: 37152 | W52: 1.302406331 | AD52: Italy
G53: Trinidad/Tobago Dollar | H53: 6.39122 | I53: TTD | L53: ksa | M53: USA | N53: =VLOOKUP(tblCountries[[#This Row],[Mapping]],tblContinent[#All],2,0) -> North Amer. | O53: =VLOOKUP(tblCountries[[#This Row],[Mapping]],tblPPP[],3,0) -> 1 | P53: =IFERROR(tblCountries[[#This Row],[PPP Factor]],1) -> 1 | R53: Djibouti | S53: Africa | U53: Djibouti | V53: 2642 | W53: 18.31453444 | AD53: Japan
G54: Turkish Lira | H54: 1.79447 | I54: TRY | L54: Panama | M54: Panama | N54: =VLOOKUP(tblCountries[[#This Row],[Mapping]],tblContinent[#All],2,0) -> North Amer. | O54: =VLOOKUP(tblCountries[[#This Row],[Mapping]],tblPPP[],3,0) -> 3.432432432 | P54: =IFERROR(tblCountries[[#This Row],[PPP Factor]],1) -> 3.432432432 | R54: Dominica | S54: North Amer. | U54: Dominica | V54: 13816 | W54: 3.502243775 | AD54: Kenya
G55: Venezuelan Bolivar | H55: 4.29402 | I55: VEF | L55: Turkey | M55: Turkey | N55: =VLOOKUP(tblCountries[[#This Row],[Mapping]],tblContinent[#All],2,0) -> Asia | O55: =VLOOKUP(tblCountries[[#This Row],[Mapping]],tblPPP[],3,0) -> 3.333126679 | P55: =IFERROR(tblCountries[[#This Row],[PPP Factor]],1) -> 3.333126679 | R55: Dominican Republic | S55: North Amer. | U55: Dominican Republic | V55: 9287 | W55: 5.210186282 | AD55: Kuwait
G56: UAE Dirham | H56: 3.67351 | I56: AED | L56: Sweden | M56: Sweden | N56: =VLOOKUP(tblCountries[[#This Row],[Mapping]],tblContinent[#All],2,0) -> Europe | O56: =VLOOKUP(tblCountries[[#This Row],[Mapping]],tblPPP[],3,0) -> 1.197875922 | P56: =IFERROR(tblCountries[[#This Row],[PPP Factor]],1) -> 1.197875922 | R56: East Timor | S56: Asia | U56: East Timor | V56: 8701 | W56: 5.561084933 | AD56: Kuwait
G57: Bangladesh Takha | H57: 81.8274 | I57: BDT | L57: china | M57: china | N57: =VLOOKUP(tblCountries[[#This Row],[Mapping]],tblContinent[#All],2,0) -> Asia | O57: =VLOOKUP(tblCountries[[#This Row],[Mapping]],tblPPP[],3,0) -> 5.772727273 | P57: =IFERROR(tblCountries[[#This Row],[PPP Factor]],1) -> 5.772727273 | R57: Ecuador | S57: South Amer. | U57: Ecuador | V57: 8492 | W57: 5.697951013 | AD57: Latin America
G58: Costarican CRC | H58: 498.05 | I58: Costarican | L58: Bangladesh | M58: Bangladesh | N58: =VLOOKUP(tblCountries[[#This Row],[Mapping]],tblContinent[#All],2,0) -> Asia | O58: =VLOOKUP(tblCountries[[#This Row],[Mapping]],tblPPP[],3,0) -> 28.58062611 | P58: =IFERROR(tblCountries[[#This Row],[PPP Factor]],1) -> 28.58062611 | R58: Egypt | S58: Africa | U58: Egypt | V58: 6540 | W58: 7.398623853 | AD58: Lesotho
G59: Egyptian Pound | H59: 6.051 | I59: Egypt | L59: Croatia | M59: Croatia | N59: =VLOOKUP(tblCountries[[#This Row],[Mapping]],tblContinent[#All],2,0) -> Europe | O59: =VLOOKUP(tblCountries[[#This Row],[Mapping]],tblPPP[],3,0) -> 2.659795515 | P59: =IFERROR(tblCountries[[#This Row],[PPP Factor]],1) -> 2.659795515 | R59: El Salvador | S59: North Amer. | U59: El Salvador | V59: 7550 | W59: 6.408874172 | AD59: Libya
G60: Nigerian Naira | H60: 162.25 | I60: NAIRA | L60: United Arab Emirates | M60: UAE | N60: =VLOOKUP(tblCountries[[#This Row],[Mapping]],tblContinent[#All],2,0) -> Asia | O60: =VLOOKUP(tblCountries[[#This Row],[Mapping]],tblPPP[],3,0) -> 1.004755181 | P60: =IFERROR(tblCountries[[#This Row],[PPP Factor]],1) -> 1.004755181 | R60: Equatorial Guinea | S60: Africa | U60: Equatorial Guinea[6] | V60: 19356 | W60: 2.499845009 | AD60: Lithuania
G61: Dominican Peso | H61: 38.95 | I61: DOP | L61: MÃ©xico | M61: Mexico | N61: =VLOOKUP(tblCountries[[#This Row],[Mapping]],tblContinent[#All],2,0) -> North Amer. | O61: =VLOOKUP(tblCountries[[#This Row],[Mapping]],tblPPP[],3,0) -> 3.311909651 | P61: =IFERROR(tblCountries[[#This Row],[PPP Factor]],1) -> 3.311909651 | R61: Eritrea | S61: Africa | U61: Eritrea | V61: 735 | W61: 65.83265306 | AD61: Malaysia
G62: Polish Zloty | H62: 3.32984 | I62: PLN | L62: Zambia | M62: Zambia | N62: =VLOOKUP(tblCountries[[#This Row],[Mapping]],tblContinent[#All],2,0) -> Africa | O62: =VLOOKUP(tblCountries[[#This Row],[Mapping]],tblPPP[],3,0) -> 30.03538175 | P62: =IFERROR(tblCountries[[#This Row],[PPP Factor]],1) -> 30.03538175 | R62: Estonia | S62: Europe | U62: Estonia | V62: 20380 | W62: 2.37423945 | AD62: Mauritius
G63: Kenyan Shilling | H63: 83.5 | I63: Kenya | L63: Tunisia | M63: Tunisia | N63: =VLOOKUP(tblCountries[[#This Row],[Mapping]],tblContinent[#All],2,0) -> Africa | O63: =VLOOKUP(tblCountries[[#This Row],[Mapping]],tblPPP[],3,0) -> 5.105190969 | P63: =IFERROR(tblCountries[[#This Row],[PPP Factor]],1) -> 5.105190969 | R63: Ethiopia | S63: Africa | U63: Ethiopia | V63: 1093 | W63: 44.26989936 | AD63: Mexico
G64: Mongolian Tughrik | H64: 1322 | I64: Mongolian | L64: Saudi Arabai | M64: Saudi Arabia | N64: =VLOOKUP(tblCountries[[#This Row],[Mapping]],tblContinent[#All],2,0) -> Asia | O64: =VLOOKUP(tblCountries[[#This Row],[Mapping]],tblPPP[],3,0) -> 1.996410447 | P64: =IFERROR(tblCountries[[#This Row],[PPP Factor]],1) -> 1.996410447 | R64: Fiji | S64: Oceania | U64: European Union | V64: 31607 | W64: 1.530895055 | AD64: Mongolia
G65: Moroccan Dirham | H65: 8.73 | I65: MAD | L65: Ethiopia | M65: Ethiopia | N65: =VLOOKUP(tblCountries[[#This Row],[Mapping]],tblContinent[#All],2,0) -> Africa | O65: =VLOOKUP(tblCountries[[#This Row],[Mapping]],tblPPP[],3,0) -> 44.26989936 | P65: =IFERROR(tblCountries[[#This Row],[PPP Factor]],1) -> 44.26989936 | R65: Finland | S65: Europe | U65: Fiji | V65: 4620 | W65: 10.47337662 | AD65: Montenegro
G66: Ethiopian Birr | H66: 17.68 | I66: ETB | L66: CEE | M66: CEE | N66: =VLOOKUP(tblCountries[[#This Row],[Mapping]],tblContinent[#All],2,0) -> Europe | O66: =VLOOKUP(tblCountries[[#This Row],[Mapping]],tblPPP[],3,0) ->  | P66: =IFERROR(tblCountries[[#This Row],[PPP Factor]],1) -> 1 | R66: France | S66: Europe | U66: Finland | V66: 36236 | W66: 1.335329507 | AD66: Morocco
L67: SouthAfrica | M67: South Africa | N67: =VLOOKUP(tblCountries[[#This Row],[Mapping]],tblContinent[#All],2,0) -> Africa | O67: =VLOOKUP(tblCountries[[#This Row],[Mapping]],tblPPP[],3,0) -> 4.409641848 | P67: =IFERROR(tblCountries[[#This Row],[PPP Factor]],1) -> 4.409641848 | R67: Gabon | S67: Africa | U67: France | V67: 35156 | W67: 1.376351121 | AD67: mozambique
L68: Central America | M68: Central America | N68: =VLOOKUP(tblCountries[[#This Row],[Mapping]],tblContinent[#All],2,0) -> South Amer. | O68: =VLOOKUP(tblCountries[[#This Row],[Mapping]],tblPPP[],3,0) ->  | P68: =IFERROR(tblCountries[[#This Row],[PPP Factor]],1) -> 1 | R68: Gambia | S68: Africa | U68: Gabon | V68: 16183 | W68: 2.989989495 | AD68: Myanmar
L69: Uruguay | M69: Uruguay | N69: =VLOOKUP(tblCountries[[#This Row],[Mapping]],tblContinent[#All],2,0) -> South Amer. | O69: =VLOOKUP(tblCountries[[#This Row],[Mapping]],tblPPP[],3,0) -> 3.201680672 | P69: =IFERROR(tblCountries[[#This Row],[PPP Factor]],1) -> 3.201680672 | R69: Georgia | S69: Europe | U69: Gambia, The | V69: 1943 | W69: 24.90324241 | AD69: Netherlands
L70: Kenya | M70: Kenya | N70: =VLOOKUP(tblCountries[[#This Row],[Mapping]],tblContinent[#All],2,0) -> Africa | O70: =VLOOKUP(tblCountries[[#This Row],[Mapping]],tblPPP[],3,0) -> 27.71305842 | P70: =IFERROR(tblCountries[[#This Row],[PPP Factor]],1) -> 27.71305842 | R70: Germany | S70: Europe | U70: Georgia | V70: 5491 | W70: 8.812056092 | AD70: New Zealand
L71: Republica Dominicana | M71: Dominican Republic | N71: =VLOOKUP(tblCountries[[#This Row],[Mapping]],tblContinent[#All],2,0) -> North Amer. | O71: =VLOOKUP(tblCountries[[#This Row],[Mapping]],tblPPP[],3,0) -> 5.210186282 | P71: =IFERROR(tblCountries[[#This Row],[PPP Factor]],1) -> 5.210186282 | R71: Ghana | S71: Africa | U71: Germany | V71: 37897 | W71: =$W$5/V71 -> 1.276802913 | AD71: Nigeria
L72: Kingdom of Saudi Arabia | M72: Saudi Arabia | N72: =VLOOKUP(tblCountries[[#This Row],[Mapping]],tblContinent[#All],2,0) -> Asia | O72: =VLOOKUP(tblCountries[[#This Row],[Mapping]],tblPPP[],3,0) -> 1.996410447 | P72: =IFERROR(tblCountries[[#This Row],[PPP Factor]],1) -> 1.996410447 | R72: Greece | S72: Europe | U72: Ghana | V72: 3083 | W72: 15.69477781 | AD72: Norway
L73: Slovakia | M73: Slovakia | N73: =VLOOKUP(tblCountries[[#This Row],[Mapping]],tblContinent[#All],2,0) -> Europe | O73: =VLOOKUP(tblCountries[[#This Row],[Mapping]],tblPPP[],3,0) -> 2.076338826 | P73: =IFERROR(tblCountries[[#This Row],[PPP Factor]],1) -> 2.076338826 | R73: Grenada | S73: North Amer. | U73: Greece | V73: 26294 | W73: 1.84022971 | AD73: Oman
L74: Austria | M74: Austria | N74: =VLOOKUP(tblCountries[[#This Row],[Mapping]],tblContinent[#All],2,0) -> Europe | O74: =VLOOKUP(tblCountries[[#This Row],[Mapping]],tblPPP[],3,0) -> 1.156974798 | P74: =IFERROR(tblCountries[[#This Row],[PPP Factor]],1) -> 1.156974798 | R74: Guatemala | S74: North Amer. | U74: Grenada | V74: 13896 | W74: 3.482081174 | AD74: Pakistan
L75: Guyana | M75: Guyana | N75: =VLOOKUP(tblCountries[[#This Row],[Mapping]],tblContinent[#All],2,0) -> South Amer. | O75: =VLOOKUP(tblCountries[[#This Row],[Mapping]],tblPPP[],3,0) -> 6.480980445 | P75: =IFERROR(tblCountries[[#This Row],[PPP Factor]],1) -> 6.480980445 | R75: Guinea | S75: Africa | U75: Guatemala | V75: 5070 | W75: 9.543786982 | AD75: Panama
L76: Azerbaijan | M76: Azerbaijan | N76: =VLOOKUP(tblCountries[[#This Row],[Mapping]],tblContinent[#All],2,0) -> Europe | O76: =VLOOKUP(tblCountries[[#This Row],[Mapping]],tblPPP[],3,0) -> 4.74289355 | P76: =IFERROR(tblCountries[[#This Row],[PPP Factor]],1) -> 4.74289355 | R76: Guinea-Bissau | S76: Africa | U76: Guinea | V76: 1083 | W76: 44.67867036 | AD76: Paraguay
L77: Bulgaria | M77: Bulgaria | N77: =VLOOKUP(tblCountries[[#This Row],[Mapping]],tblContinent[#All],2,0) -> Europe | O77: =VLOOKUP(tblCountries[[#This Row],[Mapping]],tblPPP[],3,0) -> 3.558652644 | P77: =IFERROR(tblCountries[[#This Row],[PPP Factor]],1) -> 3.558652644 | R77: Guyana | S77: South Amer. | U77: Guinea-Bissau | V77: 1144 | W77: 42.29632867 | AD77: Peru
L78: Kuwait | M78: Kuwait | N78: =VLOOKUP(tblCountries[[#This Row],[Mapping]],tblContinent[#All],2,0) -> Asia | O78: =VLOOKUP(tblCountries[[#This Row],[Mapping]],tblPPP[],3,0) -> 1.160610204 | P78: =IFERROR(tblCountries[[#This Row],[PPP Factor]],1) -> 1.160610204 | R78: Haiti | S78: North Amer. | U78: Guyana | V78: 7466 | W78: 6.480980445 | AD78: Philippines
L79: Peru | M79: Peru | N79: =VLOOKUP(tblCountries[[#This Row],[Mapping]],tblContinent[#All],2,0) -> South Amer. | O79: =VLOOKUP(tblCountries[[#This Row],[Mapping]],tblPPP[],3,0) -> 4.808884914 | P79: =IFERROR(tblCountries[[#This Row],[PPP Factor]],1) -> 4.808884914 | R79: Honduras | S79: North Amer. | U79: Haiti | V79: 1235 | W79: 39.17975709 | AD79: Poland
L80: Vietnam | M80: Vietnam | N80: =VLOOKUP(tblCountries[[#This Row],[Mapping]],tblContinent[#All],2,0) -> Asia | O80: =VLOOKUP(tblCountries[[#This Row],[Mapping]],tblPPP[],3,0) -> 14.40518011 | P80: =IFERROR(tblCountries[[#This Row],[PPP Factor]],1) -> 14.40518011 | R80: Hungary | S80: Europe | U80: Honduras | V80: 4345 | W80: 11.13624856 | AD80: Portugal
L81: Armenia | M81: Armenia | N81: =VLOOKUP(tblCountries[[#This Row],[Mapping]],tblContinent[#All],2,0) -> Europe | O81: =VLOOKUP(tblCountries[[#This Row],[Mapping]],tblPPP[],3,0) -> 8.98718425 | P81: =IFERROR(tblCountries[[#This Row],[PPP Factor]],1) -> 8.98718425 | R81: Iceland | S81: Europe | U81: Hong Kong | V81: 49137 | W81: 0.9847365529 | AD81: Qatar
L82: Zimbabwe | M82: Zimbabwe | N82: =VLOOKUP(tblCountries[[#This Row],[Mapping]],tblContinent[#All],2,0) -> Africa | O82: =VLOOKUP(tblCountries[[#This Row],[Mapping]],tblPPP[],3,0) -> 99.35728953 | P82: =IFERROR(tblCountries[[#This Row],[PPP Factor]],1) -> 99.35728953 | R82: India | S82: Asia | U82: Hungary | V82: 19591 | W82: 2.469858609 | AD82: Republic of Georgia
L83: RSA | M83: South Africa | N83: =VLOOKUP(tblCountries[[#This Row],[Mapping]],tblContinent[#All],2,0) -> Africa | O83: =VLOOKUP(tblCountries[[#This Row],[Mapping]],tblPPP[],3,0) -> 4.409641848 | P83: =IFERROR(tblCountries[[#This Row],[PPP Factor]],1) -> 4.409641848 | R83: Indonesia | S83: Asia | U83: Iceland | V83: 38061 | W83: 1.271301332 | AD83: Romania
L84: Libya | M84: Libya | N84: =VLOOKUP(tblCountries[[#This Row],[Mapping]],tblContinent[#All],2,0) -> Africa | O84: =VLOOKUP(tblCountries[[#This Row],[Mapping]],tblPPP[],3,0) -> 8.361327112 | P84: =IFERROR(tblCountries[[#This Row],[PPP Factor]],1) -> 8.361327112 | R84: Iran | S84: Asia | U84: India | V84: 3694 | W84: 13.09880888 | AD84: Russia
L85: self-employed | M85: self-employed | N85: =VLOOKUP(tblCountries[[#This Row],[Mapping]],tblContinent[#All],2,0) -> 0 | O85: =VLOOKUP(tblCountries[[#This Row],[Mapping]],tblPPP[],3,0) ->  | P85: =IFERROR(tblCountries[[#This Row],[PPP Factor]],1) -> 1 | R85: Iraq | S85: Asia | U85: Indonesia | V85: 4666 | W85: 10.3701243 | AD85: Saudi Arabia
L86: Lithuania | M86: Lithuania | N86: =VLOOKUP(tblCountries[[#This Row],[Mapping]],tblContinent[#All],2,0) -> Europe | O86: =VLOOKUP(tblCountries[[#This Row],[Mapping]],tblPPP[],3,0) -> 2.566132796 | P86: =IFERROR(tblCountries[[#This Row],[PPP Factor]],1) -> 2.566132796 | R86: Ireland | S86: Europe | U86: Iran | V86: 13053 | W86: 3.706963916 | AD86: self-employed
L87: Somalia | M87: Somalia | N87: =VLOOKUP(tblCountries[[#This Row],[Mapping]],tblContinent[#All],2,0) -> Africa | O87: =VLOOKUP(tblCountries[[#This Row],[Mapping]],tblPPP[],3,0) ->  | P87: =IFERROR(tblCountries[[#This Row],[PPP Factor]],1) -> 1 | R87: Israel | S87: Asia | U87: Iraq | V87: 3886 | W87: 12.4516212 | AD87: Singapore
L88: Colombia - South America | M88: Colombia | N88: =VLOOKUP(tblCountries[[#This Row],[Mapping]],tblContinent[#All],2,0) -> South Amer. | O88: =VLOOKUP(tblCountries[[#This Row],[Mapping]],tblPPP[],3,0) -> 4.721143526 | P88: =IFERROR(tblCountries[[#This Row],[PPP Factor]],1) -> 4.721143526 | R88: Italy | S88: Europe | U88: Ireland | V88: 39639 | W88: 1.220691743 | AD88: Slovakia
L89: BRA | M89: Brazil | N89: =VLOOKUP(tblCountries[[#This Row],[Mapping]],tblContinent[#All],2,0) -> South Amer. | O89: =VLOOKUP(tblCountries[[#This Row],[Mapping]],tblPPP[],3,0) -> 4.111394341 | P89: =IFERROR(tblCountries[[#This Row],[PPP Factor]],1) -> 4.111394341 | R89: Ivory Coast | S89: Africa | U89: Israel | V89: 30975 | W89: 1.562130751 | AD89: Slovenia
L90: mainland Europe (Euro zone) | M90: Europe | N90: =VLOOKUP(tblCountries[[#This Row],[Mapping]],tblContinent[#All],2,0) -> Europe | O90: =VLOOKUP(tblCountries[[#This Row],[Mapping]],tblPPP[],3,0) ->  | P90: =IFERROR(tblCountries[[#This Row],[PPP Factor]],1) -> 1 | R90: Jamaica | S90: North Amer. | U90: Italy | V90: 30464 | W90: 1.588333771 | AD90: Somalia
L91: Thailand | M91: Thailand | N91: =VLOOKUP(tblCountries[[#This Row],[Mapping]],tblContinent[#All],2,0) -> Asia | O91: =VLOOKUP(tblCountries[[#This Row],[Mapping]],tblPPP[],3,0) -> 5.149744572 | P91: =IFERROR(tblCountries[[#This Row],[PPP Factor]],1) -> 5.149744572 | R91: Japan | S91: Asia | U91: Jamaica | V91: 9029 | W91: 5.359065234 | AD91: South Africa
L92: Continental Europe | M92: CEE | N92: =VLOOKUP(tblCountries[[#This Row],[Mapping]],tblContinent[#All],2,0) -> Europe | O92: =VLOOKUP(tblCountries[[#This Row],[Mapping]],tblPPP[],3,0) ->  | P92: =IFERROR(tblCountries[[#This Row],[PPP Factor]],1) -> 1 | R92: Jordan | S92: Asia | U92: Japan | V92: 34740 | W92: 1.39283247 | AD92: Spain
L93: Asia | M93: Asia | N93: =VLOOKUP(tblCountries[[#This Row],[Mapping]],tblContinent[#All],2,0) -> Asia | O93: =VLOOKUP(tblCountries[[#This Row],[Mapping]],tblPPP[],3,0) ->  | P93: =IFERROR(tblCountries[[#This Row],[PPP Factor]],1) -> 1 | R93: Kazakhstan | S93: Asia | U93: Jordan | V93: 5900 | W93: 8.201186441 | AD93: Sri Lanka
L94: Mauritius | M94: Mauritius | N94: =VLOOKUP(tblCountries[[#This Row],[Mapping]],tblContinent[#All],2,0) -> Africa | O94: =VLOOKUP(tblCountries[[#This Row],[Mapping]],tblPPP[],3,0) -> 3.235722884 | P94: =IFERROR(tblCountries[[#This Row],[PPP Factor]],1) -> 3.235722884 | R94: Kenya | S94: Africa | U94: Kazakhstan | V94: 13001 | W94: 3.721790631 | AD94: Sweden
L95: Cambodia | M95: Cambodia | N95: =VLOOKUP(tblCountries[[#This Row],[Mapping]],tblContinent[#All],2,0) -> Asia | O95: =VLOOKUP(tblCountries[[#This Row],[Mapping]],tblPPP[],3,0) -> 21.83528881 | P95: =IFERROR(tblCountries[[#This Row],[PPP Factor]],1) -> 21.83528881 | R95: Kiribati | S95: Oceania | U95: Kenya | V95: 1746 | W95: 27.71305842 | AD95: Switzerland
L96: Costa Rica | M96: Costa Rica | N96: =VLOOKUP(tblCountries[[#This Row],[Mapping]],tblContinent[#All],2,0) -> North Amer. | O96: =VLOOKUP(tblCountries[[#This Row],[Mapping]],tblPPP[],3,0) -> 4.056929655 | P96: =IFERROR(tblCountries[[#This Row],[PPP Factor]],1) -> 4.056929655 | R96: Korea, North | S96: Asia | U96: Kiribati | V96: 5722 | W96: 8.456308983 | AD96: Thailand
L97: Viet Nam | M97: Vietnam | N97: =VLOOKUP(tblCountries[[#This Row],[Mapping]],tblContinent[#All],2,0) -> Asia | O97: =VLOOKUP(tblCountries[[#This Row],[Mapping]],tblPPP[],3,0) -> 14.40518011 | P97: =IFERROR(tblCountries[[#This Row],[PPP Factor]],1) -> 14.40518011 | R97: Korea, South | S97: Asia | U97: Korea, South | V97: 31714 | W97: 1.525729962 | AD97: Tunisia
L98: Mongolia | M98: Mongolia | N98: =VLOOKUP(tblCountries[[#This Row],[Mapping]],tblContinent[#All],2,0) -> Asia | O98: =VLOOKUP(tblCountries[[#This Row],[Mapping]],tblPPP[],3,0) -> 10.19962057 | P98: =IFERROR(tblCountries[[#This Row],[PPP Factor]],1) -> 10.19962057 | R98: Kuwait | S98: Asia | U98: Kosovo[8] | V98: 7044 | W98: 6.869250426 | AD98: Turkey
L99: Estonia | M99: Estonia | N99: =VLOOKUP(tblCountries[[#This Row],[Mapping]],tblContinent[#All],2,0) -> Europe | O99: =VLOOKUP(tblCountries[[#This Row],[Mapping]],tblPPP[],3,0) -> 2.37423945 | P99: =IFERROR(tblCountries[[#This Row],[PPP Factor]],1) -> 2.37423945 | R99: Kyrgyzstan | S99: Asia | U99: Kuwait | V99: 41691 | W99: 1.160610204 | AD99: UAE
L100: Montenegro | M100: Montenegro | N100: =VLOOKUP(tblCountries[[#This Row],[Mapping]],tblContinent[#All],2,0) -> Europe | O100: =VLOOKUP(tblCountries[[#This Row],[Mapping]],tblPPP[],3,0) -> 4.191165006 | P100: =IFERROR(tblCountries[[#This Row],[PPP Factor]],1) -> 4.191165006 | R100: Laos | S100: Asia | U100: Kyrgyzstan | V100: 2372 | W100: 20.39924115 | AD100: Uganda
L101: EU | M101: Europe | N101: =VLOOKUP(tblCountries[[#This Row],[Mapping]],tblContinent[#All],2,0) -> Europe | O101: =VLOOKUP(tblCountries[[#This Row],[Mapping]],tblPPP[],3,0) ->  | P101: =IFERROR(tblCountries[[#This Row],[PPP Factor]],1) -> 1 | R101: Latvia | S101: Europe | U101: Laos | V101: 2659 | W101: 18.19744265 | AD101: UK
L102: Morocco | M102: Morocco | N102: =VLOOKUP(tblCountries[[#This Row],[Mapping]],tblContinent[#All],2,0) -> Africa | O102: =VLOOKUP(tblCountries[[#This Row],[Mapping]],tblPPP[],3,0) -> 9.577790974 | P102: =IFERROR(tblCountries[[#This Row],[PPP Factor]],1) -> 9.577790974 | R102: Lebanon | S102: Asia | U102: Latvia | V102: 15662 | W102: 3.089452177 | AD102: Ukraine
L103: Republic of Georgia | M103: Republic of Georgia | N103: =VLOOKUP(tblCountries[[#This Row],[Mapping]],tblContinent[#All],2,0) -> Asia | O103: =VLOOKUP(tblCountries[[#This Row],[Mapping]],tblPPP[],3,0) ->  | P103: =IFERROR(tblCountries[[#This Row],[PPP Factor]],1) -> 1 | R103: Lesotho | S103: Africa | U103: Lebanon | V103: 15523 | W103: =$W$5/V103 -> 3.117116537 | AD103: Uruguay
L104: mozambique | M104: mozambique | N104: =VLOOKUP(tblCountries[[#This Row],[Mapping]],tblContinent[#All],2,0) -> Africa | O104: =VLOOKUP(tblCountries[[#This Row],[Mapping]],tblPPP[],3,0) -> 44.59631336 | P104: =IFERROR(tblCountries[[#This Row],[PPP Factor]],1) -> 44.59631336 | R104: Liberia | S104: Africa | U104: Lesotho | V104: 1960 | W104: 24.6872449 | AD104: USA
L105: europe/Croatia | M105: Croatia | N105: =VLOOKUP(tblCountries[[#This Row],[Mapping]],tblContinent[#All],2,0) -> Europe | O105: =VLOOKUP(tblCountries[[#This Row],[Mapping]],tblPPP[],3,0) -> 2.659795515 | P105: =IFERROR(tblCountries[[#This Row],[PPP Factor]],1) -> 2.659795515 | R105: Libya | S105: Africa | U105: Liberia | V105: 456 | W105: 106.1118421 | AD105: Vietnam
L106: Myanmar | M106: Myanmar | N106: =VLOOKUP(tblCountries[[#This Row],[Mapping]],tblContinent[#All],2,0) -> Asia | O106: =VLOOKUP(tblCountries[[#This Row],[Mapping]],tblPPP[],3,0) ->  | P106: =IFERROR(tblCountries[[#This Row],[PPP Factor]],1) -> 1 | R106: Liechtenstein | S106: Europe | U106: Libya | V106: 5787 | W106: 8.361327112 | AD106: Zambia
L107: Bermuda | M107: Bermuda | N107: =VLOOKUP(tblCountries[[#This Row],[Mapping]],tblContinent[#All],2,0) -> South Amer. | O107: =VLOOKUP(tblCountries[[#This Row],[Mapping]],tblPPP[],3,0) ->  | P107: =IFERROR(tblCountries[[#This Row],[PPP Factor]],1) -> 1 | R107: Lithuania | S107: Europe | U107: Lithuania | V107: 18856 | W107: 2.566132796 | AD107: Zimbabwe
L108: Myanmar [Burma] | M108: Myanmar | N108: =VLOOKUP(tblCountries[[#This Row],[Mapping]],tblContinent[#All],2,0) -> Asia | O108: =VLOOKUP(tblCountries[[#This Row],[Mapping]],tblPPP[],3,0) ->  | P108: =IFERROR(tblCountries[[#This Row],[PPP Factor]],1) -> 1 | R108: Luxembourg | S108: Europe | U108: Luxembourg | V108: 80119 | W108: 0.6039391405
L109: FR | M109: France | N109: =VLOOKUP(tblCountries[[#This Row],[Mapping]],tblContinent[#All],2,0) -> Europe | O109: =VLOOKUP(tblCountries[[#This Row],[Mapping]],tblPPP[],3,0) -> 1.376351121 | P109: =IFERROR(tblCountries[[#This Row],[PPP Factor]],1) -> 1.376351121 | R109: Macedonia | S109: Europe | U109: Macedonia, Republic of | V109: 10367 | W109: 4.667406193
L110: MYS | M110: Malaysia | N110: =VLOOKUP(tblCountries[[#This Row],[Mapping]],tblContinent[#All],2,0) -> Asia | O110: =VLOOKUP(tblCountries[[#This Row],[Mapping]],tblPPP[],3,0) -> 3.108106372 | P110: =IFERROR(tblCountries[[#This Row],[PPP Factor]],1) -> 3.108106372 | R110: Madagascar | S110: Africa | U110: Madagascar | V110: 934 | W110: 51.80620985
L111: Bhutan | M111: Bhutan | N111: =VLOOKUP(tblCountries[[#This Row],[Mapping]],tblContinent[#All],2,0) -> Asia | O111: =VLOOKUP(tblCountries[[#This Row],[Mapping]],tblPPP[],3,0) -> 7.916721204 | P111: =IFERROR(tblCountries[[#This Row],[PPP Factor]],1) -> 7.916721204 | R111: Malawi | S111: Africa | U111: Malawi | V111: 860 | W111: 56.26395349
L112: Baltic | M112: Baltic | N112: =VLOOKUP(tblCountries[[#This Row],[Mapping]],tblContinent[#All],2,0) -> Europe | O112: =VLOOKUP(tblCountries[[#This Row],[Mapping]],tblPPP[],3,0) ->  | P112: =IFERROR(tblCountries[[#This Row],[PPP Factor]],1) -> 1 | R112: Malaysia | S112: Asia | U112: Malaysia | V112: 15568 | W112: 3.108106372
L113: Slovenia | M113: Slovenia | N113: =VLOOKUP(tblCountries[[#This Row],[Mapping]],tblContinent[#All],2,0) -> Europe | O113: =VLOOKUP(tblCountries[[#This Row],[Mapping]],tblPPP[],3,0) -> 1.689372251 | P113: =IFERROR(tblCountries[[#This Row],[PPP Factor]],1) -> 1.689372251 | R113: Maldives | S113: Asia | U113: Maldives | V113: 8731 | W113: 5.541976864
L114: New Zealand | M114: New Zealand | N114: =VLOOKUP(tblCountries[[#This Row],[Mapping]],tblContinent[#All],2,0) -> Oceania | O114: =VLOOKUP(tblCountries[[#This Row],[Mapping]],tblPPP[],3,0) -> 1.748843429 | P114: =IFERROR(tblCountries[[#This Row],[PPP Factor]],1) -> 1.748843429 | R114: Mali | S114: Africa | U114: Mali | V114: 1128 | W114: 42.8962766
L115: Bolivia | M115: Bolivia | N115: =VLOOKUP(tblCountries[[#This Row],[Mapping]],tblContinent[#All],2,0) -> South Amer. | O115: =VLOOKUP(tblCountries[[#This Row],[Mapping]],tblPPP[],3,0) -> 10.10377949 | P115: =IFERROR(tblCountries[[#This Row],[PPP Factor]],1) -> 10.10377949 | R115: Malta | S115: Europe | U115: Malta | V115: 25428 | W115: 1.902902312
L116: Czech Republic | M116: Czech Republic | N116: =VLOOKUP(tblCountries[[#This Row],[Mapping]],tblContinent[#All],2,0) -> Europe | O116: =VLOOKUP(tblCountries[[#This Row],[Mapping]],tblPPP[],3,0) -> 1.788005321 | P116: =IFERROR(tblCountries[[#This Row],[PPP Factor]],1) -> 1.788005321 | R116: Marshall Islands | S116: Oceania | U116: Mauritania | V116: 2179 | W116: 22.20605782
L117: Ghana | M117: Ghana | N117: =VLOOKUP(tblCountries[[#This Row],[Mapping]],tblContinent[#All],2,0) -> Africa | O117: =VLOOKUP(tblCountries[[#This Row],[Mapping]],tblPPP[],3,0) -> 15.69477781 | P117: =IFERROR(tblCountries[[#This Row],[PPP Factor]],1) -> 15.69477781 | R117: Mauritania | S117: Africa | U117: Mauritius | V117: 14954 | W117: 3.235722884
L118: bangkok | M118: Thailand | N118: =VLOOKUP(tblCountries[[#This Row],[Mapping]],tblContinent[#All],2,0) -> Asia | O118: =VLOOKUP(tblCountries[[#This Row],[Mapping]],tblPPP[],3,0) -> 5.149744572 | P118: =IFERROR(tblCountries[[#This Row],[PPP Factor]],1) -> 5.149744572 | R118: Mauritius | S118: Africa | U118: Mexico | V118: 14610 | W118: 3.311909651
L119: srilanka | M119: Sri Lanka | N119: =VLOOKUP(tblCountries[[#This Row],[Mapping]],tblContinent[#All],2,0) -> Asia | O119: =VLOOKUP(tblCountries[[#This Row],[Mapping]],tblPPP[],3,0) -> 8.527846317 | P119: =IFERROR(tblCountries[[#This Row],[PPP Factor]],1) -> 8.527846317 | R119: Mexico | S119: North Amer. | U119: Moldova | V119: 3373 | W119: 14.34538986
L120: NL | M120: Netherlands | N120: =VLOOKUP(tblCountries[[#This Row],[Mapping]],tblContinent[#All],2,0) -> Europe | O120: =VLOOKUP(tblCountries[[#This Row],[Mapping]],tblPPP[],3,0) -> 1.147073466 | P120: =IFERROR(tblCountries[[#This Row],[PPP Factor]],1) -> 1.147073466 | R120: Micronesia | S120: Oceania | U120: Mongolia | V120: 4744 | W120: 10.19962057
L121: Hong Kong | M121: Hong Kong | N121: =VLOOKUP(tblCountries[[#This Row],[Mapping]],tblContinent[#All],2,0) -> Asia | O121: =VLOOKUP(tblCountries[[#This Row],[Mapping]],tblPPP[],3,0) -> 0.9847365529 | P121: =IFERROR(tblCountries[[#This Row],[PPP Factor]],1) -> 0.9847365529 | R121: Moldova | S121: Europe | U121: Montenegro | V121: 11545 | W121: 4.191165006
L122: nld | M122: New Zealand | N122: =VLOOKUP(tblCountries[[#This Row],[Mapping]],tblContinent[#All],2,0) -> Oceania | O122: =VLOOKUP(tblCountries[[#This Row],[Mapping]],tblPPP[],3,0) -> 1.748843429 | P122: =IFERROR(tblCountries[[#This Row],[PPP Factor]],1) -> 1.748843429 | R122: Monaco | S122: Europe | U122: Morocco | V122: 5052 | W122: 9.577790974
L123: Aruba | M123: Aruba | N123: =VLOOKUP(tblCountries[[#This Row],[Mapping]],tblContinent[#All],2,0) -> South Amer. | O123: =VLOOKUP(tblCountries[[#This Row],[Mapping]],tblPPP[],3,0) ->  | P123: =IFERROR(tblCountries[[#This Row],[PPP Factor]],1) -> 1 | R123: Mongolia | S123: Asia | U123: Mozambique | V123: 1085 | W123: 44.59631336
L124: DK | M124: Denmark | N124: =VLOOKUP(tblCountries[[#This Row],[Mapping]],tblContinent[#All],2,0) -> Europe | O124: =VLOOKUP(tblCountries[[#This Row],[Mapping]],tblPPP[],3,0) -> 1.302406331 | P124: =IFERROR(tblCountries[[#This Row],[PPP Factor]],1) -> 1.302406331 | R124: Montenegro | S124: Europe | U124: Namibia | V124: 7363 | W124: 6.571641994
L125: Iceland | M125: Iceland | N125: =VLOOKUP(tblCountries[[#This Row],[Mapping]],tblContinent[#All],2,0) -> Europe | O125: =VLOOKUP(tblCountries[[#This Row],[Mapping]],tblPPP[],3,0) -> 1.271301332 | P125: =IFERROR(tblCountries[[#This Row],[PPP Factor]],1) -> 1.271301332 | R125: Morocco | S125: Africa | U125: Nepal | V125: 1328 | W125: 36.43599398
L126: Dominican Republic | M126: Dominican Republic | N126: =VLOOKUP(tblCountries[[#This Row],[Mapping]],tblContinent[#All],2,0) -> North Amer. | O126: =VLOOKUP(tblCountries[[#This Row],[Mapping]],tblPPP[],3,0) -> 5.210186282 | P126: =IFERROR(tblCountries[[#This Row],[PPP Factor]],1) -> 5.210186282 | R126: Mozambique | S126: Africa | U126: Netherlands | V126: 42183 | W126: 1.147073466
L127: Uganda | M127: Uganda | N127: =VLOOKUP(tblCountries[[#This Row],[Mapping]],tblContinent[#All],2,0) -> Africa | O127: =VLOOKUP(tblCountries[[#This Row],[Mapping]],tblPPP[],3,0) -> 36.74031891 | P127: =IFERROR(tblCountries[[#This Row],[PPP Factor]],1) -> 36.74031891 | R127: Namibia | S127: Africa | U127: New Zealand | V127: 27668 | W127: 1.748843429
L128: Oman | M128: Oman | N128: =VLOOKUP(tblCountries[[#This Row],[Mapping]],tblContinent[#All],2,0) -> Asia | O128: =VLOOKUP(tblCountries[[#This Row],[Mapping]],tblPPP[],3,0) -> 1.824616313 | P128: =IFERROR(tblCountries[[#This Row],[PPP Factor]],1) -> 1.824616313 | R128: Nauru | S128: Oceania | U128: Nicaragua | V128: 3206 | W128: 15.0926388
L129: Inonesia | M129: Indonesia | N129: =VLOOKUP(tblCountries[[#This Row],[Mapping]],tblContinent[#All],2,0) -> Asia | O129: =VLOOKUP(tblCountries[[#This Row],[Mapping]],tblPPP[],3,0) -> 10.3701243 | P129: =IFERROR(tblCountries[[#This Row],[PPP Factor]],1) -> 10.3701243 | R129: Nepal | S129: Asia | U129: Niger | V129: 771 | W129: 62.75875486
L130: Argentina | M130: Argentina | N130: =VLOOKUP(tblCountries[[#This Row],[Mapping]],tblContinent[#All],2,0) -> South Amer. | O130: =VLOOKUP(tblCountries[[#This Row],[Mapping]],tblPPP[],3,0) -> 2.762445764 | P130: =IFERROR(tblCountries[[#This Row],[PPP Factor]],1) -> 2.762445764 | R130: Netherlands | S130: Europe | U130: Nigeria | V130: 2578 | W130: 18.76920093
L131: United Arab Emriate | M131: UAE | N131: =VLOOKUP(tblCountries[[#This Row],[Mapping]],tblContinent[#All],2,0) -> Asia | O131: =VLOOKUP(tblCountries[[#This Row],[Mapping]],tblPPP[],3,0) -> 1.004755181 | P131: =IFERROR(tblCountries[[#This Row],[PPP Factor]],1) -> 1.004755181 | R131: New Zealand | S131: Oceania | U131: Norway | V131: 53471 | W131: 0.9049204242
L132: Pakistan, Angola | M132: Pakistan | N132: =VLOOKUP(tblCountries[[#This Row],[Mapping]],tblContinent[#All],2,0) -> Asia | O132: =VLOOKUP(tblCountries[[#This Row],[Mapping]],tblPPP[],3,0) -> 17.36167922 | P132: =IFERROR(tblCountries[[#This Row],[PPP Factor]],1) -> 17.36167922 | R132: Nicaragua | S132: North Amer. | U132: Oman | V132: 26519 | W132: 1.824616313
L133: Canad | M133: Canada | N133: =VLOOKUP(tblCountries[[#This Row],[Mapping]],tblContinent[#All],2,0) -> North Amer. | O133: =VLOOKUP(tblCountries[[#This Row],[Mapping]],tblPPP[],3,0) -> 1.193532473 | P133: =IFERROR(tblCountries[[#This Row],[PPP Factor]],1) -> 1.193532473 | R133: Niger | S133: Africa | U133: Pakistan | V133: 2787 | W133: 17.36167922
L134: Egypt | M134: Egypt | N134: =VLOOKUP(tblCountries[[#This Row],[Mapping]],tblContinent[#All],2,0) -> Africa | O134: =VLOOKUP(tblCountries[[#This Row],[Mapping]],tblPPP[],3,0) -> 7.398623853 | P134: =IFERROR(tblCountries[[#This Row],[PPP Factor]],1) -> 7.398623853 | R134: Nigeria | S134: Africa | U134: Panama | V134: 14097 | W134: 3.432432432
L135: arabian Gulf | M135: arabian Gulf | N135: =VLOOKUP(tblCountries[[#This Row],[Mapping]],tblContinent[#All],2,0) -> Asia | O135: =VLOOKUP(tblCountries[[#This Row],[Mapping]],tblPPP[],3,0) ->  | P135: =IFERROR(tblCountries[[#This Row],[PPP Factor]],1) -> 1 | R135: Norway | S135: Europe | U135: Papua New Guinea | V135: 2532 | W135: =$W$5/V135 -> 19.11018957
L136: Paraguay | M136: Paraguay | N136: =VLOOKUP(tblCountries[[#This Row],[Mapping]],tblContinent[#All],2,0) -> South Amer. | O136: =VLOOKUP(tblCountries[[#This Row],[Mapping]],tblPPP[],3,0) -> 8.939035655 | P136: =IFERROR(tblCountries[[#This Row],[PPP Factor]],1) -> 8.939035655 | R136: Oman | S136: Asia | U136: Paraguay | V136: 5413 | W136: 8.939035655
L137: Latin America | M137: Latin America | N137: =VLOOKUP(tblCountries[[#This Row],[Mapping]],tblContinent[#All],2,0) -> South Amer. | O137: =VLOOKUP(tblCountries[[#This Row],[Mapping]],tblPPP[],3,0) ->  | P137: =IFERROR(tblCountries[[#This Row],[PPP Factor]],1) -> 1 | R137: Pakistan | S137: Asia | U137: Peru | V137: 10062 | W137: 4.808884914
L138: Albania | M138: Albania | N138: =VLOOKUP(tblCountries[[#This Row],[Mapping]],tblContinent[#All],2,0) -> Europe | O138: =VLOOKUP(tblCountries[[#This Row],[Mapping]],tblPPP[],3,0) -> 6.250742798 | P138: =IFERROR(tblCountries[[#This Row],[PPP Factor]],1) -> 6.250742798 | R138: Palau | S138: Oceania | U138: Philippines | V138: 4073 | W138: 11.87994108
L139: Lesotho | M139: Lesotho | N139: =VLOOKUP(tblCountries[[#This Row],[Mapping]],tblContinent[#All],2,0) -> Africa | O139: =VLOOKUP(tblCountries[[#This Row],[Mapping]],tblPPP[],3,0) -> 24.6872449 | P139: =IFERROR(tblCountries[[#This Row],[PPP Factor]],1) -> 24.6872449 | R139: Panama | S139: North Amer. | U139: Poland | V139: 20334 | W139: 2.379610505
R140: Papua New Guinea | S140: Oceania | U140: Portugal | V140: 23361 | W140: 2.071272634
R141: Paraguay | S141: South Amer. | U141: Qatar | V141: 102943 | W141: 0.4700368165
R142: Peru | S142: South Amer. | U142: Romania | V142: 12476 | W142: 3.878406541
R143: Philippines | S143: Asia | U143: Russia | V143: 16736 | W143: 2.891192639
R144: Poland | S144: Europe | U144: Rwanda | V144: 1341 | W144: 36.08277405
R145: Portugal | S145: Europe | U145: Saint Kitts and Nevis | V145: 15573 | W145: 3.107108457
R146: Qatar | S146: Asia | U146: Saint Lucia | V146: 12607 | W146: 3.838105814
R147: Romania | S147: Europe | U147: Saint Vincent and the Grenadines | V147: 11491 | W147: 4.210860674
R148: Russia | S148: Asia | U148: Samoa | V148: 5965 | W148: 8.111818944
R149: Rwanda | S149: Africa | U149: São Tomé and Príncipe | V149: 2252 | W149: 21.48623446
R150: Saint Kitts and Nevis | S150: North Amer. | U150: Saudi Arabia | V150: 24237 | W150: 1.996410447
R151: Saint Lucia | S151: North Amer. | U151: Senegal | V151: 1871 | W151: 25.86157135
R152: Saint Vincent and the Grenadines | S152: North Amer. | U152: Serbia | V152: 10642 | W152: 4.546795715
R153: Samoa | S153: Oceania | U153: Seychelles | V153: 24726 | W153: 1.95692793
R154: San Marino | S154: Europe | U154: Sierra Leone | V154: 849 | W154: 56.99293286
R155: Sao Tome and Principe | S155: Africa | U155: Singapore | V155: 59711 | W155: 0.8103532013
R156: Saudi Arabia | S156: Asia | U156: Slovakia | V156: 23304 | W156: 2.076338826
R157: Senegal | S157: Africa | U157: Slovenia | V157: 28642 | W157: 1.689372251
R158: Serbia | S158: Europe | U158: Solomon Islands | V158: 3192 | W158: 15.15883459
R159: Seychelles | S159: Africa | U159: South Africa | V159: 10973 | W159: 4.409641848
R160: Sierra Leone | S160: Africa | U160: Spain | V160: 30626 | W160: 1.579932084
R161: Singapore | S161: Asia | U161: Sri Lanka | V161: 5674 | W161: 8.527846317
R162: Slovakia | S162: Europe | U162: Sudan & South Sudan[9] | V162: 2726 | W162: 17.75018342
R163: Slovenia | S163: Europe | U163: Suriname | V163: 9475 | W163: 5.106807388
R164: Solomon Islands | S164: Oceania | U164: Swaziland | V164: 5302 | W164: 9.1261788
R165: Somalia | S165: Africa | U165: Sweden | V165: 40394 | W165: 1.197875922
R166: South Africa | S166: Africa | U166: Switzerland | V166: 43370 | W166: 1.115679041
R167: South Sudan | S167: Africa | U167: Syria | V167: 5041 | W167: =$W$5/V167 -> 9.598690736
R168: Spain | S168: Europe | U168: Taiwan | V168: 37720 | W168: 1.282794274
R169: Sri Lanka | S169: Asia | U169: Tajikistan | V169: 2067 | W169: 23.40928882
R170: Sudan | S170: Africa | U170: Tanzania | V170: 1515 | W170: 31.93861386
R171: Suriname | S171: South Amer. | U171: Thailand | V171: 9396 | W171: 5.149744572
R172: Swaziland | S172: Africa | U172: Togo | V172: 899 | W172: 53.82313682
R173: Sweden | S173: Europe | U173: Tonga | V173: 7344 | W173: 6.588643791
R174: Switzerland | S174: Europe | U174: Trinidad and Tobago | V174: 20053 | W174: 2.412955667
R175: Syria | S175: Asia | U175: Tunisia | V175: 9478 | W175: 5.105190969
R176: Tajikistan | S176: Asia | U176: Turkey | V176: 14517 | W176: 3.333126679
R177: Tanzania | S177: Africa | U177: Turkmenistan | V177: 7846 | W177: 6.167091512
R178: Thailand | S178: Asia | U178: Tuvalu[8] | V178: 3509 | W178: 13.78939869
R179: Togo | S179: Africa | U179: Uganda | V179: 1317 | W179: 36.74031891
R180: Tonga | S180: Oceania | U180: Ukraine | V180: 7233 | W180: 6.689755288
R181: Trinidad and Tobago | S181: North Amer. | U181: UAE | V181: 48158 | W181: 1.004755181
R182: Tunisia | S182: Africa | U182: UK | V182: 36090 | W182: 1.340731505
R183: Turkey | S183: Asia | U183: USA | V183: 48387 | W183: 1
R184: Turkmenistan | S184: Asia | U184: Uruguay | V184: 15113 | W184: 3.201680672
R185: Tuvalu | S185: Oceania | U185: Uzbekistan | V185: 3302 | W185: 14.65384615
R186: Uganda | S186: Africa | U186: Vanuatu | V186: 4916 | W186: 9.84275834
R187: Ukraine | S187: Europe | U187: Venezuela | V187: 12568 | W187: 3.850015913
R188: United Arab Emirates | S188: Asia | U188: Vietnam | V188: 3359 | W188: 14.40518011
R189: United Kingdom | S189: Europe | U189: World[7] | V189: 11489 | W189: 4.211593698
R190: UK | S190: Europe | U190: Yemen | V190: 2307 | W190: 20.9739922
R191: United States | S191: North Amer. | U191: Zambia | V191: 1611 | W191: 30.03538175
R192: USA | S192: North Amer. | U192: Zimbabwe | V192: 487 | W192: 99.35728953
R193: Bermuda | S193: South Amer.
R194: Dubai | S194: Asia
R195: UAE | S195: Asia
R196: Arabian Gulf | S196: Asia
R197: Europe | S197: Europe
R198: Asia | S198: Asia
R199: Latin America | S199: South Amer.
R200: Zimbabwe | S200: Africa
... 12 more rows

Sheet Data
B1: Excel Salary Survey Data | G1: 12 | P1: PPP ? | Q1: FALSE
B3: Note: Experience data is not available for first few hundred rows. | N3: Added data >>>>>
B5: Unique ID | C5: Timestamp | D5: Your Salary | E5: clean Salary (in local currency) | F5: Currency | G5: Salary in USD | H5: Your Job Title | I5: Job Type | J5: Where do you work | K5: clean Country | L5: How many hours of a day you work on Excel | M5: Years of Experience | N5: Continent | O5: Code Hours | P5: PPP Factor | Q5: Salary
B6: ID0001 | C6: 2012-05-25T03:11:32 | D6: 5846 | E6: 5846 | F6: USD | G6: =tblSalaries[[#This Row],[clean Salary (in local currency)]]*VLOOKUP(tblSalaries[[#This Row],[Currency]],tblXrate[],2,FALSE) -> 5846 | H6: MIS Analyst | I6: Analyst | J6: India | K6: =VLOOKUP(tblSalaries[[#This Row],[Where do you work]],tblCountries[[Actual]:[Mapping]],2,FALSE) -> India | L6: 4 to 6 hours a day | N6: =VLOOKUP(K6,tblCountries[],3,0) -> Asia | O6: =VLOOKUP(tblSalaries[[#This Row],[How many hours of a day you work on Excel]],tblHours,2,0) -> 4 | P6: =VLOOKUP(tblSalaries[[#This Row],[clean Country]],tblCountries[],5,0) -> 13.09880888 | Q6: =IF($Q$1,tblSalaries[[#This Row],[PPP Factor]]*tblSalaries[[#This Row],[Salary in USD]],tblSalaries[[#This Row],[Salary in USD]]) -> 5846
B7: ID0002 | C7: 2012-05-25T03:13:13 | D7: 15000 usd | E7: 15000 | F7: USD | G7: =tblSalaries[[#This Row],[clean Salary (in local currency)]]*VLOOKUP(tblSalaries[[#This Row],[Currency]],tblXrate[],2,FALSE) -> 15000 | H7: cost control | I7: Controller | J7: europe/Croatia | K7: =VLOOKUP(tblSalaries[[#This Row],[Where do you work]],tblCountries[[Actual]:[Mapping]],2,FALSE) -> Croatia | L7: All the 8 hours baby, all the 8! | N7: =VLOOKUP(K7,tblCountries[],3,0) -> Europe | O7: =VLOOKUP(tblSalaries[[#This Row],[How many hours of a day you work on Excel]],tblHours,2,0) -> 5 | P7: =VLOOKUP(tblSalaries[[#This Row],[clean Country]],tblCountries[],5,0) -> 2.659795515 | Q7: =IF($Q$1,tblSalaries[[#This Row],[PPP Factor]]*tblSalaries[[#This Row],[Salary in USD]],tblSalaries[[#This Row],[Salary in USD]]) -> 15000
B8: ID0003 | C8: 2012-05-25T03:16:26 | D8: 58000 | E8: 58000 | F8: USD | G8: =tblSalaries[[#This Row],[clean Salary (in local currency)]]*VLOOKUP(tblSalaries[[#This Row],[Currency]],tblXrate[],2,FALSE) -> 58000 | H8: Financial Analyst | I8: Analyst | J8: USA | K8: =VLOOKUP(tblSalaries[[#This Row],[Where do you work]],tblCountries[[Actual]:[Mapping]],2,FALSE) -> USA | L8: All the 8 hours baby, all the 8! | N8: =VLOOKUP(K8,tblCountries[],3,0) -> North Amer. | O8: =VLOOKUP(tblSalaries[[#This Row],[How many hours of a day you work on Excel]],tblHours,2,0) -> 5 | P8: =VLOOKUP(tblSalaries[[#This Row],[clean Country]],tblCountries[],5,0) -> 1 | Q8: =IF($Q$1,tblSalaries[[#This Row],[PPP Factor]]*tblSalaries[[#This Row],[Salary in USD]],tblSalaries[[#This Row],[Salary in USD]]) -> 58000
B9: ID0004 | C9: 2012-05-25T03:23:42 | D9: 48000 | E9: 48000 | F9: USD | G9: =tblSalaries[[#This Row],[clean Salary (in local currency)]]*VLOOKUP(tblSalaries[[#This Row],[Currency]],tblXrate[],2,FALSE) -> 48000 | H9: Quality Control | I9: Controller | J9: Pakistan | K9: =VLOOKUP(tblSalaries[[#This Row],[Where do you work]],tblCountries[[Actual]:[Mapping]],2,FALSE) -> Pakistan | L9: 2 to 3 hours per day | N9: =VLOOKUP(K9,tblCountries[],3,0) -> Asia | O9: =VLOOKUP(tblSalaries[[#This Row],[How many hours of a day you work on Excel]],tblHours,2,0) -> 3 | P9: =VLOOKUP(tblSalaries[[#This Row],[clean Country]],tblCountries[],5,0) -> 17.36167922 | Q9: =IF($Q$1,tblSalaries[[#This Row],[PPP Factor]]*tblSalaries[[#This Row],[Salary in USD]],tblSalaries[[#This Row],[Salary in USD]]) -> 48000
B10: ID0005 | C10: 2012-05-25T03:27:04 | D10: 54000 | E10: 54000 | F10: USD | G10: =tblSalaries[[#This Row],[clean Salary (in local currency)]]*VLOOKUP(tblSalaries[[#This Row],[Currency]],tblXrate[],2,FALSE) -> 54000 | H10: Quality Engineer | I10: Engineer | J10: USA | K10: =VLOOKUP(tblSalaries[[#This Row],[Where do you work]],tblCountries[[Actual]:[Mapping]],2,FALSE) -> USA | L10: All the 8 hours baby, all the 8! | N10: =VLOOKUP(K10,tblCountries[],3,0) -> North Amer. | O10: =VLOOKUP(tblSalaries[[#This Row],[How many hours of a day you work on Excel]],tblHours,2,0) -> 5 | P10: =VLOOKUP(tblSalaries[[#This Row],[clean Country]],tblCountries[],5,0) -> 1 | Q10: =IF($Q$1,tblSalaries[[#This Row],[PPP Factor]]*tblSalaries[[#This Row],[Salary in USD]],tblSalaries[[#This Row],[Salary in USD]]) -> 54000
B11: ID0006 | C11: 2012-05-25T03:28:28 | D11: 41731 | E11: 41731 | F11: USD | G11: =tblSalaries[[#This Row],[clean Salary (in local currency)]]*VLOOKUP(tblSalaries[[#This Row],[Currency]],tblXrate[],2,FALSE) -> 41731 | H11: Analyst | I11: Analyst | J11: Iceland | K11: =VLOOKUP(tblSalaries[[#This Row],[Where do you work]],tblCountries[[Actual]:[Mapping]],2,FALSE) -> Iceland | L11: All the 8 hours baby, all the 8! | N11: =VLOOKUP(K11,tblCountries[],3,0) -> Europe | O11: =VLOOKUP(tblSalaries[[#This Row],[How many hours of a day you work on Excel]],tblHours,2,0) -> 5 | P11: =VLOOKUP(tblSalaries[[#This Row],[clean Country]],tblCountries[],5,0) -> 1.271301332 | Q11: =IF($Q$1,tblSalaries[[#This Row],[PPP Factor]]*tblSalaries[[#This Row],[Salary in USD]],tblSalaries[[#This Row],[Salary in USD]]) -> 41731
B12: ID0007 | C12: 2012-05-25T03:33:51 | D12: 145000 | E12: 145000 | F12: EUR | G12: =tblSalaries[[#This Row],[clean Salary (in local currency)]]*VLOOKUP(tblSalaries[[#This Row],[Currency]],tblXrate[],2,FALSE) -> 184207.9187 | H12: senior project manager | I12: Manager | J12: Germany | K12: =VLOOKUP(tblSalaries[[#This Row],[Where do you work]],tblCountries[[Actual]:[Mapping]],2,FALSE) -> Germany | L12: 1 or 2 hours a day | N12: =VLOOKUP(K12,tblCountries[],3,0) -> Europe | O12: =VLOOKUP(tblSalaries[[#This Row],[How many hours of a day you work on Excel]],tblHours,2,0) -> 2 | P12: =VLOOKUP(tblSalaries[[#This Row],[clean Country]],tblCountries[],5,0) -> 1.276802913 | Q12: =IF($Q$1,tblSalaries[[#This Row],[PPP Factor]]*tblSalaries[[#This Row],[Salary in USD]],tblSalaries[[#This Row],[Salary in USD]]) -> 184207.9187
B13: ID0008 | C13: 2012-05-25T03:36:37 | D13: 12000 | E13: 12000 | F13: USD | G13: =tblSalaries[[#This Row],[clean Salary (in local currency)]]*VLOOKUP(tblSalaries[[#This Row],[Currency]],tblXrate[],2,FALSE) -> 12000 | H13: Assistant SP&A | I13: Analyst | J13: Ukraine | K13: =VLOOKUP(tblSalaries[[#This Row],[Where do you work]],tblCountries[[Actual]:[Mapping]],2,FALSE) -> Ukraine | L13: All the 8 hours baby, all the 8! | N13: =VLOOKUP(K13,tblCountries[],3,0) -> Europe | O13: =VLOOKUP(tblSalaries[[#This Row],[How many hours of a day you work on Excel]],tblHours,2,0) -> 5 | P13: =VLOOKUP(tblSalaries[[#This Row],[clean Country]],tblCountries[],5,0) -> 6.689755288 | Q13: =IF($Q$1,tblSalaries[[#This Row],[PPP Factor]]*tblSalaries[[#This Row],[Salary in USD]],tblSalaries[[#This Row],[Salary in USD]]) -> 12000
B14: ID0009 | C14: 2012-05-25T03:37:17 | D14: 44000 $ | E14: 44000 | F14: USD | G14: =tblSalaries[[#This Row],[clean Salary (in local currency)]]*VLOOKUP(tblSalaries[[#This Row],[Currency]],tblXrate[],2,FALSE) -> 44000 | H14: CFO | I14: CXO or Top Mgmt. | J14: Portugal | K14: =VLOOKUP(tblSalaries[[#This Row],[Where do you work]],tblCountries[[Actual]:[Mapping]],2,FALSE) -> Portugal | L14: 1 or 2 hours a day | N14: =VLOOKUP(K14,tblCountries[],3,0) -> Europe | O14: =VLOOKUP(tblSalaries[[#This Row],[How many hours of a day you work on Excel]],tblHours,2,0) -> 2 | P14: =VLOOKUP(tblSalaries[[#This Row],[clean Country]],tblCountries[],5,0) -> 2.071272634 | Q14: =IF($Q$1,tblSalaries[[#This Row],[PPP Factor]]*tblSalaries[[#This Row],[Salary in USD]],tblSalaries[[#This Row],[Salary in USD]]) -> 44000
B15: ID0010 | C15: 2012-05-25T03:38:57 | D15: PKR 8,000 | E15: 1152000 | F15: PKR | G15: =tblSalaries[[#This Row],[clean Salary (in local currency)]]*VLOOKUP(tblSalaries[[#This Row],[Currency]],tblXrate[],2,FALSE) -> 12227.4302 | H15: Audit Trainee | I15: Accountant | J15: Pakistan | K15: =VLOOKUP(tblSalaries[[#This Row],[Where do you work]],tblCountries[[Actual]:[Mapping]],2,FALSE) -> Pakistan | L15: All the 8 hours baby, all the 8! | N15: =VLOOKUP(K15,tblCountries[],3,0) -> Asia | O15: =VLOOKUP(tblSalaries[[#This Row],[How many hours of a day you work on Excel]],tblHours,2,0) -> 5 | P15: =VLOOKUP(tblSalaries[[#This Row],[clean Country]],tblCountries[],5,0) -> 17.36167922 | Q15: =IF($Q$1,tblSalaries[[#This Row],[PPP Factor]]*tblSalaries[[#This Row],[Salary in USD]],tblSalaries[[#This Row],[Salary in USD]]) -> 12227.4302
B16: ID0011 | C16: 2012-05-25T03:43:45 | D16: â‚¬ 51650 | E16: 51650 | F16: EUR | G16: =tblSalaries[[#This Row],[clean Salary (in local currency)]]*VLOOKUP(tblSalaries[[#This Row],[Currency]],tblXrate[],2,FALSE) -> 65616.13102 | H16: Training Specialist | I16: Specialist | J16: Ireland | K16: =VLOOKUP(tblSalaries[[#This Row],[Where do you work]],tblCountries[[Actual]:[Mapping]],2,FALSE) -> Ireland | L16: 2 to 3 hours per day | N16: =VLOOKUP(K16,tblCountries[],3,0) -> Europe | O16: =VLOOKUP(tblSalaries[[#This Row],[How many hours of a day you work on Excel]],tblHours,2,0) -> 3 | P16: =VLOOKUP(tblSalaries[[#This Row],[clean Country]],tblCountries[],5,0) -> 1.220691743 | Q16: =IF($Q$1,tblSalaries[[#This Row],[PPP Factor]]*tblSalaries[[#This Row],[Salary in USD]],tblSalaries[[#This Row],[Salary in USD]]) -> 65616.13102
B17: ID0012 | C17: 2012-05-25T03:43:56 | D17: 14000 | E17: 14000 | F17: USD | G17: =tblSalaries[[#This Row],[clean Salary (in local currency)]]*VLOOKUP(tblSalaries[[#This Row],[Currency]],tblXrate[],2,FALSE) -> 14000 | H17: quality engineer | I17: Engineer | J17: Hungary | K17: =VLOOKUP(tblSalaries[[#This Row],[Where do you work]],tblCountries[[Actual]:[Mapping]],2,FALSE) -> Hungary | L17: 4 to 6 hours a day | N17: =VLOOKUP(K17,tblCountries[],3,0) -> Europe | O17: =VLOOKUP(tblSalaries[[#This Row],[How many hours of a day you work on Excel]],tblHours,2,0) -> 4 | P17: =VLOOKUP(tblSalaries[[#This Row],[clean Country]],tblCountries[],5,0) -> 2.469858609 | Q17: =IF($Q$1,tblSalaries[[#This Row],[PPP Factor]]*tblSalaries[[#This Row],[Salary in USD]],tblSalaries[[#This Row],[Salary in USD]]) -> 14000
B18: ID0013 | C18: 2012-05-25T03:48:53 | D18: 749000 INR | E18: 749000 | F18: INR | G18: =tblSalaries[[#This Row],[clean Salary (in local currency)]]*VLOOKUP(tblSalaries[[#This Row],[Currency]],tblXrate[],2,FALSE) -> 13338.1296 | H18: Senion Analyst | I18: Analyst | J18: India | K18: =VLOOKUP(tblSalaries[[#This Row],[Where do you work]],tblCountries[[Actual]:[Mapping]],2,FALSE) -> India | L18: All the 8 hours baby, all the 8! | N18: =VLOOKUP(K18,tblCountries[],3,0) -> Asia | O18: =VLOOKUP(tblSalaries[[#This Row],[How many hours of a day you work on Excel]],tblHours,2,0) -> 5 | P18: =VLOOKUP(tblSalaries[[#This Row],[clean Country]],tblCountries[],5,0) -> 13.09880888 | Q18: =IF($Q$1,tblSalaries[[#This Row],[PPP Factor]]*tblSalaries[[#This Row],[Salary in USD]],tblSalaries[[#This Row],[Salary in USD]]) -> 13338.1296
B19: ID0014 | C19: 2012-05-25T03:50:58 | D19: 49000 | E19: 49000 | F19: USD | G19: =tblSalaries[[#This Row],[clean Salary (in local currency)]]*VLOOKUP(tblSalaries[[#This Row],[Currency]],tblXrate[],2,FALSE) -> 49000 | H19: business analyst | I19: Analyst | J19: USA | K19: =VLOOKUP(tblSalaries[[#This Row],[Where do you work]],tblCountries[[Actual]:[Mapping]],2,FALSE) -> USA | L19: All the 8 hours baby, all the 8! | N19: =VLOOKUP(K19,tblCountries[],3,0) -> North Amer. | O19: =VLOOKUP(tblSalaries[[#This Row],[How many hours of a day you work on Excel]],tblHours,2,0) -> 5 | P19: =VLOOKUP(tblSalaries[[#This Row],[clean Country]],tblCountries[],5,0) -> 1 | Q19: =IF($Q$1,tblSalaries[[#This Row],[PPP Factor]]*tblSalaries[[#This Row],[Salary in USD]],tblSalaries[[#This Row],[Salary in USD]]) -> 49000
B20: ID0015 | C20: 2012-05-25T03:53:22 | D20: 85000 | E20: 85000 | F20: USD | G20: =tblSalaries[[#This Row],[clean Salary (in local currency)]]*VLOOKUP(tblSalaries[[#This Row],[Currency]],tblXrate[],2,FALSE) -> 85000 | H20: Project Engineer | I20: Engineer | J20: USA | K20: =VLOOKUP(tblSalaries[[#This Row],[Where do you work]],tblCountries[[Actual]:[Mapping]],2,FALSE) -> USA | L20: 1 or 2 hours a day | N20: =VLOOKUP(K20,tblCountries[],3,0) -> North Amer. | O20: =VLOOKUP(tblSalaries[[#This Row],[How many hours of a day you work on Excel]],tblHours,2,0) -> 2 | P20: =VLOOKUP(tblSalaries[[#This Row],[clean Country]],tblCountries[],5,0) -> 1 | Q20: =IF($Q$1,tblSalaries[[#This Row],[PPP Factor]]*tblSalaries[[#This Row],[Salary in USD]],tblSalaries[[#This Row],[Salary in USD]]) -> 85000
B21: ID0016 | C21: 2012-05-25T03:56:40 | D21: 75000 | E21: 75000 | F21: USD | G21: =tblSalaries[[#This Row],[clean Salary (in local currency)]]*VLOOKUP(tblSalaries[[#This Row],[Currency]],tblXrate[],2,FALSE) -> 75000 | H21: Sr Project Engineer | I21: Engineer | J21: USA | K21: =VLOOKUP(tblSalaries[[#This Row],[Where do you work]],tblCountries[[Actual]:[Mapping]],2,FALSE) -> USA | L21: All the 8 hours baby, all the 8! | N21: =VLOOKUP(K21,tblCountries[],3,0) -> North Amer. | O21: =VLOOKUP(tblSalaries[[#This Row],[How many hours of a day you work on Excel]],tblHours,2,0) -> 5 | P21: =VLOOKUP(tblSalaries[[#This Row],[clean Country]],tblCountries[],5,0) -> 1 | Q21: =IF($Q$1,tblSalaries[[#This Row],[PPP Factor]]*tblSalaries[[#This Row],[Salary in USD]],tblSalaries[[#This Row],[Salary in USD]]) -> 75000
B22: ID0017 | C22: 2012-05-25T04:10:11 | D22: 107000 | E22: 107000 | F22: USD | G22: =tblSalaries[[#This Row],[clean Salary (in local currency)]]*VLOOKUP(tblSalaries[[#This Row],[Currency]],tblXrate[],2,FALSE) -> 107000 | H22: Business Development | I22: Manager | J22: Switzerland | K22: =VLOOKUP(tblSalaries[[#This Row],[Where do you work]],tblCountries[[Actual]:[Mapping]],2,FALSE) -> Switzerland | L22: 4 to 6 hours a day | N22: =VLOOKUP(K22,tblCountries[],3,0) -> Europe | O22: =VLOOKUP(tblSalaries[[#This Row],[How many hours of a day you work on Excel]],tblHours,2,0) -> 4 | P22: =VLOOKUP(tblSalaries[[#This Row],[clean Country]],tblCountries[],5,0) -> 1.115679041 | Q22: =IF($Q$1,tblSalaries[[#This Row],[PPP Factor]]*tblSalaries[[#This Row],[Salary in USD]],tblSalaries[[#This Row],[Salary in USD]]) -> 107000
B23: ID0018 | C23: 2012-05-25T04:10:44 | D23: 45000 | E23: 45000 | F23: USD | G23: =tblSalaries[[#This Row],[clean Salary (in local currency)]]*VLOOKUP(tblSalaries[[#This Row],[Currency]],tblXrate[],2,FALSE) -> 45000 | H23: Excel Report Writer | I23: Reporting | J23: South Africa | K23: =VLOOKUP(tblSalaries[[#This Row],[Where do you work]],tblCountries[[Actual]:[Mapping]],2,FALSE) -> South Africa | L23: All the 8 hours baby, all the 8! | N23: =VLOOKUP(K23,tblCountries[],3,0) -> Africa | O23: =VLOOKUP(tblSalaries[[#This Row],[How many hours of a day you work on Excel]],tblHours,2,0) -> 5 | P23: =VLOOKUP(tblSalaries[[#This Row],[clean Country]],tblCountries[],5,0) -> 4.409641848 | Q23: =IF($Q$1,tblSalaries[[#This Row],[PPP Factor]]*tblSalaries[[#This Row],[Salary in USD]],tblSalaries[[#This Row],[Salary in USD]]) -> 45000
B24: ID0019 | C24: 2012-05-25T04:16:32 | D24: 550000 | E24: 550000 | F24: INR | G24: =tblSalaries[[#This Row],[clean Salary (in local currency)]]*VLOOKUP(tblSalaries[[#This Row],[Currency]],tblXrate[],2,FALSE) -> 9794.354178 | H24: AGM | I24: Manager | J24: India | K24: =VLOOKUP(tblSalaries[[#This Row],[Where do you work]],tblCountries[[Actual]:[Mapping]],2,FALSE) -> India | L24: 2 to 3 hours per day | N24: =VLOOKUP(K24,tblCountries[],3,0) -> Asia | O24: =VLOOKUP(tblSalaries[[#This Row],[How many hours of a day you work on Excel]],tblHours,2,0) -> 3 | P24: =VLOOKUP(tblSalaries[[#This Row],[clean Country]],tblCountries[],5,0) -> 13.09880888 | Q24: =IF($Q$1,tblSalaries[[#This Row],[PPP Factor]]*tblSalaries[[#This Row],[Salary in USD]],tblSalaries[[#This Row],[Salary in USD]]) -> 9794.354178
B25: ID0020 | C25: 2012-05-25T04:19:22 | D25: 50000 | E25: 50000 | F25: USD | G25: =tblSalaries[[#This Row],[clean Salary (in local currency)]]*VLOOKUP(tblSalaries[[#This Row],[Currency]],tblXrate[],2,FALSE) -> 50000 | H25: GM | I25: Manager | J25: India | K25: =VLOOKUP(tblSalaries[[#This Row],[Where do you work]],tblCountries[[Actual]:[Mapping]],2,FALSE) -> India | L25: 1 or 2 hours a day | N25: =VLOOKUP(K25,tblCountries[],3,0) -> Asia | O25: =VLOOKUP(tblSalaries[[#This Row],[How many hours of a day you work on Excel]],tblHours,2,0) -> 2 | P25: =VLOOKUP(tblSalaries[[#This Row],[clean Country]],tblCountries[],5,0) -> 13.09880888 | Q25: =IF($Q$1,tblSalaries[[#This Row],[PPP Factor]]*tblSalaries[[#This Row],[Salary in USD]],tblSalaries[[#This Row],[Salary in USD]]) -> 50000
B26: ID0021 | C26: 2012-05-25T04:24:01 | D26: 13500 | E26: 13500 | F26: USD | G26: =tblSalaries[[#This Row],[clean Salary (in local currency)]]*VLOOKUP(tblSalaries[[#This Row],[Currency]],tblXrate[],2,FALSE) -> 13500 | H26: DSE Co-ordinator | I26: Manager | J26: India | K26: =VLOOKUP(tblSalaries[[#This Row],[Where do you work]],tblCountries[[Actual]:[Mapping]],2,FALSE) -> India | L26: 4 to 6 hours a day | N26: =VLOOKUP(K26,tblCountries[],3,0) -> Asia | O26: =VLOOKUP(tblSalaries[[#This Row],[How many hours of a day you work on Excel]],tblHours,2,0) -> 4 | P26: =VLOOKUP(tblSalaries[[#This Row],[clean Country]],tblCountries[],5,0) -> 13.09880888 | Q26: =IF($Q$1,tblSalaries[[#This Row],[PPP Factor]]*tblSalaries[[#This Row],[Salary in USD]],tblSalaries[[#This Row],[Salary in USD]]) -> 13500
B27: ID0022 | C27: 2012-05-25T04:24:12 | D27: 96000 | E27: 96000 | F27: USD | G27: =tblSalaries[[#This Row],[clean Salary (in local currency)]]*VLOOKUP(tblSalaries[[#This Row],[Currency]],tblXrate[],2,FALSE) -> 96000 | H27: Analyst | I27: Analyst | J27: USA | K27: =VLOOKUP(tblSalaries[[#This Row],[Where do you work]],tblCountries[[Actual]:[Mapping]],2,FALSE) -> USA | L27: 2 to 3 hours per day | N27: =VLOOKUP(K27,tblCountries[],3,0) -> North Amer. | O27: =VLOOKUP(tblSalaries[[#This Row],[How many hours of a day you work on Excel]],tblHours,2,0) -> 3 | P27: =VLOOKUP(tblSalaries[[#This Row],[clean Country]],tblCountries[],5,0) -> 1 | Q27: =IF($Q$1,tblSalaries[[#This Row],[PPP Factor]]*tblSalaries[[#This Row],[Salary in USD]],tblSalaries[[#This Row],[Salary in USD]]) -> 96000
B28: ID0023 | C28: 2012-05-25T04:31:41 | D28: 1000000 | E28: 1000000 | F28: INR | G28: =tblSalaries[[#This Row],[clean Salary (in local currency)]]*VLOOKUP(tblSalaries[[#This Row],[Currency]],tblXrate[],2,FALSE) -> 17807.91669 | H28: Manager | I28: Manager | J28: India | K28: =VLOOKUP(tblSalaries[[#This Row],[Where do you work]],tblCountries[[Actual]:[Mapping]],2,FALSE) -> India | L28: 4 to 6 hours a day | N28: =VLOOKUP(K28,tblCountries[],3,0) -> Asia | O28: =VLOOKUP(tblSalaries[[#This Row],[How many hours of a day you work on Excel]],tblHours,2,0) -> 4 | P28: =VLOOKUP(tblSalaries[[#This Row],[clean Country]],tblCountries[],5,0) -> 13.09880888 | Q28: =IF($Q$1,tblSalaries[[#This Row],[PPP Factor]]*tblSalaries[[#This Row],[Salary in USD]],tblSalaries[[#This Row],[Salary in USD]]) -> 17807.91669
B29: ID0024 | C29: 2012-05-25T04:32:49 | D29: 75000 | E29: 75000 | F29: USD | G29: =tblSalaries[[#This Row],[clean Salary (in local currency)]]*VLOOKUP(tblSalaries[[#This Row],[Currency]],tblXrate[],2,FALSE) -> 75000 | H29: Marketing Director | I29: CXO or Top Mgmt. | J29: USA | K29: =VLOOKUP(tblSalaries[[#This Row],[Where do you work]],tblCountries[[Actual]:[Mapping]],2,FALSE) -> USA | L29: 4 to 6 hours a day | N29: =VLOOKUP(K29,tblCountries[],3,0) -> North Amer. | O29: =VLOOKUP(tblSalaries[[#This Row],[How many hours of a day you work on Excel]],tblHours,2,0) -> 4 | P29: =VLOOKUP(tblSalaries[[#This Row],[clean Country]],tblCountries[],5,0) -> 1 | Q29: =IF($Q$1,tblSalaries[[#This Row],[PPP Factor]]*tblSalaries[[#This Row],[Salary in USD]],tblSalaries[[#This Row],[Salary in USD]]) -> 75000
B30: ID0025 | C30: 2012-05-25T04:43:51 | D30: 40000 us | E30: 40000 | F30: USD | G30: =tblSalaries[[#This Row],[clean Salary (in local currency)]]*VLOOKUP(tblSalaries[[#This Row],[Currency]],tblXrate[],2,FALSE) -> 40000 | H30: sales and marketing | I30: Manager | J30: USA | K30: =VLOOKUP(tblSalaries[[#This Row],[Where do you work]],tblCountries[[Actual]:[Mapping]],2,FALSE) -> USA | L30: 2 to 3 hours per day | N30: =VLOOKUP(K30,tblCountries[],3,0) -> North Amer. | O30: =VLOOKUP(tblSalaries[[#This Row],[How many hours of a day you work on Excel]],tblHours,2,0) -> 3 | P30: =VLOOKUP(tblSalaries[[#This Row],[clean Country]],tblCountries[],5,0) -> 1 | Q30: =IF($Q$1,tblSalaries[[#This Row],[PPP Factor]]*tblSalaries[[#This Row],[Salary in USD]],tblSalaries[[#This Row],[Salary in USD]]) -> 40000
B31: ID0026 | C31: 2012-05-25T04:45:01 | D31: 60000 | E31: 60000 | F31: USD | G31: =tblSalaries[[#This Row],[clean Salary (in local currency)]]*VLOOKUP(tblSalaries[[#This Row],[Currency]],tblXrate[],2,FALSE) -> 60000 | H31: Analyst II | I31: Analyst | J31: USA | K31: =VLOOKUP(tblSalaries[[#This Row],[Where do you work]],tblCountries[[Actual]:[Mapping]],2,FALSE) -> USA | L31: All the 8 hours baby, all the 8! | N31: =VLOOKUP(K31,tblCountries[],3,0) -> North Amer. | O31: =VLOOKUP(tblSalaries[[#This Row],[How many hours of a day you work on Excel]],tblHours,2,0) -> 5 | P31: =VLOOKUP(tblSalaries[[#This Row],[clean Country]],tblCountries[],5,0) -> 1 | Q31: =IF($Q$1,tblSalaries[[#This Row],[PPP Factor]]*tblSalaries[[#This Row],[Salary in USD]],tblSalaries[[#This Row],[Salary in USD]]) -> 60000
B32: ID0028 | C32: 2012-05-25T04:48:33 | D32: 2700 | E32: 32400 | F32: EUR | G32: =tblSalaries[[#This Row],[clean Salary (in local currency)]]*VLOOKUP(tblSalaries[[#This Row],[Currency]],tblXrate[],2,FALSE) -> 41160.94182 | H32: Project Leader | I32: Manager | J32: Belgium | K32: =VLOOKUP(tblSalaries[[#This Row],[Where do you work]],tblCountries[[Actual]:[Mapping]],2,FALSE) -> Belgium | L32: 4 to 6 hours a day | N32: =VLOOKUP(K32,tblCountries[],3,0) -> Europe | O32: =VLOOKUP(tblSalaries[[#This Row],[How many hours of a day you work on Excel]],tblHours,2,0) -> 4 | P32: =VLOOKUP(tblSalaries[[#This Row],[clean Country]],tblCountries[],5,0) -> 1.282216392 | Q32: =IF($Q$1,tblSalaries[[#This Row],[PPP Factor]]*tblSalaries[[#This Row],[Salary in USD]],tblSalaries[[#This Row],[Salary in USD]]) -> 41160.94182
B33: ID0029 | C33: 2012-05-25T04:52:23 | D33: 900000 INR | E33: 900000 | F33: INR | G33: =tblSalaries[[#This Row],[clean Salary (in local currency)]]*VLOOKUP(tblSalaries[[#This Row],[Currency]],tblXrate[],2,FALSE) -> 16027.12502 | H33: Applications Engineer | I33: Engineer | J33: India | K33: =VLOOKUP(tblSalaries[[#This Row],[Where do you work]],tblCountries[[Actual]:[Mapping]],2,FALSE) -> India | L33: 1 or 2 hours a day | N33: =VLOOKUP(K33,tblCountries[],3,0) -> Asia | O33: =VLOOKUP(tblSalaries[[#This Row],[How many hours of a day you work on Excel]],tblHours,2,0) -> 2 | P33: =VLOOKUP(tblSalaries[[#This Row],[clean Country]],tblCountries[],5,0) -> 13.09880888 | Q33: =IF($Q$1,tblSalaries[[#This Row],[PPP Factor]]*tblSalaries[[#This Row],[Salary in USD]],tblSalaries[[#This Row],[Salary in USD]]) -> 16027.12502
B34: ID0030 | C34: 2012-05-25T04:55:35 | D34: Rs 600000 | E34: 600000 | F34: INR | G34: =tblSalaries[[#This Row],[clean Salary (in local currency)]]*VLOOKUP(tblSalaries[[#This Row],[Currency]],tblXrate[],2,FALSE) -> 10684.75001 | H34: strategy manager | I34: Manager | J34: India | K34: =VLOOKUP(tblSalaries[[#This Row],[Where do you work]],tblCountries[[Actual]:[Mapping]],2,FALSE) -> India | L34: 4 to 6 hours a day | N34: =VLOOKUP(K34,tblCountries[],3,0) -> Asia | O34: =VLOOKUP(tblSalaries[[#This Row],[How many hours of a day you work on Excel]],tblHours,2,0) -> 4 | P34: =VLOOKUP(tblSalaries[[#This Row],[clean Country]],tblCountries[],5,0) -> 13.09880888 | Q34: =IF($Q$1,tblSalaries[[#This Row],[PPP Factor]]*tblSalaries[[#This Row],[Salary in USD]],tblSalaries[[#This Row],[Salary in USD]]) -> 10684.75001
B35: ID0031 | C35: 2012-05-25T04:55:48 | D35: 41000 | E35: 41000 | F35: USD | G35: =tblSalaries[[#This Row],[clean Salary (in local currency)]]*VLOOKUP(tblSalaries[[#This Row],[Currency]],tblXrate[],2,FALSE) -> 41000 | H35: Chief of the department of public budget analisis and forecasting | I35: Manager | J35: Russia | K35: =VLOOKUP(tblSalaries[[#This Row],[Where do you work]],tblCountries[[Actual]:[Mapping]],2,FALSE) -> Russia | L35: All the 8 hours baby, all the 8! | N35: =VLOOKUP(K35,tblCountries[],3,0) -> Asia | O35: =VLOOKUP(tblSalaries[[#This Row],[How many hours of a day you work on Excel]],tblHours,2,0) -> 5 | P35: =VLOOKUP(tblSalaries[[#This Row],[clean Country]],tblCountries[],5,0) -> 2.891192639 | Q35: =IF($Q$1,tblSalaries[[#This Row],[PPP Factor]]*tblSalaries[[#This Row],[Salary in USD]],tblSalaries[[#This Row],[Salary in USD]]) -> 41000
B36: ID0032 | C36: 2012-05-25T04:57:06 | D36: 360000 INR | E36: 360000 | F36: INR | G36: =tblSalaries[[#This Row],[clean Salary (in local currency)]]*VLOOKUP(tblSalaries[[#This Row],[Currency]],tblXrate[],2,FALSE) -> 6410.850007 | H36: Specialist | I36: Specialist | J36: India | K36: =VLOOKUP(tblSalaries[[#This Row],[Where do you work]],tblCountries[[Actual]:[Mapping]],2,FALSE) -> India | L36: 4 to 6 hours a day | N36: =VLOOKUP(K36,tblCountries[],3,0) -> Asia | O36: =VLOOKUP(tblSalaries[[#This Row],[How many hours of a day you work on Excel]],tblHours,2,0) -> 4 | P36: =VLOOKUP(tblSalaries[[#This Row],[clean Country]],tblCountries[],5,0) -> 13.09880888 | Q36: =IF($Q$1,tblSalaries[[#This Row],[PPP Factor]]*tblSalaries[[#This Row],[Salary in USD]],tblSalaries[[#This Row],[Salary in USD]]) -> 6410.850007
B37: ID0033 | C37: 2012-05-25T04:58:45 | D37: Â£35000 | E37: 35000 | F37: GBP | G37: =tblSalaries[[#This Row],[clean Salary (in local currency)]]*VLOOKUP(tblSalaries[[#This Row],[Currency]],tblXrate[],2,FALSE) -> 55166.23952 | H37: Management Information Analyst | I37: Analyst | J37: UK | K37: =VLOOKUP(tblSalaries[[#This Row],[Where do you work]],tblCountries[[Actual]:[Mapping]],2,FALSE) -> UK | L37: All the 8 hours baby, all the 8! | N37: =VLOOKUP(K37,tblCountries[],3,0) -> Europe | O37: =VLOOKUP(tblSalaries[[#This Row],[How many hours of a day you work on Excel]],tblHours,2,0) -> 5 | P37: =VLOOKUP(tblSalaries[[#This Row],[clean Country]],tblCountries[],5,0) -> 1.340731505 | Q37: =IF($Q$1,tblSalaries[[#This Row],[PPP Factor]]*tblSalaries[[#This Row],[Salary in USD]],tblSalaries[[#This Row],[Salary in USD]]) -> 55166.23952
B38: ID0035 | C38: 2012-05-25T05:01:09 | D38: 1600 $ | E38: 19200 | F38: USD | G38: =tblSalaries[[#This Row],[clean Salary (in local currency)]]*VLOOKUP(tblSalaries[[#This Row],[Currency]],tblXrate[],2,FALSE) -> 19200 | H38: Analyst | I38: Analyst | J38: Poland | K38: =VLOOKUP(tblSalaries[[#This Row],[Where do you work]],tblCountries[[Actual]:[Mapping]],2,FALSE) -> Poland | L38: 2 to 3 hours per day | N38: =VLOOKUP(K38,tblCountries[],3,0) -> Europe | O38: =VLOOKUP(tblSalaries[[#This Row],[How many hours of a day you work on Excel]],tblHours,2,0) -> 3 | P38: =VLOOKUP(tblSalaries[[#This Row],[clean Country]],tblCountries[],5,0) -> 2.379610505 | Q38: =IF($Q$1,tblSalaries[[#This Row],[PPP Factor]]*tblSalaries[[#This Row],[Salary in USD]],tblSalaries[[#This Row],[Salary in USD]]) -> 19200
B39: ID0036 | C39: 2012-05-25T05:04:12 | D39: 500000 | E39: 500000 | F39: INR | G39: =tblSalaries[[#This Row],[clean Salary (in local currency)]]*VLOOKUP(tblSalaries[[#This Row],[Currency]],tblXrate[],2,FALSE) -> 8903.958344 | H39: Senior Consultant | I39: Consultant | J39: India | K39: =VLOOKUP(tblSalaries[[#This Row],[Where do you work]],tblCountries[[Actual]:[Mapping]],2,FALSE) -> India | L39: All the 8 hours baby, all the 8! | N39: =VLOOKUP(K39,tblCountries[],3,0) -> Asia | O39: =VLOOKUP(tblSalaries[[#This Row],[How many hours of a day you work on Excel]],tblHours,2,0) -> 5 | P39: =VLOOKUP(tblSalaries[[#This Row],[clean Country]],tblCountries[],5,0) -> 13.09880888 | Q39: =IF($Q$1,tblSalaries[[#This Row],[PPP Factor]]*tblSalaries[[#This Row],[Salary in USD]],tblSalaries[[#This Row],[Salary in USD]]) -> 8903.958344
B40: ID0037 | C40: 2012-05-25T05:07:31 | D40: 150000 | E40: 150000 | F40: USD | G40: =tblSalaries[[#This Row],[clean Salary (in local currency)]]*VLOOKUP(tblSalaries[[#This Row],[Currency]],tblXrate[],2,FALSE) -> 150000 | H40: Portfolio Manager | I40: Manager | J40: USA | K40: =VLOOKUP(tblSalaries[[#This Row],[Where do you work]],tblCountries[[Actual]:[Mapping]],2,FALSE) -> USA | L40: 2 to 3 hours per day | N40: =VLOOKUP(K40,tblCountries[],3,0) -> North Amer. | O40: =VLOOKUP(tblSalaries[[#This Row],[How many hours of a day you work on Excel]],tblHours,2,0) -> 3 | P40: =VLOOKUP(tblSalaries[[#This Row],[clean Country]],tblCountries[],5,0) -> 1 | Q40: =IF($Q$1,tblSalaries[[#This Row],[PPP Factor]]*tblSalaries[[#This Row],[Salary in USD]],tblSalaries[[#This Row],[Salary in USD]]) -> 150000
B41: ID0038 | C41: 2012-05-25T05:10:29 | D41: 69000 | E41: 69000 | F41: USD | G41: =tblSalaries[[#This Row],[clean Salary (in local currency)]]*VLOOKUP(tblSalaries[[#This Row],[Currency]],tblXrate[],2,FALSE) -> 69000 | H41: Design Engineer | I41: Engineer | J41: USA | K41: =VLOOKUP(tblSalaries[[#This Row],[Where do you work]],tblCountries[[Actual]:[Mapping]],2,FALSE) -> USA | L41: 4 to 6 hours a day | N41: =VLOOKUP(K41,tblCountries[],3,0) -> North Amer. | O41: =VLOOKUP(tblSalaries[[#This Row],[How many hours of a day you work on Excel]],tblHours,2,0) -> 4 | P41: =VLOOKUP(tblSalaries[[#This Row],[clean Country]],tblCountries[],5,0) -> 1 | Q41: =IF($Q$1,tblSalaries[[#This Row],[PPP Factor]]*tblSalaries[[#This Row],[Salary in USD]],tblSalaries[[#This Row],[Salary in USD]]) -> 69000
B42: ID0039 | C42: 2012-05-25T05:11:37 | D42: 30000 | E42: 30000 | F42: USD | G42: =tblSalaries[[#This Row],[clean Salary (in local currency)]]*VLOOKUP(tblSalaries[[#This Row],[Currency]],tblXrate[],2,FALSE) -> 30000 | H42: Academic Advisor | I42: Consultant | J42: USA | K42: =VLOOKUP(tblSalaries[[#This Row],[Where do you work]],tblCountries[[Actual]:[Mapping]],2,FALSE) -> USA | L42: 2 to 3 hours per day | N42: =VLOOKUP(K42,tblCountries[],3,0) -> North Amer. | O42: =VLOOKUP(tblSalaries[[#This Row],[How many hours of a day you work on Excel]],tblHours,2,0) -> 3 | P42: =VLOOKUP(tblSalaries[[#This Row],[clean Country]],tblCountries[],5,0) -> 1 | Q42: =IF($Q$1,tblSalaries[[#This Row],[PPP Factor]]*tblSalaries[[#This Row],[Salary in USD]],tblSalaries[[#This Row],[Salary in USD]]) -> 30000
B43: ID0040 | C43: 2012-05-25T05:13:50 | D43: Rs. 400000 | E43: 400000 | F43: INR | G43: =tblSalaries[[#This Row],[clean Salary (in local currency)]]*VLOOKUP(tblSalaries[[#This Row],[Currency]],tblXrate[],2,FALSE) -> 7123.166675 | H43: Coordination | I43: Manager | J43: India | K43: =VLOOKUP(tblSalaries[[#This Row],[Where do you work]],tblCountries[[Actual]:[Mapping]],2,FALSE) -> India | L43: 4 to 6 hours a day | N43: =VLOOKUP(K43,tblCountries[],3,0) -> Asia | O43: =VLOOKUP(tblSalaries[[#This Row],[How many hours of a day you work on Excel]],tblHours,2,0) -> 4 | P43: =VLOOKUP(tblSalaries[[#This Row],[clean Country]],tblCountries[],5,0) -> 13.09880888 | Q43: =IF($Q$1,tblSalaries[[#This Row],[PPP Factor]]*tblSalaries[[#This Row],[Salary in USD]],tblSalaries[[#This Row],[Salary in USD]]) -> 7123.166675
B44: ID0041 | C44: 2012-05-25T05:18:48 | D44: 70000 | E44: 70000 | F44: AUD | G44: =tblSalaries[[#This Row],[clean Salary (in local currency)]]*VLOOKUP(tblSalaries[[#This Row],[Currency]],tblXrate[],2,FALSE) -> 71393.67595 | H44: consultant | I44: Consultant | J44: Australia | K44: =VLOOKUP(tblSalaries[[#This Row],[Where do you work]],tblCountries[[Actual]:[Mapping]],2,FALSE) -> Australia | L44: 2 to 3 hours per day | N44: =VLOOKUP(K44,tblCountries[],3,0) -> Oceania | O44: =VLOOKUP(tblSalaries[[#This Row],[How many hours of a day you work on Excel]],tblHours,2,0) -> 3 | P44: =VLOOKUP(tblSalaries[[#This Row],[clean Country]],tblCountries[],5,0) -> 1.202639559 | Q44: =IF($Q$1,tblSalaries[[#This Row],[PPP Factor]]*tblSalaries[[#This Row],[Salary in USD]],tblSalaries[[#This Row],[Salary in USD]]) -> 71393.67595
B45: ID0042 | C45: 2012-05-25T05:20:10 | D45: 14500 | E45: 14500 | F45: USD | G45: =tblSalaries[[#This Row],[clean Salary (in local currency)]]*VLOOKUP(tblSalaries[[#This Row],[Currency]],tblXrate[],2,FALSE) -> 14500 | H45: Business Analsyt | I45: Analyst | J45: India | K45: =VLOOKUP(tblSalaries[[#This Row],[Where do you work]],tblCountries[[Actual]:[Mapping]],2,FALSE) -> India | L45: 4 to 6 hours a day | N45: =VLOOKUP(K45,tblCountries[],3,0) -> Asia | O45: =VLOOKUP(tblSalaries[[#This Row],[How many hours of a day you work on Excel]],tblHours,2,0) -> 4 | P45: =VLOOKUP(tblSalaries[[#This Row],[clean Country]],tblCountries[],5,0) -> 13.09880888 | Q45: =IF($Q$1,tblSalaries[[#This Row],[PPP Factor]]*tblSalaries[[#This Row],[Salary in USD]],tblSalaries[[#This Row],[Salary in USD]]) -> 14500
B46: ID0043 | C46: 2012-05-25T05:30:39 | D46: 70000 | E46: 70000 | F46: CAD | G46: =tblSalaries[[#This Row],[clean Salary (in local currency)]]*VLOOKUP(tblSalaries[[#This Row],[Currency]],tblXrate[],2,FALSE) -> 68835.30661 | H46: Product Engineer | I46: Engineer | J46: Canada | K46: =VLOOKUP(tblSalaries[[#This Row],[Where do you work]],tblCountries[[Actual]:[Mapping]],2,FALSE) -> Canada | L46: 2 to 3 hours per day | N46: =VLOOKUP(K46,tblCountries[],3,0) -> North Amer. | O46: =VLOOKUP(tblSalaries[[#This Row],[How many hours of a day you work on Excel]],tblHours,2,0) -> 3 | P46: =VLOOKUP(tblSalaries[[#This Row],[clean Country]],tblCountries[],5,0) -> 1.193532473 | Q46: =IF($Q$1,tblSalaries[[#This Row],[PPP Factor]]*tblSalaries[[#This Row],[Salary in USD]],tblSalaries[[#This Row],[Salary in USD]]) -> 68835.30661
B47: ID0044 | C47: 2012-05-25T05:35:28 | D47: 58000 | E47: 58000 | F47: USD | G47: =tblSalaries[[#This Row],[clean Salary (in local currency)]]*VLOOKUP(tblSalaries[[#This Row],[Currency]],tblXrate[],2,FALSE) -> 58000 | H47: Senior Accountant | I47: Accountant | J47: USA | K47: =VLOOKUP(tblSalaries[[#This Row],[Where do you work]],tblCountries[[Actual]:[Mapping]],2,FALSE) -> USA | L47: 4 to 6 hours a day | N47: =VLOOKUP(K47,tblCountries[],3,0) -> North Amer. | O47: =VLOOKUP(tblSalaries[[#This Row],[How many hours of a day you work on Excel]],tblHours,2,0) -> 4 | P47: =VLOOKUP(tblSalaries[[#This Row],[clean Country]],tblCountries[],5,0) -> 1 | Q47: =IF($Q$1,tblSalaries[[#This Row],[PPP Factor]]*tblSalaries[[#This Row],[Salary in USD]],tblSalaries[[#This Row],[Salary in USD]]) -> 58000
B48: ID0045 | C48: 2012-05-25T05:45:01 | D48: 90000 | E48: 90000 | F48: USD | G48: =tblSalaries[[#This Row],[clean Salary (in local currency)]]*VLOOKUP(tblSalaries[[#This Row],[Currency]],tblXrate[],2,FALSE) -> 90000 | H48: Scientist | I48: Misc. | J48: USA | K48: =VLOOKUP(tblSalaries[[#This Row],[Where do you work]],tblCountries[[Actual]:[Mapping]],2,FALSE) -> USA | L48: 1 or 2 hours a day | N48: =VLOOKUP(K48,tblCountries[],3,0) -> North Amer. | O48: =VLOOKUP(tblSalaries[[#This Row],[How many hours of a day you work on Excel]],tblHours,2,0) -> 2 | P48: =VLOOKUP(tblSalaries[[#This Row],[clean Country]],tblCountries[],5,0) -> 1 | Q48: =IF($Q$1,tblSalaries[[#This Row],[PPP Factor]]*tblSalaries[[#This Row],[Salary in USD]],tblSalaries[[#This Row],[Salary in USD]]) -> 90000
B49: ID0046 | C49: 2012-05-25T05:46:47 | D49: 800000 | E49: 800000 | F49: INR | G49: =tblSalaries[[#This Row],[clean Salary (in local currency)]]*VLOOKUP(tblSalaries[[#This Row],[Currency]],tblXrate[],2,FALSE) -> 14246.33335 | H49: Team Lead | I49: Manager | J49: India | K49: =VLOOKUP(tblSalaries[[#This Row],[Where do you work]],tblCountries[[Actual]:[Mapping]],2,FALSE) -> India | L49: 2 to 3 hours per day | N49: =VLOOKUP(K49,tblCountries[],3,0) -> Asia | O49: =VLOOKUP(tblSalaries[[#This Row],[How many hours of a day you work on Excel]],tblHours,2,0) -> 3 | P49: =VLOOKUP(tblSalaries[[#This Row],[clean Country]],tblCountries[],5,0) -> 13.09880888 | Q49: =IF($Q$1,tblSalaries[[#This Row],[PPP Factor]]*tblSalaries[[#This Row],[Salary in USD]],tblSalaries[[#This Row],[Salary in USD]]) -> 14246.33335
B50: ID0047 | C50: 2012-05-25T05:47:10 | D50: 32000 | E50: 32000 | F50: GBP | G50: =tblSalaries[[#This Row],[clean Salary (in local currency)]]*VLOOKUP(tblSalaries[[#This Row],[Currency]],tblXrate[],2,FALSE) -> 50437.70471 | H50: Senior intelligence analyst | I50: Analyst | J50: UK | K50: =VLOOKUP(tblSalaries[[#This Row],[Where do you work]],tblCountries[[Actual]:[Mapping]],2,FALSE) -> UK | L50: 4 to 6 hours a day | N50: =VLOOKUP(K50,tblCountries[],3,0) -> Europe | O50: =VLOOKUP(tblSalaries[[#This Row],[How many hours of a day you work on Excel]],tblHours,2,0) -> 4 | P50: =VLOOKUP(tblSalaries[[#This Row],[clean Country]],tblCountries[],5,0) -> 1.340731505 | Q50: =IF($Q$1,tblSalaries[[#This Row],[PPP Factor]]*tblSalaries[[#This Row],[Salary in USD]],tblSalaries[[#This Row],[Salary in USD]]) -> 50437.70471
B51: ID0048 | C51: 2012-05-25T05:47:52 | D51: 1000 | E51: 12000 | F51: USD | G51: =tblSalaries[[#This Row],[clean Salary (in local currency)]]*VLOOKUP(tblSalaries[[#This Row],[Currency]],tblXrate[],2,FALSE) -> 12000 | H51: Freelance consultant | I51: Consultant | J51: USA | K51: =VLOOKUP(tblSalaries[[#This Row],[Where do you work]],tblCountries[[Actual]:[Mapping]],2,FALSE) -> USA | L51: 1 or 2 hours a day | N51: =VLOOKUP(K51,tblCountries[],3,0) -> North Amer. | O51: =VLOOKUP(tblSalaries[[#This Row],[How many hours of a day you work on Excel]],tblHours,2,0) -> 2 | P51: =VLOOKUP(tblSalaries[[#This Row],[clean Country]],tblCountries[],5,0) -> 1 | Q51: =IF($Q$1,tblSalaries[[#This Row],[PPP Factor]]*tblSalaries[[#This Row],[Salary in USD]],tblSalaries[[#This Row],[Salary in USD]]) -> 12000
B52: ID0049 | C52: 2012-05-25T06:04:42 | D52: â‚¬ 45 | E52: 45000 | F52: EUR | G52: =tblSalaries[[#This Row],[clean Salary (in local currency)]]*VLOOKUP(tblSalaries[[#This Row],[Currency]],tblXrate[],2,FALSE) -> 57167.97475 | H52: Online Traffic Manager / Web Analist | I52: Manager | J52: The Netherlands | K52: =VLOOKUP(tblSalaries[[#This Row],[Where do you work]],tblCountries[[Actual]:[Mapping]],2,FALSE) -> Netherlands | L52: 4 to 6 hours a day | N52: =VLOOKUP(K52,tblCountries[],3,0) -> Europe | O52: =VLOOKUP(tblSalaries[[#This Row],[How many hours of a day you work on Excel]],tblHours,2,0) -> 4 | P52: =VLOOKUP(tblSalaries[[#This Row],[clean Country]],tblCountries[],5,0) -> 1.147073466 | Q52: =IF($Q$1,tblSalaries[[#This Row],[PPP Factor]]*tblSalaries[[#This Row],[Salary in USD]],tblSalaries[[#This Row],[Salary in USD]]) -> 57167.97475
B53: ID0050 | C53: 2012-05-25T06:04:57 | D53: 100000 USD | E53: 100000 | F53: USD | G53: =tblSalaries[[#This Row],[clean Salary (in local currency)]]*VLOOKUP(tblSalaries[[#This Row],[Currency]],tblXrate[],2,FALSE) -> 100000 | H53: Seinor Financial Analyst | I53: Analyst | J53: Germany | K53: =VLOOKUP(tblSalaries[[#This Row],[Where do you work]],tblCountries[[Actual]:[Mapping]],2,FALSE) -> Germany | L53: All the 8 hours baby, all the 8! | N53: =VLOOKUP(K53,tblCountries[],3,0) -> Europe | O53: =VLOOKUP(tblSalaries[[#This Row],[How many hours of a day you work on Excel]],tblHours,2,0) -> 5 | P53: =VLOOKUP(tblSalaries[[#This Row],[clean Country]],tblCountries[],5,0) -> 1.276802913 | Q53: =IF($Q$1,tblSalaries[[#This Row],[PPP Factor]]*tblSalaries[[#This Row],[Salary in USD]],tblSalaries[[#This Row],[Salary in USD]]) -> 100000
B54: ID0051 | C54: 2012-05-25T06:05:17 | D54: 57000 | E54: 57000 | F54: USD | G54: =tblSalaries[[#This Row],[clean Salary (in local currency)]]*VLOOKUP(tblSalaries[[#This Row],[Currency]],tblXrate[],2,FALSE) -> 57000 | H54: Senior Accounting Supervisor | I54: Accountant | J54: USA | K54: =VLOOKUP(tblSalaries[[#This Row],[Where do you work]],tblCountries[[Actual]:[Mapping]],2,FALSE) -> USA | L54: 2 to 3 hours per day | N54: =VLOOKUP(K54,tblCountries[],3,0) -> North Amer. | O54: =VLOOKUP(tblSalaries[[#This Row],[How many hours of a day you work on Excel]],tblHours,2,0) -> 3 | P54: =VLOOKUP(tblSalaries[[#This Row],[clean Country]],tblCountries[],5,0) -> 1 | Q54: =IF($Q$1,tblSalaries[[#This Row],[PPP Factor]]*tblSalaries[[#This Row],[Salary in USD]],tblSalaries[[#This Row],[Salary in USD]]) -> 57000
B55: ID0052 | C55: 2012-05-25T06:07:15 | D55: 40000 | E55: 40000 | F55: GBP | G55: =tblSalaries[[#This Row],[clean Salary (in local currency)]]*VLOOKUP(tblSalaries[[#This Row],[Currency]],tblXrate[],2,FALSE) -> 63047.13088 | H55: Senior Accountant | I55: Accountant | J55: UK | K55: =VLOOKUP(tblSalaries[[#This Row],[Where do you work]],tblCountries[[Actual]:[Mapping]],2,FALSE) -> UK | L55: 4 to 6 hours a day | N55: =VLOOKUP(K55,tblCountries[],3,0) -> Europe | O55: =VLOOKUP(tblSalaries[[#This Row],[How many hours of a day you work on Excel]],tblHours,2,0) -> 4 | P55: =VLOOKUP(tblSalaries[[#This Row],[clean Country]],tblCountries[],5,0) -> 1.340731505 | Q55: =IF($Q$1,tblSalaries[[#This Row],[PPP Factor]]*tblSalaries[[#This Row],[Salary in USD]],tblSalaries[[#This Row],[Salary in USD]]) -> 63047.13088
B56: ID0053 | C56: 2012-05-25T06:09:44 | D56: 2000 Euros | E56: 24000 | F56: EUR | G56: =tblSalaries[[#This Row],[clean Salary (in local currency)]]*VLOOKUP(tblSalaries[[#This Row],[Currency]],tblXrate[],2,FALSE) -> 30489.58654 | H56: PPC Manager | I56: Manager | J56: Germany | K56: =VLOOKUP(tblSalaries[[#This Row],[Where do you work]],tblCountries[[Actual]:[Mapping]],2,FALSE) -> Germany | L56: All the 8 hours baby, all the 8! | N56: =VLOOKUP(K56,tblCountries[],3,0) -> Europe | O56: =VLOOKUP(tblSalaries[[#This Row],[How many hours of a day you work on Excel]],tblHours,2,0) -> 5 | P56: =VLOOKUP(tblSalaries[[#This Row],[clean Country]],tblCountries[],5,0) -> 1.276802913 | Q56: =IF($Q$1,tblSalaries[[#This Row],[PPP Factor]]*tblSalaries[[#This Row],[Salary in USD]],tblSalaries[[#This Row],[Salary in USD]]) -> 30489.58654
B57: ID0054 | C57: 2012-05-25T06:10:18 | D57: 4320 | E57: 4320 | F57: USD | G57: =tblSalaries[[#This Row],[clean Salary (in local currency)]]*VLOOKUP(tblSalaries[[#This Row],[Currency]],tblXrate[],2,FALSE) -> 4320 | H57: Financial Planner | I57: Accountant | J57: India | K57: =VLOOKUP(tblSalaries[[#This Row],[Where do you work]],tblCountries[[Actual]:[Mapping]],2,FALSE) -> India | L57: 2 to 3 hours per day | N57: =VLOOKUP(K57,tblCountries[],3,0) -> Asia | O57: =VLOOKUP(tblSalaries[[#This Row],[How many hours of a day you work on Excel]],tblHours,2,0) -> 3 | P57: =VLOOKUP(tblSalaries[[#This Row],[clean Country]],tblCountries[],5,0) -> 13.09880888 | Q57: =IF($Q$1,tblSalaries[[#This Row],[PPP Factor]]*tblSalaries[[#This Row],[Salary in USD]],tblSalaries[[#This Row],[Salary in USD]]) -> 4320
B58: ID0055 | C58: 2012-05-25T06:15:42 | D58: 62000 | E58: 62000 | F58: USD | G58: =tblSalaries[[#This Row],[clean Salary (in local currency)]]*VLOOKUP(tblSalaries[[#This Row],[Currency]],tblXrate[],2,FALSE) -> 62000 | H58: Analyst | I58: Analyst | J58: USA | K58: =VLOOKUP(tblSalaries[[#This Row],[Where do you work]],tblCountries[[Actual]:[Mapping]],2,FALSE) -> USA | L58: 4 to 6 hours a day | N58: =VLOOKUP(K58,tblCountries[],3,0) -> North Amer. | O58: =VLOOKUP(tblSalaries[[#This Row],[How many hours of a day you work on Excel]],tblHours,2,0) -> 4 | P58: =VLOOKUP(tblSalaries[[#This Row],[clean Country]],tblCountries[],5,0) -> 1 | Q58: =IF($Q$1,tblSalaries[[#This Row],[PPP Factor]]*tblSalaries[[#This Row],[Salary in USD]],tblSalaries[[#This Row],[Salary in USD]]) -> 62000
B59: ID0056 | C59: 2012-05-25T06:26:44 | D59: 7500 | E59: 7500 | F59: USD | G59: =tblSalaries[[#This Row],[clean Salary (in local currency)]]*VLOOKUP(tblSalaries[[#This Row],[Currency]],tblXrate[],2,FALSE) -> 7500 | H59: Analyst | I59: Analyst | J59: India | K59: =VLOOKUP(tblSalaries[[#This Row],[Where do you work]],tblCountries[[Actual]:[Mapping]],2,FALSE) -> India | L59: 4 to 6 hours a day | N59: =VLOOKUP(K59,tblCountries[],3,0) -> Asia | O59: =VLOOKUP(tblSalaries[[#This Row],[How many hours of a day you work on Excel]],tblHours,2,0) -> 4 | P59: =VLOOKUP(tblSalaries[[#This Row],[clean Country]],tblCountries[],5,0) -> 13.09880888 | Q59: =IF($Q$1,tblSalaries[[#This Row],[PPP Factor]]*tblSalaries[[#This Row],[Salary in USD]],tblSalaries[[#This Row],[Salary in USD]]) -> 7500
B60: ID0057 | C60: 2012-05-25T06:27:29 | D60: Â£18000 | E60: 18000 | F60: GBP | G60: =tblSalaries[[#This Row],[clean Salary (in local currency)]]*VLOOKUP(tblSalaries[[#This Row],[Currency]],tblXrate[],2,FALSE) -> 28371.2089 | H60: Building Design and Performance Researcher | I60: Manager | J60: UK | K60: =VLOOKUP(tblSalaries[[#This Row],[Where do you work]],tblCountries[[Actual]:[Mapping]],2,FALSE) -> UK | L60: 1 or 2 hours a day | N60: =VLOOKUP(K60,tblCountries[],3,0) -> Europe | O60: =VLOOKUP(tblSalaries[[#This Row],[How many hours of a day you work on Excel]],tblHours,2,0) -> 2 | P60: =VLOOKUP(tblSalaries[[#This Row],[clean Country]],tblCountries[],5,0) -> 1.340731505 | Q60: =IF($Q$1,tblSalaries[[#This Row],[PPP Factor]]*tblSalaries[[#This Row],[Salary in USD]],tblSalaries[[#This Row],[Salary in USD]]) -> 28371.2089
B61: ID0058 | C61: 2012-05-25T06:49:25 | D61: 49000 | E61: 49000 | F61: EUR | G61: =tblSalaries[[#This Row],[clean Salary (in local currency)]]*VLOOKUP(tblSalaries[[#This Row],[Currency]],tblXrate[],2,FALSE) -> 62249.57251 | H61: Project leader | I61: Manager | J61: France | K61: =VLOOKUP(tblSalaries[[#This Row],[Where do you work]],tblCountries[[Actual]:[Mapping]],2,FALSE) -> France | L61: 2 to 3 hours per day | N61: =VLOOKUP(K61,tblCountries[],3,0) -> Europe | O61: =VLOOKUP(tblSalaries[[#This Row],[How many hours of a day you work on Excel]],tblHours,2,0) -> 3 | P61: =VLOOKUP(tblSalaries[[#This Row],[clean Country]],tblCountries[],5,0) -> 1.376351121 | Q61: =IF($Q$1,tblSalaries[[#This Row],[PPP Factor]]*tblSalaries[[#This Row],[Salary in USD]],tblSalaries[[#This Row],[Salary in USD]]) -> 62249.57251
B62: ID0059 | C62: 2012-05-25T06:57:52 | D62: 38000 | E62: 38000 | F62: USD | G62: =tblSalaries[[#This Row],[clean Salary (in local currency)]]*VLOOKUP(tblSalaries[[#This Row],[Currency]],tblXrate[],2,FALSE) -> 38000 | H62: Senior Analyst | I62: Analyst | J62: USA | K62: =VLOOKUP(tblSalaries[[#This Row],[Where do you work]],tblCountries[[Actual]:[Mapping]],2,FALSE) -> USA | L62: 4 to 6 hours a day | N62: =VLOOKUP(K62,tblCountries[],3,0) -> North Amer. | O62: =VLOOKUP(tblSalaries[[#This Row],[How many hours of a day you work on Excel]],tblHours,2,0) -> 4 | P62: =VLOOKUP(tblSalaries[[#This Row],[clean Country]],tblCountries[],5,0) -> 1 | Q62: =IF($Q$1,tblSalaries[[#This Row],[PPP Factor]]*tblSalaries[[#This Row],[Salary in USD]],tblSalaries[[#This Row],[Salary in USD]]) -> 38000
B63: ID0060 | C63: 2012-05-25T07:00:52 | D63: 41000 | E63: 41000 | F63: USD | G63: =tblSalaries[[#This Row],[clean Salary (in local currency)]]*VLOOKUP(tblSalaries[[#This Row],[Currency]],tblXrate[],2,FALSE) -> 41000 | H63: Specialist | I63: Specialist | J63: USA | K63: =VLOOKUP(tblSalaries[[#This Row],[Where do you work]],tblCountries[[Actual]:[Mapping]],2,FALSE) -> USA | L63: 4 to 6 hours a day | N63: =VLOOKUP(K63,tblCountries[],3,0) -> North Amer. | O63: =VLOOKUP(tblSalaries[[#This Row],[How many hours of a day you work on Excel]],tblHours,2,0) -> 4 | P63: =VLOOKUP(tblSalaries[[#This Row],[clean Country]],tblCountries[],5,0) -> 1 | Q63: =IF($Q$1,tblSalaries[[#This Row],[PPP Factor]]*tblSalaries[[#This Row],[Salary in USD]],tblSalaries[[#This Row],[Salary in USD]]) -> 41000
B64: ID0061 | C64: 2012-05-25T07:11:09 | D64: 68000 | E64: 68000 | F64: USD | G64: =tblSalaries[[#This Row],[clean Salary (in local currency)]]*VLOOKUP(tblSalaries[[#This Row],[Currency]],tblXrate[],2,FALSE) -> 68000 | H64: Engineering Data Analyst | I64: Analyst | J64: USA | K64: =VLOOKUP(tblSalaries[[#This Row],[Where do you work]],tblCountries[[Actual]:[Mapping]],2,FALSE) -> USA | L64: All the 8 hours baby, all the 8! | N64: =VLOOKUP(K64,tblCountries[],3,0) -> North Amer. | O64: =VLOOKUP(tblSalaries[[#This Row],[How many hours of a day you work on Excel]],tblHours,2,0) -> 5 | P64: =VLOOKUP(tblSalaries[[#This Row],[clean Country]],tblCountries[],5,0) -> 1 | Q64: =IF($Q$1,tblSalaries[[#This Row],[PPP Factor]]*tblSalaries[[#This Row],[Salary in USD]],tblSalaries[[#This Row],[Salary in USD]]) -> 68000
B65: ID0062 | C65: 2012-05-25T07:13:31 | D65: 56000 | E65: 56000 | F65: CAD | G65: =tblSalaries[[#This Row],[clean Salary (in local currency)]]*VLOOKUP(tblSalaries[[#This Row],[Currency]],tblXrate[],2,FALSE) -> 55068.24529 | H65: Sales Analyst | I65: Analyst | J65: CANADA | K65: =VLOOKUP(tblSalaries[[#This Row],[Where do you work]],tblCountries[[Actual]:[Mapping]],2,FALSE) -> Canada | L65: All the 8 hours baby, all the 8! | N65: =VLOOKUP(K65,tblCountries[],3,0) -> North Amer. | O65: =VLOOKUP(tblSalaries[[#This Row],[How many hours of a day you work on Excel]],tblHours,2,0) -> 5 | P65: =VLOOKUP(tblSalaries[[#This Row],[clean Country]],tblCountries[],5,0) -> 1.193532473 | Q65: =IF($Q$1,tblSalaries[[#This Row],[PPP Factor]]*tblSalaries[[#This Row],[Salary in USD]],tblSalaries[[#This Row],[Salary in USD]]) -> 55068.24529
B66: ID0063 | C66: 2012-05-25T07:15:12 | D66: 61000 | E66: 61000 | F66: USD | G66: =tblSalaries[[#This Row],[clean Salary (in local currency)]]*VLOOKUP(tblSalaries[[#This Row],[Currency]],tblXrate[],2,FALSE) -> 61000 | H66: Coordinator Of Costa and Buget | I66: Manager | J66: Brasil | K66: =VLOOKUP(tblSalaries[[#This Row],[Where do you work]],tblCountries[[Actual]:[Mapping]],2,FALSE) -> Brazil | L66: All the 8 hours baby, all the 8! | N66: =VLOOKUP(K66,tblCountries[],3,0) -> South Amer. | O66: =VLOOKUP(tblSalaries[[#This Row],[How many hours of a day you work on Excel]],tblHours,2,0) -> 5 | P66: =VLOOKUP(tblSalaries[[#This Row],[clean Country]],tblCountries[],5,0) -> 4.111394341 | Q66: =IF($Q$1,tblSalaries[[#This Row],[PPP Factor]]*tblSalaries[[#This Row],[Salary in USD]],tblSalaries[[#This Row],[Salary in USD]]) -> 61000
B67: ID0064 | C67: 2012-05-25T07:18:53 | D67: 43000 | E67: 43000 | F67: EUR | G67: =tblSalaries[[#This Row],[clean Salary (in local currency)]]*VLOOKUP(tblSalaries[[#This Row],[Currency]],tblXrate[],2,FALSE) -> 54627.17588 | H67: SAP consultant | I67: Consultant | J67: FR | K67: =VLOOKUP(tblSalaries[[#This Row],[Where do you work]],tblCountries[[Actual]:[Mapping]],2,FALSE) -> France | L67: 4 to 6 hours a day | N67: =VLOOKUP(K67,tblCountries[],3,0) -> Europe | O67: =VLOOKUP(tblSalaries[[#This Row],[How many hours of a day you work on Excel]],tblHours,2,0) -> 4 | P67: =VLOOKUP(tblSalaries[[#This Row],[clean Country]],tblCountries[],5,0) -> 1.376351121 | Q67: =IF($Q$1,tblSalaries[[#This Row],[PPP Factor]]*tblSalaries[[#This Row],[Salary in USD]],tblSalaries[[#This Row],[Salary in USD]]) -> 54627.17588
B68: ID0065 | C68: 2012-05-25T07:20:08 | D68: 85000 | E68: 85000 | F68: USD | G68: =tblSalaries[[#This Row],[clean Salary (in local currency)]]*VLOOKUP(tblSalaries[[#This Row],[Currency]],tblXrate[],2,FALSE) -> 85000 | H68: Manager | I68: Manager | J68: USA | K68: =VLOOKUP(tblSalaries[[#This Row],[Where do you work]],tblCountries[[Actual]:[Mapping]],2,FALSE) -> USA | L68: 4 to 6 hours a day | N68: =VLOOKUP(K68,tblCountries[],3,0) -> North Amer. | O68: =VLOOKUP(tblSalaries[[#This Row],[How many hours of a day you work on Excel]],tblHours,2,0) -> 4 | P68: =VLOOKUP(tblSalaries[[#This Row],[clean Country]],tblCountries[],5,0) -> 1 | Q68: =IF($Q$1,tblSalaries[[#This Row],[PPP Factor]]*tblSalaries[[#This Row],[Salary in USD]],tblSalaries[[#This Row],[Salary in USD]]) -> 85000
B69: ID0066 | C69: 2012-05-25T07:21:18 | D69: â‚¬ 38000 | E69: 38000 | F69: EUR | G69: =tblSalaries[[#This Row],[clean Salary (in local currency)]]*VLOOKUP(tblSalaries[[#This Row],[Currency]],tblXrate[],2,FALSE) -> 48275.17868 | H69: busines analist | I69: Analyst | J69: The Netherlands | K69: =VLOOKUP(tblSalaries[[#This Row],[Where do you work]],tblCountries[[Actual]:[Mapping]],2,FALSE) -> Netherlands | L69: 1 or 2 hours a day | N69: =VLOOKUP(K69,tblCountries[],3,0) -> Europe | O69: =VLOOKUP(tblSalaries[[#This Row],[How many hours of a day you work on Excel]],tblHours,2,0) -> 2 | P69: =VLOOKUP(tblSalaries[[#This Row],[clean Country]],tblCountries[],5,0) -> 1.147073466 | Q69: =IF($Q$1,tblSalaries[[#This Row],[PPP Factor]]*tblSalaries[[#This Row],[Salary in USD]],tblSalaries[[#This Row],[Salary in USD]]) -> 48275.17868
B70: ID0067 | C70: 2012-05-25T07:25:12 | D70: 85000 | E70: 85000 | F70: AUD | G70: =tblSalaries[[#This Row],[clean Salary (in local currency)]]*VLOOKUP(tblSalaries[[#This Row],[Currency]],tblXrate[],2,FALSE) -> 86692.32079 | H70: head of data | I70: CXO or Top Mgmt. | J70: Australia | K70: =VLOOKUP(tblSalaries[[#This Row],[Where do you work]],tblCountries[[Actual]:[Mapping]],2,FALSE) -> Australia | L70: 4 to 6 hours a day | N70: =VLOOKUP(K70,tblCountries[],3,0) -> Oceania | O70: =VLOOKUP(tblSalaries[[#This Row],[How many hours of a day you work on Excel]],tblHours,2,0) -> 4 | P70: =VLOOKUP(tblSalaries[[#This Row],[clean Country]],tblCountries[],5,0) -> 1.202639559 | Q70: =IF($Q$1,tblSalaries[[#This Row],[PPP Factor]]*tblSalaries[[#This Row],[Salary in USD]],tblSalaries[[#This Row],[Salary in USD]]) -> 86692.32079
B71: ID0068 | C71: 2012-05-25T07:29:12 | D71: 85087 | E71: 85087 | F71: USD | G71: =tblSalaries[[#This Row],[clean Salary (in local currency)]]*VLOOKUP(tblSalaries[[#This Row],[Currency]],tblXrate[],2,FALSE) -> 85087 | H71: Business Systems Analyst | I71: Analyst | J71: USA | K71: =VLOOKUP(tblSalaries[[#This Row],[Where do you work]],tblCountries[[Actual]:[Mapping]],2,FALSE) -> USA | L71: 2 to 3 hours per day | N71: =VLOOKUP(K71,tblCountries[],3,0) -> North Amer. | O71: =VLOOKUP(tblSalaries[[#This Row],[How many hours of a day you work on Excel]],tblHours,2,0) -> 3 | P71: =VLOOKUP(tblSalaries[[#This Row],[clean Country]],tblCountries[],5,0) -> 1 | Q71: =IF($Q$1,tblSalaries[[#This Row],[PPP Factor]]*tblSalaries[[#This Row],[Salary in USD]],tblSalaries[[#This Row],[Salary in USD]]) -> 85087
B72: ID0069 | C72: 2012-05-25T07:38:22 | D72: 50000 | E72: 50000 | F72: USD | G72: =tblSalaries[[#This Row],[clean Salary (in local currency)]]*VLOOKUP(tblSalaries[[#This Row],[Currency]],tblXrate[],2,FALSE) -> 50000 | H72: Financial Analyst II | I72: Analyst | J72: USA | K72: =VLOOKUP(tblSalaries[[#This Row],[Where do you work]],tblCountries[[Actual]:[Mapping]],2,FALSE) -> USA | L72: All the 8 hours baby, all the 8! | N72: =VLOOKUP(K72,tblCountries[],3,0) -> North Amer. | O72: =VLOOKUP(tblSalaries[[#This Row],[How many hours of a day you work on Excel]],tblHours,2,0) -> 5 | P72: =VLOOKUP(tblSalaries[[#This Row],[clean Country]],tblCountries[],5,0) -> 1 | Q72: =IF($Q$1,tblSalaries[[#This Row],[PPP Factor]]*tblSalaries[[#This Row],[Salary in USD]],tblSalaries[[#This Row],[Salary in USD]]) -> 50000
B73: ID0070 | C73: 2012-05-25T07:47:00 | D73: 100000 | E73: 100000 | F73: USD | G73: =tblSalaries[[#This Row],[clean Salary (in local currency)]]*VLOOKUP(tblSalaries[[#This Row],[Currency]],tblXrate[],2,FALSE) -> 100000 | H73: Mngr MI | I73: Manager | J73: RSA | K73: =VLOOKUP(tblSalaries[[#This Row],[Where do you work]],tblCountries[[Actual]:[Mapping]],2,FALSE) -> South Africa | L73: 4 to 6 hours a day | N73: =VLOOKUP(K73,tblCountries[],3,0) -> Africa | O73: =VLOOKUP(tblSalaries[[#This Row],[How many hours of a day you work on Excel]],tblHours,2,0) -> 4 | P73: =VLOOKUP(tblSalaries[[#This Row],[clean Country]],tblCountries[],5,0) -> 4.409641848 | Q73: =IF($Q$1,tblSalaries[[#This Row],[PPP Factor]]*tblSalaries[[#This Row],[Salary in USD]],tblSalaries[[#This Row],[Salary in USD]]) -> 100000
B74: ID0071 | C74: 2012-05-25T22:49:00 | D74: 57000 | E74: 57000 | F74: USD | G74: =tblSalaries[[#This Row],[clean Salary (in local currency)]]*VLOOKUP(tblSalaries[[#This Row],[Currency]],tblXrate[],2,FALSE) -> 57000 | H74: sales analyst | I74: Analyst | J74: USA | K74: =VLOOKUP(tblSalaries[[#This Row],[Where do you work]],tblCountries[[Actual]:[Mapping]],2,FALSE) -> USA | L74: 4 to 6 hours a day | N74: =VLOOKUP(K74,tblCountries[],3,0) -> North Amer. | O74: =VLOOKUP(tblSalaries[[#This Row],[How many hours of a day you work on Excel]],tblHours,2,0) -> 4 | P74: =VLOOKUP(tblSalaries[[#This Row],[clean Country]],tblCountries[],5,0) -> 1 | Q74: =IF($Q$1,tblSalaries[[#This Row],[PPP Factor]]*tblSalaries[[#This Row],[Salary in USD]],tblSalaries[[#This Row],[Salary in USD]]) -> 57000
B75: ID0072 | C75: 2012-05-25T22:52:28 | D75: 75000 | E75: 75000 | F75: USD | G75: =tblSalaries[[#This Row],[clean Salary (in local currency)]]*VLOOKUP(tblSalaries[[#This Row],[Currency]],tblXrate[],2,FALSE) -> 75000 | H75: Consumer Research Program Manager | I75: Manager | J75: USA | K75: =VLOOKUP(tblSalaries[[#This Row],[Where do you work]],tblCountries[[Actual]:[Mapping]],2,FALSE) -> USA | L75: All the 8 hours baby, all the 8! | N75: =VLOOKUP(K75,tblCountries[],3,0) -> North Amer. | O75: =VLOOKUP(tblSalaries[[#This Row],[How many hours of a day you work on Excel]],tblHours,2,0) -> 5 | P75: =VLOOKUP(tblSalaries[[#This Row],[clean Country]],tblCountries[],5,0) -> 1 | Q75: =IF($Q$1,tblSalaries[[#This Row],[PPP Factor]]*tblSalaries[[#This Row],[Salary in USD]],tblSalaries[[#This Row],[Salary in USD]]) -> 75000
B76: ID0073 | C76: 2012-05-25T22:59:05 | D76: $AUD100000 | E76: 100000 | F76: AUD | G76: =tblSalaries[[#This Row],[clean Salary (in local currency)]]*VLOOKUP(tblSalaries[[#This Row],[Currency]],tblXrate[],2,FALSE) -> 101990.9656 | H76: technical trainer | I76: Manager | J76: Australia | K76: =VLOOKUP(tblSalaries[[#This Row],[Where do you work]],tblCountries[[Actual]:[Mapping]],2,FALSE) -> Australia | L76: 4 to 6 hours a day | N76: =VLOOKUP(K76,tblCountries[],3,0) -> Oceania | O76: =VLOOKUP(tblSalaries[[#This Row],[How many hours of a day you work on Excel]],tblHours,2,0) -> 4 | P76: =VLOOKUP(tblSalaries[[#This Row],[clean Country]],tblCountries[],5,0) -> 1.202639559 | Q76: =IF($Q$1,tblSalaries[[#This Row],[PPP Factor]]*tblSalaries[[#This Row],[Salary in USD]],tblSalaries[[#This Row],[Salary in USD]]) -> 101990.9656
B77: ID0074 | C77: 2012-05-25T23:01:20 | D77: 2785 | E77: 33420 | F77: USD | G77: =tblSalaries[[#This Row],[clean Salary (in local currency)]]*VLOOKUP(tblSalaries[[#This Row],[Currency]],tblXrate[],2,FALSE) -> 33420 | H77: Process Flow Coordinator | I77: Manager | J77: United Arab Emirates | K77: =VLOOKUP(tblSalaries[[#This Row],[Where do you work]],tblCountries[[Actual]:[Mapping]],2,FALSE) -> UAE | L77: All the 8 hours baby, all the 8! | N77: =VLOOKUP(K77,tblCountries[],3,0) -> Asia | O77: =VLOOKUP(tblSalaries[[#This Row],[How many hours of a day you work on Excel]],tblHours,2,0) -> 5 | P77: =VLOOKUP(tblSalaries[[#This Row],[clean Country]],tblCountries[],5,0) -> 1.004755181 | Q77: =IF($Q$1,tblSalaries[[#This Row],[PPP Factor]]*tblSalaries[[#This Row],[Salary in USD]],tblSalaries[[#This Row],[Salary in USD]]) -> 33420
B78: ID0075 | C78: 2012-05-25T23:03:00 | D78: 59450 | E78: 59450 | F78: CAD | G78: =tblSalaries[[#This Row],[clean Salary (in local currency)]]*VLOOKUP(tblSalaries[[#This Row],[Currency]],tblXrate[],2,FALSE) -> 58460.84254 | H78: Process Improvement Specialist | I78: Specialist | J78: Canada | K78: =VLOOKUP(tblSalaries[[#This Row],[Where do you work]],tblCountries[[Actual]:[Mapping]],2,FALSE) -> Canada | L78: All the 8 hours baby, all the 8! | N78: =VLOOKUP(K78,tblCountries[],3,0) -> North Amer. | O78: =VLOOKUP(tblSalaries[[#This Row],[How many hours of a day you work on Excel]],tblHours,2,0) -> 5 | P78: =VLOOKUP(tblSalaries[[#This Row],[clean Country]],tblCountries[],5,0) -> 1.193532473 | Q78: =IF($Q$1,tblSalaries[[#This Row],[PPP Factor]]*tblSalaries[[#This Row],[Salary in USD]],tblSalaries[[#This Row],[Salary in USD]]) -> 58460.84254
B79: ID0076 | C79: 2012-05-25T23:12:29 | D79: 15000 | E79: 15000 | F79: USD | G79: =tblSalaries[[#This Row],[clean Salary (in local currency)]]*VLOOKUP(tblSalaries[[#This Row],[Currency]],tblXrate[],2,FALSE) -> 15000 | H79: Excel Programmer Consultant | I79: Consultant | J79: USA | K79: =VLOOKUP(tblSalaries[[#This Row],[Where do you work]],tblCountries[[Actual]:[Mapping]],2,FALSE) -> USA | L79: All the 8 hours baby, all the 8! | N79: =VLOOKUP(K79,tblCountries[],3,0) -> North Amer. | O79: =VLOOKUP(tblSalaries[[#This Row],[How many hours of a day you work on Excel]],tblHours,2,0) -> 5 | P79: =VLOOKUP(tblSalaries[[#This Row],[clean Country]],tblCountries[],5,0) -> 1 | Q79: =IF($Q$1,tblSalaries[[#This Row],[PPP Factor]]*tblSalaries[[#This Row],[Salary in USD]],tblSalaries[[#This Row],[Salary in USD]]) -> 15000
B80: ID0077 | C80: 2012-05-25T23:15:34 | D80: US $60,000 | E80: 60000 | F80: USD | G80: =tblSalaries[[#This Row],[clean Salary (in local currency)]]*VLOOKUP(tblSalaries[[#This Row],[Currency]],tblXrate[],2,FALSE) -> 60000 | H80: Statistical Analyst | I80: Analyst | J80: Canada | K80: =VLOOKUP(tblSalaries[[#This Row],[Where do you work]],tblCountries[[Actual]:[Mapping]],2,FALSE) -> Canada | L80: 1 or 2 hours a day | N80: =VLOOKUP(K80,tblCountries[],3,0) -> North Amer. | O80: =VLOOKUP(tblSalaries[[#This Row],[How many hours of a day you work on Excel]],tblHours,2,0) -> 2 | P80: =VLOOKUP(tblSalaries[[#This Row],[clean Country]],tblCountries[],5,0) -> 1.193532473 | Q80: =IF($Q$1,tblSalaries[[#This Row],[PPP Factor]]*tblSalaries[[#This Row],[Salary in USD]],tblSalaries[[#This Row],[Salary in USD]]) -> 60000
B81: ID0078 | C81: 2012-05-25T23:18:45 | D81: 100000 | E81: 100000 | F81: GBP | G81: =tblSalaries[[#This Row],[clean Salary (in local currency)]]*VLOOKUP(tblSalaries[[#This Row],[Currency]],tblXrate[],2,FALSE) -> 157617.8272 | H81: Analyst | I81: Analyst | J81: UK | K81: =VLOOKUP(tblSalaries[[#This Row],[Where do you work]],tblCountries[[Actual]:[Mapping]],2,FALSE) -> UK | L81: 2 to 3 hours per day | N81: =VLOOKUP(K81,tblCountries[],3,0) -> Europe | O81: =VLOOKUP(tblSalaries[[#This Row],[How many hours of a day you work on Excel]],tblHours,2,0) -> 3 | P81: =VLOOKUP(tblSalaries[[#This Row],[clean Country]],tblCountries[],5,0) -> 1.340731505 | Q81: =IF($Q$1,tblSalaries[[#This Row],[PPP Factor]]*tblSalaries[[#This Row],[Salary in USD]],tblSalaries[[#This Row],[Salary in USD]]) -> 157617.8272
B82: ID0079 | C82: 2012-05-25T23:20:46 | D82: Us$ 18000 | E82: 18000 | F82: USD | G82: =tblSalaries[[#This Row],[clean Salary (in local currency)]]*VLOOKUP(tblSalaries[[#This Row],[Currency]],tblXrate[],2,FALSE) -> 18000 | H82: Operational Analyst | I82: Analyst | J82: Saudi Arabia | K82: =VLOOKUP(tblSalaries[[#This Row],[Where do you work]],tblCountries[[Actual]:[Mapping]],2,FALSE) -> Saudi Arabia | L82: All the 8 hours baby, all the 8! | N82: =VLOOKUP(K82,tblCountries[],3,0) -> Asia | O82: =VLOOKUP(tblSalaries[[#This Row],[How many hours of a day you work on Excel]],tblHours,2,0) -> 5 | P82: =VLOOKUP(tblSalaries[[#This Row],[clean Country]],tblCountries[],5,0) -> 1.996410447 | Q82: =IF($Q$1,tblSalaries[[#This Row],[PPP Factor]]*tblSalaries[[#This Row],[Salary in USD]],tblSalaries[[#This Row],[Salary in USD]]) -> 18000
B83: ID0080 | C83: 2012-05-25T23:31:16 | D83: 50000 | E83: 50000 | F83: USD | G83: =tblSalaries[[#This Row],[clean Salary (in local currency)]]*VLOOKUP(tblSalaries[[#This Row],[Currency]],tblXrate[],2,FALSE) -> 50000 | H83: Exceler | I83: Manager | J83: USA | K83: =VLOOKUP(tblSalaries[[#This Row],[Where do you work]],tblCountries[[Actual]:[Mapping]],2,FALSE) -> USA | L83: 2 to 3 hours per day | N83: =VLOOKUP(K83,tblCountries[],3,0) -> North Amer. | O83: =VLOOKUP(tblSalaries[[#This Row],[How many hours of a day you work on Excel]],tblHours,2,0) -> 3 | P83: =VLOOKUP(tblSalaries[[#This Row],[clean Country]],tblCountries[],5,0) -> 1 | Q83: =IF($Q$1,tblSalaries[[#This Row],[PPP Factor]]*tblSalaries[[#This Row],[Salary in USD]],tblSalaries[[#This Row],[Salary in USD]]) -> 50000
B84: ID0081 | C84: 2012-05-25T23:33:15 | D84: 26000 | E84: 26000 | F84: USD | G84: =tblSalaries[[#This Row],[clean Salary (in local currency)]]*VLOOKUP(tblSalaries[[#This Row],[Currency]],tblXrate[],2,FALSE) -> 26000 | H84: Marketing Analyst | I84: Analyst | J84: Panama | K84: =VLOOKUP(tblSalaries[[#This Row],[Where do you work]],tblCountries[[Actual]:[Mapping]],2,FALSE) -> Panama | L84: All the 8 hours baby, all the 8! | N84: =VLOOKUP(K84,tblCountries[],3,0) -> North Amer. | O84: =VLOOKUP(tblSalaries[[#This Row],[How many hours of a day you work on Excel]],tblHours,2,0) -> 5 | P84: =VLOOKUP(tblSalaries[[#This Row],[clean Country]],tblCountries[],5,0) -> 3.432432432 | Q84: =IF($Q$1,tblSalaries[[#This Row],[PPP Factor]]*tblSalaries[[#This Row],[Salary in USD]],tblSalaries[[#This Row],[Salary in USD]]) -> 26000
B85: ID0082 | C85: 2012-05-25T23:49:27 | D85: Â£30000 | E85: 30000 | F85: GBP | G85: =tblSalaries[[#This Row],[clean Salary (in local currency)]]*VLOOKUP(tblSalaries[[#This Row],[Currency]],tblXrate[],2,FALSE) -> 47285.34816 | H85: Database Manager | I85: Manager | J85: UK | K85: =VLOOKUP(tblSalaries[[#This Row],[Where do you work]],tblCountries[[Actual]:[Mapping]],2,FALSE) -> UK | L85: 4 to 6 hours a day | N85: =VLOOKUP(K85,tblCountries[],3,0) -> Europe | O85: =VLOOKUP(tblSalaries[[#This Row],[How many hours of a day you work on Excel]],tblHours,2,0) -> 4 | P85: =VLOOKUP(tblSalaries[[#This Row],[clean Country]],tblCountries[],5,0) -> 1.340731505 | Q85: =IF($Q$1,tblSalaries[[#This Row],[PPP Factor]]*tblSalaries[[#This Row],[Salary in USD]],tblSalaries[[#This Row],[Salary in USD]]) -> 47285.34816
B86: ID0083 | C86: 2012-05-26T00:00:52 | D86: 150000 | E86: 150000 | F86: USD | G86: =tblSalaries[[#This Row],[clean Salary (in local currency)]]*VLOOKUP(tblSalaries[[#This Row],[Currency]],tblXrate[],2,FALSE) -> 150000 | H86: Director | I86: CXO or Top Mgmt. | J86: USA | K86: =VLOOKUP(tblSalaries[[#This Row],[Where do you work]],tblCountries[[Actual]:[Mapping]],2,FALSE) -> USA | L86: All the 8 hours baby, all the 8! | N86: =VLOOKUP(K86,tblCountries[],3,0) -> North Amer. | O86: =VLOOKUP(tblSalaries[[#This Row],[How many hours of a day you work on Excel]],tblHours,2,0) -> 5 | P86: =VLOOKUP(tblSalaries[[#This Row],[clean Country]],tblCountries[],5,0) -> 1 | Q86: =IF($Q$1,tblSalaries[[#This Row],[PPP Factor]]*tblSalaries[[#This Row],[Salary in USD]],tblSalaries[[#This Row],[Salary in USD]]) -> 150000
B87: ID0084 | C87: 2012-05-26T00:05:45 | D87: 120000 | E87: 120000 | F87: USD | G87: =tblSalaries[[#This Row],[clean Salary (in local currency)]]*VLOOKUP(tblSalaries[[#This Row],[Currency]],tblXrate[],2,FALSE) -> 120000 | H87: Manager, Forecasts & Budgets | I87: Manager | J87: USA | K87: =VLOOKUP(tblSalaries[[#This Row],[Where do you work]],tblCountries[[Actual]:[Mapping]],2,FALSE) -> USA | L87: 4 to 6 hours a day | N87: =VLOOKUP(K87,tblCountries[],3,0) -> North Amer. | O87: =VLOOKUP(tblSalaries[[#This Row],[How many hours of a day you work on Excel]],tblHours,2,0) -> 4 | P87: =VLOOKUP(tblSalaries[[#This Row],[clean Country]],tblCountries[],5,0) -> 1 | Q87: =IF($Q$1,tblSalaries[[#This Row],[PPP Factor]]*tblSalaries[[#This Row],[Salary in USD]],tblSalaries[[#This Row],[Salary in USD]]) -> 120000
B88: ID0085 | C88: 2012-05-26T00:10:17 | D88: 500000 | E88: 500000 | F88: INR | G88: =tblSalaries[[#This Row],[clean Salary (in local currency)]]*VLOOKUP(tblSalaries[[#This Row],[Currency]],tblXrate[],2,FALSE) -> 8903.958344 | H88: Senior Consultant | I88: Consultant | J88: India | K88: =VLOOKUP(tblSalaries[[#This Row],[Where do you work]],tblCountries[[Actual]:[Mapping]],2,FALSE) -> India | L88: All the 8 hours baby, all the 8! | N88: =VLOOKUP(K88,tblCountries[],3,0) -> Asia | O88: =VLOOKUP(tblSalaries[[#This Row],[How many hours of a day you work on Excel]],tblHours,2,0) -> 5 | P88: =VLOOKUP(tblSalaries[[#This Row],[clean Country]],tblCountries[],5,0) -> 13.09880888 | Q88: =IF($Q$1,tblSalaries[[#This Row],[PPP Factor]]*tblSalaries[[#This Row],[Salary in USD]],tblSalaries[[#This Row],[Salary in USD]]) -> 8903.958344
B89: ID0086 | C89: 2012-05-26T00:11:21 | D89: US $ 31330.00 | E89: 31330 | F89: USD | G89: =tblSalaries[[#This Row],[clean Salary (in local currency)]]*VLOOKUP(tblSalaries[[#This Row],[Currency]],tblXrate[],2,FALSE) -> 31330 | H89: VBA Analyst | I89: Analyst | J89: Brazil | K89: =VLOOKUP(tblSalaries[[#This Row],[Where do you work]],tblCountries[[Actual]:[Mapping]],2,FALSE) -> Brazil | L89: All the 8 hours baby, all the 8! | N89: =VLOOKUP(K89,tblCountries[],3,0) -> South Amer. | O89: =VLOOKUP(tblSalaries[[#This Row],[How many hours of a day you work on Excel]],tblHours,2,0) -> 5 | P89: =VLOOKUP(tblSalaries[[#This Row],[clean Country]],tblCountries[],5,0) -> 4.111394341 | Q89: =IF($Q$1,tblSalaries[[#This Row],[PPP Factor]]*tblSalaries[[#This Row],[Salary in USD]],tblSalaries[[#This Row],[Salary in USD]]) -> 31330
B90: ID0087 | C90: 2012-05-26T00:15:17 | D90: 110000 | E90: 110000 | F90: USD | G90: =tblSalaries[[#This Row],[clean Salary (in local currency)]]*VLOOKUP(tblSalaries[[#This Row],[Currency]],tblXrate[],2,FALSE) -> 110000 | H90: Senior Scheduling Engineer | I90: Engineer | J90: USA | K90: =VLOOKUP(tblSalaries[[#This Row],[Where do you work]],tblCountries[[Actual]:[Mapping]],2,FALSE) -> USA | L90: 2 to 3 hours per day | N90: =VLOOKUP(K90,tblCountries[],3,0) -> North Amer. | O90: =VLOOKUP(tblSalaries[[#This Row],[How many hours of a day you work on Excel]],tblHours,2,0) -> 3 | P90: =VLOOKUP(tblSalaries[[#This Row],[clean Country]],tblCountries[],5,0) -> 1 | Q90: =IF($Q$1,tblSalaries[[#This Row],[PPP Factor]]*tblSalaries[[#This Row],[Salary in USD]],tblSalaries[[#This Row],[Salary in USD]]) -> 110000
B91: ID0088 | C91: 2012-05-26T00:22:49 | D91: 81,000USD | E91: 81000 | F91: USD | G91: =tblSalaries[[#This Row],[clean Salary (in local currency)]]*VLOOKUP(tblSalaries[[#This Row],[Currency]],tblXrate[],2,FALSE) -> 81000 | H91: Strategy Consultant | I91: Consultant | J91: UK | K91: =VLOOKUP(tblSalaries[[#This Row],[Where do you work]],tblCountries[[Actual]:[Mapping]],2,FALSE) -> UK | L91: 4 to 6 hours a day | N91: =VLOOKUP(K91,tblCountries[],3,0) -> Europe | O91: =VLOOKUP(tblSalaries[[#This Row],[How many hours of a day you work on Excel]],tblHours,2,0) -> 4 | P91: =VLOOKUP(tblSalaries[[#This Row],[clean Country]],tblCountries[],5,0) -> 1.340731505 | Q91: =IF($Q$1,tblSalaries[[#This Row],[PPP Factor]]*tblSalaries[[#This Row],[Salary in USD]],tblSalaries[[#This Row],[Salary in USD]]) -> 81000
B92: ID0089 | C92: 2012-05-26T00:39:04 | D92: 40000 | E92: 40000 | F92: USD | G92: =tblSalaries[[#This Row],[clean Salary (in local currency)]]*VLOOKUP(tblSalaries[[#This Row],[Currency]],tblXrate[],2,FALSE) -> 40000 | H92: Admin | I92: Analyst | J92: USA | K92: =VLOOKUP(tblSalaries[[#This Row],[Where do you work]],tblCountries[[Actual]:[Mapping]],2,FALSE) -> USA | L92: 4 to 6 hours a day | N92: =VLOOKUP(K92,tblCountries[],3,0) -> North Amer. | O92: =VLOOKUP(tblSalaries[[#This Row],[How many hours of a day you work on Excel]],tblHours,2,0) -> 4 | P92: =VLOOKUP(tblSalaries[[#This Row],[clean Country]],tblCountries[],5,0) -> 1 | Q92: =IF($Q$1,tblSalaries[[#This Row],[PPP Factor]]*tblSalaries[[#This Row],[Salary in USD]],tblSalaries[[#This Row],[Salary in USD]]) -> 40000
B93: ID0090 | C93: 2012-05-26T00:39:28 | D93: 42000 | E93: 42000 | F93: CAD | G93: =tblSalaries[[#This Row],[clean Salary (in local currency)]]*VLOOKUP(tblSalaries[[#This Row],[Currency]],tblXrate[],2,FALSE) -> 41301.18397 | H93: IT Asset Administrator | I93: Analyst | J93: Canada | K93: =VLOOKUP(tblSalaries[[#This Row],[Where do you work]],tblCountries[[Actual]:[Mapping]],2,FALSE) -> Canada | L93: 4 to 6 hours a day | N93: =VLOOKUP(K93,tblCountries[],3,0) -> North Amer. | O93: =VLOOKUP(tblSalaries[[#This Row],[How many hours of a day you work on Excel]],tblHours,2,0) -> 4 | P93: =VLOOKUP(tblSalaries[[#This Row],[clean Country]],tblCountries[],5,0) -> 1.193532473 | Q93: =IF($Q$1,tblSalaries[[#This Row],[PPP Factor]]*tblSalaries[[#This Row],[Salary in USD]],tblSalaries[[#This Row],[Salary in USD]]) -> 41301.18397
B94: ID0091 | C94: 2012-05-26T00:39:36 | D94: 125000 | E94: 125000 | F94: USD | G94: =tblSalaries[[#This Row],[clean Salary (in local currency)]]*VLOOKUP(tblSalaries[[#This Row],[Currency]],tblXrate[],2,FALSE) -> 125000 | H94: Director of Marketing | I94: CXO or Top Mgmt. | J94: USA | K94: =VLOOKUP(tblSalaries[[#This Row],[Where do you work]],tblCountries[[Actual]:[Mapping]],2,FALSE) -> USA | L94: 4 to 6 hours a day | N94: =VLOOKUP(K94,tblCountries[],3,0) -> North Amer. | O94: =VLOOKUP(tblSalaries[[#This Row],[How many hours of a day you work on Excel]],tblHours,2,0) -> 4 | P94: =VLOOKUP(tblSalaries[[#This Row],[clean Country]],tblCountries[],5,0) -> 1 | Q94: =IF($Q$1,tblSalaries[[#This Row],[PPP Factor]]*tblSalaries[[#This Row],[Salary in USD]],tblSalaries[[#This Row],[Salary in USD]]) -> 125000
B95: ID0092 | C95: 2012-05-26T00:39:38 | D95: 36000 | E95: 36000 | F95: USD | G95: =tblSalaries[[#This Row],[clean Salary (in local currency)]]*VLOOKUP(tblSalaries[[#This Row],[Currency]],tblXrate[],2,FALSE) -> 36000 | H95: Graphic Design Manager | I95: Manager | J95: USA | K95: =VLOOKUP(tblSalaries[[#This Row],[Where do you work]],tblCountries[[Actual]:[Mapping]],2,FALSE) -> USA | L95: 2 to 3 hours per day | N95: =VLOOKUP(K95,tblCountries[],3,0) -> North Amer. | O95: =VLOOKUP(tblSalaries[[#This Row],[How many hours of a day you work on Excel]],tblHours,2,0) -> 3 | P95: =VLOOKUP(tblSalaries[[#This Row],[clean Country]],tblCountries[],5,0) -> 1 | Q95: =IF($Q$1,tblSalaries[[#This Row],[PPP Factor]]*tblSalaries[[#This Row],[Salary in USD]],tblSalaries[[#This Row],[Salary in USD]]) -> 36000
B96: ID0093 | C96: 2012-05-26T00:39:54 | D96: Rs. 12,000/- | E96: 144000 | F96: INR | G96: =tblSalaries[[#This Row],[clean Salary (in local currency)]]*VLOOKUP(tblSalaries[[#This Row],[Currency]],tblXrate[],2,FALSE) -> 2564.340003 | H96: Financial Consultant | I96: Consultant | J96: India | K96: =VLOOKUP(tblSalaries[[#This Row],[Where do you work]],tblCountries[[Actual]:[Mapping]],2,FALSE) -> India | L96: 1 or 2 hours a day | N96: =VLOOKUP(K96,tblCountries[],3,0) -> Asia | O96: =VLOOKUP(tblSalaries[[#This Row],[How many hours of a day you work on Excel]],tblHours,2,0) -> 2 | P96: =VLOOKUP(tblSalaries[[#This Row],[clean Country]],tblCountries[],5,0) -> 13.09880888 | Q96: =IF($Q$1,tblSalaries[[#This Row],[PPP Factor]]*tblSalaries[[#This Row],[Salary in USD]],tblSalaries[[#This Row],[Salary in USD]]) -> 2564.340003
B97: ID0094 | C97: 2012-05-26T00:40:00 | D97: 75000 | E97: 75000 | F97: USD | G97: =tblSalaries[[#This Row],[clean Salary (in local currency)]]*VLOOKUP(tblSalaries[[#This Row],[Currency]],tblXrate[],2,FALSE) -> 75000 | H97: Data Analyst | I97: Analyst | J97: USA | K97: =VLOOKUP(tblSalaries[[#This Row],[Where do you work]],tblCountries[[Actual]:[Mapping]],2,FALSE) -> USA | L97: 1 or 2 hours a day | N97: =VLOOKUP(K97,tblCountries[],3,0) -> North Amer. | O97: =VLOOKUP(tblSalaries[[#This Row],[How many hours of a day you work on Excel]],tblHours,2,0) -> 2 | P97: =VLOOKUP(tblSalaries[[#This Row],[clean Country]],tblCountries[],5,0) -> 1 | Q97: =IF($Q$1,tblSalaries[[#This Row],[PPP Factor]]*tblSalaries[[#This Row],[Salary in USD]],tblSalaries[[#This Row],[Salary in USD]]) -> 75000
B98: ID0095 | C98: 2012-05-26T00:40:20 | D98: 95000 | E98: 95000 | F98: USD | G98: =tblSalaries[[#This Row],[clean Salary (in local currency)]]*VLOOKUP(tblSalaries[[#This Row],[Currency]],tblXrate[],2,FALSE) -> 95000 | H98: CFO | I98: CXO or Top Mgmt. | J98: USA | K98: =VLOOKUP(tblSalaries[[#This Row],[Where do you work]],tblCountries[[Actual]:[Mapping]],2,FALSE) -> USA | L98: 4 to 6 hours a day | N98: =VLOOKUP(K98,tblCountries[],3,0) -> North Amer. | O98: =VLOOKUP(tblSalaries[[#This Row],[How many hours of a day you work on Excel]],tblHours,2,0) -> 4 | P98: =VLOOKUP(tblSalaries[[#This Row],[clean Country]],tblCountries[],5,0) -> 1 | Q98: =IF($Q$1,tblSalaries[[#This Row],[PPP Factor]]*tblSalaries[[#This Row],[Salary in USD]],tblSalaries[[#This Row],[Salary in USD]]) -> 95000
B99: ID0096 | C99: 2012-05-26T00:40:27 | D99: 24000 | E99: 24000 | F99: USD | G99: =tblSalaries[[#This Row],[clean Salary (in local currency)]]*VLOOKUP(tblSalaries[[#This Row],[Currency]],tblXrate[],2,FALSE) -> 24000 | H99: Paraeducator | I99: Manager | J99: USA | K99: =VLOOKUP(tblSalaries[[#This Row],[Where do you work]],tblCountries[[Actual]:[Mapping]],2,FALSE) -> USA | L99: 2 to 3 hours per day | N99: =VLOOKUP(K99,tblCountries[],3,0) -> North Amer. | O99: =VLOOKUP(tblSalaries[[#This Row],[How many hours of a day you work on Excel]],tblHours,2,0) -> 3 | P99: =VLOOKUP(tblSalaries[[#This Row],[clean Country]],tblCountries[],5,0) -> 1 | Q99: =IF($Q$1,tblSalaries[[#This Row],[PPP Factor]]*tblSalaries[[#This Row],[Salary in USD]],tblSalaries[[#This Row],[Salary in USD]]) -> 24000
B100: ID0097 | C100: 2012-05-26T00:40:31 | D100: 91,000 USD | E100: 91000 | F100: USD | G100: =tblSalaries[[#This Row],[clean Salary (in local currency)]]*VLOOKUP(tblSalaries[[#This Row],[Currency]],tblXrate[],2,FALSE) -> 91000 | H100: Channel Marketing Manager | I100: Manager | J100: USA | K100: =VLOOKUP(tblSalaries[[#This Row],[Where do you work]],tblCountries[[Actual]:[Mapping]],2,FALSE) -> USA | L100: 1 or 2 hours a day | N100: =VLOOKUP(K100,tblCountries[],3,0) -> North Amer. | O100: =VLOOKUP(tblSalaries[[#This Row],[How many hours of a day you work on Excel]],tblHours,2,0) -> 2 | P100: =VLOOKUP(tblSalaries[[#This Row],[clean Country]],tblCountries[],5,0) -> 1 | Q100: =IF($Q$1,tblSalaries[[#This Row],[PPP Factor]]*tblSalaries[[#This Row],[Salary in USD]],tblSalaries[[#This Row],[Salary in USD]]) -> 91000
B101: ID0098 | C101: 2012-05-26T00:40:39 | D101: 40000 | E101: 40000 | F101: USD | G101: =tblSalaries[[#This Row],[clean Salary (in local currency)]]*VLOOKUP(tblSalaries[[#This Row],[Currency]],tblXrate[],2,FALSE) -> 40000 | H101: Sales and Marketing Analyst | I101: Analyst | J101: USA | K101: =VLOOKUP(tblSalaries[[#This Row],[Where do you work]],tblCountries[[Actual]:[Mapping]],2,FALSE) -> USA | L101: 4 to 6 hours a day | N101: =VLOOKUP(K101,tblCountries[],3,0) -> North Amer. | O101: =VLOOKUP(tblSalaries[[#This Row],[How many hours of a day you work on Excel]],tblHours,2,0) -> 4 | P101: =VLOOKUP(tblSalaries[[#This Row],[clean Country]],tblCountries[],5,0) -> 1 | Q101: =IF($Q$1,tblSalaries[[#This Row],[PPP Factor]]*tblSalaries[[#This Row],[Salary in USD]],tblSalaries[[#This Row],[Salary in USD]]) -> 40000
B102: ID0099 | C102: 2012-05-26T00:40:40 | D102: 57000 | E102: 57000 | F102: USD | G102: =tblSalaries[[#This Row],[clean Salary (in local currency)]]*VLOOKUP(tblSalaries[[#This Row],[Currency]],tblXrate[],2,FALSE) -> 57000 | H102: Production Scheduler | I102: Manager | J102: USA | K102: =VLOOKUP(tblSalaries[[#This Row],[Where do you work]],tblCountries[[Actual]:[Mapping]],2,FALSE) -> USA | L102: 4 to 6 hours a day | N102: =VLOOKUP(K102,tblCountries[],3,0) -> North Amer. | O102: =VLOOKUP(tblSalaries[[#This Row],[How many hours of a day you work on Excel]],tblHours,2,0) -> 4 | P102: =VLOOKUP(tblSalaries[[#This Row],[clean Country]],tblCountries[],5,0) -> 1 | Q102: =IF($Q$1,tblSalaries[[#This Row],[PPP Factor]]*tblSalaries[[#This Row],[Salary in USD]],tblSalaries[[#This Row],[Salary in USD]]) -> 57000
B103: ID0100 | C103: 2012-05-26T00:40:41 | D103: 74000 | E103: 74000 | F103: USD | G103: =tblSalaries[[#This Row],[clean Salary (in local currency)]]*VLOOKUP(tblSalaries[[#This Row],[Currency]],tblXrate[],2,FALSE) -> 74000 | H103: Senior Consultant | I103: Consultant | J103: USA | K103: =VLOOKUP(tblSalaries[[#This Row],[Where do you work]],tblCountries[[Actual]:[Mapping]],2,FALSE) -> USA | L103: 4 to 6 hours a day | N103: =VLOOKUP(K103,tblCountries[],3,0) -> North Amer. | O103: =VLOOKUP(tblSalaries[[#This Row],[How many hours of a day you work on Excel]],tblHours,2,0) -> 4 | P103: =VLOOKUP(tblSalaries[[#This Row],[clean Country]],tblCountries[],5,0) -> 1 | Q103: =IF($Q$1,tblSalaries[[#This Row],[PPP Factor]]*tblSalaries[[#This Row],[Salary in USD]],tblSalaries[[#This Row],[Salary in USD]]) -> 74000
B104: ID0101 | C104: 2012-05-26T00:40:42 | D104: 80k | E104: 80000 | F104: USD | G104: =tblSalaries[[#This Row],[clean Salary (in local currency)]]*VLOOKUP(tblSalaries[[#This Row],[Currency]],tblXrate[],2,FALSE) -> 80000 | H104: financial analyst | I104: Analyst | J104: USA | K104: =VLOOKUP(tblSalaries[[#This Row],[Where do you work]],tblCountries[[Actual]:[Mapping]],2,FALSE) -> USA | L104: 4 to 6 hours a day | N104: =VLOOKUP(K104,tblCountries[],3,0) -> North Amer. | O104: =VLOOKUP(tblSalaries[[#This Row],[How many hours of a day you work on Excel]],tblHours,2,0) -> 4 | P104: =VLOOKUP(tblSalaries[[#This Row],[clean Country]],tblCountries[],5,0) -> 1 | Q104: =IF($Q$1,tblSalaries[[#This Row],[PPP Factor]]*tblSalaries[[#This Row],[Salary in USD]],tblSalaries[[#This Row],[Salary in USD]]) -> 80000
B105: ID0102 | C105: 2012-05-26T00:40:46 | D105: 90000 | E105: 90000 | F105: USD | G105: =tblSalaries[[#This Row],[clean Salary (in local currency)]]*VLOOKUP(tblSalaries[[#This Row],[Currency]],tblXrate[],2,FALSE) -> 90000 | H105: Product Specialist | I105: Specialist | J105: USA | K105: =VLOOKUP(tblSalaries[[#This Row],[Where do you work]],tblCountries[[Actual]:[Mapping]],2,FALSE) -> USA | L105: 4 to 6 hours a day | N105: =VLOOKUP(K105,tblCountries[],3,0) -> North Amer. | O105: =VLOOKUP(tblSalaries[[#This Row],[How many hours of a day you work on Excel]],tblHours,2,0) -> 4 | P105: =VLOOKUP(tblSalaries[[#This Row],[clean Country]],tblCountries[],5,0) -> 1 | Q105: =IF($Q$1,tblSalaries[[#This Row],[PPP Factor]]*tblSalaries[[#This Row],[Salary in USD]],tblSalaries[[#This Row],[Salary in USD]]) -> 90000
B106: ID0103 | C106: 2012-05-26T00:40:48 | D106: 21000 | E106: 21000 | F106: USD | G106: =tblSalaries[[#This Row],[clean Salary (in local currency)]]*VLOOKUP(tblSalaries[[#This Row],[Currency]],tblXrate[],2,FALSE) -> 21000 | H106: IT support | I106: Analyst | J106: arabian Gulf | K106: =VLOOKUP(tblSalaries[[#This Row],[Where do you work]],tblCountries[[Actual]:[Mapping]],2,FALSE) -> arabian Gulf | L106: 1 or 2 hours a day | N106: =VLOOKUP(K106,tblCountries[],3,0) -> Asia | O106: =VLOOKUP(tblSalaries[[#This Row],[How many hours of a day you work on Excel]],tblHours,2,0) -> 2 | P106: =VLOOKUP(tblSalaries[[#This Row],[clean Country]],tblCountries[],5,0) -> 1 | Q106: =IF($Q$1,tblSalaries[[#This Row],[PPP Factor]]*tblSalaries[[#This Row],[Salary in USD]],tblSalaries[[#This Row],[Salary in USD]]) -> 21000
B107: ID0104 | C107: 2012-05-26T00:40:50 | D107: 52000 | E107: 52000 | F107: USD | G107: =tblSalaries[[#This Row],[clean Salary (in local currency)]]*VLOOKUP(tblSalaries[[#This Row],[Currency]],tblXrate[],2,FALSE) -> 52000 | H107: sr. project coordinator | I107: Manager | J107: USA | K107: =VLOOKUP(tblSalaries[[#This Row],[Where do you work]],tblCountries[[Actual]:[Mapping]],2,FALSE) -> USA | L107: 4 to 6 hours a day | N107: =VLOOKUP(K107,tblCountries[],3,0) -> North Amer. | O107: =VLOOKUP(tblSalaries[[#This Row],[How many hours of a day you work on Excel]],tblHours,2,0) -> 4 | P107: =VLOOKUP(tblSalaries[[#This Row],[clean Country]],tblCountries[],5,0) -> 1 | Q107: =IF($Q$1,tblSalaries[[#This Row],[PPP Factor]]*tblSalaries[[#This Row],[Salary in USD]],tblSalaries[[#This Row],[Salary in USD]]) -> 52000
B108: ID0105 | C108: 2012-05-26T00:40:52 | D108: 19200 | E108: 19200 | F108: USD | G108: =tblSalaries[[#This Row],[clean Salary (in local currency)]]*VLOOKUP(tblSalaries[[#This Row],[Currency]],tblXrate[],2,FALSE) -> 19200 | H108: Sr Administrative Assistant | I108: Analyst | J108: Mexico | K108: =VLOOKUP(tblSalaries[[#This Row],[Where do you work]],tblCountries[[Actual]:[Mapping]],2,FALSE) -> Mexico | L108: 4 to 6 hours a day | N108: =VLOOKUP(K108,tblCountries[],3,0) -> North Amer. | O108: =VLOOKUP(tblSalaries[[#This Row],[How many hours of a day you work on Excel]],tblHours,2,0) -> 4 | P108: =VLOOKUP(tblSalaries[[#This Row],[clean Country]],tblCountries[],5,0) -> 3.311909651 | Q108: =IF($Q$1,tblSalaries[[#This Row],[PPP Factor]]*tblSalaries[[#This Row],[Salary in USD]],tblSalaries[[#This Row],[Salary in USD]]) -> 19200
B109: ID0106 | C109: 2012-05-26T00:40:57 | D109: 36000 | E109: 36000 | F109: USD | G109: =tblSalaries[[#This Row],[clean Salary (in local currency)]]*VLOOKUP(tblSalaries[[#This Row],[Currency]],tblXrate[],2,FALSE) -> 36000 | H109: Analyst | I109: Analyst | J109: USA | K109: =VLOOKUP(tblSalaries[[#This Row],[Where do you work]],tblCountries[[Actual]:[Mapping]],2,FALSE) -> USA | L109: 4 to 6 hours a day | N109: =VLOOKUP(K109,tblCountries[],3,0) -> North Amer. | O109: =VLOOKUP(tblSalaries[[#This Row],[How many hours of a day you work on Excel]],tblHours,2,0) -> 4 | P109: =VLOOKUP(tblSalaries[[#This Row],[clean Country]],tblCountries[],5,0) -> 1 | Q109: =IF($Q$1,tblSalaries[[#This Row],[PPP Factor]]*tblSalaries[[#This Row],[Salary in USD]],tblSalaries[[#This Row],[Salary in USD]]) -> 36000
B110: ID0107 | C110: 2012-05-26T00:41:02 | D110: 57400 | E110: 57400 | F110: USD | G110: =tblSalaries[[#This Row],[clean Salary (in local currency)]]*VLOOKUP(tblSalaries[[#This Row],[Currency]],tblXrate[],2,FALSE) -> 57400 | H110: IT Analyst | I110: Analyst | J110: USA | K110: =VLOOKUP(tblSalaries[[#This Row],[Where do you work]],tblCountries[[Actual]:[Mapping]],2,FALSE) -> USA | L110: 4 to 6 hours a day | N110: =VLOOKUP(K110,tblCountries[],3,0) -> North Amer. | O110: =VLOOKUP(tblSalaries[[#This Row],[How many hours of a day you work on Excel]],tblHours,2,0) -> 4 | P110: =VLOOKUP(tblSalaries[[#This Row],[clean Country]],tblCountries[],5,0) -> 1 | Q110: =IF($Q$1,tblSalaries[[#This Row],[PPP Factor]]*tblSalaries[[#This Row],[Salary in USD]],tblSalaries[[#This Row],[Salary in USD]]) -> 57400
B111: ID0108 | C111: 2012-05-26T00:41:03 | D111: 66000 | E111: 66000 | F111: USD | G111: =tblSalaries[[#This Row],[clean Salary (in local currency)]]*VLOOKUP(tblSalaries[[#This Row],[Currency]],tblXrate[],2,FALSE) -> 66000 | H111: Analyst | I111: Analyst | J111: USA | K111: =VLOOKUP(tblSalaries[[#This Row],[Where do you work]],tblCountries[[Actual]:[Mapping]],2,FALSE) -> USA | L111: 2 to 3 hours per day | N111: =VLOOKUP(K111,tblCountries[],3,0) -> North Amer. | O111: =VLOOKUP(tblSalaries[[#This Row],[How many hours of a day you work on Excel]],tblHours,2,0) -> 3 | P111: =VLOOKUP(tblSalaries[[#This Row],[clean Country]],tblCountries[],5,0) -> 1 | Q111: =IF($Q$1,tblSalaries[[#This Row],[PPP Factor]]*tblSalaries[[#This Row],[Salary in USD]],tblSalaries[[#This Row],[Salary in USD]]) -> 66000
B112: ID0109 | C112: 2012-05-26T00:41:06 | D112: 35000 | E112: 35000 | F112: EUR | G112: =tblSalaries[[#This Row],[clean Salary (in local currency)]]*VLOOKUP(tblSalaries[[#This Row],[Currency]],tblXrate[],2,FALSE) -> 44463.98036 | H112: Project manager | I112: Manager | J112: Greece | K112: =VLOOKUP(tblSalaries[[#This Row],[Where do you work]],tblCountries[[Actual]:[Mapping]],2,FALSE) -> Greece | L112: 4 to 6 hours a day | N112: =VLOOKUP(K112,tblCountries[],3,0) -> Europe | O112: =VLOOKUP(tblSalaries[[#This Row],[How many hours of a day you work on Excel]],tblHours,2,0) -> 4 | P112: =VLOOKUP(tblSalaries[[#This Row],[clean Country]],tblCountries[],5,0) -> 1.84022971 | Q112: =IF($Q$1,tblSalaries[[#This Row],[PPP Factor]]*tblSalaries[[#This Row],[Salary in USD]],tblSalaries[[#This Row],[Salary in USD]]) -> 44463.98036
B113: ID0111 | C113: 2012-05-26T00:41:16 | D113: $85,000+ | E113: 85000 | F113: USD | G113: =tblSalaries[[#This Row],[clean Salary (in local currency)]]*VLOOKUP(tblSalaries[[#This Row],[Currency]],tblXrate[],2,FALSE) -> 85000 | H113: Strategic Analyst | I113: Analyst | J113: USA | K113: =VLOOKUP(tblSalaries[[#This Row],[Where do you work]],tblCountries[[Actual]:[Mapping]],2,FALSE) -> USA | L113: 4 to 6 hours a day | N113: =VLOOKUP(K113,tblCountries[],3,0) -> North Amer. | O113: =VLOOKUP(tblSalaries[[#This Row],[How many hours of a day you work on Excel]],tblHours,2,0) -> 4 | P113: =VLOOKUP(tblSalaries[[#This Row],[clean Country]],tblCountries[],5,0) -> 1 | Q113: =IF($Q$1,tblSalaries[[#This Row],[PPP Factor]]*tblSalaries[[#This Row],[Salary in USD]],tblSalaries[[#This Row],[Salary in USD]]) -> 85000
B114: ID0112 | C114: 2012-05-26T00:41:22 | D114: 50000 | E114: 50000 | F114: USD | G114: =tblSalaries[[#This Row],[clean Salary (in local currency)]]*VLOOKUP(tblSalaries[[#This Row],[Currency]],tblXrate[],2,FALSE) -> 50000 | H114: Transportation Specialist | I114: Specialist | J114: USA | K114: =VLOOKUP(tblSalaries[[#This Row],[Where do you work]],tblCountries[[Actual]:[Mapping]],2,FALSE) -> USA | L114: 4 to 6 hours a day | N114: =VLOOKUP(K114,tblCountries[],3,0) -> North Amer. | O114: =VLOOKUP(tblSalaries[[#This Row],[How many hours of a day you work on Excel]],tblHours,2,0) -> 4 | P114: =VLOOKUP(tblSalaries[[#This Row],[clean Country]],tblCountries[],5,0) -> 1 | Q114: =IF($Q$1,tblSalaries[[#This Row],[PPP Factor]]*tblSalaries[[#This Row],[Salary in USD]],tblSalaries[[#This Row],[Salary in USD]]) -> 50000
B115: ID0113 | C115: 2012-05-26T00:41:27 | D115: $58,000 USD | E115: 58000 | F115: USD | G115: =tblSalaries[[#This Row],[clean Salary (in local currency)]]*VLOOKUP(tblSalaries[[#This Row],[Currency]],tblXrate[],2,FALSE) -> 58000 | H115: Operations Programs Support | I115: Manager | J115: USA | K115: =VLOOKUP(tblSalaries[[#This Row],[Where do you work]],tblCountries[[Actual]:[Mapping]],2,FALSE) -> USA | L115: 4 to 6 hours a day | N115: =VLOOKUP(K115,tblCountries[],3,0) -> North Amer. | O115: =VLOOKUP(tblSalaries[[#This Row],[How many hours of a day you work on Excel]],tblHours,2,0) -> 4 | P115: =VLOOKUP(tblSalaries[[#This Row],[clean Country]],tblCountries[],5,0) -> 1 | Q115: =IF($Q$1,tblSalaries[[#This Row],[PPP Factor]]*tblSalaries[[#This Row],[Salary in USD]],tblSalaries[[#This Row],[Salary in USD]]) -> 58000
B116: ID0114 | C116: 2012-05-26T00:41:28 | D116: 37900 | E116: 37900 | F116: USD | G116: =tblSalaries[[#This Row],[clean Salary (in local currency)]]*VLOOKUP(tblSalaries[[#This Row],[Currency]],tblXrate[],2,FALSE) -> 37900 | H116: Accounting Coordinator | I116: Accountant | J116: USA | K116: =VLOOKUP(tblSalaries[[#This Row],[Where do you work]],tblCountries[[Actual]:[Mapping]],2,FALSE) -> USA | L116: All the 8 hours baby, all the 8! | N116: =VLOOKUP(K116,tblCountries[],3,0) -> North Amer. | O116: =VLOOKUP(tblSalaries[[#This Row],[How many hours of a day you work on Excel]],tblHours,2,0) -> 5 | P116: =VLOOKUP(tblSalaries[[#This Row],[clean Country]],tblCountries[],5,0) -> 1 | Q116: =IF($Q$1,tblSalaries[[#This Row],[PPP Factor]]*tblSalaries[[#This Row],[Salary in USD]],tblSalaries[[#This Row],[Salary in USD]]) -> 37900
B117: ID0115 | C117: 2012-05-26T00:41:30 | D117: 4000 | E117: 48000 | F117: USD | G117: =tblSalaries[[#This Row],[clean Salary (in local currency)]]*VLOOKUP(tblSalaries[[#This Row],[Currency]],tblXrate[],2,FALSE) -> 48000 | H117: Asst.Manager Finance | I117: Manager | J117: UAE | K117: =VLOOKUP(tblSalaries[[#This Row],[Where do you work]],tblCountries[[Actual]:[Mapping]],2,FALSE) -> UAE | L117: 2 to 3 hours per day | N117: =VLOOKUP(K117,tblCountries[],3,0) -> Asia | O117: =VLOOKUP(tblSalaries[[#This Row],[How many hours of a day you work on Excel]],tblHours,2,0) -> 3 | P117: =VLOOKUP(tblSalaries[[#This Row],[clean Country]],tblCountries[],5,0) -> 1.004755181 | Q117: =IF($Q$1,tblSalaries[[#This Row],[PPP Factor]]*tblSalaries[[#This Row],[Salary in USD]],tblSalaries[[#This Row],[Salary in USD]]) -> 48000
B118: ID0116 | C118: 2012-05-26T00:41:32 | D118: 67000 | E118: 67000 | F118: USD | G118: =tblSalaries[[#This Row],[clean Salary (in local currency)]]*VLOOKUP(tblSalaries[[#This Row],[Currency]],tblXrate[],2,FALSE) -> 67000 | H118: Operations Cost Analyst | I118: Analyst | J118: USA | K118: =VLOOKUP(tblSalaries[[#This Row],[Where do you work]],tblCountries[[Actual]:[Mapping]],2,FALSE) -> USA | L118: 4 to 6 hours a day | N118: =VLOOKUP(K118,tblCountries[],3,0) -> North Amer. | O118: =VLOOKUP(tblSalaries[[#This Row],[How many hours of a day you work on Excel]],tblHours,2,0) -> 4 | P118: =VLOOKUP(tblSalaries[[#This Row],[clean Country]],tblCountries[],5,0) -> 1 | Q118: =IF($Q$1,tblSalaries[[#This Row],[PPP Factor]]*tblSalaries[[#This Row],[Salary in USD]],tblSalaries[[#This Row],[Salary in USD]]) -> 67000
B119: ID0117 | C119: 2012-05-26T00:41:35 | D119: 85000 | E119: 85000 | F119: USD | G119: =tblSalaries[[#This Row],[clean Salary (in local currency)]]*VLOOKUP(tblSalaries[[#This Row],[Currency]],tblXrate[],2,FALSE) -> 85000 | H119: Financial Controller | I119: Controller | J119: UAE | K119: =VLOOKUP(tblSalaries[[#This Row],[Where do you work]],tblCountries[[Actual]:[Mapping]],2,FALSE) -> UAE | L119: 4 to 6 hours a day | N119: =VLOOKUP(K119,tblCountries[],3,0) -> Asia | O119: =VLOOKUP(tblSalaries[[#This Row],[How many hours of a day you work on Excel]],tblHours,2,0) -> 4 | P119: =VLOOKUP(tblSalaries[[#This Row],[clean Country]],tblCountries[],5,0) -> 1.004755181 | Q119: =IF($Q$1,tblSalaries[[#This Row],[PPP Factor]]*tblSalaries[[#This Row],[Salary in USD]],tblSalaries[[#This Row],[Salary in USD]]) -> 85000
B120: ID0118 | C120: 2012-05-26T00:41:35 | D120: 56160 | E120: 56160 | F120: USD | G120: =tblSalaries[[#This Row],[clean Salary (in local currency)]]*VLOOKUP(tblSalaries[[#This Row],[Currency]],tblXrate[],2,FALSE) -> 56160 | H120: Utilization Analyst | I120: Analyst | J120: USA | K120: =VLOOKUP(tblSalaries[[#This Row],[Where do you work]],tblCountries[[Actual]:[Mapping]],2,FALSE) -> USA | L120: 4 to 6 hours a day | N120: =VLOOKUP(K120,tblCountries[],3,0) -> North Amer. | O120: =VLOOKUP(tblSalaries[[#This Row],[How many hours of a day you work on Excel]],tblHours,2,0) -> 4 | P120: =VLOOKUP(tblSalaries[[#This Row],[clean Country]],tblCountries[],5,0) -> 1 | Q120: =IF($Q$1,tblSalaries[[#This Row],[PPP Factor]]*tblSalaries[[#This Row],[Salary in USD]],tblSalaries[[#This Row],[Salary in USD]]) -> 56160
B121: ID0119 | C121: 2012-05-26T00:41:38 | D121: 2000 | E121: 24000 | F121: USD | G121: =tblSalaries[[#This Row],[clean Salary (in local currency)]]*VLOOKUP(tblSalaries[[#This Row],[Currency]],tblXrate[],2,FALSE) -> 24000 | H121: Researcher | I121: Manager | J121: Colombia | K121: =VLOOKUP(tblSalaries[[#This Row],[Where do you work]],tblCountries[[Actual]:[Mapping]],2,FALSE) -> Colombia | L121: All the 8 hours baby, all the 8! | N121: =VLOOKUP(K121,tblCountries[],3,0) -> South Amer. | O121: =VLOOKUP(tblSalaries[[#This Row],[How many hours of a day you work on Excel]],tblHours,2,0) -> 5 | P121: =VLOOKUP(tblSalaries[[#This Row],[clean Country]],tblCountries[],5,0) -> 4.721143526 | Q121: =IF($Q$1,tblSalaries[[#This Row],[PPP Factor]]*tblSalaries[[#This Row],[Salary in USD]],tblSalaries[[#This Row],[Salary in USD]]) -> 24000
B122: ID0120 | C122: 2012-05-26T00:41:38 | D122: 52000 | E122: 52000 | F122: USD | G122: =tblSalaries[[#This Row],[clean Salary (in local currency)]]*VLOOKUP(tblSalaries[[#This Row],[Currency]],tblXrate[],2,FALSE) -> 52000 | H122: Market Analyst | I122: Analyst | J122: USA | K122: =VLOOKUP(tblSalaries[[#This Row],[Where do you work]],tblCountries[[Actual]:[Mapping]],2,FALSE) -> USA | L122: Excel ?!? What Excel? | N122: =VLOOKUP(K122,tblCountries[],3,0) -> North Amer. | O122: =VLOOKUP(tblSalaries[[#This Row],[How many hours of a day you work on Excel]],tblHours,2,0) -> 1 | P122: =VLOOKUP(tblSalaries[[#This Row],[clean Country]],tblCountries[],5,0) -> 1 | Q122: =IF($Q$1,tblSalaries[[#This Row],[PPP Factor]]*tblSalaries[[#This Row],[Salary in USD]],tblSalaries[[#This Row],[Salary in USD]]) -> 52000
B123: ID0121 | C123: 2012-05-26T00:41:41 | D123: 60000 | E123: 60000 | F123: CAD | G123: =tblSalaries[[#This Row],[clean Salary (in local currency)]]*VLOOKUP(tblSalaries[[#This Row],[Currency]],tblXrate[],2,FALSE) -> 59001.69138 | H123: Web Developer | I123: Analyst | J123: Canada | K123: =VLOOKUP(tblSalaries[[#This Row],[Where do you work]],tblCountries[[Actual]:[Mapping]],2,FALSE) -> Canada | L123: Excel ?!? What Excel? | N123: =VLOOKUP(K123,tblCountries[],3,0) -> North Amer. | O123: =VLOOKUP(tblSalaries[[#This Row],[How many hours of a day you work on Excel]],tblHours,2,0) -> 1 | P123: =VLOOKUP(tblSalaries[[#This Row],[clean Country]],tblCountries[],5,0) -> 1.193532473 | Q123: =IF($Q$1,tblSalaries[[#This Row],[PPP Factor]]*tblSalaries[[#This Row],[Salary in USD]],tblSalaries[[#This Row],[Salary in USD]]) -> 59001.69138
B124: ID0122 | C124: 2012-05-26T00:41:43 | D124: 70000 | E124: 70000 | F124: USD | G124: =tblSalaries[[#This Row],[clean Salary (in local currency)]]*VLOOKUP(tblSalaries[[#This Row],[Currency]],tblXrate[],2,FALSE) -> 70000 | H124: Sr. Acct | I124: Accountant | J124: USA | K124: =VLOOKUP(tblSalaries[[#This Row],[Where do you work]],tblCountries[[Actual]:[Mapping]],2,FALSE) -> USA | L124: All the 8 hours baby, all the 8! | N124: =VLOOKUP(K124,tblCountries[],3,0) -> North Amer. | O124: =VLOOKUP(tblSalaries[[#This Row],[How many hours of a day you work on Excel]],tblHours,2,0) -> 5 | P124: =VLOOKUP(tblSalaries[[#This Row],[clean Country]],tblCountries[],5,0) -> 1 | Q124: =IF($Q$1,tblSalaries[[#This Row],[PPP Factor]]*tblSalaries[[#This Row],[Salary in USD]],tblSalaries[[#This Row],[Salary in USD]]) -> 70000
B125: ID0123 | C125: 2012-05-26T00:41:56 | D125: 50000 | E125: 50000 | F125: USD | G125: =tblSalaries[[#This Row],[clean Salary (in local currency)]]*VLOOKUP(tblSalaries[[#This Row],[Currency]],tblXrate[],2,FALSE) -> 50000 | H125: Information Systems Specialist | I125: Specialist | J125: USA | K125: =VLOOKUP(tblSalaries[[#This Row],[Where do you work]],tblCountries[[Actual]:[Mapping]],2,FALSE) -> USA | L125: 4 to 6 hours a day | N125: =VLOOKUP(K125,tblCountries[],3,0) -> North Amer. | O125: =VLOOKUP(tblSalaries[[#This Row],[How many hours of a day you work on Excel]],tblHours,2,0) -> 4 | P125: =VLOOKUP(tblSalaries[[#This Row],[clean Country]],tblCountries[],5,0) -> 1 | Q125: =IF($Q$1,tblSalaries[[#This Row],[PPP Factor]]*tblSalaries[[#This Row],[Salary in USD]],tblSalaries[[#This Row],[Salary in USD]]) -> 50000
B126: ID0124 | C126: 2012-05-26T00:41:58 | D126: 2300000 | E126: 2300000 | F126: INR | G126: =tblSalaries[[#This Row],[clean Salary (in local currency)]]*VLOOKUP(tblSalaries[[#This Row],[Currency]],tblXrate[],2,FALSE) -> 40958.20838 | H126: Analytics lead | I126: Analyst | J126: India | K126: =VLOOKUP(tblSalaries[[#This Row],[Where do you work]],tblCountries[[Actual]:[Mapping]],2,FALSE) -> India | L126: 1 or 2 hours a day | N126: =VLOOKUP(K126,tblCountries[],3,0) -> Asia | O126: =VLOOKUP(tblSalaries[[#This Row],[How many hours of a day you work on Excel]],tblHours,2,0) -> 2 | P126: =VLOOKUP(tblSalaries[[#This Row],[clean Country]],tblCountries[],5,0) -> 13.09880888 | Q126: =IF($Q$1,tblSalaries[[#This Row],[PPP Factor]]*tblSalaries[[#This Row],[Salary in USD]],tblSalaries[[#This Row],[Salary in USD]]) -> 40958.20838
B127: ID0125 | C127: 2012-05-26T00:42:00 | D127: 80000 | E127: 80000 | F127: USD | G127: =tblSalaries[[#This Row],[clean Salary (in local currency)]]*VLOOKUP(tblSalaries[[#This Row],[Currency]],tblXrate[],2,FALSE) -> 80000 | H127: Financial Analyst | I127: Analyst | J127: USA | K127: =VLOOKUP(tblSalaries[[#This Row],[Where do you work]],tblCountries[[Actual]:[Mapping]],2,FALSE) -> USA | L127: 4 to 6 hours a day | N127: =VLOOKUP(K127,tblCountries[],3,0) -> North Amer. | O127: =VLOOKUP(tblSalaries[[#This Row],[How many hours of a day you work on Excel]],tblHours,2,0) -> 4 | P127: =VLOOKUP(tblSalaries[[#This Row],[clean Country]],tblCountries[],5,0) -> 1 | Q127: =IF($Q$1,tblSalaries[[#This Row],[PPP Factor]]*tblSalaries[[#This Row],[Salary in USD]],tblSalaries[[#This Row],[Salary in USD]]) -> 80000
B128: ID0126 | C128: 2012-05-26T00:42:08 | D128: 128000 | E128: 128000 | F128: USD | G128: =tblSalaries[[#This Row],[clean Salary (in local currency)]]*VLOOKUP(tblSalaries[[#This Row],[Currency]],tblXrate[],2,FALSE) -> 128000 | H128: Actuary | I128: Manager | J128: USA | K128: =VLOOKUP(tblSalaries[[#This Row],[Where do you work]],tblCountries[[Actual]:[Mapping]],2,FALSE) -> USA | L128: All the 8 hours baby, all the 8! | N128: =VLOOKUP(K128,tblCountries[],3,0) -> North Amer. | O128: =VLOOKUP(tblSalaries[[#This Row],[How many hours of a day you work on Excel]],tblHours,2,0) -> 5 | P128: =VLOOKUP(tblSalaries[[#This Row],[clean Country]],tblCountries[],5,0) -> 1 | Q128: =IF($Q$1,tblSalaries[[#This Row],[PPP Factor]]*tblSalaries[[#This Row],[Salary in USD]],tblSalaries[[#This Row],[Salary in USD]]) -> 128000
B129: ID0127 | C129: 2012-05-26T00:42:10 | D129: US $44,000 | E129: 44000 | F129: USD | G129: =tblSalaries[[#This Row],[clean Salary (in local currency)]]*VLOOKUP(tblSalaries[[#This Row],[Currency]],tblXrate[],2,FALSE) -> 44000 | H129: School Tech Coordinator | I129: Manager | J129: USA | K129: =VLOOKUP(tblSalaries[[#This Row],[Where do you work]],tblCountries[[Actual]:[Mapping]],2,FALSE) -> USA | L129: 1 or 2 hours a day | N129: =VLOOKUP(K129,tblCountries[],3,0) -> North Amer. | O129: =VLOOKUP(tblSalaries[[#This Row],[How many hours of a day you work on Excel]],tblHours,2,0) -> 2 | P129: =VLOOKUP(tblSalaries[[#This Row],[clean Country]],tblCountries[],5,0) -> 1 | Q129: =IF($Q$1,tblSalaries[[#This Row],[PPP Factor]]*tblSalaries[[#This Row],[Salary in USD]],tblSalaries[[#This Row],[Salary in USD]]) -> 44000
B130: ID0128 | C130: 2012-05-26T00:42:11 | D130: 65000 | E130: 65000 | F130: USD | G130: =tblSalaries[[#This Row],[clean Salary (in local currency)]]*VLOOKUP(tblSalaries[[#This Row],[Currency]],tblXrate[],2,FALSE) -> 65000 | H130: sr accountant | I130: Accountant | J130: USA | K130: =VLOOKUP(tblSalaries[[#This Row],[Where do you work]],tblCountries[[Actual]:[Mapping]],2,FALSE) -> USA | L130: All the 8 hours baby, all the 8! | N130: =VLOOKUP(K130,tblCountries[],3,0) -> North Amer. | O130: =VLOOKUP(tblSalaries[[#This Row],[How many hours of a day you work on Excel]],tblHours,2,0) -> 5 | P130: =VLOOKUP(tblSalaries[[#This Row],[clean Country]],tblCountries[],5,0) -> 1 | Q130: =IF($Q$1,tblSalaries[[#This Row],[PPP Factor]]*tblSalaries[[#This Row],[Salary in USD]],tblSalaries[[#This Row],[Salary in USD]]) -> 65000
B131: ID0129 | C131: 2012-05-26T00:42:32 | D131: 36000 usd | E131: 36000 | F131: USD | G131: =tblSalaries[[#This Row],[clean Salary (in local currency)]]*VLOOKUP(tblSalaries[[#This Row],[Currency]],tblXrate[],2,FALSE) -> 36000 | H131: senior accountant | I131: Accountant | J131: Turkey | K131: =VLOOKUP(tblSalaries[[#This Row],[Where do you work]],tblCountries[[Actual]:[Mapping]],2,FALSE) -> Turkey | L131: 4 to 6 hours a day | N131: =VLOOKUP(K131,tblCountries[],3,0) -> Asia | O131: =VLOOKUP(tblSalaries[[#This Row],[How many hours of a day you work on Excel]],tblHours,2,0) -> 4 | P131: =VLOOKUP(tblSalaries[[#This Row],[clean Country]],tblCountries[],5,0) -> 3.333126679 | Q131: =IF($Q$1,tblSalaries[[#This Row],[PPP Factor]]*tblSalaries[[#This Row],[Salary in USD]],tblSalaries[[#This Row],[Salary in USD]]) -> 36000
B132: ID0130 | C132: 2012-05-26T00:42:34 | D132: 1000 | E132: 12000 | F132: USD | G132: =tblSalaries[[#This Row],[clean Salary (in local currency)]]*VLOOKUP(tblSalaries[[#This Row],[Currency]],tblXrate[],2,FALSE) -> 12000 | H132: Freelance | I132: Consultant | J132: Pakistan | K132: =VLOOKUP(tblSalaries[[#This Row],[Where do you work]],tblCountries[[Actual]:[Mapping]],2,FALSE) -> Pakistan | L132: 1 or 2 hours a day | N132: =VLOOKUP(K132,tblCountries[],3,0) -> Asia | O132: =VLOOKUP(tblSalaries[[#This Row],[How many hours of a day you work on Excel]],tblHours,2,0) -> 2 | P132: =VLOOKUP(tblSalaries[[#This Row],[clean Country]],tblCountries[],5,0) -> 17.36167922 | Q132: =IF($Q$1,tblSalaries[[#This Row],[PPP Factor]]*tblSalaries[[#This Row],[Salary in USD]],tblSalaries[[#This Row],[Salary in USD]]) -> 12000
B133: ID0131 | C133: 2012-05-26T00:42:41 | D133: 28159.2 | E133: 28159 | F133: GBP | G133: =tblSalaries[[#This Row],[clean Salary (in local currency)]]*VLOOKUP(tblSalaries[[#This Row],[Currency]],tblXrate[],2,FALSE) -> 44383.60396 | H133: Data Analyst | I133: Analyst | J133: UK | K133: =VLOOKUP(tblSalaries[[#This Row],[Where do you work]],tblCountries[[Actual]:[Mapping]],2,FALSE) -> UK | L133: All the 8 hours baby, all the 8! | N133: =VLOOKUP(K133,tblCountries[],3,0) -> Europe | O133: =VLOOKUP(tblSalaries[[#This Row],[How many hours of a day you work on Excel]],tblHours,2,0) -> 5 | P133: =VLOOKUP(tblSalaries[[#This Row],[clean Country]],tblCountries[],5,0) -> 1.340731505 | Q133: =IF($Q$1,tblSalaries[[#This Row],[PPP Factor]]*tblSalaries[[#This Row],[Salary in USD]],tblSalaries[[#This Row],[Salary in USD]]) -> 44383.60396
B134: ID0132 | C134: 2012-05-26T00:42:46 | D134: 45000 | E134: 45000 | F134: USD | G134: =tblSalaries[[#This Row],[clean Salary (in local currency)]]*VLOOKUP(tblSalaries[[#This Row],[Currency]],tblXrate[],2,FALSE) -> 45000 | H134: DBA | I134: Analyst | J134: USA | K134: =VLOOKUP(tblSalaries[[#This Row],[Where do you work]],tblCountries[[Actual]:[Mapping]],2,FALSE) -> USA | L134: 4 to 6 hours a day | N134: =VLOOKUP(K134,tblCountries[],3,0) -> North Amer. | O134: =VLOOKUP(tblSalaries[[#This Row],[How many hours of a day you work on Excel]],tblHours,2,0) -> 4 | P134: =VLOOKUP(tblSalaries[[#This Row],[clean Country]],tblCountries[],5,0) -> 1 | Q134: =IF($Q$1,tblSalaries[[#This Row],[PPP Factor]]*tblSalaries[[#This Row],[Salary in USD]],tblSalaries[[#This Row],[Salary in USD]]) -> 45000
B135: ID0133 | C135: 2012-05-26T00:42:58 | D135: 54000 | E135: 54000 | F135: USD | G135: =tblSalaries[[#This Row],[clean Salary (in local currency)]]*VLOOKUP(tblSalaries[[#This Row],[Currency]],tblXrate[],2,FALSE) -> 54000 | H135: Research Analyst | I135: Analyst | J135: USA | K135: =VLOOKUP(tblSalaries[[#This Row],[Where do you work]],tblCountries[[Actual]:[Mapping]],2,FALSE) -> USA | L135: 2 to 3 hours per day | N135: =VLOOKUP(K135,tblCountries[],3,0) -> North Amer. | O135: =VLOOKUP(tblSalaries[[#This Row],[How many hours of a day you work on Excel]],tblHours,2,0) -> 3 | P135: =VLOOKUP(tblSalaries[[#This Row],[clean Country]],tblCountries[],5,0) -> 1 | Q135: =IF($Q$1,tblSalaries[[#This Row],[PPP Factor]]*tblSalaries[[#This Row],[Salary in USD]],tblSalaries[[#This Row],[Salary in USD]]) -> 54000
B136: ID0134 | C136: 2012-05-26T00:43:03 | D136: 70000 | E136: 70000 | F136: GBP | G136: =tblSalaries[[#This Row],[clean Salary (in local currency)]]*VLOOKUP(tblSalaries[[#This Row],[Currency]],tblXrate[],2,FALSE) -> 110332.479 | H136: Project Manager | I136: Manager | J136: UK | K136: =VLOOKUP(tblSalaries[[#This Row],[Where do you work]],tblCountries[[Actual]:[Mapping]],2,FALSE) -> UK | L136: 2 to 3 hours per day | N136: =VLOOKUP(K136,tblCountries[],3,0) -> Europe | O136: =VLOOKUP(tblSalaries[[#This Row],[How many hours of a day you work on Excel]],tblHours,2,0) -> 3 | P136: =VLOOKUP(tblSalaries[[#This Row],[clean Country]],tblCountries[],5,0) -> 1.340731505 | Q136: =IF($Q$1,tblSalaries[[#This Row],[PPP Factor]]*tblSalaries[[#This Row],[Salary in USD]],tblSalaries[[#This Row],[Salary in USD]]) -> 110332.479
B137: ID0135 | C137: 2012-05-26T00:43:07 | D137: 71000 | E137: 71000 | F137: USD | G137: =tblSalaries[[#This Row],[clean Salary (in local currency)]]*VLOOKUP(tblSalaries[[#This Row],[Currency]],tblXrate[],2,FALSE) -> 71000 | H137: Market Research Analyst | I137: Analyst | J137: USA | K137: =VLOOKUP(tblSalaries[[#This Row],[Where do you work]],tblCountries[[Actual]:[Mapping]],2,FALSE) -> USA | L137: 4 to 6 hours a day | N137: =VLOOKUP(K137,tblCountries[],3,0) -> North Amer. | O137: =VLOOKUP(tblSalaries[[#This Row],[How many hours of a day you work on Excel]],tblHours,2,0) -> 4 | P137: =VLOOKUP(tblSalaries[[#This Row],[clean Country]],tblCountries[],5,0) -> 1 | Q137: =IF($Q$1,tblSalaries[[#This Row],[PPP Factor]]*tblSalaries[[#This Row],[Salary in USD]],tblSalaries[[#This Row],[Salary in USD]]) -> 71000
B138: ID0136 | C138: 2012-05-26T00:43:08 | D138: 800000 | E138: 800000 | F138: INR | G138: =tblSalaries[[#This Row],[clean Salary (in local currency)]]*VLOOKUP(tblSalaries[[#This Row],[Currency]],tblXrate[],2,FALSE) -> 14246.33335 | H138: Manager : Accounts | I138: Manager | J138: India | K138: =VLOOKUP(tblSalaries[[#This Row],[Where do you work]],tblCountries[[Actual]:[Mapping]],2,FALSE) -> India | L138: 2 to 3 hours per day | N138: =VLOOKUP(K138,tblCountries[],3,0) -> Asia | O138: =VLOOKUP(tblSalaries[[#This Row],[How many hours of a day you work on Excel]],tblHours,2,0) -> 3 | P138: =VLOOKUP(tblSalaries[[#This Row],[clean Country]],tblCountries[],5,0) -> 13.09880888 | Q138: =IF($Q$1,tblSalaries[[#This Row],[PPP Factor]]*tblSalaries[[#This Row],[Salary in USD]],tblSalaries[[#This Row],[Salary in USD]]) -> 14246.33335
B139: ID0137 | C139: 2012-05-26T00:43:17 | D139: 70000 | E139: 70000 | F139: CAD | G139: =tblSalaries[[#This Row],[clean Salary (in local currency)]]*VLOOKUP(tblSalaries[[#This Row],[Currency]],tblXrate[],2,FALSE) -> 68835.30661 | H139: project manager | I139: Manager | J139: canada | K139: =VLOOKUP(tblSalaries[[#This Row],[Where do you work]],tblCountries[[Actual]:[Mapping]],2,FALSE) -> Canada | L139: 4 to 6 hours a day | N139: =VLOOKUP(K139,tblCountries[],3,0) -> North Amer. | O139: =VLOOKUP(tblSalaries[[#This Row],[How many hours of a day you work on Excel]],tblHours,2,0) -> 4 | P139: =VLOOKUP(tblSalaries[[#This Row],[clean Country]],tblCountries[],5,0) -> 1.193532473 | Q139: =IF($Q$1,tblSalaries[[#This Row],[PPP Factor]]*tblSalaries[[#This Row],[Salary in USD]],tblSalaries[[#This Row],[Salary in USD]]) -> 68835.30661
B140: ID0138 | C140: 2012-05-26T00:43:25 | D140: 50000 | E140: 50000 | F140: CAD | G140: =tblSalaries[[#This Row],[clean Salary (in local currency)]]*VLOOKUP(tblSalaries[[#This Row],[Currency]],tblXrate[],2,FALSE) -> 49168.07615 | H140: Inventory manger | I140: Manager | J140: Canada | K140: =VLOOKUP(tblSalaries[[#This Row],[Where do you work]],tblCountries[[Actual]:[Mapping]],2,FALSE) -> Canada | L140: 4 to 6 hours a day | N140: =VLOOKUP(K140,tblCountries[],3,0) -> North Amer. | O140: =VLOOKUP(tblSalaries[[#This Row],[How many hours of a day you work on Excel]],tblHours,2,0) -> 4 | P140: =VLOOKUP(tblSalaries[[#This Row],[clean Country]],tblCountries[],5,0) -> 1.193532473 | Q140: =IF($Q$1,tblSalaries[[#This Row],[PPP Factor]]*tblSalaries[[#This Row],[Salary in USD]],tblSalaries[[#This Row],[Salary in USD]]) -> 49168.07615
B141: ID0139 | C141: 2012-05-26T00:43:27 | D141: 40000 | E141: 40000 | F141: USD | G141: =tblSalaries[[#This Row],[clean Salary (in local currency)]]*VLOOKUP(tblSalaries[[#This Row],[Currency]],tblXrate[],2,FALSE) -> 40000 | H141: Business Analyst | I141: Analyst | J141: USA | K141: =VLOOKUP(tblSalaries[[#This Row],[Where do you work]],tblCountries[[Actual]:[Mapping]],2,FALSE) -> USA | L141: 4 to 6 hours a day | N141: =VLOOKUP(K141,tblCountries[],3,0) -> North Amer. | O141: =VLOOKUP(tblSalaries[[#This Row],[How many hours of a day you work on Excel]],tblHours,2,0) -> 4 | P141: =VLOOKUP(tblSalaries[[#This Row],[clean Country]],tblCountries[],5,0) -> 1 | Q141: =IF($Q$1,tblSalaries[[#This Row],[PPP Factor]]*tblSalaries[[#This Row],[Salary in USD]],tblSalaries[[#This Row],[Salary in USD]]) -> 40000
B142: ID0140 | C142: 2012-05-26T00:43:34 | D142: $62,000 CND | E142: 62000 | F142: CAD | G142: =tblSalaries[[#This Row],[clean Salary (in local currency)]]*VLOOKUP(tblSalaries[[#This Row],[Currency]],tblXrate[],2,FALSE) -> 60968.41443 | H142: Process Technician | I142: Analyst | J142: Canada | K142: =VLOOKUP(tblSalaries[[#This Row],[Where do you work]],tblCountries[[Actual]:[Mapping]],2,FALSE) -> Canada | L142: 2 to 3 hours per day | N142: =VLOOKUP(K142,tblCountries[],3,0) -> North Amer. | O142: =VLOOKUP(tblSalaries[[#This Row],[How many hours of a day you work on Excel]],tblHours,2,0) -> 3 | P142: =VLOOKUP(tblSalaries[[#This Row],[clean Country]],tblCountries[],5,0) -> 1.193532473 | Q142: =IF($Q$1,tblSalaries[[#This Row],[PPP Factor]]*tblSalaries[[#This Row],[Salary in USD]],tblSalaries[[#This Row],[Salary in USD]]) -> 60968.41443
B143: ID0141 | C143: 2012-05-26T00:43:36 | D143: 28000rs | E143: 336000 | F143: INR | G143: =tblSalaries[[#This Row],[clean Salary (in local currency)]]*VLOOKUP(tblSalaries[[#This Row],[Currency]],tblXrate[],2,FALSE) -> 5983.460007 | H143: MIS Team Leader | I143: Reporting | J143: India | K143: =VLOOKUP(tblSalaries[[#This Row],[Where do you work]],tblCountries[[Actual]:[Mapping]],2,FALSE) -> India | L143: 4 to 6 hours a day | N143: =VLOOKUP(K143,tblCountries[],3,0) -> Asia | O143: =VLOOKUP(tblSalaries[[#This Row],[How many hours of a day you work on Excel]],tblHours,2,0) -> 4 | P143: =VLOOKUP(tblSalaries[[#This Row],[clean Country]],tblCountries[],5,0) -> 13.09880888 | Q143: =IF($Q$1,tblSalaries[[#This Row],[PPP Factor]]*tblSalaries[[#This Row],[Salary in USD]],tblSalaries[[#This Row],[Salary in USD]]) -> 5983.460007
B144: ID0142 | C144: 2012-05-26T00:43:36 | D144: 53000 | E144: 53000 | F144: USD | G144: =tblSalaries[[#This Row],[clean Salary (in local currency)]]*VLOOKUP(tblSalaries[[#This Row],[Currency]],tblXrate[],2,FALSE) -> 53000 | H144: Data Analyst | I144: Analyst | J144: USA | K144: =VLOOKUP(tblSalaries[[#This Row],[Where do you work]],tblCountries[[Actual]:[Mapping]],2,FALSE) -> USA | L144: 4 to 6 hours a day | N144: =VLOOKUP(K144,tblCountries[],3,0) -> North Amer. | O144: =VLOOKUP(tblSalaries[[#This Row],[How many hours of a day you work on Excel]],tblHours,2,0) -> 4 | P144: =VLOOKUP(tblSalaries[[#This Row],[clean Country]],tblCountries[],5,0) -> 1 | Q144: =IF($Q$1,tblSalaries[[#This Row],[PPP Factor]]*tblSalaries[[#This Row],[Salary in USD]],tblSalaries[[#This Row],[Salary in USD]]) -> 53000
B145: ID0143 | C145: 2012-05-26T00:43:49 | D145: 104000 | E145: 104000 | F145: USD | G145: =tblSalaries[[#This Row],[clean Salary (in local currency)]]*VLOOKUP(tblSalaries[[#This Row],[Currency]],tblXrate[],2,FALSE) -> 104000 | H145: Finance Director | I145: CXO or Top Mgmt. | J145: USA | K145: =VLOOKUP(tblSalaries[[#This Row],[Where do you work]],tblCountries[[Actual]:[Mapping]],2,FALSE) -> USA | L145: 2 to 3 hours per day | N145: =VLOOKUP(K145,tblCountries[],3,0) -> North Amer. | O145: =VLOOKUP(tblSalaries[[#This Row],[How many hours of a day you work on Excel]],tblHours,2,0) -> 3 | P145: =VLOOKUP(tblSalaries[[#This Row],[clean Country]],tblCountries[],5,0) -> 1 | Q145: =IF($Q$1,tblSalaries[[#This Row],[PPP Factor]]*tblSalaries[[#This Row],[Salary in USD]],tblSalaries[[#This Row],[Salary in USD]]) -> 104000
B146: ID0144 | C146: 2012-05-26T00:44:02 | D146: 57000 | E146: 57000 | F146: USD | G146: =tblSalaries[[#This Row],[clean Salary (in local currency)]]*VLOOKUP(tblSalaries[[#This Row],[Currency]],tblXrate[],2,FALSE) -> 57000 | H146: Industrial Engineer | I146: Engineer | J146: USA | K146: =VLOOKUP(tblSalaries[[#This Row],[Where do you work]],tblCountries[[Actual]:[Mapping]],2,FALSE) -> USA | L146: 4 to 6 hours a day | N146: =VLOOKUP(K146,tblCountries[],3,0) -> North Amer. | O146: =VLOOKUP(tblSalaries[[#This Row],[How many hours of a day you work on Excel]],tblHours,2,0) -> 4 | P146: =VLOOKUP(tblSalaries[[#This Row],[clean Country]],tblCountries[],5,0) -> 1 | Q146: =IF($Q$1,tblSalaries[[#This Row],[PPP Factor]]*tblSalaries[[#This Row],[Salary in USD]],tblSalaries[[#This Row],[Salary in USD]]) -> 57000
B147: ID0145 | C147: 2012-05-26T00:44:09 | D147: 45000 | E147: 45000 | F147: USD | G147: =tblSalaries[[#This Row],[clean Salary (in local currency)]]*VLOOKUP(tblSalaries[[#This Row],[Currency]],tblXrate[],2,FALSE) -> 45000 | H147: data analyst | I147: Analyst | J147: USA | K147: =VLOOKUP(tblSalaries[[#This Row],[Where do you work]],tblCountries[[Actual]:[Mapping]],2,FALSE) -> USA | L147: 2 to 3 hours per day | N147: =VLOOKUP(K147,tblCountries[],3,0) -> North Amer. | O147: =VLOOKUP(tblSalaries[[#This Row],[How many hours of a day you work on Excel]],tblHours,2,0) -> 3 | P147: =VLOOKUP(tblSalaries[[#This Row],[clean Country]],tblCountries[],5,0) -> 1 | Q147: =IF($Q$1,tblSalaries[[#This Row],[PPP Factor]]*tblSalaries[[#This Row],[Salary in USD]],tblSalaries[[#This Row],[Salary in USD]]) -> 45000
B148: ID0146 | C148: 2012-05-26T00:44:15 | D148: 92000 | E148: 92000 | F148: USD | G148: =tblSalaries[[#This Row],[clean Salary (in local currency)]]*VLOOKUP(tblSalaries[[#This Row],[Currency]],tblXrate[],2,FALSE) -> 92000 | H148: Senior Financial & Systems Analyst | I148: Analyst | J148: USA | K148: =VLOOKUP(tblSalaries[[#This Row],[Where do you work]],tblCountries[[Actual]:[Mapping]],2,FALSE) -> USA | L148: 4 to 6 hours a day | N148: =VLOOKUP(K148,tblCountries[],3,0) -> North Amer. | O148: =VLOOKUP(tblSalaries[[#This Row],[How many hours of a day you work on Excel]],tblHours,2,0) -> 4 | P148: =VLOOKUP(tblSalaries[[#This Row],[clean Country]],tblCountries[],5,0) -> 1 | Q148: =IF($Q$1,tblSalaries[[#This Row],[PPP Factor]]*tblSalaries[[#This Row],[Salary in USD]],tblSalaries[[#This Row],[Salary in USD]]) -> 92000
B149: ID0147 | C149: 2012-05-26T00:44:18 | D149: 88000 | E149: 88000 | F149: USD | G149: =tblSalaries[[#This Row],[clean Salary (in local currency)]]*VLOOKUP(tblSalaries[[#This Row],[Currency]],tblXrate[],2,FALSE) -> 88000 | H149: project manager - metrics | I149: Manager | J149: USA | K149: =VLOOKUP(tblSalaries[[#This Row],[Where do you work]],tblCountries[[Actual]:[Mapping]],2,FALSE) -> USA | L149: 4 to 6 hours a day | N149: =VLOOKUP(K149,tblCountries[],3,0) -> North Amer. | O149: =VLOOKUP(tblSalaries[[#This Row],[How many hours of a day you work on Excel]],tblHours,2,0) -> 4 | P149: =VLOOKUP(tblSalaries[[#This Row],[clean Country]],tblCountries[],5,0) -> 1 | Q149: =IF($Q$1,tblSalaries[[#This Row],[PPP Factor]]*tblSalaries[[#This Row],[Salary in USD]],tblSalaries[[#This Row],[Salary in USD]]) -> 88000
B150: ID0148 | C150: 2012-05-26T00:44:20 | D150: 80000 | E150: 80000 | F150: USD | G150: =tblSalaries[[#This Row],[clean Salary (in local currency)]]*VLOOKUP(tblSalaries[[#This Row],[Currency]],tblXrate[],2,FALSE) -> 80000 | H150: Informatics Research Analyst | I150: Analyst | J150: USA | K150: =VLOOKUP(tblSalaries[[#This Row],[Where do you work]],tblCountries[[Actual]:[Mapping]],2,FALSE) -> USA | L150: 2 to 3 hours per day | N150: =VLOOKUP(K150,tblCountries[],3,0) -> North Amer. | O150: =VLOOKUP(tblSalaries[[#This Row],[How many hours of a day you work on Excel]],tblHours,2,0) -> 3 | P150: =VLOOKUP(tblSalaries[[#This Row],[clean Country]],tblCountries[],5,0) -> 1 | Q150: =IF($Q$1,tblSalaries[[#This Row],[PPP Factor]]*tblSalaries[[#This Row],[Salary in USD]],tblSalaries[[#This Row],[Salary in USD]]) -> 80000
B151: ID0149 | C151: 2012-05-26T00:44:22 | D151: 69000 | E151: 69000 | F151: USD | G151: =tblSalaries[[#This Row],[clean Salary (in local currency)]]*VLOOKUP(tblSalaries[[#This Row],[Currency]],tblXrate[],2,FALSE) -> 69000 | H151: Business Technical Consultant | I151: Consultant | J151: USA | K151: =VLOOKUP(tblSalaries[[#This Row],[Where do you work]],tblCountries[[Actual]:[Mapping]],2,FALSE) -> USA | L151: 4 to 6 hours a day | N151: =VLOOKUP(K151,tblCountries[],3,0) -> North Amer. | O151: =VLOOKUP(tblSalaries[[#This Row],[How many hours of a day you work on Excel]],tblHours,2,0) -> 4 | P151: =VLOOKUP(tblSalaries[[#This Row],[clean Country]],tblCountries[],5,0) -> 1 | Q151: =IF($Q$1,tblSalaries[[#This Row],[PPP Factor]]*tblSalaries[[#This Row],[Salary in USD]],tblSalaries[[#This Row],[Salary in USD]]) -> 69000
B152: ID0150 | C152: 2012-05-26T00:44:23 | D152: 50000 | E152: 50000 | F152: USD | G152: =tblSalaries[[#This Row],[clean Salary (in local currency)]]*VLOOKUP(tblSalaries[[#This Row],[Currency]],tblXrate[],2,FALSE) -> 50000 | H152: Business Operations Reporting Analyst | I152: Analyst | J152: Mexico | K152: =VLOOKUP(tblSalaries[[#This Row],[Where do you work]],tblCountries[[Actual]:[Mapping]],2,FALSE) -> Mexico | L152: All the 8 hours baby, all the 8! | N152: =VLOOKUP(K152,tblCountries[],3,0) -> North Amer. | O152: =VLOOKUP(tblSalaries[[#This Row],[How many hours of a day you work on Excel]],tblHours,2,0) -> 5 | P152: =VLOOKUP(tblSalaries[[#This Row],[clean Country]],tblCountries[],5,0) -> 3.311909651 | Q152: =IF($Q$1,tblSalaries[[#This Row],[PPP Factor]]*tblSalaries[[#This Row],[Salary in USD]],tblSalaries[[#This Row],[Salary in USD]]) -> 50000
B153: ID0151 | C153: 2012-05-26T00:44:40 | D153: 35000 | E153: 35000 | F153: USD | G153: =tblSalaries[[#This Row],[clean Salary (in local currency)]]*VLOOKUP(tblSalaries[[#This Row],[Currency]],tblXrate[],2,FALSE) -> 35000 | H153: Program Services Coordinator | I153: Manager | J153: USA | K153: =VLOOKUP(tblSalaries[[#This Row],[Where do you work]],tblCountries[[Actual]:[Mapping]],2,FALSE) -> USA | L153: 2 to 3 hours per day | N153: =VLOOKUP(K153,tblCountries[],3,0) -> North Amer. | O153: =VLOOKUP(tblSalaries[[#This Row],[How many hours of a day you work on Excel]],tblHours,2,0) -> 3 | P153: =VLOOKUP(tblSalaries[[#This Row],[clean Country]],tblCountries[],5,0) -> 1 | Q153: =IF($Q$1,tblSalaries[[#This Row],[PPP Factor]]*tblSalaries[[#This Row],[Salary in USD]],tblSalaries[[#This Row],[Salary in USD]]) -> 35000
B154: ID0152 | C154: 2012-05-26T00:44:59 | D154: 96000 | E154: 96000 | F154: USD | G154: =tblSalaries[[#This Row],[clean Salary (in local currency)]]*VLOOKUP(tblSalaries[[#This Row],[Currency]],tblXrate[],2,FALSE) -> 96000 | H154: Specialist - Finance Planning and Analysis | I154: Analyst | J154: USA | K154: =VLOOKUP(tblSalaries[[#This Row],[Where do you work]],tblCountries[[Actual]:[Mapping]],2,FALSE) -> USA | L154: 4 to 6 hours a day | N154: =VLOOKUP(K154,tblCountries[],3,0) -> North Amer. | O154: =VLOOKUP(tblSalaries[[#This Row],[How many hours of a day you work on Excel]],tblHours,2,0) -> 4 | P154: =VLOOKUP(tblSalaries[[#This Row],[clean Country]],tblCountries[],5,0) -> 1 | Q154: =IF($Q$1,tblSalaries[[#This Row],[PPP Factor]]*tblSalaries[[#This Row],[Salary in USD]],tblSalaries[[#This Row],[Salary in USD]]) -> 96000
B155: ID0153 | C155: 2012-05-26T00:45:00 | D155: 65000 | E155: 65000 | F155: USD | G155: =tblSalaries[[#This Row],[clean Salary (in local currency)]]*VLOOKUP(tblSalaries[[#This Row],[Currency]],tblXrate[],2,FALSE) -> 65000 | H155: Sr Accountant | I155: Accountant | J155: USA | K155: =VLOOKUP(tblSalaries[[#This Row],[Where do you work]],tblCountries[[Actual]:[Mapping]],2,FALSE) -> USA | L155: All the 8 hours baby, all the 8! | N155: =VLOOKUP(K155,tblCountries[],3,0) -> North Amer. | O155: =VLOOKUP(tblSalaries[[#This Row],[How many hours of a day you work on Excel]],tblHours,2,0) -> 5 | P155: =VLOOKUP(tblSalaries[[#This Row],[clean Country]],tblCountries[],5,0) -> 1 | Q155: =IF($Q$1,tblSalaries[[#This Row],[PPP Factor]]*tblSalaries[[#This Row],[Salary in USD]],tblSalaries[[#This Row],[Salary in USD]]) -> 65000
B156: ID0154 | C156: 2012-05-26T00:45:06 | D156: 37440 | E156: 37440 | F156: USD | G156: =tblSalaries[[#This Row],[clean Salary (in local currency)]]*VLOOKUP(tblSalaries[[#This Row],[Currency]],tblXrate[],2,FALSE) -> 37440 | H156: sales analyst | I156: Analyst | J156: USA | K156: =VLOOKUP(tblSalaries[[#This Row],[Where do you work]],tblCountries[[Actual]:[Mapping]],2,FALSE) -> USA | L156: All the 8 hours baby, all the 8! | N156: =VLOOKUP(K156,tblCountries[],3,0) -> North Amer. | O156: =VLOOKUP(tblSalaries[[#This Row],[How many hours of a day you work on Excel]],tblHours,2,0) -> 5 | P156: =VLOOKUP(tblSalaries[[#This Row],[clean Country]],tblCountries[],5,0) -> 1 | Q156: =IF($Q$1,tblSalaries[[#This Row],[PPP Factor]]*tblSalaries[[#This Row],[Salary in USD]],tblSalaries[[#This Row],[Salary in USD]]) -> 37440
B157: ID0155 | C157: 2012-05-26T00:45:11 | D157: 15500 | E157: 15500 | F157: USD | G157: =tblSalaries[[#This Row],[clean Salary (in local currency)]]*VLOOKUP(tblSalaries[[#This Row],[Currency]],tblXrate[],2,FALSE) -> 15500 | H157: Proces auditor | I157: Accountant | J157: Mexico | K157: =VLOOKUP(tblSalaries[[#This Row],[Where do you work]],tblCountries[[Actual]:[Mapping]],2,FALSE) -> Mexico | L157: All the 8 hours baby, all the 8! | N157: =VLOOKUP(K157,tblCountries[],3,0) -> North Amer. | O157: =VLOOKUP(tblSalaries[[#This Row],[How many hours of a day you work on Excel]],tblHours,2,0) -> 5 | P157: =VLOOKUP(tblSalaries[[#This Row],[clean Country]],tblCountries[],5,0) -> 3.311909651 | Q157: =IF($Q$1,tblSalaries[[#This Row],[PPP Factor]]*tblSalaries[[#This Row],[Salary in USD]],tblSalaries[[#This Row],[Salary in USD]]) -> 15500
B158: ID0156 | C158: 2012-05-26T00:45:17 | D158: 90000 USD | E158: 90000 | F158: USD | G158: =tblSalaries[[#This Row],[clean Salary (in local currency)]]*VLOOKUP(tblSalaries[[#This Row],[Currency]],tblXrate[],2,FALSE) -> 90000 | H158: Senior Data Quality Analyst | I158: Analyst | J158: USA | K158: =VLOOKUP(tblSalaries[[#This Row],[Where do you work]],tblCountries[[Actual]:[Mapping]],2,FALSE) -> USA | L158: 2 to 3 hours per day | N158: =VLOOKUP(K158,tblCountries[],3,0) -> North Amer. | O158: =VLOOKUP(tblSalaries[[#This Row],[How many hours of a day you work on Excel]],tblHours,2,0) -> 3 | P158: =VLOOKUP(tblSalaries[[#This Row],[clean Country]],tblCountries[],5,0) -> 1 | Q158: =IF($Q$1,tblSalaries[[#This Row],[PPP Factor]]*tblSalaries[[#This Row],[Salary in USD]],tblSalaries[[#This Row],[Salary in USD]]) -> 90000
B159: ID0157 | C159: 2012-05-26T00:45:46 | D159: 66500 | E159: 66500 | F159: USD | G159: =tblSalaries[[#This Row],[clean Salary (in local currency)]]*VLOOKUP(tblSalaries[[#This Row],[Currency]],tblXrate[],2,FALSE) -> 66500 | H159: Sr Business Analyst | I159: Analyst | J159: USA | K159: =VLOOKUP(tblSalaries[[#This Row],[Where do you work]],tblCountries[[Actual]:[Mapping]],2,FALSE) -> USA | L159: All the 8 hours baby, all the 8! | N159: =VLOOKUP(K159,tblCountries[],3,0) -> North Amer. | O159: =VLOOKUP(tblSalaries[[#This Row],[How many hours of a day you work on Excel]],tblHours,2,0) -> 5 | P159: =VLOOKUP(tblSalaries[[#This Row],[clean Country]],tblCountries[],5,0) -> 1 | Q159: =IF($Q$1,tblSalaries[[#This Row],[PPP Factor]]*tblSalaries[[#This Row],[Salary in USD]],tblSalaries[[#This Row],[Salary in USD]]) -> 66500
B160: ID0158 | C160: 2012-05-26T00:45:49 | D160: 100000 | E160: 100000 | F160: USD | G160: =tblSalaries[[#This Row],[clean Salary (in local currency)]]*VLOOKUP(tblSalaries[[#This Row],[Currency]],tblXrate[],2,FALSE) -> 100000 | H160: COST ACCOUNTANT | I160: Accountant | J160: USA | K160: =VLOOKUP(tblSalaries[[#This Row],[Where do you work]],tblCountries[[Actual]:[Mapping]],2,FALSE) -> USA | L160: All the 8 hours baby, all the 8! | N160: =VLOOKUP(K160,tblCountries[],3,0) -> North Amer. | O160: =VLOOKUP(tblSalaries[[#This Row],[How many hours of a day you work on Excel]],tblHours,2,0) -> 5 | P160: =VLOOKUP(tblSalaries[[#This Row],[clean Country]],tblCountries[],5,0) -> 1 | Q160: =IF($Q$1,tblSalaries[[#This Row],[PPP Factor]]*tblSalaries[[#This Row],[Salary in USD]],tblSalaries[[#This Row],[Salary in USD]]) -> 100000
B161: ID0159 | C161: 2012-05-26T00:45:51 | D161: Â£32250 | E161: 32250 | F161: GBP | G161: =tblSalaries[[#This Row],[clean Salary (in local currency)]]*VLOOKUP(tblSalaries[[#This Row],[Currency]],tblXrate[],2,FALSE) -> 50831.74927 | H161: project Support | I161: Manager | J161: UK | K161: =VLOOKUP(tblSalaries[[#This Row],[Where do you work]],tblCountries[[Actual]:[Mapping]],2,FALSE) -> UK | L161: 4 to 6 hours a day | N161: =VLOOKUP(K161,tblCountries[],3,0) -> Europe | O161: =VLOOKUP(tblSalaries[[#This Row],[How many hours of a day you work on Excel]],tblHours,2,0) -> 4 | P161: =VLOOKUP(tblSalaries[[#This Row],[clean Country]],tblCountries[],5,0) -> 1.340731505 | Q161: =IF($Q$1,tblSalaries[[#This Row],[PPP Factor]]*tblSalaries[[#This Row],[Salary in USD]],tblSalaries[[#This Row],[Salary in USD]]) -> 50831.74927
B162: ID0160 | C162: 2012-05-26T00:45:53 | D162: 420000 | E162: 420000 | F162: INR | G162: =tblSalaries[[#This Row],[clean Salary (in local currency)]]*VLOOKUP(tblSalaries[[#This Row],[Currency]],tblXrate[],2,FALSE) -> 7479.325009 | H162: managerial | I162: Manager | J162: India | K162: =VLOOKUP(tblSalaries[[#This Row],[Where do you work]],tblCountries[[Actual]:[Mapping]],2,FALSE) -> India | L162: 1 or 2 hours a day | N162: =VLOOKUP(K162,tblCountries[],3,0) -> Asia | O162: =VLOOKUP(tblSalaries[[#This Row],[How many hours of a day you work on Excel]],tblHours,2,0) -> 2 | P162: =VLOOKUP(tblSalaries[[#This Row],[clean Country]],tblCountries[],5,0) -> 13.09880888 | Q162: =IF($Q$1,tblSalaries[[#This Row],[PPP Factor]]*tblSalaries[[#This Row],[Salary in USD]],tblSalaries[[#This Row],[Salary in USD]]) -> 7479.325009
B163: ID0161 | C163: 2012-05-26T00:46:00 | D163: 75000 | E163: 75000 | F163: USD | G163: =tblSalaries[[#This Row],[clean Salary (in local currency)]]*VLOOKUP(tblSalaries[[#This Row],[Currency]],tblXrate[],2,FALSE) -> 75000 | H163: Program Analyst | I163: Analyst | J163: USA | K163: =VLOOKUP(tblSalaries[[#This Row],[Where do you work]],tblCountries[[Actual]:[Mapping]],2,FALSE) -> USA | L163: 1 or 2 hours a day | N163: =VLOOKUP(K163,tblCountries[],3,0) -> North Amer. | O163: =VLOOKUP(tblSalaries[[#This Row],[How many hours of a day you work on Excel]],tblHours,2,0) -> 2 | P163: =VLOOKUP(tblSalaries[[#This Row],[clean Country]],tblCountries[],5,0) -> 1 | Q163: =IF($Q$1,tblSalaries[[#This Row],[PPP Factor]]*tblSalaries[[#This Row],[Salary in USD]],tblSalaries[[#This Row],[Salary in USD]]) -> 75000
B164: ID0162 | C164: 2012-05-26T00:46:25 | D164: 58 | E164: 58000 | F164: USD | G164: =tblSalaries[[#This Row],[clean Salary (in local currency)]]*VLOOKUP(tblSalaries[[#This Row],[Currency]],tblXrate[],2,FALSE) -> 58000 | H164: Team Lead - Computer Discounts | I164: Manager | J164: Canada | K164: =VLOOKUP(tblSalaries[[#This Row],[Where do you work]],tblCountries[[Actual]:[Mapping]],2,FALSE) -> Canada | L164: 1 or 2 hours a day | N164: =VLOOKUP(K164,tblCountries[],3,0) -> North Amer. | O164: =VLOOKUP(tblSalaries[[#This Row],[How many hours of a day you work on Excel]],tblHours,2,0) -> 2 | P164: =VLOOKUP(tblSalaries[[#This Row],[clean Country]],tblCountries[],5,0) -> 1.193532473 | Q164: =IF($Q$1,tblSalaries[[#This Row],[PPP Factor]]*tblSalaries[[#This Row],[Salary in USD]],tblSalaries[[#This Row],[Salary in USD]]) -> 58000
B165: ID0163 | C165: 2012-05-26T00:46:29 | D165: 55000 | E165: 55000 | F165: USD | G165: =tblSalaries[[#This Row],[clean Salary (in local currency)]]*VLOOKUP(tblSalaries[[#This Row],[Currency]],tblXrate[],2,FALSE) -> 55000 | H165: Change Architect | I165: Manager | J165: USA | K165: =VLOOKUP(tblSalaries[[#This Row],[Where do you work]],tblCountries[[Actual]:[Mapping]],2,FALSE) -> USA | L165: 2 to 3 hours per day | N165: =VLOOKUP(K165,tblCountries[],3,0) -> North Amer. | O165: =VLOOKUP(tblSalaries[[#This Row],[How many hours of a day you work on Excel]],tblHours,2,0) -> 3 | P165: =VLOOKUP(tblSalaries[[#This Row],[clean Country]],tblCountries[],5,0) -> 1 | Q165: =IF($Q$1,tblSalaries[[#This Row],[PPP Factor]]*tblSalaries[[#This Row],[Salary in USD]],tblSalaries[[#This Row],[Salary in USD]]) -> 55000
B166: ID0164 | C166: 2012-05-26T00:47:42 | D166: 60000 | E166: 60000 | F166: USD | G166: =tblSalaries[[#This Row],[clean Salary (in local currency)]]*VLOOKUP(tblSalaries[[#This Row],[Currency]],tblXrate[],2,FALSE) -> 60000 | H166: Telecom Technician | I166: Analyst | J166: USA | K166: =VLOOKUP(tblSalaries[[#This Row],[Where do you work]],tblCountries[[Actual]:[Mapping]],2,FALSE) -> USA | L166: 4 to 6 hours a day | N166: =VLOOKUP(K166,tblCountries[],3,0) -> North Amer. | O166: =VLOOKUP(tblSalaries[[#This Row],[How many hours of a day you work on Excel]],tblHours,2,0) -> 4 | P166: =VLOOKUP(tblSalaries[[#This Row],[clean Country]],tblCountries[],5,0) -> 1 | Q166: =IF($Q$1,tblSalaries[[#This Row],[PPP Factor]]*tblSalaries[[#This Row],[Salary in USD]],tblSalaries[[#This Row],[Salary in USD]]) -> 60000
B167: ID0165 | C167: 2012-05-26T00:47:45 | D167: Rs. 1300000 | E167: 1300000 | F167: INR | G167: =tblSalaries[[#This Row],[clean Salary (in local currency)]]*VLOOKUP(tblSalaries[[#This Row],[Currency]],tblXrate[],2,FALSE) -> 23150.29169 | H167: Manager | I167: Manager | J167: India | K167: =VLOOKUP(tblSalaries[[#This Row],[Where do you work]],tblCountries[[Actual]:[Mapping]],2,FALSE) -> India | L167: 4 to 6 hours a day | N167: =VLOOKUP(K167,tblCountries[],3,0) -> Asia | O167: =VLOOKUP(tblSalaries[[#This Row],[How many hours of a day you work on Excel]],tblHours,2,0) -> 4 | P167: =VLOOKUP(tblSalaries[[#This Row],[clean Country]],tblCountries[],5,0) -> 13.09880888 | Q167: =IF($Q$1,tblSalaries[[#This Row],[PPP Factor]]*tblSalaries[[#This Row],[Salary in USD]],tblSalaries[[#This Row],[Salary in USD]]) -> 23150.29169
B168: ID0166 | C168: 2012-05-26T00:47:50 | D168: 107000 | E168: 107000 | F168: CAD | G168: =tblSalaries[[#This Row],[clean Salary (in local currency)]]*VLOOKUP(tblSalaries[[#This Row],[Currency]],tblXrate[],2,FALSE) -> 105219.683 | H168: Manager, Asset Optimization | I168: Manager | J168: Canada | K168: =VLOOKUP(tblSalaries[[#This Row],[Where do you work]],tblCountries[[Actual]:[Mapping]],2,FALSE) -> Canada | L168: 2 to 3 hours per day | N168: =VLOOKUP(K168,tblCountries[],3,0) -> North Amer. | O168: =VLOOKUP(tblSalaries[[#This Row],[How many hours of a day you work on Excel]],tblHours,2,0) -> 3 | P168: =VLOOKUP(tblSalaries[[#This Row],[clean Country]],tblCountries[],5,0) -> 1.193532473 | Q168: =IF($Q$1,tblSalaries[[#This Row],[PPP Factor]]*tblSalaries[[#This Row],[Salary in USD]],tblSalaries[[#This Row],[Salary in USD]]) -> 105219.683
B169: ID0167 | C169: 2012-05-26T00:47:57 | D169: 145000 | E169: 145000 | F169: USD | G169: =tblSalaries[[#This Row],[clean Salary (in local currency)]]*VLOOKUP(tblSalaries[[#This Row],[Currency]],tblXrate[],2,FALSE) -> 145000 | H169: Financialcontroller | I169: Controller | J169: Switzerland | K169: =VLOOKUP(tblSalaries[[#This Row],[Where do you work]],tblCountries[[Actual]:[Mapping]],2,FALSE) -> Switzerland | L169: All the 8 hours baby, all the 8! | N169: =VLOOKUP(K169,tblCountries[],3,0) -> Europe | O169: =VLOOKUP(tblSalaries[[#This Row],[How many hours of a day you work on Excel]],tblHours,2,0) -> 5 | P169: =VLOOKUP(tblSalaries[[#This Row],[clean Country]],tblCountries[],5,0) -> 1.115679041 | Q169: =IF($Q$1,tblSalaries[[#This Row],[PPP Factor]]*tblSalaries[[#This Row],[Salary in USD]],tblSalaries[[#This Row],[Salary in USD]]) -> 145000
B170: ID0168 | C170: 2012-05-26T00:48:04 | D170: 22880 | E170: 22880 | F170: USD | G170: =tblSalaries[[#This Row],[clean Salary (in local currency)]]*VLOOKUP(tblSalaries[[#This Row],[Currency]],tblXrate[],2,FALSE) -> 22880 | H170: Accounting | I170: Accountant | J170: USA | K170: =VLOOKUP(tblSalaries[[#This Row],[Where do you work]],tblCountries[[Actual]:[Mapping]],2,FALSE) -> USA | L170: 4 to 6 hours a day | N170: =VLOOKUP(K170,tblCountries[],3,0) -> North Amer. | O170: =VLOOKUP(tblSalaries[[#This Row],[How many hours of a day you work on Excel]],tblHours,2,0) -> 4 | P170: =VLOOKUP(tblSalaries[[#This Row],[clean Country]],tblCountries[],5,0) -> 1 | Q170: =IF($Q$1,tblSalaries[[#This Row],[PPP Factor]]*tblSalaries[[#This Row],[Salary in USD]],tblSalaries[[#This Row],[Salary in USD]]) -> 22880
B171: ID0169 | C171: 2012-05-26T00:48:07 | D171: 80000 | E171: 80000 | F171: USD | G171: =tblSalaries[[#This Row],[clean Salary (in local currency)]]*VLOOKUP(tblSalaries[[#This Row],[Currency]],tblXrate[],2,FALSE) -> 80000 | H171: Consultant, HR Services & Governance | I171: Consultant | J171: USA | K171: =VLOOKUP(tblSalaries[[#This Row],[Where do you work]],tblCountries[[Actual]:[Mapping]],2,FALSE) -> USA | L171: 4 to 6 hours a day | N171: =VLOOKUP(K171,tblCountries[],3,0) -> North Amer. | O171: =VLOOKUP(tblSalaries[[#This Row],[How many hours of a day you work on Excel]],tblHours,2,0) -> 4 | P171: =VLOOKUP(tblSalaries[[#This Row],[clean Country]],tblCountries[],5,0) -> 1 | Q171: =IF($Q$1,tblSalaries[[#This Row],[PPP Factor]]*tblSalaries[[#This Row],[Salary in USD]],tblSalaries[[#This Row],[Salary in USD]]) -> 80000
B172: ID0170 | C172: 2012-05-26T00:48:11 | D172: Rs 5 lakh | E172: 500000 | F172: INR | G172: =tblSalaries[[#This Row],[clean Salary (in local currency)]]*VLOOKUP(tblSalaries[[#This Row],[Currency]],tblXrate[],2,FALSE) -> 8903.958344 | H172: QA Executive | I172: Analyst | J172: India | K172: =VLOOKUP(tblSalaries[[#This Row],[Where do you work]],tblCountries[[Actual]:[Mapping]],2,FALSE) -> India | L172: 2 to 3 hours per day | N172: =VLOOKUP(K172,tblCountries[],3,0) -> Asia | O172: =VLOOKUP(tblSalaries[[#This Row],[How many hours of a day you work on Excel]],tblHours,2,0) -> 3 | P172: =VLOOKUP(tblSalaries[[#This Row],[clean Country]],tblCountries[],5,0) -> 13.09880888 | Q172: =IF($Q$1,tblSalaries[[#This Row],[PPP Factor]]*tblSalaries[[#This Row],[Salary in USD]],tblSalaries[[#This Row],[Salary in USD]]) -> 8903.958344
B173: ID0171 | C173: 2012-05-26T00:48:46 | D173: 90000 | E173: 90000 | F173: CAD | G173: =tblSalaries[[#This Row],[clean Salary (in local currency)]]*VLOOKUP(tblSalaries[[#This Row],[Currency]],tblXrate[],2,FALSE) -> 88502.53707 | H173: Senior Actuarial Analyst | I173: Analyst | J173: Canada | K173: =VLOOKUP(tblSalaries[[#This Row],[Where do you work]],tblCountries[[Actual]:[Mapping]],2,FALSE) -> Canada | L173: 4 to 6 hours a day | N173: =VLOOKUP(K173,tblCountries[],3,0) -> North Amer. | O173: =VLOOKUP(tblSalaries[[#This Row],[How many hours of a day you work on Excel]],tblHours,2,0) -> 4 | P173: =VLOOKUP(tblSalaries[[#This Row],[clean Country]],tblCountries[],5,0) -> 1.193532473 | Q173: =IF($Q$1,tblSalaries[[#This Row],[PPP Factor]]*tblSalaries[[#This Row],[Salary in USD]],tblSalaries[[#This Row],[Salary in USD]]) -> 88502.53707
B174: ID0172 | C174: 2012-05-26T00:48:48 | D174: 180000 | E174: 180000 | F174: INR | G174: =tblSalaries[[#This Row],[clean Salary (in local currency)]]*VLOOKUP(tblSalaries[[#This Row],[Currency]],tblXrate[],2,FALSE) -> 3205.425004 | H174: Sr. Associate | I174: Analyst | J174: India | K174: =VLOOKUP(tblSalaries[[#This Row],[Where do you work]],tblCountries[[Actual]:[Mapping]],2,FALSE) -> India | L174: 4 to 6 hours a day | N174: =VLOOKUP(K174,tblCountries[],3,0) -> Asia | O174: =VLOOKUP(tblSalaries[[#This Row],[How many hours of a day you work on Excel]],tblHours,2,0) -> 4 | P174: =VLOOKUP(tblSalaries[[#This Row],[clean Country]],tblCountries[],5,0) -> 13.09880888 | Q174: =IF($Q$1,tblSalaries[[#This Row],[PPP Factor]]*tblSalaries[[#This Row],[Salary in USD]],tblSalaries[[#This Row],[Salary in USD]]) -> 3205.425004
B175: ID0173 | C175: 2012-05-26T00:48:48 | D175: 46584 | E175: 46584 | F175: USD | G175: =tblSalaries[[#This Row],[clean Salary (in local currency)]]*VLOOKUP(tblSalaries[[#This Row],[Currency]],tblXrate[],2,FALSE) -> 46584 | H175: Budget Analyst | I175: Analyst | J175: USA | K175: =VLOOKUP(tblSalaries[[#This Row],[Where do you work]],tblCountries[[Actual]:[Mapping]],2,FALSE) -> USA | L175: 4 to 6 hours a day | N175: =VLOOKUP(K175,tblCountries[],3,0) -> North Amer. | O175: =VLOOKUP(tblSalaries[[#This Row],[How many hours of a day you work on Excel]],tblHours,2,0) -> 4 | P175: =VLOOKUP(tblSalaries[[#This Row],[clean Country]],tblCountries[],5,0) -> 1 | Q175: =IF($Q$1,tblSalaries[[#This Row],[PPP Factor]]*tblSalaries[[#This Row],[Salary in USD]],tblSalaries[[#This Row],[Salary in USD]]) -> 46584
B176: ID0174 | C176: 2012-05-26T00:48:48 | D176: 67000 | E176: 67000 | F176: USD | G176: =tblSalaries[[#This Row],[clean Salary (in local currency)]]*VLOOKUP(tblSalaries[[#This Row],[Currency]],tblXrate[],2,FALSE) -> 67000 | H176: B.I. Data Analyst II | I176: Analyst | J176: USA | K176: =VLOOKUP(tblSalaries[[#This Row],[Where do you work]],tblCountries[[Actual]:[Mapping]],2,FALSE) -> USA | L176: 4 to 6 hours a day | N176: =VLOOKUP(K176,tblCountries[],3,0) -> North Amer. | O176: =VLOOKUP(tblSalaries[[#This Row],[How many hours of a day you work on Excel]],tblHours,2,0) -> 4 | P176: =VLOOKUP(tblSalaries[[#This Row],[clean Country]],tblCountries[],5,0) -> 1 | Q176: =IF($Q$1,tblSalaries[[#This Row],[PPP Factor]]*tblSalaries[[#This Row],[Salary in USD]],tblSalaries[[#This Row],[Salary in USD]]) -> 67000
B177: ID0175 | C177: 2012-05-26T00:48:57 | D177: Rd. 11 lakhs | E177: 1100000 | F177: INR | G177: =tblSalaries[[#This Row],[clean Salary (in local currency)]]*VLOOKUP(tblSalaries[[#This Row],[Currency]],tblXrate[],2,FALSE) -> 19588.70836 | H177: Asst manager investor relations and business analytics | I177: Manager | J177: India | K177: =VLOOKUP(tblSalaries[[#This Row],[Where do you work]],tblCountries[[Actual]:[Mapping]],2,FALSE) -> India | L177: 4 to 6 hours a day | N177: =VLOOKUP(K177,tblCountries[],3,0) -> Asia | O177: =VLOOKUP(tblSalaries[[#This Row],[How many hours of a day you work on Excel]],tblHours,2,0) -> 4 | P177: =VLOOKUP(tblSalaries[[#This Row],[clean Country]],tblCountries[],5,0) -> 13.09880888 | Q177: =IF($Q$1,tblSalaries[[#This Row],[PPP Factor]]*tblSalaries[[#This Row],[Salary in USD]],tblSalaries[[#This Row],[Salary in USD]]) -> 19588.70836
B178: ID0176 | C178: 2012-05-26T00:49:18 | D178: 92000 | E178: 92000 | F178: USD | G178: =tblSalaries[[#This Row],[clean Salary (in local currency)]]*VLOOKUP(tblSalaries[[#This Row],[Currency]],tblXrate[],2,FALSE) -> 92000 | H178: Industrial Engineer (Fed) | I178: Engineer | J178: USA | K178: =VLOOKUP(tblSalaries[[#This Row],[Where do you work]],tblCountries[[Actual]:[Mapping]],2,FALSE) -> USA | L178: 4 to 6 hours a day | N178: =VLOOKUP(K178,tblCountries[],3,0) -> North Amer. | O178: =VLOOKUP(tblSalaries[[#This Row],[How many hours of a day you work on Excel]],tblHours,2,0) -> 4 | P178: =VLOOKUP(tblSalaries[[#This Row],[clean Country]],tblCountries[],5,0) -> 1 | Q178: =IF($Q$1,tblSalaries[[#This Row],[PPP Factor]]*tblSalaries[[#This Row],[Salary in USD]],tblSalaries[[#This Row],[Salary in USD]]) -> 92000
B179: ID0177 | C179: 2012-05-26T00:49:21 | D179: 75000 | E179: 75000 | F179: USD | G179: =tblSalaries[[#This Row],[clean Salary (in local currency)]]*VLOOKUP(tblSalaries[[#This Row],[Currency]],tblXrate[],2,FALSE) -> 75000 | H179: Informatics specialist | I179: Specialist | J179: USA | K179: =VLOOKUP(tblSalaries[[#This Row],[Where do you work]],tblCountries[[Actual]:[Mapping]],2,FALSE) -> USA | L179: All the 8 hours baby, all the 8! | N179: =VLOOKUP(K179,tblCountries[],3,0) -> North Amer. | O179: =VLOOKUP(tblSalaries[[#This Row],[How many hours of a day you work on Excel]],tblHours,2,0) -> 5 | P179: =VLOOKUP(tblSalaries[[#This Row],[clean Country]],tblCountries[],5,0) -> 1 | Q179: =IF($Q$1,tblSalaries[[#This Row],[PPP Factor]]*tblSalaries[[#This Row],[Salary in USD]],tblSalaries[[#This Row],[Salary in USD]]) -> 75000
B180: ID0178 | C180: 2012-05-26T00:49:35 | D180: 180000 | E180: 180000 | F180: INR | G180: =tblSalaries[[#This Row],[clean Salary (in local currency)]]*VLOOKUP(tblSalaries[[#This Row],[Currency]],tblXrate[],2,FALSE) -> 3205.425004 | H180: Sr. Associate | I180: Analyst | J180: India | K180: =VLOOKUP(tblSalaries[[#This Row],[Where do you work]],tblCountries[[Actual]:[Mapping]],2,FALSE) -> India | L180: 4 to 6 hours a day | N180: =VLOOKUP(K180,tblCountries[],3,0) -> Asia | O180: =VLOOKUP(tblSalaries[[#This Row],[How many hours of a day you work on Excel]],tblHours,2,0) -> 4 | P180: =VLOOKUP(tblSalaries[[#This Row],[clean Country]],tblCountries[],5,0) -> 13.09880888 | Q180: =IF($Q$1,tblSalaries[[#This Row],[PPP Factor]]*tblSalaries[[#This Row],[Salary in USD]],tblSalaries[[#This Row],[Salary in USD]]) -> 3205.425004
B181: ID0179 | C181: 2012-05-26T00:49:48 | D181: 18500 | E181: 18500 | F181: GBP | G181: =tblSalaries[[#This Row],[clean Salary (in local currency)]]*VLOOKUP(tblSalaries[[#This Row],[Currency]],tblXrate[],2,FALSE) -> 29159.29803 | H181: Trainee Management Accountant | I181: Manager | J181: UK | K181: =VLOOKUP(tblSalaries[[#This Row],[Where do you work]],tblCountries[[Actual]:[Mapping]],2,FALSE) -> UK | L181: All the 8 hours baby, all the 8! | N181: =VLOOKUP(K181,tblCountries[],3,0) -> Europe | O181: =VLOOKUP(tblSalaries[[#This Row],[How many hours of a day you work on Excel]],tblHours,2,0) -> 5 | P181: =VLOOKUP(tblSalaries[[#This Row],[clean Country]],tblCountries[],5,0) -> 1.340731505 | Q181: =IF($Q$1,tblSalaries[[#This Row],[PPP Factor]]*tblSalaries[[#This Row],[Salary in USD]],tblSalaries[[#This Row],[Salary in USD]]) -> 29159.29803
B182: ID0180 | C182: 2012-05-26T00:49:50 | D182: 40000 | E182: 40000 | F182: USD | G182: =tblSalaries[[#This Row],[clean Salary (in local currency)]]*VLOOKUP(tblSalaries[[#This Row],[Currency]],tblXrate[],2,FALSE) -> 40000 | H182: Senior analyst | I182: Analyst | J182: USA | K182: =VLOOKUP(tblSalaries[[#This Row],[Where do you work]],tblCountries[[Actual]:[Mapping]],2,FALSE) -> USA | L182: All the 8 hours baby, all the 8! | N182: =VLOOKUP(K182,tblCountries[],3,0) -> North Amer. | O182: =VLOOKUP(tblSalaries[[#This Row],[How many hours of a day you work on Excel]],tblHours,2,0) -> 5 | P182: =VLOOKUP(tblSalaries[[#This Row],[clean Country]],tblCountries[],5,0) -> 1 | Q182: =IF($Q$1,tblSalaries[[#This Row],[PPP Factor]]*tblSalaries[[#This Row],[Salary in USD]],tblSalaries[[#This Row],[Salary in USD]]) -> 40000
B183: ID0181 | C183: 2012-05-26T00:49:59 | D183: 111680 | E183: 111680 | F183: USD | G183: =tblSalaries[[#This Row],[clean Salary (in local currency)]]*VLOOKUP(tblSalaries[[#This Row],[Currency]],tblXrate[],2,FALSE) -> 111680 | H183: Director of Analytics | I183: Analyst | J183: USA | K183: =VLOOKUP(tblSalaries[[#This Row],[Where do you work]],tblCountries[[Actual]:[Mapping]],2,FALSE) -> USA | L183: 2 to 3 hours per day | N183: =VLOOKUP(K183,tblCountries[],3,0) -> North Amer. | O183: =VLOOKUP(tblSalaries[[#This Row],[How many hours of a day you work on Excel]],tblHours,2,0) -> 3 | P183: =VLOOKUP(tblSalaries[[#This Row],[clean Country]],tblCountries[],5,0) -> 1 | Q183: =IF($Q$1,tblSalaries[[#This Row],[PPP Factor]]*tblSalaries[[#This Row],[Salary in USD]],tblSalaries[[#This Row],[Salary in USD]]) -> 111680
B184: ID0182 | C184: 2012-05-26T00:50:11 | D184: 41.406 | E184: 41406 | F184: USD | G184: =tblSalaries[[#This Row],[clean Salary (in local currency)]]*VLOOKUP(tblSalaries[[#This Row],[Currency]],tblXrate[],2,FALSE) -> 41406 | H184: Executive Assistant | I184: Analyst | J184: Canada | K184: =VLOOKUP(tblSalaries[[#This Row],[Where do you work]],tblCountries[[Actual]:[Mapping]],2,FALSE) -> Canada | L184: 1 or 2 hours a day | N184: =VLOOKUP(K184,tblCountries[],3,0) -> North Amer. | O184: =VLOOKUP(tblSalaries[[#This Row],[How many hours of a day you work on Excel]],tblHours,2,0) -> 2 | P184: =VLOOKUP(tblSalaries[[#This Row],[clean Country]],tblCountries[],5,0) -> 1.193532473 | Q184: =IF($Q$1,tblSalaries[[#This Row],[PPP Factor]]*tblSalaries[[#This Row],[Salary in USD]],tblSalaries[[#This Row],[Salary in USD]]) -> 41406
B185: ID0183 | C185: 2012-05-26T00:50:15 | D185: 70000 | E185: 70000 | F185: USD | G185: =tblSalaries[[#This Row],[clean Salary (in local currency)]]*VLOOKUP(tblSalaries[[#This Row],[Currency]],tblXrate[],2,FALSE) -> 70000 | H185: Project Speciast | I185: Manager | J185: USA | K185: =VLOOKUP(tblSalaries[[#This Row],[Where do you work]],tblCountries[[Actual]:[Mapping]],2,FALSE) -> USA | L185: 4 to 6 hours a day | N185: =VLOOKUP(K185,tblCountries[],3,0) -> North Amer. | O185: =VLOOKUP(tblSalaries[[#This Row],[How many hours of a day you work on Excel]],tblHours,2,0) -> 4 | P185: =VLOOKUP(tblSalaries[[#This Row],[clean Country]],tblCountries[],5,0) -> 1 | Q185: =IF($Q$1,tblSalaries[[#This Row],[PPP Factor]]*tblSalaries[[#This Row],[Salary in USD]],tblSalaries[[#This Row],[Salary in USD]]) -> 70000
B186: ID0184 | C186: 2012-05-26T00:50:31 | D186: 40700 | E186: 40700 | F186: USD | G186: =tblSalaries[[#This Row],[clean Salary (in local currency)]]*VLOOKUP(tblSalaries[[#This Row],[Currency]],tblXrate[],2,FALSE) -> 40700 | H186: Sales Coordinator & Analytical Support | I186: Analyst | J186: USA | K186: =VLOOKUP(tblSalaries[[#This Row],[Where do you work]],tblCountries[[Actual]:[Mapping]],2,FALSE) -> USA | L186: 1 or 2 hours a day | N186: =VLOOKUP(K186,tblCountries[],3,0) -> North Amer. | O186: =VLOOKUP(tblSalaries[[#This Row],[How many hours of a day you work on Excel]],tblHours,2,0) -> 2 | P186: =VLOOKUP(tblSalaries[[#This Row],[clean Country]],tblCountries[],5,0) -> 1 | Q186: =IF($Q$1,tblSalaries[[#This Row],[PPP Factor]]*tblSalaries[[#This Row],[Salary in USD]],tblSalaries[[#This Row],[Salary in USD]]) -> 40700
B187: ID0185 | C187: 2012-05-26T00:50:32 | D187: 40000 | E187: 40000 | F187: USD | G187: =tblSalaries[[#This Row],[clean Salary (in local currency)]]*VLOOKUP(tblSalaries[[#This Row],[Currency]],tblXrate[],2,FALSE) -> 40000 | H187: analyst | I187: Analyst | J187: USA | K187: =VLOOKUP(tblSalaries[[#This Row],[Where do you work]],tblCountries[[Actual]:[Mapping]],2,FALSE) -> USA | L187: 4 to 6 hours a day | N187: =VLOOKUP(K187,tblCountries[],3,0) -> North Amer. | O187: =VLOOKUP(tblSalaries[[#This Row],[How many hours of a day you work on Excel]],tblHours,2,0) -> 4 | P187: =VLOOKUP(tblSalaries[[#This Row],[clean Country]],tblCountries[],5,0) -> 1 | Q187: =IF($Q$1,tblSalaries[[#This Row],[PPP Factor]]*tblSalaries[[#This Row],[Salary in USD]],tblSalaries[[#This Row],[Salary in USD]]) -> 40000
B188: ID0186 | C188: 2012-05-26T00:50:38 | D188: 60000 | E188: 60000 | F188: USD | G188: =tblSalaries[[#This Row],[clean Salary (in local currency)]]*VLOOKUP(tblSalaries[[#This Row],[Currency]],tblXrate[],2,FALSE) -> 60000 | H188: Senior Staff Accountant | I188: Accountant | J188: USA | K188: =VLOOKUP(tblSalaries[[#This Row],[Where do you work]],tblCountries[[Actual]:[Mapping]],2,FALSE) -> USA | L188: 4 to 6 hours a day | N188: =VLOOKUP(K188,tblCountries[],3,0) -> North Amer. | O188: =VLOOKUP(tblSalaries[[#This Row],[How many hours of a day you work on Excel]],tblHours,2,0) -> 4 | P188: =VLOOKUP(tblSalaries[[#This Row],[clean Country]],tblCountries[],5,0) -> 1 | Q188: =IF($Q$1,tblSalaries[[#This Row],[PPP Factor]]*tblSalaries[[#This Row],[Salary in USD]],tblSalaries[[#This Row],[Salary in USD]]) -> 60000
B189: ID0187 | C189: 2012-05-26T00:50:41 | D189: 92000 | E189: 92000 | F189: CAD | G189: =tblSalaries[[#This Row],[clean Salary (in local currency)]]*VLOOKUP(tblSalaries[[#This Row],[Currency]],tblXrate[],2,FALSE) -> 90469.26012 | H189: Consultant - Retail Mkts | I189: Consultant | J189: Canada | K189: =VLOOKUP(tblSalaries[[#This Row],[Where do you work]],tblCountries[[Actual]:[Mapping]],2,FALSE) -> Canada | L189: All the 8 hours baby, all the 8! | N189: =VLOOKUP(K189,tblCountries[],3,0) -> North Amer. | O189: =VLOOKUP(tblSalaries[[#This Row],[How many hours of a day you work on Excel]],tblHours,2,0) -> 5 | P189: =VLOOKUP(tblSalaries[[#This Row],[clean Country]],tblCountries[],5,0) -> 1.193532473 | Q189: =IF($Q$1,tblSalaries[[#This Row],[PPP Factor]]*tblSalaries[[#This Row],[Salary in USD]],tblSalaries[[#This Row],[Salary in USD]]) -> 90469.26012
B190: ID0188 | C190: 2012-05-26T00:50:43 | D190: 13636.36 | E190: 13636 | F190: USD | G190: =tblSalaries[[#This Row],[clean Salary (in local currency)]]*VLOOKUP(tblSalaries[[#This Row],[Currency]],tblXrate[],2,FALSE) -> 13636 | H190: Process Manager | I190: Manager | J190: India | K190: =VLOOKUP(tblSalaries[[#This Row],[Where do you work]],tblCountries[[Actual]:[Mapping]],2,FALSE) -> India | L190: All the 8 hours baby, all the 8! | N190: =VLOOKUP(K190,tblCountries[],3,0) -> Asia | O190: =VLOOKUP(tblSalaries[[#This Row],[How many hours of a day you work on Excel]],tblHours,2,0) -> 5 | P190: =VLOOKUP(tblSalaries[[#This Row],[clean Country]],tblCountries[],5,0) -> 13.09880888 | Q190: =IF($Q$1,tblSalaries[[#This Row],[PPP Factor]]*tblSalaries[[#This Row],[Salary in USD]],tblSalaries[[#This Row],[Salary in USD]]) -> 13636
B191: ID0189 | C191: 2012-05-26T00:50:43 | D191: 80000 | E191: 80000 | F191: USD | G191: =tblSalaries[[#This Row],[clean Salary (in local currency)]]*VLOOKUP(tblSalaries[[#This Row],[Currency]],tblXrate[],2,FALSE) -> 80000 | H191: Project Manager (Process Owner) | I191: Manager | J191: USA | K191: =VLOOKUP(tblSalaries[[#This Row],[Where do you work]],tblCountries[[Actual]:[Mapping]],2,FALSE) -> USA | L191: 2 to 3 hours per day | N191: =VLOOKUP(K191,tblCountries[],3,0) -> North Amer. | O191: =VLOOKUP(tblSalaries[[#This Row],[How many hours of a day you work on Excel]],tblHours,2,0) -> 3 | P191: =VLOOKUP(tblSalaries[[#This Row],[clean Country]],tblCountries[],5,0) -> 1 | Q191: =IF($Q$1,tblSalaries[[#This Row],[PPP Factor]]*tblSalaries[[#This Row],[Salary in USD]],tblSalaries[[#This Row],[Salary in USD]]) -> 80000
B192: ID0190 | C192: 2012-05-26T00:51:00 | D192: 60000 CAD$ | E192: 60000 | F192: CAD | G192: =tblSalaries[[#This Row],[clean Salary (in local currency)]]*VLOOKUP(tblSalaries[[#This Row],[Currency]],tblXrate[],2,FALSE) -> 59001.69138 | H192: Demographer | I192: Analyst | J192: Canada | K192: =VLOOKUP(tblSalaries[[#This Row],[Where do you work]],tblCountries[[Actual]:[Mapping]],2,FALSE) -> Canada | L192: 2 to 3 hours per day | N192: =VLOOKUP(K192,tblCountries[],3,0) -> North Amer. | O192: =VLOOKUP(tblSalaries[[#This Row],[How many hours of a day you work on Excel]],tblHours,2,0) -> 3 | P192: =VLOOKUP(tblSalaries[[#This Row],[clean Country]],tblCountries[],5,0) -> 1.193532473 | Q192: =IF($Q$1,tblSalaries[[#This Row],[PPP Factor]]*tblSalaries[[#This Row],[Salary in USD]],tblSalaries[[#This Row],[Salary in USD]]) -> 59001.69138
B193: ID0192 | C193: 2012-05-26T00:51:43 | D193: 28000 | E193: 28000 | F193: USD | G193: =tblSalaries[[#This Row],[clean Salary (in local currency)]]*VLOOKUP(tblSalaries[[#This Row],[Currency]],tblXrate[],2,FALSE) -> 28000 | H193: Administrative Assistant | I193: Analyst | J193: USA | K193: =VLOOKUP(tblSalaries[[#This Row],[Where do you work]],tblCountries[[Actual]:[Mapping]],2,FALSE) -> USA | L193: 4 to 6 hours a day | N193: =VLOOKUP(K193,tblCountries[],3,0) -> North Amer. | O193: =VLOOKUP(tblSalaries[[#This Row],[How many hours of a day you work on Excel]],tblHours,2,0) -> 4 | P193: =VLOOKUP(tblSalaries[[#This Row],[clean Country]],tblCountries[],5,0) -> 1 | Q193: =IF($Q$1,tblSalaries[[#This Row],[PPP Factor]]*tblSalaries[[#This Row],[Salary in USD]],tblSalaries[[#This Row],[Salary in USD]]) -> 28000
B194: ID0193 | C194: 2012-05-26T00:51:55 | D194: 60000 | E194: 60000 | F194: USD | G194: =tblSalaries[[#This Row],[clean Salary (in local currency)]]*VLOOKUP(tblSalaries[[#This Row],[Currency]],tblXrate[],2,FALSE) -> 60000 | H194: Accounting/Financial Analyst | I194: Analyst | J194: USA | K194: =VLOOKUP(tblSalaries[[#This Row],[Where do you work]],tblCountries[[Actual]:[Mapping]],2,FALSE) -> USA | L194: 4 to 6 hours a day | N194: =VLOOKUP(K194,tblCountries[],3,0) -> North Amer. | O194: =VLOOKUP(tblSalaries[[#This Row],[How many hours of a day you work on Excel]],tblHours,2,0) -> 4 | P194: =VLOOKUP(tblSalaries[[#This Row],[clean Country]],tblCountries[],5,0) -> 1 | Q194: =IF($Q$1,tblSalaries[[#This Row],[PPP Factor]]*tblSalaries[[#This Row],[Salary in USD]],tblSalaries[[#This Row],[Salary in USD]]) -> 60000
B195: ID0194 | C195: 2012-05-26T00:51:59 | D195: 96000 | E195: 96000 | F195: USD | G195: =tblSalaries[[#This Row],[clean Salary (in local currency)]]*VLOOKUP(tblSalaries[[#This Row],[Currency]],tblXrate[],2,FALSE) -> 96000 | H195: Business Process Specialist | I195: Specialist | J195: USA | K195: =VLOOKUP(tblSalaries[[#This Row],[Where do you work]],tblCountries[[Actual]:[Mapping]],2,FALSE) -> USA | L195: 2 to 3 hours per day | N195: =VLOOKUP(K195,tblCountries[],3,0) -> North Amer. | O195: =VLOOKUP(tblSalaries[[#This Row],[How many hours of a day you work on Excel]],tblHours,2,0) -> 3 | P195: =VLOOKUP(tblSalaries[[#This Row],[clean Country]],tblCountries[],5,0) -> 1 | Q195: =IF($Q$1,tblSalaries[[#This Row],[PPP Factor]]*tblSalaries[[#This Row],[Salary in USD]],tblSalaries[[#This Row],[Salary in USD]]) -> 96000
B196: ID0195 | C196: 2012-05-26T00:52:21 | D196: 67000 | E196: 67000 | F196: USD | G196: =tblSalaries[[#This Row],[clean Salary (in local currency)]]*VLOOKUP(tblSalaries[[#This Row],[Currency]],tblXrate[],2,FALSE) -> 67000 | H196: Financial Analyst | I196: Analyst | J196: USA | K196: =VLOOKUP(tblSalaries[[#This Row],[Where do you work]],tblCountries[[Actual]:[Mapping]],2,FALSE) -> USA | L196: 4 to 6 hours a day | N196: =VLOOKUP(K196,tblCountries[],3,0) -> North Amer. | O196: =VLOOKUP(tblSalaries[[#This Row],[How many hours of a day you work on Excel]],tblHours,2,0) -> 4 | P196: =VLOOKUP(tblSalaries[[#This Row],[clean Country]],tblCountries[],5,0) -> 1 | Q196: =IF($Q$1,tblSalaries[[#This Row],[PPP Factor]]*tblSalaries[[#This Row],[Salary in USD]],tblSalaries[[#This Row],[Salary in USD]]) -> 67000
B197: ID0196 | C197: 2012-05-26T00:52:25 | D197: 70000 | E197: 70000 | F197: USD | G197: =tblSalaries[[#This Row],[clean Salary (in local currency)]]*VLOOKUP(tblSalaries[[#This Row],[Currency]],tblXrate[],2,FALSE) -> 70000 | H197: Sr Financial Analyst | I197: Analyst | J197: USA | K197: =VLOOKUP(tblSalaries[[#This Row],[Where do you work]],tblCountries[[Actual]:[Mapping]],2,FALSE) -> USA | L197: 4 to 6 hours a day | N197: =VLOOKUP(K197,tblCountries[],3,0) -> North Amer. | O197: =VLOOKUP(tblSalaries[[#This Row],[How many hours of a day you work on Excel]],tblHours,2,0) -> 4 | P197: =VLOOKUP(tblSalaries[[#This Row],[clean Country]],tblCountries[],5,0) -> 1 | Q197: =IF($Q$1,tblSalaries[[#This Row],[PPP Factor]]*tblSalaries[[#This Row],[Salary in USD]],tblSalaries[[#This Row],[Salary in USD]]) -> 70000
B198: ID0197 | C198: 2012-05-26T00:52:30 | D198: 233000 | E198: 233000 | F198: INR | G198: =tblSalaries[[#This Row],[clean Salary (in local currency)]]*VLOOKUP(tblSalaries[[#This Row],[Currency]],tblXrate[],2,FALSE) -> 4149.244588 | H198: Asst. Manager (MIS) | I198: Manager | J198: India | K198: =VLOOKUP(tblSalaries[[#This Row],[Where do you work]],tblCountries[[Actual]:[Mapping]],2,FALSE) -> India | L198: All the 8 hours baby, all the 8! | N198: =VLOOKUP(K198,tblCountries[],3,0) -> Asia | O198: =VLOOKUP(tblSalaries[[#This Row],[How many hours of a day you work on Excel]],tblHours,2,0) -> 5 | P198: =VLOOKUP(tblSalaries[[#This Row],[clean Country]],tblCountries[],5,0) -> 13.09880888 | Q198: =IF($Q$1,tblSalaries[[#This Row],[PPP Factor]]*tblSalaries[[#This Row],[Salary in USD]],tblSalaries[[#This Row],[Salary in USD]]) -> 4149.244588
B199: ID0198 | C199: 2012-05-26T00:52:37 | D199: US$ 99000 | E199: 99000 | F199: USD | G199: =tblSalaries[[#This Row],[clean Salary (in local currency)]]*VLOOKUP(tblSalaries[[#This Row],[Currency]],tblXrate[],2,FALSE) -> 99000 | H199: Business Controller | I199: Controller | J199: USA | K199: =VLOOKUP(tblSalaries[[#This Row],[Where do you work]],tblCountries[[Actual]:[Mapping]],2,FALSE) -> USA | L199: 4 to 6 hours a day | N199: =VLOOKUP(K199,tblCountries[],3,0) -> North Amer. | O199: =VLOOKUP(tblSalaries[[#This Row],[How many hours of a day you work on Excel]],tblHours,2,0) -> 4 | P199: =VLOOKUP(tblSalaries[[#This Row],[clean Country]],tblCountries[],5,0) -> 1 | Q199: =IF($Q$1,tblSalaries[[#This Row],[PPP Factor]]*tblSalaries[[#This Row],[Salary in USD]],tblSalaries[[#This Row],[Salary in USD]]) -> 99000
B200: ID0200 | C200: 2012-05-26T00:53:00 | D200: 90000 | E200: 90000 | F200: USD | G200: =tblSalaries[[#This Row],[clean Salary (in local currency)]]*VLOOKUP(tblSalaries[[#This Row],[Currency]],tblXrate[],2,FALSE) -> 90000 | H200: Project Manager | I200: Manager | J200: USA | K200: =VLOOKUP(tblSalaries[[#This Row],[Where do you work]],tblCountries[[Actual]:[Mapping]],2,FALSE) -> USA | L200: 2 to 3 hours per day | N200: =VLOOKUP(K200,tblCountries[],3,0) -> North Amer. | O200: =VLOOKUP(tblSalaries[[#This Row],[How many hours of a day you work on Excel]],tblHours,2,0) -> 3 | P200: =VLOOKUP(tblSalaries[[#This Row],[clean Country]],tblCountries[],5,0) -> 1 | Q200: =IF($Q$1,tblSalaries[[#This Row],[PPP Factor]]*tblSalaries[[#This Row],[Salary in USD]],tblSalaries[[#This Row],[Salary in USD]]) -> 90000
B201: ID0201 | C201: 2012-05-26T00:53:02 | D201: Rs. 275000 | E201: 275000 | F201: INR | G201: =tblSalaries[[#This Row],[clean Salary (in local currency)]]*VLOOKUP(tblSalaries[[#This Row],[Currency]],tblXrate[],2,FALSE) -> 4897.177089 | H201: low level monitoring | I201: Analyst | J201: India | K201: =VLOOKUP(tblSalaries[[#This Row],[Where do you work]],tblCountries[[Actual]:[Mapping]],2,FALSE) -> India | L201: 2 to 3 hours per day | N201: =VLOOKUP(K201,tblCountries[],3,0) -> Asia | O201: =VLOOKUP(tblSalaries[[#This Row],[How many hours of a day you work on Excel]],tblHours,2,0) -> 3 | P201: =VLOOKUP(tblSalaries[[#This Row],[clean Country]],tblCountries[],5,0) -> 13.09880888 | Q201: =IF($Q$1,tblSalaries[[#This Row],[PPP Factor]]*tblSalaries[[#This Row],[Salary in USD]],tblSalaries[[#This Row],[Salary in USD]]) -> 4897.177089
B202: ID0202 | C202: 2012-05-26T00:53:18 | D202: INR 16000 | E202: 192000 | F202: INR | G202: =tblSalaries[[#This Row],[clean Salary (in local currency)]]*VLOOKUP(tblSalaries[[#This Row],[Currency]],tblXrate[],2,FALSE) -> 3419.120004 | H202: Administrative | I202: Analyst | J202: India | K202: =VLOOKUP(tblSalaries[[#This Row],[Where do you work]],tblCountries[[Actual]:[Mapping]],2,FALSE) -> India | L202: All the 8 hours baby, all the 8! | N202: =VLOOKUP(K202,tblCountries[],3,0) -> Asia | O202: =VLOOKUP(tblSalaries[[#This Row],[How many hours of a day you work on Excel]],tblHours,2,0) -> 5 | P202: =VLOOKUP(tblSalaries[[#This Row],[clean Country]],tblCountries[],5,0) -> 13.09880888 | Q202: =IF($Q$1,tblSalaries[[#This Row],[PPP Factor]]*tblSalaries[[#This Row],[Salary in USD]],tblSalaries[[#This Row],[Salary in USD]]) -> 3419.120004
... 1686 more rows

Sheet Calculations
B1: Average salary by Continent by Job Type, Experience, Daily usage of Excel | N1: Salary boxplot | AG1: Proportion of participants by… | AW1: Average salary by… | BL1: Top 5 countries by… | CB1: Random facts from the study
N2: Continent #1 | W2: Continent #2 | AG2: =+Dashboard!M32 -> Daily usage of Excel in hours | AW2: =+Dashboard!M20 -> Years of experience with Excel | CT2: No | CU2: Message
D3: min | E3: max | AG3: Selection : | AH3: =MATCH(AG2,lstGraph2,0) -> 2 | AW3: Selection : | AX3: =MATCH(AW2,lstGraph2,0) -> 1 | BL3: Selected Metrics : | BN3: 4 | BO3: =+CHOOSE($BN$3,BM6,BN6,BO6,BP6) -> Nb responses | CT3: 1 | CU3: =+INDEX($CU$18:$CU$33,MATCH(CT3,$CT$18:$CT$33,0)) -> 651 | CV3: =+INDEX($CV$18:$CV$33,MATCH(CT3,$CT$18:$CT$33,0)) -> Participants in the world with less then 2 years of experience.
B4: Experience | D4: =+Dashboard!AA6 -> 0 | E4: =+Dashboard!AE6 -> 99 | O4: Min | P4: 1st Quartile | Q4: Median | R4: 3rd Quartile | S4: Max | X4: Min | Y4: 1st Quartile | Z4: Median | AA4: 3rd Quartile | AB4: Max | CT4: 2 | CU4: =+INDEX($CU$18:$CU$33,MATCH(CT4,$CT$18:$CT$33,0)) -> 11.8% | CV4: =+INDEX($CV$18:$CV$33,MATCH(CT4,$CT$18:$CT$33,0)) -> Participants working as Consultant have more then 24 years of experience.
B5: # hours per day | C5: =+Dashboard!AA7 -> 1 or 2 hours a day | D5: =+VLOOKUP(C5,tblHours,2)-0.1 -> 1.9 | E5: =+VLOOKUP(C5,tblHours,3)+0.1 -> 2.1 | O5: 0 | P5: 1 | Q5: 2 | R5: 3 | S5: 4 | X5: 0 | Y5: 1 | Z5: 2 | AA5: 3 | AB5: 4 | AG5: Experience | AO5: # hours / day | AW5: Experience | BE5: # hours / day | BL5: 5 Countries from the scroll bar position | BO5: 0 | CT5: 3 | CU5: =+INDEX($CU$18:$CU$33,MATCH(CT5,$CT$18:$CT$33,0)) -> 55353 $ | CV5: =+INDEX($CV$18:$CV$33,MATCH(CT5,$CT$18:$CT$33,0)) -> Average salary of participants with more then 5 years of experience.
B6: Selected cont | C6: =Dashboard!AA5 -> North America | D6: =INDEX(lstContinents,MATCH(C6,lstContinents2,0)) -> North Amer. | N6: Selection | O6: =+Dashboard!AA26 -> Asia | W6: Selection | X6: =+Dashboard!AA27 -> North America | AG6: Min | AH6: 0 | AI6: 2 | AJ6: 5 | AK6: 10 | AL6: 15 | AO6: Code Hours | AP6: 1 | AQ6: 2 | AR6: 3 | AS6: 4 | AT6: 5 | AW6: Min | AX6: 0 | AY6: 2 | AZ6: 5 | BA6: 10 | BB6: 15 | BE6: Code | BF6: 1 | BG6: 2 | BH6: 3 | BI6: 4 | BJ6: 5 | BL6: Index | BM6: Country | BN6: Salary | BO6: Experience | BP6: Nb responses | CT6: 4 | CU6: 68.5% | CV6: Participants working as Specialist have less then 10 years of experience.
B7: Total Salaries | O7: =INDEX(lstContinents,MATCH(O6,lstContinents2,0)) -> Asia | P7: =+O7 -> Asia | Q7: =+P7 -> Asia | R7: Asia | S7: Asia | X7: =INDEX(lstContinents,MATCH(X6,lstContinents2,0)) -> North Amer. | Y7: =+X7 -> North Amer. | Z7: =+Y7 -> North Amer. | AA7: North Amer. | AB7: North Amer. | AG7: Max | AH7: 2 | AI7: 5 | AJ7: 10 | AK7: 15 | AL7: 99 | AW7: Max | AX7: 2 | AY7: 5 | AZ7: 10 | BA7: 15 | BB7: 99 | BL7: Max | BN7: =MAX(BN18:BN120) -> 177600 | BO7: =MAX(BO18:BO120) -> 21 | BP7: 617 | CT7: 5 | CU7: 43571 $ | CV7: Average salary of participants using Excel more then 8 hours a day.
C8: Asia | D8: Europe | E8: Africa | F8: North Amer. | G8: South Amer. | H8: Oceania | I8: Worldwide | J8: Selected Continent | O8: Min | P8: 1st Quartile | Q8: Median | R8: 3rd Quartile | S8: Max | X8: Min | Y8: 1st Quartile | Z8: Median | AA8: 3rd Quartile | AB8: Max | BL8: =1+BO5 -> 1 | BM8: =INDEX($BU$18:$BY$120,$BL8,COLUMNS($BL$8:BM8)) -> USA | BN8: =INDEX($BU$18:$BY$120,$BL8,COLUMNS($BL$8:BN8)) -> 72738.12966 | BO8: =INDEX($BU$18:$BY$120,$BL8,COLUMNS($BL$8:BO8)) -> 10.2920354 | BP8: =INDEX($BU$18:$BY$120,$BL8,COLUMNS($BL$8:BP8)) -> 617
B9: Accountant | C9: =SUM((Continent=C$8)*(JobType=$B9)*(YearsExp>$D$4)*(YearsExp<$E$4)*(CodeHours>$D$5)*(CodeHours<$E$5)*Salaries) -> 87201.9731 | D9: =SUM((Continent=D$8)*(JobType=$B9)*(YearsExp>$D$4)*(YearsExp<$E$4)*(CodeHours>$D$5)*(CodeHours<$E$5)*Salaries) -> 0 | E9: =SUM((Continent=E$8)*(JobType=$B9)*(YearsExp>$D$4)*(YearsExp<$E$4)*(CodeHours>$D$5)*(CodeHours<$E$5)*Salaries) -> 0 | F9: =SUM((Continent=F$8)*(JobType=$B9)*(YearsExp>$D$4)*(YearsExp<$E$4)*(CodeHours>$D$5)*(CodeHours<$E$5)*Salaries) -> 0 | G9: =SUM((Continent=G$8)*(JobType=$B9)*(YearsExp>$D$4)*(YearsExp<$E$4)*(CodeHours>$D$5)*(CodeHours<$E$5)*Salaries) -> 0 | H9: =SUM((Continent=H$8)*(JobType=$B9)*(YearsExp>$D$4)*(YearsExp<$E$4)*(CodeHours>$D$5)*(CodeHours<$E$5)*Salaries) -> 0 | I9: =SUM(C9:H9) -> 87201.9731 | J9: =INDEX(C9:H9,,MATCH($D$6,$C$8:$H$8,0)) -> 0 | N9: Accountant | O9: =QUARTILE(IF((Continent=O$7)*(JobType=$B9)*1,Salaries),O$5) -> 1783.166904 | P9: =QUARTILE(IF((Continent=P$7)*(JobType=$B9),Salaries),P$5) -> 4284.157365 | Q9: =QUARTILE(IF((Continent=Q$7)*(JobType=$B9),Salaries),Q$5) -> 9573.282773 | R9: =QUARTILE(IF((Continent=R$7)*(JobType=$B9),Salaries),R$5) -> 23750 | S9: =QUARTILE(IF((Continent=S$7)*(JobType=$B9),Salaries),S$5) -> 71231.66675 | W9: Accountant | X9: =QUARTILE(IF((Continent=X$7)*(JobType=$B9),Salaries),X$5) -> 15500 | Y9: =QUARTILE(IF((Continent=Y$7)*(JobType=$B9),Salaries),Y$5) -> 45000 | Z9: =QUARTILE(IF((Continent=Z$7)*(JobType=$B9),Salaries),Z$5) -> 60000 | AA9: =QUARTILE(IF((Continent=AA$7)*(JobType=$B9),Salaries),AA$5) -> 77000 | AB9: =QUARTILE(IF((Continent=AB$7)*(JobType=$B9),Salaries),AB$5) -> 1229201.904 | AH9: 0 - 2 yrs | AI9: 2 - 5 yrs | AJ9: 5 - 10 yrs | AK9: 10 - 15 yrs | AL9: 15+ yrs | AM9: Total | AP9: 0 hrs | AQ9: 1 - 2 hrs | AR9: 2 - 3 hrs | AS9: 4 - 6 hrs | AT9: 8+ hrs | AU9: Total | AX9: 0 - 2 yrs | AY9: 2 - 5 yrs | AZ9: 5 - 10 yrs | BA9: 10 - 15 yrs | BB9: 15+ yrs | BF9: 0 hrs | BG9: 1 - 2 hrs | BH9: 2 - 3 hrs | BI9: 4 - 6 hrs | BJ9: 8+ hrs | BL9: =+BL8+1 -> 2 | BM9: =INDEX($BU$18:$BY$120,$BL9,COLUMNS($BL$8:BM9)) -> India | BN9: =INDEX($BU$18:$BY$120,$BL9,COLUMNS($BL$8:BN9)) -> 13529.43089 | BO9: =INDEX($BU$18:$BY$120,$BL9,COLUMNS($BL$8:BO9)) -> 6.46918239 | BP9: =INDEX($BU$18:$BY$120,$BL9,COLUMNS($BL$8:BP9)) -> 565
B10: Analyst | C10: =SUM((Continent=C$8)*(JobType=$B10)*(YearsExp>$D$4)*(YearsExp<$E$4)*(CodeHours>$D$5)*(CodeHours<$E$5)*Salaries) -> 271872.3424 | D10: =SUM((Continent=D$8)*(JobType=$B10)*(YearsExp>$D$4)*(YearsExp<$E$4)*(CodeHours>$D$5)*(CodeHours<$E$5)*Salaries) -> 368430.3504 | E10: =SUM((Continent=E$8)*(JobType=$B10)*(YearsExp>$D$4)*(YearsExp<$E$4)*(CodeHours>$D$5)*(CodeHours<$E$5)*Salaries) -> 0 | F10: =SUM((Continent=F$8)*(JobType=$B10)*(YearsExp>$D$4)*(YearsExp<$E$4)*(CodeHours>$D$5)*(CodeHours<$E$5)*Salaries) -> 649334.4609 | G10: =SUM((Continent=G$8)*(JobType=$B10)*(YearsExp>$D$4)*(YearsExp<$E$4)*(CodeHours>$D$5)*(CodeHours<$E$5)*Salaries) -> 56700 | H10: =SUM((Continent=H$8)*(JobType=$B10)*(YearsExp>$D$4)*(YearsExp<$E$4)*(CodeHours>$D$5)*(CodeHours<$E$5)*Salaries) -> 385525.8501 | I10: =SUM(C10:H10) -> 1731863.004 | J10: 649334.4609 | N10: Analyst | O10: =QUARTILE(IF((Continent=O$7)*(JobType=$B10)*1,Salaries),O$5) -> 2136.950002 | P10: =QUARTILE(IF((Continent=P$7)*(JobType=$B10),Salaries),P$5) -> 5342.375006 | Q10: =QUARTILE(IF((Continent=Q$7)*(JobType=$B10),Salaries),Q$5) -> 8903.958344 | R10: =QUARTILE(IF((Continent=R$7)*(JobType=$B10),Salaries),R$5) -> 15136.72918 | S10: =QUARTILE(IF((Continent=S$7)*(JobType=$B10),Salaries),S$5) -> 160271.2502 | W10: Analyst | X10: =QUARTILE(IF((Continent=X$7)*(JobType=$B10),Salaries),X$5) -> 10000 | Y10: =QUARTILE(IF((Continent=Y$7)*(JobType=$B10),Salaries),Y$5) -> 45000 | Z10: =QUARTILE(IF((Continent=Z$7)*(JobType=$B10),Salaries),Z$5) -> 60000 | AA10: =QUARTILE(IF((Continent=AA$7)*(JobType=$B10),Salaries),AA$5) -> 75000 | AB10: =QUARTILE(IF((Continent=AB$7)*(JobType=$B10),Salaries),AB$5) -> 245840.3808 | AG10: Asia | AH10: =SUM((Continent=$AG10)*(YearsExp>AH$6)*(YearsExp<=AH$7)) -> 103 | AI10: =SUM((Continent=$AG10)*(YearsExp>AI$6)*(YearsExp<=AI$7)) -> 202 | AJ10: =SUM((Continent=$AG10)*(YearsExp>AJ$6)*(YearsExp<=AJ$7)) -> 185 | AK10: =SUM((Continent=$AG10)*(YearsExp>AK$6)*(YearsExp<=AK$7)) -> 60 | AL10: =SUM((Continent=$AG10)*(YearsExp>AL$6)*(YearsExp<=AL$7)) -> 42 | AM10: =SUM(AH10:AL10) -> 592 | AO10: Asia | AP10: =SUMPRODUCT((Continent=$AO10)*(CodeHours=AP$6)) -> 2 | AQ10: =SUMPRODUCT((Continent=$AO10)*(CodeHours=AQ$6)) -> 76 | AR10: =SUMPRODUCT((Continent=$AO10)*(CodeHours=AR$6)) -> 170 | AS10: =SUMPRODUCT((Continent=$AO10)*(CodeHours=AS$6)) -> 268 | AT10: =SUMPRODUCT((Continent=$AO10)*(CodeHours=AT$6)) -> 204 | AU10: =SUM(AP10:AT10) -> 720 | AW10: Asia | AX10: =SUM((Continent=$AG10)*(YearsExp>AX$6)*(YearsExp<=AX$7)*Salaries)/AH10 -> 11347.6213 | AY10: =SUM((Continent=$AG10)*(YearsExp>AY$6)*(YearsExp<=AY$7)*Salaries)/AI10 -> 13520.13261 | AZ10: =SUM((Continent=$AG10)*(YearsExp>AZ$6)*(YearsExp<=AZ$7)*Salaries)/AJ10 -> 19556.29828 | BA10: =SUM((Continent=$AG10)*(YearsExp>BA$6)*(YearsExp<=BA$7)*Salaries)/AK10 -> 24530.63537 | BB10: =SUM((Continent=$AG10)*(YearsExp>BB$6)*(YearsExp<=BB$7)*Salaries)/AL10 -> 20119.7387 | BE10: Asia | BF10: =IFERROR(SUM((Continent=$AO10)*(CodeHours=BF$6)*Salaries)/AP10,"") -> 12225.98959 | BG10: =IFERROR(SUM((Continent=$AO10)*(CodeHours=BG$6)*Salaries)/AQ10,"") -> 19353.19651 | BH10: =IFERROR(SUM((Continent=$AO10)*(CodeHours=BH$6)*Salaries)/AR10,"") -> 18265.61997 | BI10: =IFERROR(SUM((Continent=$AO10)*(CodeHours=BI$6)*Salaries)/AS10,"") -> 16809.76417 | BJ10: =IFERROR(SUM((Continent=$AO10)*(CodeHours=BJ$6)*Salaries)/AT10,"") -> 17396.99663 | BL10: =+BL9+1 -> 3 | BM10: =INDEX($BU$18:$BY$120,$BL10,COLUMNS($BL$8:BM10)) -> UK | BN10: =INDEX($BU$18:$BY$120,$BL10,COLUMNS($BL$8:BN10)) -> 67240.73011 | BO10: =INDEX($BU$18:$BY$120,$BL10,COLUMNS($BL$8:BO10)) -> 10.38288288 | BP10: =INDEX($BU$18:$BY$120,$BL10,COLUMNS($BL$8:BP10)) -> 154
B11: Consultant | C11: =SUM((Continent=C$8)*(JobType=$B11)*(YearsExp>$D$4)*(YearsExp<$E$4)*(CodeHours>$D$5)*(CodeHours<$E$5)*Salaries) -> 126410.85 | D11: =SUM((Continent=D$8)*(JobType=$B11)*(YearsExp>$D$4)*(YearsExp<$E$4)*(CodeHours>$D$5)*(CodeHours<$E$5)*Salaries) -> 128310.3433 | E11: =SUM((Continent=E$8)*(JobType=$B11)*(YearsExp>$D$4)*(YearsExp<$E$4)*(CodeHours>$D$5)*(CodeHours<$E$5)*Salaries) -> 0 | F11: =SUM((Continent=F$8)*(JobType=$B11)*(YearsExp>$D$4)*(YearsExp<$E$4)*(CodeHours>$D$5)*(CodeHours<$E$5)*Salaries) -> 0 | G11: =SUM((Continent=G$8)*(JobType=$B11)*(YearsExp>$D$4)*(YearsExp<$E$4)*(CodeHours>$D$5)*(CodeHours<$E$5)*Salaries) -> 5000 | H11: =SUM((Continent=H$8)*(JobType=$B11)*(YearsExp>$D$4)*(YearsExp<$E$4)*(CodeHours>$D$5)*(CodeHours<$E$5)*Salaries) -> 188683.2864 | I11: 448404.4798 | J11: 0 | N11: Consultant | O11: =QUARTILE(IF((Continent=O$7)*(JobType=$B11)*1,Salaries),O$5) -> 2564.340003 | P11: =QUARTILE(IF((Continent=P$7)*(JobType=$B11),Salaries),P$5) -> 8414.240635 | Q11: =QUARTILE(IF((Continent=Q$7)*(JobType=$B11),Salaries),Q$5) -> 12000 | R11: =QUARTILE(IF((Continent=R$7)*(JobType=$B11),Salaries),R$5) -> 25376.28128 | S11: =QUARTILE(IF((Continent=S$7)*(JobType=$B11),Salaries),S$5) -> 120000 | W11: Consultant | X11: =QUARTILE(IF((Continent=X$7)*(JobType=$B11),Salaries),X$5) -> 12000 | Y11: =QUARTILE(IF((Continent=Y$7)*(JobType=$B11),Salaries),Y$5) -> 69000 | Z11: =QUARTILE(IF((Continent=Z$7)*(JobType=$B11),Salaries),Z$5) -> 90469.26012 | AA11: =QUARTILE(IF((Continent=AA$7)*(JobType=$B11),Salaries),AA$5) -> 115000 | AB11: =QUARTILE(IF((Continent=AB$7)*(JobType=$B11),Salaries),AB$5) -> 250000 | AG11: Europe | AH11: =SUM((Continent=$AG11)*(YearsExp>AH$6)*(YearsExp<=AH$7)) -> 19 | AI11: =SUM((Continent=$AG11)*(YearsExp>AI$6)*(YearsExp<=AI$7)) -> 52 | AJ11: =SUM((Continent=$AG11)*(YearsExp>AJ$6)*(YearsExp<=AJ$7)) -> 67 | AK11: =SUM((Continent=$AG11)*(YearsExp>AK$6)*(YearsExp<=AK$7)) -> 43 | AL11: =SUM((Continent=$AG11)*(YearsExp>AL$6)*(YearsExp<=AL$7)) -> 40 | AM11: =SUM(AH11:AL11) -> 221 | AO11: Europe | AP11: =SUMPRODUCT((Continent=$AO11)*(CodeHours=AP$6)) -> 1 | AQ11: =SUMPRODUCT((Continent=$AO11)*(CodeHours=AQ$6)) -> 30 | AR11: =SUMPRODUCT((Continent=$AO11)*(CodeHours=AR$6)) -> 76 | AS11: =SUMPRODUCT((Continent=$AO11)*(CodeHours=AS$6)) -> 124 | AT11: =SUMPRODUCT((Continent=$AO11)*(CodeHours=AT$6)) -> 73 | AU11: =SUM(AP11:AT11) -> 304 | AW11: Europe | AX11: =SUM((Continent=$AG11)*(YearsExp>AX$6)*(YearsExp<=AX$7)*Salaries)/AH11 -> 42463.78097 | AY11: =SUM((Continent=$AG11)*(YearsExp>AY$6)*(YearsExp<=AY$7)*Salaries)/AI11 -> 52552.924 | AZ11: =SUM((Continent=$AG11)*(YearsExp>AZ$6)*(YearsExp<=AZ$7)*Salaries)/AJ11 -> 61206.88659 | BA11: =SUM((Continent=$AG11)*(YearsExp>BA$6)*(YearsExp<=BA$7)*Salaries)/AK11 -> 64911.97539 | BB11: =SUM((Continent=$AG11)*(YearsExp>BB$6)*(YearsExp<=BB$7)*Salaries)/AL11 -> 77703.71104 | BE11: Europe | BF11: =IFERROR(SUM((Continent=$AO11)*(CodeHours=BF$6)*Salaries)/AP11,"") -> 170000 | BG11: =IFERROR(SUM((Continent=$AO11)*(CodeHours=BG$6)*Salaries)/AQ11,"") -> 73735.05567 | BH11: =IFERROR(SUM((Continent=$AO11)*(CodeHours=BH$6)*Salaries)/AR11,"") -> 66586.81002 | BI11: =IFERROR(SUM((Continent=$AO11)*(CodeHours=BI$6)*Salaries)/AS11,"") -> 61660.82083 | BJ11: =IFERROR(SUM((Continent=$AO11)*(CodeHours=BJ$6)*Salaries)/AT11,"") -> 56161.84521 | BL11: 4 | BM11: =INDEX($BU$18:$BY$120,$BL11,COLUMNS($BL$8:BM11)) -> Australia | BN11: =INDEX($BU$18:$BY$120,$BL11,COLUMNS($BL$8:BN11)) -> 92857.62985 | BO11: =INDEX($BU$18:$BY$120,$BL11,COLUMNS($BL$8:BO11)) -> 10.26 | BP11: =INDEX($BU$18:$BY$120,$BL11,COLUMNS($BL$8:BP11)) -> 81
B12: Controller | C12: =SUM((Continent=C$8)*(JobType=$B12)*(YearsExp>$D$4)*(YearsExp<$E$4)*(CodeHours>$D$5)*(CodeHours<$E$5)*Salaries) -> 0 | D12: =SUM((Continent=D$8)*(JobType=$B12)*(YearsExp>$D$4)*(YearsExp<$E$4)*(CodeHours>$D$5)*(CodeHours<$E$5)*Salaries) -> 0 | E12: =SUM((Continent=E$8)*(JobType=$B12)*(YearsExp>$D$4)*(YearsExp<$E$4)*(CodeHours>$D$5)*(CodeHours<$E$5)*Salaries) -> 0 | F12: =SUM((Continent=F$8)*(JobType=$B12)*(YearsExp>$D$4)*(YearsExp<$E$4)*(CodeHours>$D$5)*(CodeHours<$E$5)*Salaries) -> 24000 | G12: =SUM((Continent=G$8)*(JobType=$B12)*(YearsExp>$D$4)*(YearsExp<$E$4)*(CodeHours>$D$5)*(CodeHours<$E$5)*Salaries) -> 0 | H12: =SUM((Continent=H$8)*(JobType=$B12)*(YearsExp>$D$4)*(YearsExp<$E$4)*(CodeHours>$D$5)*(CodeHours<$E$5)*Salaries) -> 50995.48282 | I12: 74995.48282 | J12: 24000 | N12: Controller | O12: =QUARTILE(IF((Continent=O$7)*(JobType=$B12)*1,Salaries),O$5) -> 2564.340003 | P12: =QUARTILE(IF((Continent=P$7)*(JobType=$B12),Salaries),P$5) -> 12450 | Q12: =QUARTILE(IF((Continent=Q$7)*(JobType=$B12),Salaries),Q$5) -> 15813.56251 | R12: =QUARTILE(IF((Continent=R$7)*(JobType=$B12),Salaries),R$5) -> 39000 | S12: =QUARTILE(IF((Continent=S$7)*(JobType=$B12),Salaries),S$5) -> 85000 | W12: Controller | X12: =QUARTILE(IF((Continent=X$7)*(JobType=$B12),Salaries),X$5) -> 24000 | Y12: =QUARTILE(IF((Continent=Y$7)*(JobType=$B12),Salaries),Y$5) -> 67000 | Z12: =QUARTILE(IF((Continent=Z$7)*(JobType=$B12),Salaries),Z$5) -> 80000 | AA12: =QUARTILE(IF((Continent=AA$7)*(JobType=$B12),Salaries),AA$5) -> 101000 | AB12: =QUARTILE(IF((Continent=AB$7)*(JobType=$B12),Salaries),AB$5) -> 214000 | AG12: Africa | AH12: =SUM((Continent=$AG12)*(YearsExp>AH$6)*(YearsExp<=AH$7)) -> 5 | AI12: =SUM((Continent=$AG12)*(YearsExp>AI$6)*(YearsExp<=AI$7)) -> 6 | AJ12: =SUM((Continent=$AG12)*(YearsExp>AJ$6)*(YearsExp<=AJ$7)) -> 11 | AK12: =SUM((Continent=$AG12)*(YearsExp>AK$6)*(YearsExp<=AK$7)) -> 3 | AL12: =SUM((Continent=$AG12)*(YearsExp>AL$6)*(YearsExp<=AL$7)) -> 6 | AM12: 31 | AO12: Africa | AP12: =SUMPRODUCT((Continent=$AO12)*(CodeHours=AP$6)) -> 0 | AQ12: =SUMPRODUCT((Continent=$AO12)*(CodeHours=AQ$6)) -> 0 | AR12: =SUMPRODUCT((Continent=$AO12)*(CodeHours=AR$6)) -> 4 | AS12: =SUMPRODUCT((Continent=$AO12)*(CodeHours=AS$6)) -> 19 | AT12: =SUMPRODUCT((Continent=$AO12)*(CodeHours=AT$6)) -> 14 | AU12: 37 | AW12: Africa | AX12: =SUM((Continent=$AG12)*(YearsExp>AX$6)*(YearsExp<=AX$7)*Salaries)/AH12 -> 17526.95344 | AY12: =SUM((Continent=$AG12)*(YearsExp>AY$6)*(YearsExp<=AY$7)*Salaries)/AI12 -> 14649.30614 | AZ12: =SUM((Continent=$AG12)*(YearsExp>AZ$6)*(YearsExp<=AZ$7)*Salaries)/AJ12 -> 43760.59777 | BA12: =SUM((Continent=$AG12)*(YearsExp>BA$6)*(YearsExp<=BA$7)*Salaries)/AK12 -> 24948.7579 | BB12: =SUM((Continent=$AG12)*(YearsExp>BB$6)*(YearsExp<=BB$7)*Salaries)/AL12 -> 75481.80484 | BE12: Africa | BF12: =IFERROR(SUM((Continent=$AO12)*(CodeHours=BF$6)*Salaries)/AP12,"") ->  | BG12: =IFERROR(SUM((Continent=$AO12)*(CodeHours=BG$6)*Salaries)/AQ12,"") ->  | BH12: =IFERROR(SUM((Continent=$AO12)*(CodeHours=BH$6)*Salaries)/AR12,"") -> 48526.94544 | BI12: =IFERROR(SUM((Continent=$AO12)*(CodeHours=BI$6)*Salaries)/AS12,"") -> 48354.30478 | BJ12: =IFERROR(SUM((Continent=$AO12)*(CodeHours=BJ$6)*Salaries)/AT12,"") -> 33033.58799 | BL12: 5 | BM12: =INDEX($BU$18:$BY$120,$BL12,COLUMNS($BL$8:BM12)) -> Canada | BN12: =INDEX($BU$18:$BY$120,$BL12,COLUMNS($BL$8:BN12)) -> 89799.52684 | BO12: =INDEX($BU$18:$BY$120,$BL12,COLUMNS($BL$8:BO12)) -> 8.75 | BP12: =INDEX($BU$18:$BY$120,$BL12,COLUMNS($BL$8:BP12)) -> 58
B13: CXO or Top Mgmt. | C13: =SUM((Continent=C$8)*(JobType=$B13)*(YearsExp>$D$4)*(YearsExp<$E$4)*(CodeHours>$D$5)*(CodeHours<$E$5)*Salaries) -> 193491.5626 | D13: =SUM((Continent=D$8)*(JobType=$B13)*(YearsExp>$D$4)*(YearsExp<$E$4)*(CodeHours>$D$5)*(CodeHours<$E$5)*Salaries) -> 127039.9439 | E13: =SUM((Continent=E$8)*(JobType=$B13)*(YearsExp>$D$4)*(YearsExp<$E$4)*(CodeHours>$D$5)*(CodeHours<$E$5)*Salaries) -> 0 | F13: =SUM((Continent=F$8)*(JobType=$B13)*(YearsExp>$D$4)*(YearsExp<$E$4)*(CodeHours>$D$5)*(CodeHours<$E$5)*Salaries) -> 293000 | G13: =SUM((Continent=G$8)*(JobType=$B13)*(YearsExp>$D$4)*(YearsExp<$E$4)*(CodeHours>$D$5)*(CodeHours<$E$5)*Salaries) -> 0 | H13: =SUM((Continent=H$8)*(JobType=$B13)*(YearsExp>$D$4)*(YearsExp<$E$4)*(CodeHours>$D$5)*(CodeHours<$E$5)*Salaries) -> 0 | I13: 613531.5065 | J13: 293000 | N13: CXO or Top Mgmt. | O13: =QUARTILE(IF((Continent=O$7)*(JobType=$B13)*1,Salaries),O$5) -> 2671.187503 | P13: =QUARTILE(IF((Continent=P$7)*(JobType=$B13),Salaries),P$5) -> 13801.13543 | Q13: =QUARTILE(IF((Continent=Q$7)*(JobType=$B13),Salaries),Q$5) -> 30000 | R13: =QUARTILE(IF((Continent=R$7)*(JobType=$B13),Salaries),R$5) -> 47259.89586 | S13: =QUARTILE(IF((Continent=S$7)*(JobType=$B13),Salaries),S$5) -> 100800 | W13: CXO or Top Mgmt. | X13: =QUARTILE(IF((Continent=X$7)*(JobType=$B13),Salaries),X$5) -> 16000 | Y13: =QUARTILE(IF((Continent=Y$7)*(JobType=$B13),Salaries),Y$5) -> 87500 | Z13: =QUARTILE(IF((Continent=Z$7)*(JobType=$B13),Salaries),Z$5) -> 107500 | AA13: =QUARTILE(IF((Continent=AA$7)*(JobType=$B13),Salaries),AA$5) -> 150000 | AB13: =QUARTILE(IF((Continent=AB$7)*(JobType=$B13),Salaries),AB$5) -> 300000 | AG13: North Amer. | AH13: =SUM((Continent=$AG13)*(YearsExp>AH$6)*(YearsExp<=AH$7)) -> 55 | AI13: =SUM((Continent=$AG13)*(YearsExp>AI$6)*(YearsExp<=AI$7)) -> 69 | AJ13: =SUM((Continent=$AG13)*(YearsExp>AJ$6)*(YearsExp<=AJ$7)) -> 106 | AK13: =SUM((Continent=$AG13)*(YearsExp>AK$6)*(YearsExp<=AK$7)) -> 69 | AL13: =SUM((Continent=$AG13)*(YearsExp>AL$6)*(YearsExp<=AL$7)) -> 69 | AM13: 368 | AO13: North Amer. | AP13: =SUMPRODUCT((Continent=$AO13)*(CodeHours=AP$6)) -> 4 | AQ13: =SUMPRODUCT((Continent=$AO13)*(CodeHours=AQ$6)) -> 50 | AR13: =SUMPRODUCT((Continent=$AO13)*(CodeHours=AR$6)) -> 169 | AS13: =SUMPRODUCT((Continent=$AO13)*(CodeHours=AS$6)) -> 312 | AT13: =SUMPRODUCT((Continent=$AO13)*(CodeHours=AT$6)) -> 155 | AU13: 690 | AW13: North Amer. | AX13: =SUM((Continent=$AG13)*(YearsExp>AX$6)*(YearsExp<=AX$7)*Salaries)/AH13 -> 51417.85505 | AY13: =SUM((Continent=$AG13)*(YearsExp>AY$6)*(YearsExp<=AY$7)*Salaries)/AI13 -> 58797.10732 | AZ13: =SUM((Continent=$AG13)*(YearsExp>AZ$6)*(YearsExp<=AZ$7)*Salaries)/AJ13 -> 74894.32729 | BA13: =SUM((Continent=$AG13)*(YearsExp>BA$6)*(YearsExp<=BA$7)*Salaries)/AK13 -> 78838.12317 | BB13: =SUM((Continent=$AG13)*(YearsExp>BB$6)*(YearsExp<=BB$7)*Salaries)/AL13 -> 92970.08963 | BE13: North Amer. | BF13: =IFERROR(SUM((Continent=$AO13)*(CodeHours=BF$6)*Salaries)/AP13,"") -> 52000.42285 | BG13: =IFERROR(SUM((Continent=$AO13)*(CodeHours=BG$6)*Salaries)/AQ13,"") -> 76379.76072 | BH13: =IFERROR(SUM((Continent=$AO13)*(CodeHours=BH$6)*Salaries)/AR13,"") -> 76483.57303 | BI13: =IFERROR(SUM((Continent=$AO13)*(CodeHours=BI$6)*Salaries)/AS13,"") -> 72974.60334 | BJ13: =IFERROR(SUM((Continent=$AO13)*(CodeHours=BJ$6)*Salaries)/AT13,"") -> 69858.43027
B14: Engineer | C14: =SUM((Continent=C$8)*(JobType=$B14)*(YearsExp>$D$4)*(YearsExp<$E$4)*(CodeHours>$D$5)*(CodeHours<$E$5)*Salaries) -> 101036.7292 | D14: =SUM((Continent=D$8)*(JobType=$B14)*(YearsExp>$D$4)*(YearsExp<$E$4)*(CodeHours>$D$5)*(CodeHours<$E$5)*Salaries) -> 0 | E14: =SUM((Continent=E$8)*(JobType=$B14)*(YearsExp>$D$4)*(YearsExp<$E$4)*(CodeHours>$D$5)*(CodeHours<$E$5)*Salaries) -> 0 | F14: =SUM((Continent=F$8)*(JobType=$B14)*(YearsExp>$D$4)*(YearsExp<$E$4)*(CodeHours>$D$5)*(CodeHours<$E$5)*Salaries) -> 60000 | G14: =SUM((Continent=G$8)*(JobType=$B14)*(YearsExp>$D$4)*(YearsExp<$E$4)*(CodeHours>$D$5)*(CodeHours<$E$5)*Salaries) -> 80000 | H14: =SUM((Continent=H$8)*(JobType=$B14)*(YearsExp>$D$4)*(YearsExp<$E$4)*(CodeHours>$D$5)*(CodeHours<$E$5)*Salaries) -> 0 | I14: 241036.7292 | J14: 60000 | N14: Engineer | O14: =QUARTILE(IF((Continent=O$7)*(JobType=$B14)*1,Salaries),O$5) -> 2671.187503 | P14: =QUARTILE(IF((Continent=P$7)*(JobType=$B14),Salaries),P$5) -> 7229.541669 | Q14: =QUARTILE(IF((Continent=Q$7)*(JobType=$B14),Salaries),Q$5) -> 11702.41022 | R14: =QUARTILE(IF((Continent=R$7)*(JobType=$B14),Salaries),R$5) -> 24000 | S14: =QUARTILE(IF((Continent=S$7)*(JobType=$B14),Salaries),S$5) -> 138000 | W14: Engineer | X14: =QUARTILE(IF((Continent=X$7)*(JobType=$B14),Salaries),X$5) -> 6629 | Y14: =QUARTILE(IF((Continent=Y$7)*(JobType=$B14),Salaries),Y$5) -> 57000 | Z14: =QUARTILE(IF((Continent=Z$7)*(JobType=$B14),Salaries),Z$5) -> 71250 | AA14: =QUARTILE(IF((Continent=AA$7)*(JobType=$B14),Salaries),AA$5) -> 85000 | AB14: =QUARTILE(IF((Continent=AB$7)*(JobType=$B14),Salaries),AB$5) -> 130000 | AG14: South Amer. | AH14: =SUM((Continent=$AG14)*(YearsExp>AH$6)*(YearsExp<=AH$7)) -> 3 | AI14: =SUM((Continent=$AG14)*(YearsExp>AI$6)*(YearsExp<=AI$7)) -> 4 | AJ14: =SUM((Continent=$AG14)*(YearsExp>AJ$6)*(YearsExp<=AJ$7)) -> 10 | AK14: =SUM((Continent=$AG14)*(YearsExp>AK$6)*(YearsExp<=AK$7)) -> 2 | AL14: =SUM((Continent=$AG14)*(YearsExp>AL$6)*(YearsExp<=AL$7)) -> 3 | AM14: 22 | AO14: South Amer. | AP14: =SUMPRODUCT((Continent=$AO14)*(CodeHours=AP$6)) -> 0 | AQ14: =SUMPRODUCT((Continent=$AO14)*(CodeHours=AQ$6)) -> 8 | AR14: =SUMPRODUCT((Continent=$AO14)*(CodeHours=AR$6)) -> 3 | AS14: =SUMPRODUCT((Continent=$AO14)*(CodeHours=AS$6)) -> 8 | AT14: =SUMPRODUCT((Continent=$AO14)*(CodeHours=AT$6)) -> 16 | AU14: 35 | AW14: South Amer. | AX14: =SUM((Continent=$AG14)*(YearsExp>AX$6)*(YearsExp<=AX$7)*Salaries)/AH14 -> 16533.33333 | AY14: =SUM((Continent=$AG14)*(YearsExp>AY$6)*(YearsExp<=AY$7)*Salaries)/AI14 -> 49221.08752 | AZ14: =SUM((Continent=$AG14)*(YearsExp>AZ$6)*(YearsExp<=AZ$7)*Salaries)/AJ14 -> 24683.13814 | BA14: =SUM((Continent=$AG14)*(YearsExp>BA$6)*(YearsExp<=BA$7)*Salaries)/AK14 -> 27850 | BB14: =SUM((Continent=$AG14)*(YearsExp>BB$6)*(YearsExp<=BB$7)*Salaries)/AL14 -> 15200 | BE14: South Amer. | BF14: =IFERROR(SUM((Continent=$AO14)*(CodeHours=BF$6)*Salaries)/AP14,"") ->  | BG14: =IFERROR(SUM((Continent=$AO14)*(CodeHours=BG$6)*Salaries)/AQ14,"") -> 24611.39788 | BH14: =IFERROR(SUM((Continent=$AO14)*(CodeHours=BH$6)*Salaries)/AR14,"") -> 43133.33333 | BI14: =IFERROR(SUM((Continent=$AO14)*(CodeHours=BI$6)*Salaries)/AS14,"") -> 24425 | BJ14: =IFERROR(SUM((Continent=$AO14)*(CodeHours=BJ$6)*Salaries)/AT14,"") -> 42899.97178 | CD14: between 2 and 25
B15: Manager | C15: =SUM((Continent=C$8)*(JobType=$B15)*(YearsExp>$D$4)*(YearsExp<$E$4)*(CodeHours>$D$5)*(CodeHours<$E$5)*Salaries) -> 372953.4202 | D15: =SUM((Continent=D$8)*(JobType=$B15)*(YearsExp>$D$4)*(YearsExp<$E$4)*(CodeHours>$D$5)*(CodeHours<$E$5)*Salaries) -> 829441.0088 | E15: =SUM((Continent=E$8)*(JobType=$B15)*(YearsExp>$D$4)*(YearsExp<$E$4)*(CodeHours>$D$5)*(CodeHours<$E$5)*Salaries) -> 0 | F15: =SUM((Continent=F$8)*(JobType=$B15)*(YearsExp>$D$4)*(YearsExp<$E$4)*(CodeHours>$D$5)*(CodeHours<$E$5)*Salaries) -> 942000 | G15: =SUM((Continent=G$8)*(JobType=$B15)*(YearsExp>$D$4)*(YearsExp<$E$4)*(CodeHours>$D$5)*(CodeHours<$E$5)*Salaries) -> 32691.18301 | H15: =SUM((Continent=H$8)*(JobType=$B15)*(YearsExp>$D$4)*(YearsExp<$E$4)*(CodeHours>$D$5)*(CodeHours<$E$5)*Salaries) -> 328410.9094 | I15: 2505496.521 | J15: 942000 | N15: Manager | O15: =QUARTILE(IF((Continent=O$7)*(JobType=$B15)*1,Salaries),O$5) -> 1805.773962 | P15: =QUARTILE(IF((Continent=P$7)*(JobType=$B15),Salaries),P$5) -> 7693.020009 | Q15: =QUARTILE(IF((Continent=Q$7)*(JobType=$B15),Salaries),Q$5) -> 11575.14585 | R15: =QUARTILE(IF((Continent=R$7)*(JobType=$B15),Salaries),R$5) -> 21369.50002 | S15: =QUARTILE(IF((Continent=S$7)*(JobType=$B15),Salaries),S$5) -> 186983.1252 | W15: Manager | X15: =QUARTILE(IF((Continent=X$7)*(JobType=$B15),Salaries),X$5) -> 11000 | Y15: =QUARTILE(IF((Continent=Y$7)*(JobType=$B15),Salaries),Y$5) -> 52000 | Z15: =QUARTILE(IF((Continent=Z$7)*(JobType=$B15),Salaries),Z$5) -> 68835.30661 | AA15: =QUARTILE(IF((Continent=AA$7)*(JobType=$B15),Salaries),AA$5) -> 90000 | AB15: =QUARTILE(IF((Continent=AB$7)*(JobType=$B15),Salaries),AB$5) -> 400000 | AG15: Oceania | AH15: =SUM((Continent=$AG15)*(YearsExp>AH$6)*(YearsExp<=AH$7)) -> 8 | AI15: =SUM((Continent=$AG15)*(YearsExp>AI$6)*(YearsExp<=AI$7)) -> 23 | AJ15: =SUM((Continent=$AG15)*(YearsExp>AJ$6)*(YearsExp<=AJ$7)) -> 26 | AK15: =SUM((Continent=$AG15)*(YearsExp>AK$6)*(YearsExp<=AK$7)) -> 13 | AL15: =SUM((Continent=$AG15)*(YearsExp>AL$6)*(YearsExp<=AL$7)) -> 19 | AM15: 89 | AO15: Oceania | AP15: =SUMPRODUCT((Continent=$AO15)*(CodeHours=AP$6)) -> 0 | AQ15: =SUMPRODUCT((Continent=$AO15)*(CodeHours=AQ$6)) -> 10 | AR15: =SUMPRODUCT((Continent=$AO15)*(CodeHours=AR$6)) -> 29 | AS15: =SUMPRODUCT((Continent=$AO15)*(CodeHours=AS$6)) -> 43 | AT15: =SUMPRODUCT((Continent=$AO15)*(CodeHours=AT$6)) -> 14 | AU15: 96 | AW15: Oceania | AX15: =SUM((Continent=$AG15)*(YearsExp>AX$6)*(YearsExp<=AX$7)*Salaries)/AH15 -> 63991.05821 | AY15: =SUM((Continent=$AG15)*(YearsExp>AY$6)*(YearsExp<=AY$7)*Salaries)/AI15 -> 73916.59206 | AZ15: =SUM((Continent=$AG15)*(YearsExp>AZ$6)*(YearsExp<=AZ$7)*Salaries)/AJ15 -> 94882.75614 | BA15: =SUM((Continent=$AG15)*(YearsExp>BA$6)*(YearsExp<=BA$7)*Salaries)/AK15 -> 103362.0209 | BB15: =SUM((Continent=$AG15)*(YearsExp>BB$6)*(YearsExp<=BB$7)*Salaries)/AL15 -> 102453.4959 | BE15: Oceania | BF15: =IFERROR(SUM((Continent=$AO15)*(CodeHours=BF$6)*Salaries)/AP15,"") ->  | BG15: =IFERROR(SUM((Continent=$AO15)*(CodeHours=BG$6)*Salaries)/AQ15,"") -> 95361.55287 | BH15: =IFERROR(SUM((Continent=$AO15)*(CodeHours=BH$6)*Salaries)/AR15,"") -> 94419.58796 | BI15: =IFERROR(SUM((Continent=$AO15)*(CodeHours=BI$6)*Salaries)/AS15,"") -> 87670.99426 | BJ15: =IFERROR(SUM((Continent=$AO15)*(CodeHours=BJ$6)*Salaries)/AT15,"") -> 79581.78645
B16: Misc. | C16: =SUM((Continent=C$8)*(JobType=$B16)*(YearsExp>$D$4)*(YearsExp<$E$4)*(CodeHours>$D$5)*(CodeHours<$E$5)*Salaries) -> 0 | D16: =SUM((Continent=D$8)*(JobType=$B16)*(YearsExp>$D$4)*(YearsExp<$E$4)*(CodeHours>$D$5)*(CodeHours<$E$5)*Salaries) -> 0 | E16: =SUM((Continent=E$8)*(JobType=$B16)*(YearsExp>$D$4)*(YearsExp<$E$4)*(CodeHours>$D$5)*(CodeHours<$E$5)*Salaries) -> 0 | F16: =SUM((Continent=F$8)*(JobType=$B16)*(YearsExp>$D$4)*(YearsExp<$E$4)*(CodeHours>$D$5)*(CodeHours<$E$5)*Salaries) -> 74461 | G16: =SUM((Continent=G$8)*(JobType=$B16)*(YearsExp>$D$4)*(YearsExp<$E$4)*(CodeHours>$D$5)*(CodeHours<$E$5)*Salaries) -> 0 | H16: =SUM((Continent=H$8)*(JobType=$B16)*(YearsExp>$D$4)*(YearsExp<$E$4)*(CodeHours>$D$5)*(CodeHours<$E$5)*Salaries) -> 0 | I16: 74461 | J16: 74461 | N16: Misc. | O16: =QUARTILE(IF((Continent=O$7)*(JobType=$B16)*1,Salaries),O$5) -> 2493.108336 | P16: =QUARTILE(IF((Continent=P$7)*(JobType=$B16),Salaries),P$5) -> 4373.277084 | Q16: =QUARTILE(IF((Continent=Q$7)*(JobType=$B16),Salaries),Q$5) -> 13000 | R16: =QUARTILE(IF((Continent=R$7)*(JobType=$B16),Salaries),R$5) -> 26178.0578 | S16: =QUARTILE(IF((Continent=S$7)*(JobType=$B16),Salaries),S$5) -> 41712.23119 | W16: Misc. | X16: =QUARTILE(IF((Continent=X$7)*(JobType=$B16),Salaries),X$5) -> 74461 | Y16: =QUARTILE(IF((Continent=Y$7)*(JobType=$B16),Salaries),Y$5) -> 80730.5 | Z16: =QUARTILE(IF((Continent=Z$7)*(JobType=$B16),Salaries),Z$5) -> 87000 | AA16: =QUARTILE(IF((Continent=AA$7)*(JobType=$B16),Salaries),AA$5) -> 88500 | AB16: =QUARTILE(IF((Continent=AB$7)*(JobType=$B16),Salaries),AB$5) -> 90000 | AG16: Worldwide | AH16: =SUM(AH10:AH15) -> 193 | AI16: =SUM(AI10:AI15) -> 356 | AJ16: 405 | AK16: 190 | AL16: 179 | AM16: 1323 | AO16: Worldwide | AP16: =SUM(AP10:AP15) -> 7 | AQ16: =SUM(AQ10:AQ15) -> 174 | AR16: =SUM(AR10:AR15) -> 451 | AS16: =SUM(AS10:AS15) -> 774 | AT16: =SUM(AT10:AT15) -> 476 | AU16: 1882 | AW16: Worldwide | AX16: =AVERAGE(AX10:AX15) -> 33880.10038 | AY16: =AVERAGE(AY10:AY15) -> 43776.19161 | AZ16: 53164.0007 | BA16: 54073.58545 | BB16: 63988.14002 | BE16: Worldwide | BF16: =AVERAGE(BF10:BF15) -> 78075.47081 | BG16: =AVERAGE(BG10:BG15) -> 57888.19273 | BH16: 57902.64496 | BI16: 51982.58123 | BJ16: 49822.10305 | BL16: Original Data | BR16: Sorted data | CB16: Random | CG16: Conversion | CL16: Text
B17: Reporting | C17: =SUM((Continent=C$8)*(JobType=$B17)*(YearsExp>$D$4)*(YearsExp<$E$4)*(CodeHours>$D$5)*(CodeHours<$E$5)*Salaries) -> 22287.46251 | D17: =SUM((Continent=D$8)*(JobType=$B17)*(YearsExp>$D$4)*(YearsExp<$E$4)*(CodeHours>$D$5)*(CodeHours<$E$5)*Salaries) -> 0 | E17: =SUM((Continent=E$8)*(JobType=$B17)*(YearsExp>$D$4)*(YearsExp<$E$4)*(CodeHours>$D$5)*(CodeHours<$E$5)*Salaries) -> 0 | F17: =SUM((Continent=F$8)*(JobType=$B17)*(YearsExp>$D$4)*(YearsExp<$E$4)*(CodeHours>$D$5)*(CodeHours<$E$5)*Salaries) -> 0 | G17: =SUM((Continent=G$8)*(JobType=$B17)*(YearsExp>$D$4)*(YearsExp<$E$4)*(CodeHours>$D$5)*(CodeHours<$E$5)*Salaries) -> 0 | H17: =SUM((Continent=H$8)*(JobType=$B17)*(YearsExp>$D$4)*(YearsExp<$E$4)*(CodeHours>$D$5)*(CodeHours<$E$5)*Salaries) -> 0 | I17: 22287.46251 | J17: 0 | N17: Reporting | O17: =QUARTILE(IF((Continent=O$7)*(JobType=$B17)*1,Salaries),O$5) -> 1910.535969 | P17: =QUARTILE(IF((Continent=P$7)*(JobType=$B17),Salaries),P$5) -> 4000 | Q17: =QUARTILE(IF((Continent=Q$7)*(JobType=$B17),Salaries),Q$5) -> 5983.460007 | R17: =QUARTILE(IF((Continent=R$7)*(JobType=$B17),Salaries),R$5) -> 10000 | S17: =QUARTILE(IF((Continent=S$7)*(JobType=$B17),Salaries),S$5) -> 100614.7293 | W17: Reporting | X17: =QUARTILE(IF((Continent=X$7)*(JobType=$B17),Salaries),X$5) -> 32000 | Y17: =QUARTILE(IF((Continent=Y$7)*(JobType=$B17),Salaries),Y$5) -> 37000 | Z17: =QUARTILE(IF((Continent=Z$7)*(JobType=$B17),Salaries),Z$5) -> 45000 | AA17: =QUARTILE(IF((Continent=AA$7)*(JobType=$B17),Salaries),AA$5) -> 85000 | AB17: =QUARTILE(IF((Continent=AB$7)*(JobType=$B17),Salaries),AB$5) -> 92000 | BL17: No | BM17: Country | BN17: Salary | BO17: Experience | BP17: Nb responses | BR17: =+BO3 -> Nb responses | BS17: Sort order | BT17: Order | BU17: No. | BV17: Country | BW17: Salary | BX17: Experience | BY17: Nb responses | CB17: Continent | CC17: Job Type | CD17: Experience | CE17: Hours / Day | CG17: Continent | CH17: Job Type | CI17: Experience | CJ17: Hours / Day | CL17: Continent | CM17: Job Type | CN17: Experience | CO17: Hours / Day | CQ17: Calculations | CS17: Random | CT17: Rank | CU17: Value | CV17: Random message
B18: Specialist | C18: =SUM((Continent=C$8)*(JobType=$B18)*(YearsExp>$D$4)*(YearsExp<$E$4)*(CodeHours>$D$5)*(CodeHours<$E$5)*Salaries) -> 0 | D18: =SUM((Continent=D$8)*(JobType=$B18)*(YearsExp>$D$4)*(YearsExp<$E$4)*(CodeHours>$D$5)*(CodeHours<$E$5)*Salaries) -> 88927.96073 | E18: =SUM((Continent=E$8)*(JobType=$B18)*(YearsExp>$D$4)*(YearsExp<$E$4)*(CodeHours>$D$5)*(CodeHours<$E$5)*Salaries) -> 0 | F18: =SUM((Continent=F$8)*(JobType=$B18)*(YearsExp>$D$4)*(YearsExp<$E$4)*(CodeHours>$D$5)*(CodeHours<$E$5)*Salaries) -> 0 | G18: =SUM((Continent=G$8)*(JobType=$B18)*(YearsExp>$D$4)*(YearsExp<$E$4)*(CodeHours>$D$5)*(CodeHours<$E$5)*Salaries) -> 0 | H18: =SUM((Continent=H$8)*(JobType=$B18)*(YearsExp>$D$4)*(YearsExp<$E$4)*(CodeHours>$D$5)*(CodeHours<$E$5)*Salaries) -> 0 | I18: 88927.96073 | J18: 0 | N18: Specialist | O18: =QUARTILE(IF((Continent=O$7)*(JobType=$B18)*1,Salaries),O$5) -> 4019 | P18: =QUARTILE(IF((Continent=P$7)*(JobType=$B18),Salaries),P$5) -> 9455.425004 | Q18: =QUARTILE(IF((Continent=Q$7)*(JobType=$B18),Salaries),Q$5) -> 18000 | R18: =QUARTILE(IF((Continent=R$7)*(JobType=$B18),Salaries),R$5) -> 28000 | S18: =QUARTILE(IF((Continent=S$7)*(JobType=$B18),Salaries),S$5) -> 99147 | W18: Specialist | X18: =QUARTILE(IF((Continent=X$7)*(JobType=$B18),Salaries),X$5) -> 31000 | Y18: =QUARTILE(IF((Continent=Y$7)*(JobType=$B18),Salaries),Y$5) -> 45000 | Z18: =QUARTILE(IF((Continent=Z$7)*(JobType=$B18),Salaries),Z$5) -> 50000 | AA18: =QUARTILE(IF((Continent=AA$7)*(JobType=$B18),Salaries),AA$5) -> 69000 | AB18: =QUARTILE(IF((Continent=AB$7)*(JobType=$B18),Salaries),AB$5) -> 400000 | BL18: 1 | BM18: Albania | BN18: =SUM((Country=BM18)*Salaries)/SUM((Country=BM18)*1) -> 20571 | BO18: =IFERROR(SUM((Country=BM18)*(YearsExp<>"")*YearsExp)/SUM((Country=BM18)*(YearsExp<>"")*1),0) -> 8 | BP18: =SUM((Country=BM18)*1) -> 1 | BR18: =CHOOSE($BN$3,104-BL18,BN18,BO18,BP18)+0.00001*ROWS($BM$18:BM18) -> 1.00001 | BS18: =RANK(BR18,$BR$18:$BR$120) -> 103 | BT18: 1 | BU18: =INDEX($BL$18:$BL$120,MATCH($BT$18:$BT$120,$BS$18:$BS$120,0)) -> 100 | BV18: =INDEX($BM$18:$BM$120,MATCH($BT$18:$BT$120,$BS$18:$BS$120,0)) -> USA | BW18: =INDEX($BN$18:$BN$120,MATCH($BT$18:$BT$120,$BS$18:$BS$120,0)) -> 72738.12966 | BX18: =INDEX($BO$18:$BO$120,MATCH($BT$18:$BT$120,$BS$18:$BS$120,0)) -> 10.2920354 | BY18: =INDEX($BP$18:$BP$120,MATCH($BT$18:$BT$120,$BS$18:$BS$120,0)) -> 617 | CB18: =RANDBETWEEN(1,6) -> 4 | CC18: =RANDBETWEEN(1,9) -> 1 | CD18: =RANDBETWEEN(2,25) -> 20 | CE18: =RANDBETWEEN(1,5) -> 2 | CG18: =VLOOKUP(CB18,$CB$52:$CD$57,2,0) -> North Amer. | CH18: =VLOOKUP(CC18,$CB$41:$CD$49,2) -> Accountant | CI18: =+CD18 -> 20 | CJ18: =VLOOKUP(CE18,$CB$60:$CD$64,2) -> 2 | CL18: =VLOOKUP(CB18,$CB$52:$CD$57,3,0) -> in North America | CM18: =VLOOKUP(CC18,$CB$41:$CD$49,3) -> working as Accountant | CN18: =CD18 -> 20 | CO18: =VLOOKUP(CE18,$CB$60:$CD$64,3) -> 1 or 2 hours a day | CQ18: =AVERAGE(Salaries) -> 49814.59826 | CS18: =RAND() -> 0.3461397506 | CT18: =RANK(CS18,$CS$18:$CS$33) -> 10 | CU18: =TEXT(CQ18,"# $") -> 49815 $ | CV18: Average salary of all participants in the world.
BL19: 2 | BM19: Arabian Gulf | BN19: =SUM((Country=BM19)*Salaries)/SUM((Country=BM19)*1) -> 21000 | BO19: =IFERROR(SUM((Country=BM19)*(YearsExp<>"")*YearsExp)/SUM((Country=BM19)*(YearsExp<>"")*1),0) -> 0 | BP19: =SUM((Country=BM19)*1) -> 1 | BR19: =CHOOSE($BN$3,104-BL19,BN19,BO19,BP19)+0.00001*ROWS($BM$18:BM19) -> 1.00002 | BS19: =RANK(BR19,$BR$18:$BR$120) -> 102 | BT19: 2 | BU19: 43 | BV19: India | BW19: 13529.43089 | BX19: 6.46918239 | BY19: 565 | CB19: =RANDBETWEEN(1,6) -> 1 | CC19: =RANDBETWEEN(1,9) -> 4 | CD19: =RANDBETWEEN(2,25) -> 23 | CE19: =RANDBETWEEN(1,5) -> 3 | CG19: Asia | CH19: Controller | CI19: =+CD19 -> 23 | CJ19: =VLOOKUP(CE19,$CB$60:$CD$64,2) -> 3 | CL19: in Asia | CM19: working as Controller | CN19: =CD19 -> 23 | CO19: =VLOOKUP(CE19,$CB$60:$CD$64,3) -> 2 to 3 hours per day | CQ19: =SUM((Continent=CG19)*Salaries)/SUM((Continent=CG19)*1) -> 17575.63114 | CS19: 0.3190391261 | CT19: =RANK(CS19,$CS$18:$CS$33) -> 11 | CU19: =TEXT(CQ19,"# $") -> 17576 $ | CV19: ="Average salary of participants living " & CL19 & "." -> Average salary of participants living in Asia.
AW20: For the graph | BL20: 3 | BM20: Argentina | BN20: =SUM((Country=BM20)*Salaries)/SUM((Country=BM20)*1) -> 24000 | BO20: =IFERROR(SUM((Country=BM20)*(YearsExp<>"")*YearsExp)/SUM((Country=BM20)*(YearsExp<>"")*1),0) -> 21 | BP20: =SUM((Country=BM20)*1) -> 1 | BR20: =CHOOSE($BN$3,104-BL20,BN20,BO20,BP20)+0.00001*ROWS($BM$18:BM20) -> 1.00003 | BS20: 101 | BT20: 3 | BU20: 97 | BV20: UK | BW20: 67240.73011 | BX20: 10.38288288 | BY20: 154 | CB20: 5 | CC20: 9 | CD20: 20 | CE20: =RANDBETWEEN(1,5) -> 2 | CG20: South Amer. | CH20: Specialist | CI20: 20 | CJ20: 2 | CL20: in South America | CM20: working as Specialist | CN20: 20 | CO20: 1 or 2 hours a day | CQ20: =SUM((Continent=CG20)*1) -> 35 | CS20: 0.6661493816 | CT20: 8 | CU20: =+CQ20 -> 35 | CV20: ="Participants living " & CL20 & "." -> Participants living in South America.
B21: Nb of persons | O21: Min | P21: 1st Quartile | Q21: Median | R21: 3rd quartile | S21: Max | X21: Min | Y21: 1st Quartile | Z21: Median | AA21: 3rd quartile | AB21: Max | AG21: Percentage | AO21: Percentage | BL21: 4 | BM21: Armenia | BN21: =SUM((Country=BM21)*Salaries)/SUM((Country=BM21)*1) -> 6000 | BO21: =IFERROR(SUM((Country=BM21)*(YearsExp<>"")*YearsExp)/SUM((Country=BM21)*(YearsExp<>"")*1),0) -> 5 | BP21: =SUM((Country=BM21)*1) -> 1 | BR21: =CHOOSE($BN$3,104-BL21,BN21,BO21,BP21)+0.00001*ROWS($BM$18:BM21) -> 1.00004 | BS21: 100 | BT21: 4 | BU21: 7 | BV21: Australia | BW21: 92857.62985 | BX21: 10.26 | BY21: 81 | CB21: 4 | CC21: 6 | CD21: 8 | CE21: 4 | CG21: North Amer. | CH21: Engineer | CI21: 8 | CJ21: 4 | CL21: in North America | CM21: working as Engineer | CN21: 8 | CO21: 4 to 6 hours a day | CQ21: =SUM((JobType=CH21)*1) -> 74 | CS21: 0.02648543478 | CT21: 16 | CU21: =+CQ21 -> 74 | CV21: ="Participants " & CM21 & "." -> Participants working as Engineer.
C22: Asia | D22: Europe | E22: Africa | F22: North Amer. | G22: South Amer. | H22: Oceania | I22: Worldwide | J22: =INDEX(C22:H22,,MATCH($D$6,$C$8:$H$8,0)) -> North Amer. | N22: Accountant | O22: =+P9-O9 -> 2500.990461 | P22: =+P9 -> 4284.157365 | Q22: =+Q9-P9 -> 5289.125408 | R22: =+R9-Q9 -> 14176.71723 | S22: =+S9-R9 -> 47481.66675 | W22: Accountant | X22: =+Y9-X9 -> 29500 | Y22: =+Y9 -> 45000 | Z22: =+Z9-Y9 -> 15000 | AA22: =+AA9-Z9 -> 17000 | AB22: =+AB9-AA9 -> 1152201.904 | AH22: 0 - 2 yrs | AI22: 2 - 5 yrs | AJ22: 5 - 10 yrs | AK22: 10 - 15 yrs | AL22: 15+ yrs | AP22: 0 hrs | AQ22: 1 - 2 hrs | AR22: 2 - 3 hrs | AS22: 4 - 6 hrs | AT22: 8+ hrs | AW22: =Graph3_Data -> 0 | AX22: 0 - 2 yrs | AY22: 2 - 5 yrs | AZ22: 5 - 10 yrs | BA22: 10 - 15 yrs | BB22: 15+ yrs | BL22: 5 | BM22: Aruba | BN22: =SUM((Country=BM22)*Salaries)/SUM((Country=BM22)*1) -> 5000 | BO22: =IFERROR(SUM((Country=BM22)*(YearsExp<>"")*YearsExp)/SUM((Country=BM22)*(YearsExp<>"")*1),0) -> 13 | BP22: =SUM((Country=BM22)*1) -> 1 | BR22: =CHOOSE($BN$3,104-BL22,BN22,BO22,BP22)+0.00001*ROWS($BM$18:BM22) -> 1.00005 | BS22: 99 | BT22: 5 | BU22: 19 | BV22: Canada | BW22: 89799.52684 | BX22: 8.75 | BY22: 58 | CB22: 6 | CC22: 6 | CD22: 6 | CE22: 2 | CG22: Oceania | CH22: Engineer | CI22: 6 | CJ22: 2 | CL22: in Oceania | CM22: working as Engineer | CN22: 6 | CO22: 1 or 2 hours a day | CQ22: =SUM((JobType=CH22)*(Continent=CG22)*1) -> 3 | CS22: 0.5485408946 | CT22: 9 | CU22: =+CQ22 -> 3 | CV22: ="Participants " & CM22 & " living " & CL22 & "." -> Participants working as Engineer living in Oceania.
B23: Accountant | C23: =SUM((Continent=C$8)*(JobType=$B23)*(YearsExp>$D$4)*(YearsExp<$E$4)*(CodeHours>$D$5)*(CodeHours<$E$5)) -> 4 | D23: =SUM((Continent=D$8)*(JobType=$B23)*(YearsExp>$D$4)*(YearsExp<$E$4)*(CodeHours>$D$5)*(CodeHours<$E$5)) -> 0 | E23: =SUM((Continent=E$8)*(JobType=$B23)*(YearsExp>$D$4)*(YearsExp<$E$4)*(CodeHours>$D$5)*(CodeHours<$E$5)) -> 0 | F23: =SUM((Continent=F$8)*(JobType=$B23)*(YearsExp>$D$4)*(YearsExp<$E$4)*(CodeHours>$D$5)*(CodeHours<$E$5)) -> 0 | G23: =SUM((Continent=G$8)*(JobType=$B23)*(YearsExp>$D$4)*(YearsExp<$E$4)*(CodeHours>$D$5)*(CodeHours<$E$5)) -> 0 | H23: =SUM((Continent=H$8)*(JobType=$B23)*(YearsExp>$D$4)*(YearsExp<$E$4)*(CodeHours>$D$5)*(CodeHours<$E$5)) -> 0 | I23: =SUM(C23:H23) -> 4 | J23: 0 | N23: Analyst | O23: =+P10-O10 -> 3205.425004 | P23: =+P10 -> 5342.375006 | Q23: =+Q10-P10 -> 3561.583337 | R23: 6232.770841 | S23: 145134.521 | W23: Analyst | X23: =+Y10-X10 -> 35000 | Y23: =+Y10 -> 45000 | Z23: =+Z10-Y10 -> 15000 | AA23: 15000 | AB23: 170840.3808 | AG23: Asia | AH23: =+AH10/$AM10 -> 0.1739864865 | AI23: =+AI10/$AM10 -> 0.3412162162 | AJ23: 0.3125 | AK23: 0.1013513514 | AL23: 0.07094594595 | AO23: Asia | AP23: =IF(AP10/$AU10<0.03,NA(),AP10/$AU10) ->  | AQ23: =IF(AQ10/$AU10<0.03,NA(),AQ10/$AU10) -> 0.1055555556 | AR23: 0.2361111111 | AS23: 0.3722222222 | AT23: 0.2833333333 | AW23: Asia | AX23: 11347.6213 | AY23: 13520.13261 | AZ23: 19556.29828 | BA23: 24530.63537 | BB23: 20119.7387 | BL23: 6 | BM23: Asia | BN23: =SUM((Country=BM23)*Salaries)/SUM((Country=BM23)*1) -> 12000 | BO23: =IFERROR(SUM((Country=BM23)*(YearsExp<>"")*YearsExp)/SUM((Country=BM23)*(YearsExp<>"")*1),0) -> 3 | BP23: =SUM((Country=BM23)*1) -> 1 | BR23: =CHOOSE($BN$3,104-BL23,BN23,BO23,BP23)+0.00001*ROWS($BM$18:BM23) -> 1.00006 | BS23: 98 | BT23: 6 | BU23: 70 | BV23: Pakistan | BW23: 11873.55259 | BX23: 6.88 | BY23: 29 | CB23: 5 | CC23: 4 | CD23: 13 | CE23: 1 | CG23: South Amer. | CH23: Controller | CI23: 13 | CJ23: 1 | CL23: in South America | CM23: working as Controller | CN23: 13 | CO23: 0 hours a day | CS23: 0.7073605818 | CT23: 7 | CU23: 100% | CV23: Participants love Chandoo.org !
B24: Analyst | C24: =SUM((Continent=C$8)*(JobType=$B24)*(YearsExp>$D$4)*(YearsExp<$E$4)*(CodeHours>$D$5)*(CodeHours<$E$5)) -> 18 | D24: =SUM((Continent=D$8)*(JobType=$B24)*(YearsExp>$D$4)*(YearsExp<$E$4)*(CodeHours>$D$5)*(CodeHours<$E$5)) -> 5 | E24: =SUM((Continent=E$8)*(JobType=$B24)*(YearsExp>$D$4)*(YearsExp<$E$4)*(CodeHours>$D$5)*(CodeHours<$E$5)) -> 0 | F24: =SUM((Continent=F$8)*(JobType=$B24)*(YearsExp>$D$4)*(YearsExp<$E$4)*(CodeHours>$D$5)*(CodeHours<$E$5)) -> 11 | G24: =SUM((Continent=G$8)*(JobType=$B24)*(YearsExp>$D$4)*(YearsExp<$E$4)*(CodeHours>$D$5)*(CodeHours<$E$5)) -> 2 | H24: =SUM((Continent=H$8)*(JobType=$B24)*(YearsExp>$D$4)*(YearsExp<$E$4)*(CodeHours>$D$5)*(CodeHours<$E$5)) -> 4 | I24: =SUM(C24:H24) -> 40 | J24: 11 | N24: Consultant | O24: 5849.900632 | P24: 8414.240635 | Q24: =+Q11-P11 -> 3585.759365 | R24: 13376.28128 | S24: 94623.71872 | W24: Consultant | X24: 57000 | Y24: 69000 | Z24: =+Z11-Y11 -> 21469.26012 | AA24: 24530.73988 | AB24: 135000 | AG24: Europe | AH24: =+AH11/$AM11 -> 0.08597285068 | AI24: 0.2352941176 | AJ24: 0.3031674208 | AK24: 0.1945701357 | AL24: 0.1809954751 | AO24: Europe | AP24: =IF(AP11/$AU11<0.03,NA(),AP11/$AU11) ->  | AQ24: 0.09868421053 | AR24: 0.25 | AS24: 0.4078947368 | AT24: 0.2401315789 | AW24: Europe | AX24: 42463.78097 | AY24: 52552.924 | AZ24: 61206.88659 | BA24: 64911.97539 | BB24: 77703.71104 | BL24: 7 | BM24: Australia | BN24: =SUM((Country=BM24)*Salaries)/SUM((Country=BM24)*1) -> 92857.62985 | BO24: =IFERROR(SUM((Country=BM24)*(YearsExp<>"")*YearsExp)/SUM((Country=BM24)*(YearsExp<>"")*1),0) -> 10.26 | BP24: =SUM((Country=BM24)*1) -> 81 | BR24: =CHOOSE($BN$3,104-BL24,BN24,BO24,BP24)+0.00001*ROWS($BM$18:BM24) -> 81.00007 | BS24: 4 | BT24: 7 | BU24: 65 | BV24: Netherlands | BW24: 73006.4312 | BX24: 9.842105263 | BY24: 23 | CB24: 1 | CC24: 1 | CD24: 7 | CE24: 3 | CG24: Asia | CH24: Accountant | CI24: 7 | CJ24: 3 | CL24: in Asia | CM24: working as Accountant | CN24: 7 | CO24: 2 to 3 hours per day | CQ24: =SUM((Continent=CG24)*(JobType=CH24)*1)/SUM((Continent=CG24)*1) -> 0.06944444444 | CS24: 0.2408451994 | CT24: 13 | CU24: =TEXT(CQ24,"0.0%") -> 6.9% | CV24: ="of Participants living " & CL24 & " " & CM24 & "." -> of Participants living in Asia working as Accountant.
B25: Consultant | C25: =SUM((Continent=C$8)*(JobType=$B25)*(YearsExp>$D$4)*(YearsExp<$E$4)*(CodeHours>$D$5)*(CodeHours<$E$5)) -> 2 | D25: =SUM((Continent=D$8)*(JobType=$B25)*(YearsExp>$D$4)*(YearsExp<$E$4)*(CodeHours>$D$5)*(CodeHours<$E$5)) -> 2 | E25: =SUM((Continent=E$8)*(JobType=$B25)*(YearsExp>$D$4)*(YearsExp<$E$4)*(CodeHours>$D$5)*(CodeHours<$E$5)) -> 0 | F25: =SUM((Continent=F$8)*(JobType=$B25)*(YearsExp>$D$4)*(YearsExp<$E$4)*(CodeHours>$D$5)*(CodeHours<$E$5)) -> 0 | G25: =SUM((Continent=G$8)*(JobType=$B25)*(YearsExp>$D$4)*(YearsExp<$E$4)*(CodeHours>$D$5)*(CodeHours<$E$5)) -> 1 | H25: =SUM((Continent=H$8)*(JobType=$B25)*(YearsExp>$D$4)*(YearsExp<$E$4)*(CodeHours>$D$5)*(CodeHours<$E$5)) -> 2 | I25: 7 | J25: 0 | N25: Controller | O25: 9885.659997 | P25: 12450 | Q25: =+Q12-P12 -> 3363.562509 | R25: 23186.43749 | S25: 46000 | W25: Controller | X25: 43000 | Y25: 67000 | Z25: =+Z12-Y12 -> 13000 | AA25: 21000 | AB25: 113000 | AG25: Africa | AH25: 0.1612903226 | AI25: 0.1935483871 | AJ25: 0.3548387097 | AK25: 0.09677419355 | AL25: 0.1935483871 | AO25: Africa | AR25: 0.1081081081 | AS25: 0.5135135135 | AT25: 0.3783783784 | AW25: Africa | AX25: 17526.95344 | AY25: 14649.30614 | AZ25: 43760.59777 | BA25: 24948.7579 | BB25: 75481.80484 | BL25: 8 | BM25: Austria | BN25: =SUM((Country=BM25)*Salaries)/SUM((Country=BM25)*1) -> 50815.97756 | BO25: =IFERROR(SUM((Country=BM25)*(YearsExp<>"")*YearsExp)/SUM((Country=BM25)*(YearsExp<>"")*1),0) -> 20 | BP25: =SUM((Country=BM25)*1) -> 1 | BR25: =CHOOSE($BN$3,104-BL25,BN25,BO25,BP25)+0.00001*ROWS($BM$18:BM25) -> 1.00008 | BS25: 97 | BT25: 8 | BU25: 16 | BV25: Brazil | BW25: 42672.03657 | BX25: 7.272727273 | BY25: 20 | CB25: 2 | CC25: 8 | CD25: 2 | CE25: 2 | CG25: Europe | CH25: Reporting | CI25: 2 | CJ25: 2 | CL25: in Europe | CM25: working in Reporting | CN25: 2 | CO25: 1 or 2 hours a day | CQ25: =SUM((YearsExp<CI25)*1) -> 651 | CS25: 0.9215492021 | CT25: 1 | CU25: =+CQ25 -> 651 | CV25: ="Participants in the world with less then " & CI25 & " years of experience." -> Participants in the world with less then 2 years of experience.
B26: Controller | C26: =SUM((Continent=C$8)*(JobType=$B26)*(YearsExp>$D$4)*(YearsExp<$E$4)*(CodeHours>$D$5)*(CodeHours<$E$5)) -> 0 | D26: =SUM((Continent=D$8)*(JobType=$B26)*(YearsExp>$D$4)*(YearsExp<$E$4)*(CodeHours>$D$5)*(CodeHours<$E$5)) -> 0 | E26: =SUM((Continent=E$8)*(JobType=$B26)*(YearsExp>$D$4)*(YearsExp<$E$4)*(CodeHours>$D$5)*(CodeHours<$E$5)) -> 0 | F26: =SUM((Continent=F$8)*(JobType=$B26)*(YearsExp>$D$4)*(YearsExp<$E$4)*(CodeHours>$D$5)*(CodeHours<$E$5)) -> 1 | G26: =SUM((Continent=G$8)*(JobType=$B26)*(YearsExp>$D$4)*(YearsExp<$E$4)*(CodeHours>$D$5)*(CodeHours<$E$5)) -> 0 | H26: =SUM((Continent=H$8)*(JobType=$B26)*(YearsExp>$D$4)*(YearsExp<$E$4)*(CodeHours>$D$5)*(CodeHours<$E$5)) -> 1 | I26: 2 | J26: 1 | N26: CXO or Top Mgmt. | O26: 11129.94793 | P26: 13801.13543 | Q26: =+Q13-P13 -> 16198.86457 | R26: 17259.89586 | S26: 53540.10414 | W26: CXO or Top Mgmt. | X26: 71500 | Y26: 87500 | Z26: =+Z13-Y13 -> 20000 | AA26: 42500 | AB26: 150000 | AG26: North Amer. | AH26: 0.1494565217 | AI26: 0.1875 | AJ26: 0.2880434783 | AK26: 0.1875 | AL26: 0.1875 | AO26: North Amer. | AQ26: 0.07246376812 | AR26: 0.2449275362 | AS26: 0.452173913 | AT26: 0.2246376812 | AW26: North Amer. | AX26: 51417.85505 | AY26: 58797.10732 | AZ26: 74894.32729 | BA26: 78838.12317 | BB26: 92970.08963 | BL26: 9 | BM26: Azerbaijan | BN26: =SUM((Country=BM26)*Salaries)/SUM((Country=BM26)*1) -> 36000 | BO26: =IFERROR(SUM((Country=BM26)*(YearsExp<>"")*YearsExp)/SUM((Country=BM26)*(YearsExp<>"")*1),0) -> 5 | BP26: =SUM((Country=BM26)*1) -> 1 | BR26: =CHOOSE($BN$3,104-BL26,BN26,BO26,BP26)+0.00001*ROWS($BM$18:BM26) -> 1.00009 | BS26: 96 | BT26: 9 | BU26: 95 | BV26: UAE | BW26: 43014.90019 | BX26: 9.821428571 | BY26: 19 | CB26: 2 | CC26: 7 | CD26: 10 | CE26: 5 | CG26: Europe | CH26: Manager | CI26: 10 | CJ26: 5 | CL26: in Europe | CM26: working as Manager | CN26: 10 | CO26: 8 hours a day | CQ26: =SUM((YearsExp>CI26)*1) -> 369 | CS26: 0.7422443124 | CT26: 6 | CU26: =+CQ26 -> 369 | CV26: ="Participants in the world with more then " & CI26 & " years of experience." -> Participants in the world with more then 10 years of experience.
B27: CXO or Top Mgmt. | C27: =SUM((Continent=C$8)*(JobType=$B27)*(YearsExp>$D$4)*(YearsExp<$E$4)*(CodeHours>$D$5)*(CodeHours<$E$5)) -> 4 | D27: =SUM((Continent=D$8)*(JobType=$B27)*(YearsExp>$D$4)*(YearsExp<$E$4)*(CodeHours>$D$5)*(CodeHours<$E$5)) -> 1 | E27: =SUM((Continent=E$8)*(JobType=$B27)*(YearsExp>$D$4)*(YearsExp<$E$4)*(CodeHours>$D$5)*(CodeHours<$E$5)) -> 0 | F27: =SUM((Continent=F$8)*(JobType=$B27)*(YearsExp>$D$4)*(YearsExp<$E$4)*(CodeHours>$D$5)*(CodeHours<$E$5)) -> 2 | G27: =SUM((Continent=G$8)*(JobType=$B27)*(YearsExp>$D$4)*(YearsExp<$E$4)*(CodeHours>$D$5)*(CodeHours<$E$5)) -> 0 | H27: =SUM((Continent=H$8)*(JobType=$B27)*(YearsExp>$D$4)*(YearsExp<$E$4)*(CodeHours>$D$5)*(CodeHours<$E$5)) -> 0 | I27: 7 | J27: 2 | N27: Engineer | O27: 4558.354166 | P27: 7229.541669 | Q27: =+Q14-P14 -> 4472.86855 | R27: 12297.58978 | S27: 114000 | W27: Engineer | X27: 50371 | Y27: 57000 | Z27: =+Z14-Y14 -> 14250 | AA27: 13750 | AB27: 45000 | AG27: South Amer. | AH27: 0.1363636364 | AI27: 0.1818181818 | AJ27: 0.4545454545 | AK27: 0.09090909091 | AL27: 0.1363636364 | AO27: South Amer. | AQ27: 0.2285714286 | AR27: 0.08571428571 | AS27: 0.2285714286 | AT27: 0.4571428571 | AW27: South Amer. | AX27: 16533.33333 | AY27: 49221.08752 | AZ27: 24683.13814 | BA27: 27850 | BB27: 15200 | BL27: 10 | BM27: Baltic | BN27: =SUM((Country=BM27)*Salaries)/SUM((Country=BM27)*1) -> 8400 | BO27: =IFERROR(SUM((Country=BM27)*(YearsExp<>"")*YearsExp)/SUM((Country=BM27)*(YearsExp<>"")*1),0) -> 0.3 | BP27: =SUM((Country=BM27)*1) -> 1 | BR27: =CHOOSE($BN$3,104-BL27,BN27,BO27,BP27)+0.00001*ROWS($BM$18:BM27) -> 1.0001 | BS27: 95 | BT27: 10 | BU27: 87 | BV27: South Africa | BW27: 49555.62499 | BX27: 11.86666667 | BY27: 19 | CB27: 1 | CC27: 9 | CD27: 10 | CE27: 1 | CG27: Asia | CH27: Specialist | CI27: 10 | CJ27: 1 | CL27: in Asia | CM27: working as Specialist | CN27: 10 | CO27: 0 hours a day | CQ27: =SUM((YearsExp<CI26)*(JobType=CH26))/SUM((JobType=CH26)*1) -> 0.6845878136 | CS27: 0.820747724 | CT27: 4 | CU27: =TEXT(CQ27,"0.0%") -> 68.5% | CV27: ="Participants " & CM27 & " have less then " & CI27 & " years of experience." -> Participants working as Specialist have less then 10 years of experience.
B28: Engineer | C28: =SUM((Continent=C$8)*(JobType=$B28)*(YearsExp>$D$4)*(YearsExp<$E$4)*(CodeHours>$D$5)*(CodeHours<$E$5)) -> 6 | D28: =SUM((Continent=D$8)*(JobType=$B28)*(YearsExp>$D$4)*(YearsExp<$E$4)*(CodeHours>$D$5)*(CodeHours<$E$5)) -> 0 | E28: =SUM((Continent=E$8)*(JobType=$B28)*(YearsExp>$D$4)*(YearsExp<$E$4)*(CodeHours>$D$5)*(CodeHours<$E$5)) -> 0 | F28: =SUM((Continent=F$8)*(JobType=$B28)*(YearsExp>$D$4)*(YearsExp<$E$4)*(CodeHours>$D$5)*(CodeHours<$E$5)) -> 1 | G28: =SUM((Continent=G$8)*(JobType=$B28)*(YearsExp>$D$4)*(YearsExp<$E$4)*(CodeHours>$D$5)*(CodeHours<$E$5)) -> 1 | H28: =SUM((Continent=H$8)*(JobType=$B28)*(YearsExp>$D$4)*(YearsExp<$E$4)*(CodeHours>$D$5)*(CodeHours<$E$5)) -> 0 | I28: 8 | J28: 1 | N28: Manager | O28: 5887.246047 | P28: 7693.020009 | Q28: =+Q15-P15 -> 3882.125838 | R28: 9794.354178 | S28: 165613.6252 | W28: Manager | X28: 41000 | Y28: 52000 | Z28: =+Z15-Y15 -> 16835.30661 | AA28: 21164.69339 | AB28: 310000 | AG28: Oceania | AH28: 0.08988764045 | AI28: 0.2584269663 | AJ28: 0.2921348315 | AK28: 0.1460674157 | AL28: 0.2134831461 | AO28: Oceania | AQ28: 0.1041666667 | AR28: 0.3020833333 | AS28: 0.4479166667 | AT28: 0.1458333333 | AW28: Oceania | AX28: 63991.05821 | AY28: 73916.59206 | AZ28: 94882.75614 | BA28: 103362.0209 | BB28: 102453.4959 | BL28: 11 | BM28: Bangladesh | BN28: =SUM((Country=BM28)*Salaries)/SUM((Country=BM28)*1) -> 10299.00865 | BO28: =IFERROR(SUM((Country=BM28)*(YearsExp<>"")*YearsExp)/SUM((Country=BM28)*(YearsExp<>"")*1),0) -> 12 | BP28: =SUM((Country=BM28)*1) -> 2 | BR28: =CHOOSE($BN$3,104-BL28,BN28,BO28,BP28)+0.00001*ROWS($BM$18:BM28) -> 2.00011 | BS28: 57 | BT28: 11 | BU28: 36 | BV28: Germany | BW28: 79637.14702 | BX28: 7.461538462 | BY28: 17 | CB28: 6 | CC28: 3 | CD28: 24 | CE28: 3 | CG28: Oceania | CH28: Consultant | CI28: 24 | CJ28: 3 | CL28: in Oceania | CM28: working as Consultant | CN28: 24 | CO28: 2 to 3 hours per day | CQ28: =SUM((YearsExp>CI27)*(JobType=CH27))/SUM((JobType=CH27)*1) -> 0.1176470588 | CS28: 0.8788038949 | CT28: 2 | CU28: =TEXT(CQ28,"0.0%") -> 11.8% | CV28: ="Participants " & CM28 & " have more then " & CI28 & " years of experience." -> Participants working as Consultant have more then 24 years of experience.
B29: Manager | C29: =SUM((Continent=C$8)*(JobType=$B29)*(YearsExp>$D$4)*(YearsExp<$E$4)*(CodeHours>$D$5)*(CodeHours<$E$5)) -> 21 | D29: =SUM((Continent=D$8)*(JobType=$B29)*(YearsExp>$D$4)*(YearsExp<$E$4)*(CodeHours>$D$5)*(CodeHours<$E$5)) -> 11 | E29: =SUM((Continent=E$8)*(JobType=$B29)*(YearsExp>$D$4)*(YearsExp<$E$4)*(CodeHours>$D$5)*(CodeHours<$E$5)) -> 0 | F29: =SUM((Continent=F$8)*(JobType=$B29)*(YearsExp>$D$4)*(YearsExp<$E$4)*(CodeHours>$D$5)*(CodeHours<$E$5)) -> 11 | G29: =SUM((Continent=G$8)*(JobType=$B29)*(YearsExp>$D$4)*(YearsExp<$E$4)*(CodeHours>$D$5)*(CodeHours<$E$5)) -> 2 | H29: =SUM((Continent=H$8)*(JobType=$B29)*(YearsExp>$D$4)*(YearsExp<$E$4)*(CodeHours>$D$5)*(CodeHours<$E$5)) -> 3 | I29: 48 | J29: 11 | N29: Misc. | O29: 1880.168748 | P29: 4373.277084 | Q29: =+Q16-P16 -> 8626.722916 | R29: 13178.0578 | S29: 15534.17339 | W29: Misc. | X29: 6269.5 | Y29: 80730.5 | Z29: =+Z16-Y16 -> 6269.5 | AA29: 1500 | AB29: 1500 | AG29: Worldwide | AH29: 0.1458805745 | AI29: 0.2690854119 | AJ29: 0.306122449 | AK29: 0.1436130008 | AL29: 0.1352985639 | AO29: Worldwide | AQ29: 0.09245483528 | AR29: 0.2396386823 | AS29: 0.4112646121 | AT29: 0.252922423 | AW29: Worldwide | AX29: 33880.10038 | AY29: 43776.19161 | AZ29: 53164.0007 | BA29: 54073.58545 | BB29: 63988.14002 | BL29: 12 | BM29: Belgium | BN29: =SUM((Country=BM29)*Salaries)/SUM((Country=BM29)*1) -> 41707.21358 | BO29: =IFERROR(SUM((Country=BM29)*(YearsExp<>"")*YearsExp)/SUM((Country=BM29)*(YearsExp<>"")*1),0) -> 10.5 | BP29: =SUM((Country=BM29)*1) -> 4 | BR29: =CHOOSE($BN$3,104-BL29,BN29,BO29,BP29)+0.00001*ROWS($BM$18:BM29) -> 4.00012 | BS29: 39 | BT29: 12 | BU29: 66 | BV29: New Zealand | BW29: 70287.55497 | BX29: 11.71428571 | BY29: 15 | CB29: 6 | CC29: 3 | CD29: 21 | CE29: 1 | CG29: Oceania | CH29: Consultant | CI29: 21 | CJ29: 1 | CL29: in Oceania | CM29: working as Consultant | CN29: 21 | CO29: 0 hours a day | CQ29: =SUM((YearsExp<CI29)*Salaries)/SUM((YearsExp<CI29)*1) -> 48801.43633 | CS29: 0.2271926274 | CT29: 14 | CU29: =TEXT(CQ29,"# $") -> 48801 $ | CV29: ="Average salary of participants with less then " & CN29 & " years of experience." -> Average salary of participants with less then 21 years of experience.
B30: Misc. | C30: =SUM((Continent=C$8)*(JobType=$B30)*(YearsExp>$D$4)*(YearsExp<$E$4)*(CodeHours>$D$5)*(CodeHours<$E$5)) -> 0 | D30: =SUM((Continent=D$8)*(JobType=$B30)*(YearsExp>$D$4)*(YearsExp<$E$4)*(CodeHours>$D$5)*(CodeHours<$E$5)) -> 0 | E30: =SUM((Continent=E$8)*(JobType=$B30)*(YearsExp>$D$4)*(YearsExp<$E$4)*(CodeHours>$D$5)*(CodeHours<$E$5)) -> 0 | F30: =SUM((Continent=F$8)*(JobType=$B30)*(YearsExp>$D$4)*(YearsExp<$E$4)*(CodeHours>$D$5)*(CodeHours<$E$5)) -> 1 | G30: =SUM((Continent=G$8)*(JobType=$B30)*(YearsExp>$D$4)*(YearsExp<$E$4)*(CodeHours>$D$5)*(CodeHours<$E$5)) -> 0 | H30: =SUM((Continent=H$8)*(JobType=$B30)*(YearsExp>$D$4)*(YearsExp<$E$4)*(CodeHours>$D$5)*(CodeHours<$E$5)) -> 0 | I30: 1 | J30: 1 | N30: Reporting | O30: 2089.464031 | P30: 4000 | Q30: =+Q17-P17 -> 1983.460007 | R30: 4016.539993 | S30: 90614.72928 | W30: Reporting | X30: 5000 | Y30: 37000 | Z30: =+Z17-Y17 -> 8000 | AA30: 40000 | AB30: 7000 | BL30: 13 | BM30: Bermuda | BN30: =SUM((Country=BM30)*Salaries)/SUM((Country=BM30)*1) -> 78000 | BO30: =IFERROR(SUM((Country=BM30)*(YearsExp<>"")*YearsExp)/SUM((Country=BM30)*(YearsExp<>"")*1),0) -> 0 | BP30: =SUM((Country=BM30)*1) -> 1 | BR30: =CHOOSE($BN$3,104-BL30,BN30,BO30,BP30)+0.00001*ROWS($BM$18:BM30) -> 1.00013 | BS30: 94 | BT30: 13 | BU30: 83 | BV30: Singapore | BW30: 52154.75405 | BX30: 7.272727273 | BY30: 13 | CB30: 5 | CC30: 3 | CD30: 5 | CE30: 1 | CG30: South Amer. | CH30: Consultant | CI30: 5 | CJ30: 1 | CL30: in South America | CM30: working as Consultant | CN30: 5 | CO30: 0 hours a day | CQ30: =SUM((YearsExp>CI30)*Salaries)/SUM((YearsExp>CI30)*1) -> 55352.819 | CS30: 0.826968851 | CT30: 3 | CU30: =TEXT(CQ30,"# $") -> 55353 $ | CV30: ="Average salary of participants with more then " & CN30 & " years of experience." -> Average salary of participants with more then 5 years of experience.
B31: Reporting | C31: =SUM((Continent=C$8)*(JobType=$B31)*(YearsExp>$D$4)*(YearsExp<$E$4)*(CodeHours>$D$5)*(CodeHours<$E$5)) -> 3 | D31: =SUM((Continent=D$8)*(JobType=$B31)*(YearsExp>$D$4)*(YearsExp<$E$4)*(CodeHours>$D$5)*(CodeHours<$E$5)) -> 0 | E31: =SUM((Continent=E$8)*(JobType=$B31)*(YearsExp>$D$4)*(YearsExp<$E$4)*(CodeHours>$D$5)*(CodeHours<$E$5)) -> 0 | F31: =SUM((Continent=F$8)*(JobType=$B31)*(YearsExp>$D$4)*(YearsExp<$E$4)*(CodeHours>$D$5)*(CodeHours<$E$5)) -> 0 | G31: =SUM((Continent=G$8)*(JobType=$B31)*(YearsExp>$D$4)*(YearsExp<$E$4)*(CodeHours>$D$5)*(CodeHours<$E$5)) -> 0 | H31: =SUM((Continent=H$8)*(JobType=$B31)*(YearsExp>$D$4)*(YearsExp<$E$4)*(CodeHours>$D$5)*(CodeHours<$E$5)) -> 0 | I31: 3 | J31: 0 | N31: Specialist | O31: 5436.425004 | P31: 9455.425004 | Q31: =+Q18-P18 -> 8544.574996 | R31: 10000 | S31: 71147 | W31: Specialist | X31: 14000 | Y31: 45000 | Z31: =+Z18-Y18 -> 5000 | AA31: 19000 | AB31: 331000 | BL31: 14 | BM31: Bhutan | BN31: =SUM((Country=BM31)*Salaries)/SUM((Country=BM31)*1) -> 4800 | BO31: =IFERROR(SUM((Country=BM31)*(YearsExp<>"")*YearsExp)/SUM((Country=BM31)*(YearsExp<>"")*1),0) -> 2 | BP31: =SUM((Country=BM31)*1) -> 1 | BR31: =CHOOSE($BN$3,104-BL31,BN31,BO31,BP31)+0.00001*ROWS($BM$18:BM31) -> 1.00014 | BS31: 93 | BT31: 14 | BU31: 81 | BV31: Saudi Arabia | BW31: 35832.12121 | BX31: 11.22222222 | BY31: 11 | CB31: 2 | CC31: 8 | CD31: 19 | CE31: 5 | CG31: Europe | CH31: Reporting | CI31: 19 | CJ31: 5 | CL31: in Europe | CM31: working in Reporting | CN31: 19 | CO31: 8 hours a day | CQ31: =SUM((CodeHours>=CJ31)*Salaries)/SUM((CodeHours>=CJ31)*1) -> 43571.1628 | CS31: 0.7895095461 | CT31: 5 | CU31: 43571 $ | CV31: ="Average salary of participants using Excel more then " & CO31 & "." -> Average salary of participants using Excel more then 8 hours a day.
B32: Specialist | C32: =SUM((Continent=C$8)*(JobType=$B32)*(YearsExp>$D$4)*(YearsExp<$E$4)*(CodeHours>$D$5)*(CodeHours<$E$5)) -> 0 | D32: =SUM((Continent=D$8)*(JobType=$B32)*(YearsExp>$D$4)*(YearsExp<$E$4)*(CodeHours>$D$5)*(CodeHours<$E$5)) -> 1 | E32: =SUM((Continent=E$8)*(JobType=$B32)*(YearsExp>$D$4)*(YearsExp<$E$4)*(CodeHours>$D$5)*(CodeHours<$E$5)) -> 0 | F32: =SUM((Continent=F$8)*(JobType=$B32)*(YearsExp>$D$4)*(YearsExp<$E$4)*(CodeHours>$D$5)*(CodeHours<$E$5)) -> 0 | G32: =SUM((Continent=G$8)*(JobType=$B32)*(YearsExp>$D$4)*(YearsExp<$E$4)*(CodeHours>$D$5)*(CodeHours<$E$5)) -> 0 | H32: =SUM((Continent=H$8)*(JobType=$B32)*(YearsExp>$D$4)*(YearsExp<$E$4)*(CodeHours>$D$5)*(CodeHours<$E$5)) -> 0 | I32: 1 | J32: 0 | AG32: For the graph | BL32: 15 | BM32: Bolivia | BN32: =SUM((Country=BM32)*Salaries)/SUM((Country=BM32)*1) -> 9600 | BO32: =IFERROR(SUM((Country=BM32)*(YearsExp<>"")*YearsExp)/SUM((Country=BM32)*(YearsExp<>"")*1),0) -> 2 | BP32: =SUM((Country=BM32)*1) -> 1 | BR32: =CHOOSE($BN$3,104-BL32,BN32,BO32,BP32)+0.00001*ROWS($BM$18:BM32) -> 1.00015 | BS32: 92 | BT32: 15 | BU32: 74 | BV32: Philippines | BW32: 17479.29236 | BX32: 9 | BY32: 11 | CB32: 1 | CC32: 8 | CD32: 10 | CE32: 1 | CG32: Asia | CH32: Reporting | CI32: 10 | CJ32: 1 | CL32: in Asia | CM32: working in Reporting | CN32: 10 | CO32: 0 hours a day | CQ32: =SUM((CodeHours<=CJ32)*Salaries)/SUM((CodeHours<=CJ32)*1) -> 57493.38151 | CS32: 0.3035517327 | CT32: =RANK(CS32,$CS$18:$CS$33) -> 12 | CU32: 57493 $ | CV32: ="Average salary of participants using Excel less then " & CO32 & "." -> Average salary of participants using Excel less then 0 hours a day.
BL33: 16 | BM33: Brazil | BN33: =SUM((Country=BM33)*Salaries)/SUM((Country=BM33)*1) -> 42672.03657 | BO33: =IFERROR(SUM((Country=BM33)*(YearsExp<>"")*YearsExp)/SUM((Country=BM33)*(YearsExp<>"")*1),0) -> 7.272727273 | BP33: =SUM((Country=BM33)*1) -> 20 | BR33: =CHOOSE($BN$3,104-BL33,BN33,BO33,BP33)+0.00001*ROWS($BM$18:BM33) -> 20.00016 | BS33: 8 | BT33: 16 | BU33: 88 | BV33: Spain | BW33: 46235.66011 | BX33: 12.44444444 | BY33: 10 | CB33: 2 | CC33: 7 | CD33: 15 | CE33: 5 | CG33: Europe | CH33: Manager | CI33: 15 | CJ33: 5 | CL33: in Europe | CM33: working as Manager | CN33: 15 | CO33: 8 hours a day | CQ33: =SUM((CodeHours=CJ33)*1)/SUM((CodeHours<=99)*1) -> 0.2527881041 | CS33: 0.03549903657 | CT33: =RANK(CS33,$CS$18:$CS$33) -> 15 | CU33: =TEXT(CQ33,"0.0%") -> 25.3% | CV33: ="Participants are using Excel " &CO33 & "." -> Participants are using Excel 8 hours a day.
AG34: =Graph2_Data -> 0 | AH34: 0 hrs | AI34: 1 - 2 hrs | AJ34: 2 - 3 hrs | AK34: 4 - 6 hrs | AL34: 8+ hrs | BL34: 17 | BM34: Bulgaria | BN34: =SUM((Country=BM34)*Salaries)/SUM((Country=BM34)*1) -> 14400 | BO34: =IFERROR(SUM((Country=BM34)*(YearsExp<>"")*YearsExp)/SUM((Country=BM34)*(YearsExp<>"")*1),0) -> 15 | BP34: =SUM((Country=BM34)*1) -> 1 | BR34: =CHOOSE($BN$3,104-BL34,BN34,BO34,BP34)+0.00001*ROWS($BM$18:BM34) -> 1.00017 | BS34: 91 | BT34: 17 | BU34: 76 | BV34: Portugal | BW34: 32907.76341 | BX34: 9.571428571 | BY34: 10
B35: Average salary | AG35: Asia | AI35: 0.1055555556 | AJ35: 0.2361111111 | AK35: 0.3722222222 | AL35: 0.2833333333 | BL35: 18 | BM35: Cambodia | BN35: =SUM((Country=BM35)*Salaries)/SUM((Country=BM35)*1) -> 3000 | BO35: =IFERROR(SUM((Country=BM35)*(YearsExp<>"")*YearsExp)/SUM((Country=BM35)*(YearsExp<>"")*1),0) -> 2 | BP35: =SUM((Country=BM35)*1) -> 1 | BR35: =CHOOSE($BN$3,104-BL35,BN35,BO35,BP35)+0.00001*ROWS($BM$18:BM35) -> 1.00018 | BS35: 90 | BT35: 18 | BU35: 59 | BV35: Mexico | BW35: 32138.49829 | BX35: 7.4 | BY35: 10
C36: Asia | D36: Europe | E36: Africa | F36: North Amer. | G36: South Amer. | H36: Oceania | I36: Worldwide | J36: Selected | AG36: Europe | AI36: 0.09868421053 | AJ36: 0.25 | AK36: 0.4078947368 | AL36: 0.2401315789 | BL36: 19 | BM36: Canada | BN36: =SUM((Country=BM36)*Salaries)/SUM((Country=BM36)*1) -> 89799.52684 | BO36: =IFERROR(SUM((Country=BM36)*(YearsExp<>"")*YearsExp)/SUM((Country=BM36)*(YearsExp<>"")*1),0) -> 8.75 | BP36: =SUM((Country=BM36)*1) -> 58 | BR36: =CHOOSE($BN$3,104-BL36,BN36,BO36,BP36)+0.00001*ROWS($BM$18:BM36) -> 58.00019 | BS36: 5 | BT36: 19 | BU36: 80 | BV36: Russia | BW36: 55905.22222 | BX36: 12.25 | BY36: 9
B37: Accountant | C37: =IFERROR(C9/C23,NA()) -> 21800.49327 | D37: =IFERROR(D9/D23,NA()) ->  | I37: 21800.49327 | J37: =IFERROR(J9/J23,NA()) ->  | AG37: Africa | AJ37: 0.1081081081 | AK37: 0.5135135135 | AL37: 0.3783783784 | BL37: 20 | BM37: CEE | BN37: =SUM((Country=BM37)*Salaries)/SUM((Country=BM37)*1) -> 87167.97475 | BO37: =IFERROR(SUM((Country=BM37)*(YearsExp<>"")*YearsExp)/SUM((Country=BM37)*(YearsExp<>"")*1),0) -> 20 | BP37: =SUM((Country=BM37)*1) -> 2 | BR37: =CHOOSE($BN$3,104-BL37,BN37,BO37,BP37)+0.00001*ROWS($BM$18:BM37) -> 2.0002 | BS37: 56 | BT37: 20 | BU37: 57 | BV37: Malaysia | BW37: 23371.61657 | BX37: 6.75 | BY37: 8
B38: Analyst | C38: =IFERROR(C10/C24,NA()) -> 15104.01902 | D38: 73686.07007 | F38: 59030.40554 | G38: 28350 | H38: 96381.46253 | I38: 43296.5751 | J38: 59030.40554 | AG38: North Amer. | AI38: 0.07246376812 | AJ38: 0.2449275362 | AK38: 0.452173913 | AL38: 0.2246376812 | BL38: 21 | BM38: Central America | BN38: =SUM((Country=BM38)*Salaries)/SUM((Country=BM38)*1) -> 95000 | BO38: =IFERROR(SUM((Country=BM38)*(YearsExp<>"")*YearsExp)/SUM((Country=BM38)*(YearsExp<>"")*1),0) -> 0 | BP38: =SUM((Country=BM38)*1) -> 1 | BR38: =CHOOSE($BN$3,104-BL38,BN38,BO38,BP38)+0.00001*ROWS($BM$18:BM38) -> 1.00021 | BS38: 89 | BT38: 21 | BU38: 44 | BV38: Indonesia | BW38: 28872.8368 | BX38: 7.875 | BY38: 8
B39: Consultant | C39: =IFERROR(C11/C25,NA()) -> 63205.425 | D39: 64155.17167 | G39: 5000 | H39: 94341.64322 | I39: 64057.78283 | AG39: South Amer. | AI39: 0.2285714286 | AJ39: 0.08571428571 | AK39: 0.2285714286 | AL39: 0.4571428571 | BL39: 22 | BM39: China | BN39: =SUM((Country=BM39)*Salaries)/SUM((Country=BM39)*1) -> 17046.0901 | BO39: =IFERROR(SUM((Country=BM39)*(YearsExp<>"")*YearsExp)/SUM((Country=BM39)*(YearsExp<>"")*1),0) -> 8 | BP39: =SUM((Country=BM39)*1) -> 2 | BR39: =CHOOSE($BN$3,104-BL39,BN39,BO39,BP39)+0.00001*ROWS($BM$18:BM39) -> 2.00022 | BS39: 55 | BT39: 22 | BU39: 68 | BV39: Norway | BW39: 99016.17437 | BX39: 8.6 | BY39: 7
B40: Controller | C40: =IFERROR(C12/C26,NA()) ->  | F40: 24000 | H40: 50995.48282 | I40: 37497.74141 | J40: 24000 | AG40: Oceania | AI40: 0.1041666667 | AJ40: 0.3020833333 | AK40: 0.4479166667 | AL40: 0.1458333333 | BL40: 23 | BM40: Colombia | BN40: =SUM((Country=BM40)*Salaries)/SUM((Country=BM40)*1) -> 12362 | BO40: =IFERROR(SUM((Country=BM40)*(YearsExp<>"")*YearsExp)/SUM((Country=BM40)*(YearsExp<>"")*1),0) -> 9.333333333 | BP40: =SUM((Country=BM40)*1) -> 5 | BR40: =CHOOSE($BN$3,104-BL40,BN40,BO40,BP40)+0.00001*ROWS($BM$18:BM40) -> 5.00023 | BS40: 33 | BT40: 23 | BU40: 79 | BV40: Romania | BW40: 16449.97676 | BX40: 5.5 | BY40: 6 | CB40: No | CC40: List Job Types | CD40: Text
B41: CXO or Top Mgmt. | C41: =IFERROR(C13/C27,NA()) -> 48372.89065 | D41: 127039.9439 | F41: 146500 | I41: 87647.35807 | J41: 146500 | AG41: Worldwide | AI41: 0.09245483528 | AJ41: 0.2396386823 | AK41: 0.4112646121 | AL41: 0.252922423 | BL41: 24 | BM41: Costa Rica | BN41: =SUM((Country=BM41)*Salaries)/SUM((Country=BM41)*1) -> 28109.62755 | BO41: =IFERROR(SUM((Country=BM41)*(YearsExp<>"")*YearsExp)/SUM((Country=BM41)*(YearsExp<>"")*1),0) -> 0 | BP41: =SUM((Country=BM41)*1) -> 1 | BR41: =CHOOSE($BN$3,104-BL41,BN41,BO41,BP41)+0.00001*ROWS($BM$18:BM41) -> 1.00024 | BS41: 88 | BT41: 24 | BU41: 75 | BV41: Poland | BW41: 34210.34538 | BX41: 7.5 | BY41: 6 | CB41: 1 | CC41: Accountant | CD41: working as Accountant
B42: Engineer | C42: =IFERROR(C14/C28,NA()) -> 16839.45486 | F42: 60000 | G42: 80000 | I42: 30129.59115 | J42: 60000 | BL42: 25 | BM42: Croatia | BN42: =SUM((Country=BM42)*Salaries)/SUM((Country=BM42)*1) -> 43489.58654 | BO42: =IFERROR(SUM((Country=BM42)*(YearsExp<>"")*YearsExp)/SUM((Country=BM42)*(YearsExp<>"")*1),0) -> 4 | BP42: =SUM((Country=BM42)*1) -> 3 | BR42: =CHOOSE($BN$3,104-BL42,BN42,BO42,BP42)+0.00001*ROWS($BM$18:BM42) -> 3.00025 | BS42: 46 | BT42: 25 | BU42: 48 | BV42: Italy | BW42: 47258.85913 | BX42: 11.66666667 | BY42: 6 | CB42: 2 | CC42: Analyst | CD42: working as Analyst
B43: Manager | C43: =IFERROR(C15/C29,NA()) -> 17759.68668 | D43: 75403.72807 | F43: 85636.36364 | G43: 16345.59151 | H43: 109470.3031 | I43: 52197.8442 | J43: 85636.36364 | BL43: 26 | BM43: Czech Republic | BN43: =SUM((Country=BM43)*Salaries)/SUM((Country=BM43)*1) -> 36000 | BO43: =IFERROR(SUM((Country=BM43)*(YearsExp<>"")*YearsExp)/SUM((Country=BM43)*(YearsExp<>"")*1),0) -> 9 | BP43: =SUM((Country=BM43)*1) -> 1 | BR43: =CHOOSE($BN$3,104-BL43,BN43,BO43,BP43)+0.00001*ROWS($BM$18:BM43) -> 1.00026 | BS43: 87 | BT43: 26 | BU43: 35 | BV43: France | BW43: 56952.72505 | BX43: 5.25 | BY43: 6 | CB43: 3 | CC43: Consultant | CD43: working as Consultant
B44: Misc. | C44: =IFERROR(C16/C30,NA()) ->  | F44: 74461 | I44: 74461 | J44: 74461 | L44: Offset | N44: For the graph | BL44: 27 | BM44: Denmark | BN44: =SUM((Country=BM44)*Salaries)/SUM((Country=BM44)*1) -> 82525.5254 | BO44: =IFERROR(SUM((Country=BM44)*(YearsExp<>"")*YearsExp)/SUM((Country=BM44)*(YearsExp<>"")*1),0) -> 17 | BP44: =SUM((Country=BM44)*1) -> 6 | BR44: =CHOOSE($BN$3,104-BL44,BN44,BO44,BP44)+0.00001*ROWS($BM$18:BM44) -> 6.00027 | BS44: 27 | BT44: 27 | BU44: 27 | BV44: Denmark | BW44: 82525.5254 | BX44: 17 | BY44: 6 | CB44: 4 | CC44: Controller | CD44: working as Controller
B45: Reporting | C45: =IFERROR(C17/C31,NA()) -> 7429.154171 | I45: 7429.154171 | O45: 0 | P45: 1 | Q45: 2 | R45: 3 | S45: 4 | BL45: 28 | BM45: Dominican Republic | BN45: =SUM((Country=BM45)*Salaries)/SUM((Country=BM45)*1) -> 11016.68228 | BO45: =IFERROR(SUM((Country=BM45)*(YearsExp<>"")*YearsExp)/SUM((Country=BM45)*(YearsExp<>"")*1),0) -> 3 | BP45: =SUM((Country=BM45)*1) -> 2 | BR45: =CHOOSE($BN$3,104-BL45,BN45,BO45,BP45)+0.00001*ROWS($BM$18:BM45) -> 2.00028 | BS45: 54 | BT45: 28 | BU45: 89 | BV45: Sri Lanka | BW45: 22921.15479 | BX45: 7.9 | BY45: 5 | CB45: 5 | CC45: CXO or Top Mgmt. | CD45: working as CXO
B46: Specialist | C46: =IFERROR(C18/C32,NA()) ->  | D46: 88927.96073 | I46: 88927.96073 | O46: Min | P46: 1st Quartile | Q46: Median | R46: 3rd quartile | S46: Max | BL46: 29 | BM46: Dubai | BN46: =SUM((Country=BM46)*Salaries)/SUM((Country=BM46)*1) -> 32166.95919 | BO46: =IFERROR(SUM((Country=BM46)*(YearsExp<>"")*YearsExp)/SUM((Country=BM46)*(YearsExp<>"")*1),0) -> 6.333333333 | BP46: =SUM((Country=BM46)*1) -> 4 | BR46: =CHOOSE($BN$3,104-BL46,BN46,BO46,BP46)+0.00001*ROWS($BM$18:BM46) -> 4.00029 | BS46: 38 | BT46: 29 | BU46: 47 | BV46: Israel | BW46: 66840 | BX46: 7 | BY46: 5 | CB46: 6 | CC46: Engineer | CD46: working as Engineer
B47: Average | C47: =AVERAGE(IF(ISERROR(C37:C46),"",C37:C46)) -> 27215.87481 | D47: =AVERAGE(IF(ISERROR(D37:D46),"",D37:D46)) -> 85842.57489 | E47: =AVERAGE(IF(ISERROR(E37:E46),"",E37:E46)) ->  | F47: =AVERAGE(IF(ISERROR(F37:F46),"",F37:F46)) -> 74937.96153 | G47: =AVERAGE(IF(ISERROR(G37:G46),"",G37:G46)) -> 32423.89788 | H47: =AVERAGE(IF(ISERROR(H37:H46),"",H37:H46)) -> 87797.22292 | I47: =AVERAGE(IF(ISERROR(I37:I46),"",I37:I46)) -> 50744.55009 | J47: =AVERAGE(IF(ISERROR(J37:J46),"",J37:J46)) -> 74937.96153 | L47: 1 | M47: 1 | O47: =OFFSET($N$21,$L47,$M47+O$45) -> 2500.990461 | P47: 4284.157365 | Q47: 5289.125408 | R47: 14176.71723 | S47: 47481.66675 | BL47: 30 | BM47: Egypt | BN47: =SUM((Country=BM47)*Salaries)/SUM((Country=BM47)*1) -> 19831.43282 | BO47: =IFERROR(SUM((Country=BM47)*(YearsExp<>"")*YearsExp)/SUM((Country=BM47)*(YearsExp<>"")*1),0) -> 5 | BP47: =SUM((Country=BM47)*1) -> 1 | BR47: =CHOOSE($BN$3,104-BL47,BN47,BO47,BP47)+0.00001*ROWS($BM$18:BM47) -> 1.0003 | BS47: 86 | BT47: 30 | BU47: 46 | BV47: Ireland | BW47: 61652.48477 | BX47: 12 | BY47: 5 | CB47: 7 | CC47: Manager | CD47: working as Manager
L48: 1 | M48: 10 | N48: Accountant | O48: 29500 | P48: 45000 | Q48: 15000 | R48: 17000 | S48: 1152201.904 | BL48: 31 | BM48: Estonia | BN48: =SUM((Country=BM48)*Salaries)/SUM((Country=BM48)*1) -> 12000 | BO48: =IFERROR(SUM((Country=BM48)*(YearsExp<>"")*YearsExp)/SUM((Country=BM48)*(YearsExp<>"")*1),0) -> 0 | BP48: =SUM((Country=BM48)*1) -> 1 | BR48: =CHOOSE($BN$3,104-BL48,BN48,BO48,BP48)+0.00001*ROWS($BM$18:BM48) -> 1.00031 | BS48: 85 | BT48: 31 | BU48: 41 | BV48: Hungary | BW48: 24716.34725 | BX48: 9 | BY48: 5 | CB48: 8 | CC48: Reporting | CD48: working in Reporting
BL49: 32 | BM49: Ethiopia | BN49: =SUM((Country=BM49)*Salaries)/SUM((Country=BM49)*1) -> 2953.846154 | BO49: =IFERROR(SUM((Country=BM49)*(YearsExp<>"")*YearsExp)/SUM((Country=BM49)*(YearsExp<>"")*1),0) -> 3 | BP49: =SUM((Country=BM49)*1) -> 1 | BR49: =CHOOSE($BN$3,104-BL49,BN49,BO49,BP49)+0.00001*ROWS($BM$18:BM49) -> 1.00032 | BS49: 84 | BT49: 32 | BU49: 33 | BV49: Europe | BW49: 123889.3533 | BX49: 13.4 | BY49: 5 | CB49: 9 | CC49: Specialist | CD49: working as Specialist
L50: 2 | M50: 1 | O50: 3205.425004 | P50: 5342.375006 | Q50: 3561.583337 | R50: 6232.770841 | S50: 145134.521 | BL50: 33 | BM50: Europe | BN50: =SUM((Country=BM50)*Salaries)/SUM((Country=BM50)*1) -> 123889.3533 | BO50: =IFERROR(SUM((Country=BM50)*(YearsExp<>"")*YearsExp)/SUM((Country=BM50)*(YearsExp<>"")*1),0) -> 13.4 | BP50: =SUM((Country=BM50)*1) -> 5 | BR50: =CHOOSE($BN$3,104-BL50,BN50,BO50,BP50)+0.00001*ROWS($BM$18:BM50) -> 5.00033 | BS50: 32 | BT50: 33 | BU50: 23 | BV50: Colombia | BW50: 12362 | BX50: 9.333333333 | BY50: 5
L51: 2 | M51: 10 | N51: Analyst | O51: =OFFSET($N$21,$L51,$M51+O$45) -> 35000 | P51: 45000 | Q51: 15000 | R51: 15000 | S51: 170840.3808 | BL51: 34 | BM51: Finland | BN51: =SUM((Country=BM51)*Salaries)/SUM((Country=BM51)*1) -> 75389.41554 | BO51: =IFERROR(SUM((Country=BM51)*(YearsExp<>"")*YearsExp)/SUM((Country=BM51)*(YearsExp<>"")*1),0) -> 4.5 | BP51: =SUM((Country=BM51)*1) -> 3 | BR51: =CHOOSE($BN$3,104-BL51,BN51,BO51,BP51)+0.00001*ROWS($BM$18:BM51) -> 3.00034 | BS51: 45 | BT51: 34 | BU51: 98 | BV51: Ukraine | BW51: 11650 | BX51: 5 | BY51: 4 | CB51: No | CC51: Continent | CD51: Text
BL52: 35 | BM52: France | BN52: =SUM((Country=BM52)*Salaries)/SUM((Country=BM52)*1) -> 56952.72505 | BO52: =IFERROR(SUM((Country=BM52)*(YearsExp<>"")*YearsExp)/SUM((Country=BM52)*(YearsExp<>"")*1),0) -> 5.25 | BP52: =SUM((Country=BM52)*1) -> 6 | BR52: =CHOOSE($BN$3,104-BL52,BN52,BO52,BP52)+0.00001*ROWS($BM$18:BM52) -> 6.00035 | BS52: 26 | BT52: 35 | BU52: 91 | BV52: Switzerland | BW52: 137525.5572 | BX52: 13 | BY52: 4 | CB52: 1 | CC52: Asia | CD52: in Asia
L53: 3 | M53: 1 | O53: =OFFSET($N$21,$L53,$M53+O$45) -> 5849.900632 | P53: 8414.240635 | Q53: 3585.759365 | R53: 13376.28128 | S53: 94623.71872 | BL53: 36 | BM53: Germany | BN53: =SUM((Country=BM53)*Salaries)/SUM((Country=BM53)*1) -> 79637.14702 | BO53: =IFERROR(SUM((Country=BM53)*(YearsExp<>"")*YearsExp)/SUM((Country=BM53)*(YearsExp<>"")*1),0) -> 7.461538462 | BP53: =SUM((Country=BM53)*1) -> 17 | BR53: =CHOOSE($BN$3,104-BL53,BN53,BO53,BP53)+0.00001*ROWS($BM$18:BM53) -> 17.00036 | BS53: 11 | BT53: 36 | BU53: 52 | BV53: Kuwait | BW53: 35900 | BX53: 10.25 | BY53: 4 | CB53: 2 | CC53: Europe | CD53: in Europe
L54: 3 | M54: 10 | N54: Consultant | O54: =OFFSET($N$21,$L54,$M54+O$45) -> 57000 | P54: 69000 | Q54: 21469.26012 | R54: 24530.73988 | S54: 135000 | BL54: 37 | BM54: Ghana | BN54: =SUM((Country=BM54)*Salaries)/SUM((Country=BM54)*1) -> 18000 | BO54: =IFERROR(SUM((Country=BM54)*(YearsExp<>"")*YearsExp)/SUM((Country=BM54)*(YearsExp<>"")*1),0) -> 12 | BP54: =SUM((Country=BM54)*1) -> 1 | BR54: =CHOOSE($BN$3,104-BL54,BN54,BO54,BP54)+0.00001*ROWS($BM$18:BM54) -> 1.00037 | BS54: 83 | BT54: 37 | BU54: 51 | BV54: Kuwait | BW54: 35900 | BX54: 10.25 | BY54: 4 | CB54: 3 | CC54: Africa | CD54: in Africa
BL55: 38 | BM55: Greece | BN55: =SUM((Country=BM55)*Salaries)/SUM((Country=BM55)*1) -> 30066.12006 | BO55: =IFERROR(SUM((Country=BM55)*(YearsExp<>"")*YearsExp)/SUM((Country=BM55)*(YearsExp<>"")*1),0) -> 14 | BP55: =SUM((Country=BM55)*1) -> 3 | BR55: =CHOOSE($BN$3,104-BL55,BN55,BO55,BP55)+0.00001*ROWS($BM$18:BM55) -> 3.00038 | BS55: 44 | BT55: 38 | BU55: 29 | BV55: Dubai | BW55: 32166.95919 | BX55: 6.333333333 | BY55: 4 | CB55: 4 | CC55: North Amer. | CD55: in North America
L56: 4 | M56: 1 | O56: =OFFSET($N$21,$L56,$M56+O$45) -> 9885.659997 | P56: 12450 | Q56: 3363.562509 | R56: 23186.43749 | S56: 46000 | BL56: 39 | BM56: Guyana | BN56: =SUM((Country=BM56)*Salaries)/SUM((Country=BM56)*1) -> 6000 | BO56: =IFERROR(SUM((Country=BM56)*(YearsExp<>"")*YearsExp)/SUM((Country=BM56)*(YearsExp<>"")*1),0) -> 20 | BP56: =SUM((Country=BM56)*1) -> 1 | BR56: =CHOOSE($BN$3,104-BL56,BN56,BO56,BP56)+0.00001*ROWS($BM$18:BM56) -> 1.00039 | BS56: 82 | BT56: 39 | BU56: 12 | BV56: Belgium | BW56: 41707.21358 | BX56: 10.5 | BY56: 4 | CB56: 5 | CC56: South Amer. | CD56: in South America
